Workbook

Sheet StartSheet
J1: Attention! This program is for Excel 2010, and needs Solver among the VBA Tools (References)
A3: Preparing input file, how to run the program, and what the results are like
A4: 1. | B4: Make an input file as an Excel WorkBook, containing WorkSheets (or an only WorkSheet) by the structure given in the file F_7_8_15_W.xls (or WDist.xlsx)
C5: The input file should contain as many Sheets as the number of data tables is. If you want to process the same data by different ranking conditions (Max, Min, Average or Read values),
C6: then copy the same data table on more Sheets, and change the last columnhead for Max, Min, Average or Read. Chosen Read you have to fill in the last column.
G7: Save and close the prepared input file.
A8: 2. | B8: Click on the pink start button below, then:
B9: a.) | C9: The program shows the usual GetOpenFile window, and you have to choose your input file.
D10: Then the Worksheets of the input file will be processed, and the result will be saved (including the copies of input sheets) in a new file.
M11: (See in the file SRDrep_V5_E10_ F_7_8_15_W.xls (or SRDrep_V5_E10_WDist.xls)
D12: The results belonging to an input-sheet you find on a result-sheet whose name starts with "Results", ends with the input-sheet's name
E13: If the number of rows (nR) in the Data matrix is >8 on an input sheet, then the result-file contains also a NormApp sheet before to the corresponding result-sheet
B14: b.) | C14: The file containing the results is saved in a new (xls or xlsx) file under the name SRDrep_V<ProgVersionNumber>_E10_<original filename>
D15: (If the input file contains n1 sheets with nR<=8 and n2 sheets with nR>8, the output file will contain 2*n1+3*n2 sheets)
A20: Remarks:
A21: 1. | B21: The upper bound for the rows (nR) of the input matrix is now 40
A22: 2. | B22: If nR<=8 then the program uses the theoretical discret distribution for the CRRN figure (see on the sheets D2, D3,…,D8, respectively)
A23: 3. | B23: If nR>8 then the program uses a normal approximation of the theoretical discret distribution for the CRRN figure
C24: The normal approximation based on 3,000,000 simulated nR dimensional random-vectors needs time (on a PC with dual core 1.6 GHz Pentium CPU) as you see below:
L25: nR | M25: 15 | N25: 23 | O25: 31 | P25: 40
L26: time(3,000,000) (min) | M26: 2.5 | N26: 4.9 | O26: 7.95 | P26: 12.2
C28: In the example below you see the m and s parameter results of four normal approximations,
D29: based on four different 3,000,000-size simulated nR=15 dimensional random-vector sample
D30: of case the RefCol: [1 ; 2,5 ; 2,5 ; 5 ; 5 ; 5 ; 7 ; 8 ; 9 ; 10,5 ; 10,5 ; 12 ; 14 ; 14 ; 14]
F32: m | G32: 67.26622032 | H32: 67.30718944 | I32: 67.25675922 | J32: 67.301
F33: s | G33: 11.58124716 | H33: 11.63677235 | I33: 11.59979121 | J33: 11.592
D35: The CRRN figure of the program in its title shows only three digits of m and s .
A47: Functionality added: Heatmap SRD
A48: 1. | B48: Click on the second (green) button to produce a heatmap image of the available variables.
C49: This type of calculation takes longer, since it produces "n_col" SRD results and uses them to compile the heatmap image.
C50: The number of resulting files is also greater, since each SRD run is saved.
A51: 2. | B51: The resulting Heatmap XLSX file contains three sheets with the same heatmap, but different coloring scheme:
C52: The first sheet presents the heatmap with "absolute coloring": color codes are assigned to ranges of predefined SRD% values (10, 20, etc.)
C53: The second sheet presents the heatmap with "relative coloring": color codes are assigned to ranges based on the greatest SRD% (X) on the sheet (0.1X, 0.2X, etc.)
C54: The third sheet presents the heatmap with "gauss coloring": color codes are assigned to ranges based on the distribution of the SRD% values in the CRRN validation (XX1, Med, XX19)
A55: 3. | B55: IMPORTANT!
C56: Your input table should not contain variable names with a forward slash (/)!
C57: The results of the individual SRD runs are saved with a name that includes the reference variable title.
C58: These files are then read again by the script, which gets confused with filenames containing a forward slash.
C59: Also: column names should be exclusive, i.e. no two columns may have the same name!
C60: The reason is once again the file naming: if two columns have the same name, the corresponding file is prompted to be overwritten and (either way) the rest of the calculation will be erroneous.
A62: If you apply this script in your research, please cite the following articles: [1] K. Kollár-Hunek, K. Héberger, Method and model comparison by sum of ranking differences in cases of repeated observations (ties), Chemom. Intell. Lab. Syst. 127 (2013) 139–146. http://dx.doi.org/10.1016/j.chemolab.2013.06.007 [2] F. Andric et al., Multivariate assessment of lipophilicity scales — computational and reversed phase thin-layer chromatographic indices, J. Pharm. Biomed. Anal. 127 (2016), 81-93. http://dx.doi.org/10.1016/j.jpba.2016.04.001

Sheet Discret2 (hidden)
A1: n=2k | B1: k | D1: MaxSRD=2k^2
A2: 2 | B2: 1 | D2: 2
A4: RC1 | B4: RC2
A5: 1 | B5: 1.5
A6: 2 | B6: 1.5
A7: Cnum | B7: Cnum
A8: 7 | B8: 12
G9: With ties, nDig=2 | L9: With ties, nDig=2
G10: RC1 | I10: MaxSRDrep= | J10: 2 | L10: RC2 | N10: MaxSRDrep= | O10: 1
A11: Without ties | G11: RC=[1 ; 2] | L11: RC=[1,5 ; 1,5]
A12: SRDnor | B12: SRD | C12: freq | D12: relFr2% | E12: CrFr2% | G12: SRDnor | H12: SRD | I12: relFr% | J12: CrFr% | L12: SRDnor | M12: SRD | N12: relFr% | O12: CrFr%
A13: 0 | B13: 0 | C13: 1 | D13: 50 | E13: =D13 -> 50 | G13: =100*H13/J$10 -> 0 | H13: 0 | I13: 49.5 | J13: =I13 -> 49.5 | L13: =100*M13/O$10 -> 0 | M13: 0 | N13: 1 | O13: =N13 -> 1
A14: 50 | B14: 2 | C14: 1 | D14: 50 | E14: =E13+D14 -> 100 | G14: =100*H14/J$10 -> 50 | H14: 1 | I14: 1 | J14: =I14+J13 -> 50.5 | L14: =100*M14/O$10 -> 100 | M14: 1 | N14: 99 | O14: =N14+O13 -> 100
C15: =SUM(C13:C14) -> 2 | G15: =100*H15/J$10 -> 100 | H15: 2 | I15: 49.5 | J15: =I15+J14 -> 100 | N15: =SUM(N13:N14) -> 100
I16: =SUM(I13:I15) -> 100
G17: With ties, nDig=3 | L17: With ties, nDig=3
G18: RC1 | I18: MaxSRDrep= | J18: 2 | L18: RC2 | N18: MaxSRDrep= | O18: 1
G19: RC=[1 ; 2] | L19: RC=[1,5 ; 1,5]
G20: SRDnor | H20: SRD | I20: relFr% | J20: CrFr% | L20: SRDnor | M20: SRD | N20: relFr% | O20: CrFr%
G21: =100*H21/J$10 -> 0 | H21: 0 | I21: 49.95 | J21: =I21 -> 49.95 | L21: =100*M21/O$10 -> 0 | M21: 0 | N21: 0.1 | O21: =N21 -> 0.1
G22: =100*H22/J$10 -> 50 | H22: 1 | I22: 0.1 | J22: =I22+J21 -> 50.05 | L22: =100*M22/O$10 -> 100 | M22: 1 | N22: 99.9 | O22: =N22+O21 -> 100
G23: =100*H23/J$10 -> 100 | H23: 2 | I23: 49.95 | J23: =I23+J22 -> 100 | N23: =SUM(N21:N22) -> 100
I24: =SUM(I21:I23) -> 100

Sheet Discret3 (hidden)
A1: n=2k+1 | B1: k | D1: MaxSRD=2k*(k+1)
A2: 3 | B2: 1 | D2: 4
A4: RC1 | B4: RC2 | C4: RC3 | D4: RC4
A5: 1 | B5: 1 | C5: 1.5 | D5: 2
A6: 2 | B6: 2.5 | C6: 1.5 | D6: 2
A7: 3 | B7: 2.5 | C7: 3 | D7: 2
A8: Cnum | B8: Cnum | C8: Cnum | D8: Cnum
A9: 7 | B9: 12 | C9: 12 | D9: 17
G10: With ties, nDig=2 | L10: With ties, nDig=2 | Q10: With ties, nDig=2
G11: RC1 | I11: MaxSRDrep= | J11: 4 | L11: RC2, RC3 | N11: MaxSRDrep= | O11: 4 | Q11: RC4 | S11: MaxSRDrep= | T11: 2
A12: Without ties | G12: RC=[1 ; 2 ; 3 ] | L12: RC=[1 ; 2,5 ; 2,5] or [1,5 ; 1,5 ; 3] | Q12: RC=[2 ; 2 ; 2]
A13: SRDnor | B13: SRD | C13: freq | D13: relFr2% | E13: CrFr2% | G13: SRDnor | H13: SRD | I13: relFr% | J13: CrFr% | L13: SRDnor | M13: SRD | N13: relFr% | O13: CrFr% | Q13: SRDnor | R13: SRD | S13: relFr% | T13: CrFr%
A14: 0 | B14: 0 | C14: 1 | D14: 16.66666667 | E14: =D14 -> 16.66666667 | G14: =100*H14/J$11 -> 0 | H14: 0 | I14: 16.17 | J14: =I14 -> 16.17 | L14: =100*M14/O$11 -> 0 | M14: 0 | N14: 0.495 | O14: =N14 -> 0.495 | Q14: =100*R14/T$11 -> 0 | R14: 0 | S14: 0.01 | T14: =S14 -> 0.01
A15: 50 | B15: 2 | C15: 2 | D15: 33.33333333 | E15: =E14+D15 -> 50 | G15: =100*H15/J$11 -> 25 | H15: 1 | I15: 0.99 | J15: =I15+J14 -> 17.16 | L15: =100*M15/O$11 -> 25 | M15: 1 | N15: 32.34 | O15: =N15+O14 -> 32.835 | Q15: =100*R15/T$11 -> 50 | R15: 1 | S15: 0 | T15: =S15+T14 -> 0.01
A16: 100 | B16: 4 | C16: 3 | D16: 50 | E16: =E15+D16 -> 100 | G16: =100*H16/J$11 -> 50 | H16: 2 | I16: 32.35 | J16: =I16+J15 -> 49.51 | L16: =100*M16/O$11 -> 50 | M16: 2 | N16: 1 | O16: =N16+O15 -> 33.835 | Q16: =100*R16/T$11 -> 100 | R16: 2 | S16: 99.99 | T16: =S16+T15 -> 100
C17: =SUM(C14:C16) -> 6 | G17: =100*H17/J$11 -> 75 | H17: 3 | I17: 0.99 | J17: =I17+J16 -> 50.5 | L17: =100*M17/O$11 -> 75 | M17: 3 | N17: 33.33 | O17: =N17+O16 -> 67.165 | S17: =SUM(S14:S16) -> 100
G18: =100*H18/J$11 -> 100 | H18: 4 | I18: 49.5 | J18: =I18+J17 -> 100 | L18: =100*M18/O$11 -> 100 | M18: 4 | N18: 32.835 | O18: =N18+O17 -> 100
I19: =SUM(I14:I18) -> 100 | N19: =SUM(N14:N18) -> 100
G20: With ties, nDig=3 | L20: With ties, nDig=3 | Q20: With ties, nDig=3
G21: RC1 | I21: MaxSRDrep= | J21: 4 | L21: RC2, RC3 | N21: MaxSRDrep= | O21: 4 | Q21: RC4 | S21: MaxSRDrep= | T21: 2
G22: RC=[1 ; 2 ; 3 ] | L22: RC=[1 ; 2,5 ; 2,5] or [1,5 ; 1,5 ; 3] | Q22: RC=[2 ; 2 ; 2]
G23: SRDnor | H23: SRD | I23: relFr% | J23: CrFr% | L23: SRDnor | M23: SRD | N23: relFr% | O23: CrFr% | Q23: SRDnor | R23: SRD | S23: relFr% | T23: CrFr%
G24: =100*H24/J$11 -> 0 | H24: 0 | I24: 16.6167 | J24: =I24 -> 16.6167 | L24: =100*M24/O$11 -> 0 | M24: 0 | N24: 0.04995 | O24: =N24 -> 0.04995 | Q24: =100*R24/T$11 -> 0 | R24: 0 | S24: 0.0001 | T24: =S24 -> 0.0001
G25: =100*H25/J$11 -> 25 | H25: 1 | I25: 0.0999 | J25: =I25+J24 -> 16.7166 | L25: =100*M25/O$11 -> 25 | M25: 1 | N25: 33.2334 | O25: =N25+O24 -> 33.28335 | Q25: =100*R25/T$11 -> 50 | R25: 1 | S25: 0 | T25: =S25+T24 -> 0.0001
G26: =100*H26/J$11 -> 50 | H26: 2 | I26: 33.2335 | J26: =I26+J25 -> 49.9501 | L26: =100*M26/O$11 -> 50 | M26: 2 | N26: 0.1 | O26: =N26+O25 -> 33.38335 | Q26: =100*R26/T$11 -> 100 | R26: 2 | S26: 99.9999 | T26: =S26+T25 -> 100
G27: =100*H27/J$11 -> 75 | H27: 3 | I27: 0.0999 | J27: =I27+J26 -> 50.05 | L27: =100*M27/O$11 -> 75 | M27: 3 | N27: 33.3333 | O27: =N27+O26 -> 66.71665 | S27: =SUM(S24:S26) -> 100
G28: =100*H28/J$11 -> 100 | H28: 4 | I28: 49.95 | J28: =I28+J27 -> 100 | L28: =100*M28/O$11 -> 100 | M28: 4 | N28: 33.28335 | O28: =N28+O27 -> 100
I29: =SUM(I24:I28) -> 100 | N29: =SUM(N24:N28) -> 100

Sheet Discret4 (hidden)
A1: n=2k | B1: k | D1: MaxSRD=2k^2
A2: 4 | B2: 2 | D2: 8
A4: RC1 | B4: RC2 | C4: RC3 | D4: RC4 | E4: RC5 | F4: RC6 | G4: RC7 | H4: RC8
A5: 1 | B5: 1 | C5: 1 | D5: 1 | E5: 1.5 | F5: 1.5 | G5: 2 | H5: 2.5
A6: 2 | B6: 2 | C6: 2.5 | D6: 3 | E6: 1.5 | F6: 1.5 | G6: 2 | H6: 2.5
A7: 3 | B7: 3.5 | C7: 2.5 | D7: 3 | E7: 3 | F7: 3.5 | G7: 2 | H7: 2.5
A8: 4 | B8: 3.5 | C8: 4 | D8: 3 | E8: 4 | F8: 3.5 | G8: 4 | H8: 2.5
A9: Cnum | B9: Cnum | C9: Cnum | D9: Cnum | E9: Cnum | F9: Cnum | G9: Cnum | H9: Cnum
A10: 7 | B10: 12 | C10: 17 | D10: 22 | E10: 12 | F10: 27 | G10: 22 | H10: 32
G11: With ties, nDig=2 | L11: With ties, nDig=2 | Q11: With ties, nDig=2 | V11: With ties, nDig=2 | AA11: With ties, nDig=2 | AF11: With ties, nDig=2
G12: RC1 | I12: MaxSRDrep= | J12: 8 | L12: RC2, RC5 | N12: MaxSRDrep= | O12: 8 | Q12: RC3 | S12: MaxSRDrep= | T12: 7 | V12: RC4, RC7 | X12: MaxSRDrep= | Y12: 6 | AA12: RC6 | AC12: MaxSRDrep= | AD12: 8 | AF12: RC8 | AH12: MaxSRDrep= | AI12: 4
A13: Without ties | G13: RC=[1 ; 2 ; 3 ; 4] | L13: RC=[1 ; 2 ; 3,5 ; 3,5] or [1,5 ; 1,5 ; 3 ; 4] | Q13: RC=[1 ; 2,5 ; 2,5 ; 4] | V13: RC=[1 ; 3 ; 3 ; 3] or [2 ; 2 ; 2 ; 4] | AA13: RC=[1,5 ; 1,5 ; 3,5 ; 3,5] | AF13: RC=[2,5 ; 2,5 ; 2,5 ; 2,5]
A14: SRDnor | B14: SRD | C14: freq | D14: relFr2% | E14: CrFr2% | G14: SRDnor | H14: SRD | I14: relFr% | J14: CrFr% | L14: SRDnor | M14: SRD | N14: relFr% | O14: CrFr% | Q14: SRDnor | R14: SRD | S14: relFr% | T14: CrFr% | V14: SRDnor | W14: SRD | X14: relFr% | Y14: CrFr% | AA14: SRDnor | AB14: SRD | AC14: relFr% | AD14: CrFr% | AF14: SRDnor | AG14: SRD | AH14: relFr% | AI14: CrFr%
A15: =100*B15/$D$2 -> 0 | B15: 0 | C15: 1 | D15: 4.166666667 | E15: =D15 -> 4.166666667 | G15: 0 | H15: 0 | I15: 3.921225 | J15: =I15 -> 3.921225 | L15: 0 | M15: 0 | N15: 0.1617 | O15: =N15 -> 0.1617 | Q15: 0 | R15: 0 | S15: 0.1617 | T15: =S15 -> 0.1617 | V15: 0 | W15: 0 | X15: 0.00495 | Y15: =X15 -> 0.00495 | AA15: 0 | AB15: 0 | AC15: 0.00495 | AD15: =AC15 -> 0.00495 | AF15: 0 | AG15: 0 | AH15: 0.0001 | AI15: =AH15 -> 0.0001
A16: =100*B16/$D$2 -> 25 | B16: 2 | C16: 3 | D16: 12.5 | E16: =D16+E15 -> 16.66666667 | G16: 12.5 | H16: 1 | I16: 0.4851 | J16: =I16+J15 -> 4.406325 | L16: 12.5 | M16: 1 | N16: 7.8474 | O16: =N16+O15 -> 8.0091 | Q16: 14.28571429 | R16: 1 | S16: 7.84245 | T16: =S16+T15 -> 8.00415 | V16: 16.66666667 | W16: 1 | X16: 0 | Y16: =X16+Y15 -> 0.00495 | AA16: 12.5 | AB16: 1 | AC16: 0.6468 | AD16: =AC16+AD15 -> 0.65175 | AF16: 25 | AG16: 1 | AH16: 0 | AI16: =AH16+AI15 -> 0.0001
A17: =100*B17/$D$2 -> 50 | B17: 4 | C17: 7 | D17: 29.16666667 | E17: =D17+E16 -> 45.83333333 | G17: 25 | H17: 2 | I17: 11.778525 | J17: 16.18485 | L17: 25 | M17: 2 | N17: 0.81345 | O17: 8.82255 | Q17: 28.57142857 | R17: 2 | S17: 0.6567 | T17: 8.66085 | V17: 33.33333333 | W17: 2 | X17: 24.49755 | Y17: 24.5025 | AA17: 25 | AB17: 2 | AC17: 15.6849 | AD17: 16.33665 | AF17: 50 | AG17: 2 | AH17: 0 | AI17: =AH17+AI16 -> 0.0001
A18: =100*B18/$D$2 -> 75 | B18: 6 | C18: 9 | D18: 37.5 | E18: =D18+E17 -> 83.33333333 | G18: 37.5 | H18: 3 | I18: 0.9702 | J18: 17.15505 | L18: 37.5 | M18: 3 | N18: 16.0182 | O18: 24.84075 | Q18: 42.85714286 | R18: 3 | S18: 16.3417 | T18: 25.00255 | V18: 50 | W18: 3 | X18: 0.98515 | Y18: 25.48765 | AA18: 37.5 | AB18: 3 | AC18: 0.6666 | AD18: 17.00325 | AF18: 75 | AG18: 3 | AH18: 1.98 | AI18: =AH18+AI17 -> 1.9801
A19: =100*B19/$D$2 -> 100 | B19: 8 | C19: 4 | D19: 16.66666667 | E19: =D19+E18 -> 100 | G19: 50 | H19: 4 | I19: 28.110325 | J19: 45.265375 | L19: 50 | M19: 4 | N19: 8.6659 | O19: 33.50665 | Q19: 57.14285714 | R19: 4 | S19: 16.6551 | T19: 41.65765 | V19: 66.66666667 | W19: 4 | X19: 24.04215 | Y19: 49.5298 | AA19: 50 | AB19: 4 | AC19: 16.9984 | AD19: 34.00165 | AF19: 100 | AG19: 4 | AH19: 98.0199 | AI19: =AH19+AI18 -> 100
C20: =SUM(C15:C19) -> 24 | D20: =SUM(D15:D19) -> 100 | G20: 62.5 | H20: 5 | I20: 1.1418 | J20: 46.407175 | L20: 62.5 | M20: 5 | N20: 25.47765 | O20: 58.9843 | Q20: 71.42857143 | R20: 5 | S20: 8.51895 | T20: 50.1766 | V20: 83.33333333 | W20: 5 | X20: 0.9702 | Y20: 50.5 | AA20: 62.5 | AB20: 5 | AC20: 33.3102 | AD20: 67.31185 | AH20: =SUM(AH15:AH19) -> 100
G21: 75 | H21: 6 | I21: 36.609375 | J21: 83.01655 | L21: 75 | M21: 6 | N21: 24.03225 | O21: 83.01655 | Q21: 85.71428571 | R21: 6 | S21: 17.1501 | T21: 67.3267 | V21: 100 | W21: 6 | X21: 49.5 | Y21: 100 | AA21: 75 | AB21: 6 | AC21: 15.7047 | AD21: 83.01655
G22: 87.5 | H22: 7 | I22: 0.6468 | J22: 83.66335 | L22: 87.5 | M22: 7 | N22: 0.6468 | O22: 83.66335 | Q22: 100 | R22: 7 | S22: 32.6733 | T22: 100 | X22: =SUM(X15:X21) -> 100 | AA22: 87.5 | AB22: 7 | AC22: 0.6468 | AD22: 83.66335
G23: 100 | H23: 8 | I23: 16.33665 | J23: 100 | L23: 100 | M23: 8 | N23: 16.33665 | O23: 100 | S23: =SUM(S15:S22) -> 100 | AA23: 100 | AB23: 8 | AC23: 16.33665 | AD23: 100
I24: =SUM(I15:I23) -> 100 | N24: =SUM(N15:N23) -> 100 | AC24: =SUM(AC15:AC23) -> 100
G25: With ties, nDig=3 | L25: With ties, nDig=3 | Q25: With ties, nDig=3 | V25: With ties, nDig=3 | AA25: With ties, nDig=3 | AF25: With ties, nDig=3
G26: RC1 | I26: MaxSRDrep= | J26: 8 | L26: RC2, RC5 | N26: MaxSRDrep= | O26: 8 | Q26: RC3 | S26: MaxSRDrep= | T26: 7 | V26: RC4, RC7 | X26: MaxSRDrep= | Y26: 6 | AA26: RC6 | AC26: MaxSRDrep= | AD26: 8 | AF26: RC8 | AH26: MaxSRDrep= | AI26: 4
G27: RC=[1 ; 2 ; 3 ; 4] | L27: RC=[1 ; 2 ; 3,5 ; 3,5] or [1,5 ; 1,5 ; 3 ; 4] | Q27: RC=[1 ; 2,5 ; 2,5 ; 4] | V27: RC=[1 ; 3 ; 3 ; 3] or [2 ; 2 ; 2 ; 4] | AA27: RC=[1,5 ; 1,5 ; 3,5 ; 3,5] | AF27: RC=[2,5 ; 2,5 ; 2,5 ; 2,5]
G28: SRDnor | H28: SRD | I28: relFr% | J28: CrFr% | L28: SRDnor | M28: SRD | N28: relFr% | O28: CrFr% | Q28: SRDnor | R28: SRD | S28: relFr% | T28: CrFr% | V28: SRDnor | W28: SRD | X28: relFr% | Y28: CrFr% | AA28: SRDnor | AB28: SRD | AC28: relFr% | AD28: CrFr% | AF28: SRDnor | AG28: SRD | AH28: relFr% | AI28: CrFr%
G29: 0 | H29: 0 | I29: 4.141712475 | J29: =I29 -> 4.141712475 | L29: 0 | M29: 0 | N29: 0.0166167 | O29: =N29 -> 0.0166167 | Q29: 0 | R29: 0 | S29: 0.0166167 | T29: =S29 -> 0.0166167 | V29: 0 | W29: 0 | X29: 4.995e-05 | Y29: =X29 -> 4.995e-05 | AA29: 0 | AB29: 0 | AC29: 4.995e-05 | AD29: =AC29 -> 4.995e-05 | AF29: 0 | AG29: 0 | AH29: 1e-07 | AI29: =AH29 -> 1e-07
G30: 12.5 | H30: 1 | I30: 0.0498501 | J30: =I30+J29 -> 4.191562575 | L30: 12.5 | M30: 1 | N30: 8.2834749 | O30: =N30+O29 -> 8.3000916 | Q30: 14.28571429 | R30: 1 | S30: 8.28342495 | T30: =S30+T29 -> 8.30004165 | V30: 16.66666667 | W30: 1 | X30: 0 | Y30: =X30+Y29 -> 4.995e-05 | AA30: 12.5 | AB30: 1 | AC30: 0.0664668 | AD30: =AC30+AD29 -> 0.06651675 | AF30: 25 | AG30: 1 | AH30: 0 | AI30: =AH30+AI29 -> 1e-07
G31: 25 | H31: 2 | I31: 12.42528727 | J31: 16.61684985 | L31: 25 | M31: 2 | N31: 0.08313345 | O31: 8.38322505 | Q31: 28.57142857 | R31: 2 | S31: 0.0665667 | T31: 8.36660835 | V31: 33.33333333 | W31: 2 | X31: 24.94997505 | Y31: 24.950025 | AA31: 25 | AB31: 2 | AC31: 16.5668499 | AD31: 16.63336665 | AF31: 50 | AG31: 2 | AH31: 0 | AI31: =AH31+AI30 -> 1e-07
G32: 37.5 | H32: 3 | I32: 0.0997002 | J32: 16.71655005 | L32: 37.5 | M32: 3 | N32: 16.6001832 | O32: 24.98340825 | Q32: 42.85714286 | R32: 3 | S32: 16.6334167 | T32: 25.00002505 | V32: 50 | W32: 3 | X32: 0.09985015 | Y32: 25.04987515 | AA32: 37.5 | AB32: 3 | AC32: 0.0666666 | AD32: 16.70003325 | AF32: 75 | AG32: 3 | AH32: 0.1998 | AI32: =AH32+AI31 -> 0.1998001
G33: 50 | H33: 4 | I33: 29.05860407 | J33: 45.77515412 | L33: 50 | M33: 4 | N33: 8.3666584 | O33: 33.35006665 | Q33: 57.14285714 | R33: 4 | S33: 16.6665501 | T33: 41.66657515 | V33: 66.66666667 | W33: 4 | X33: 24.90042465 | Y33: 49.9502998 | AA33: 50 | AB33: 4 | AC33: 16.6999834 | AD33: 33.40001665 | AF33: 100 | AG33: 4 | AH33: 99.8001999 | AI33: =AH33+AI32 -> 100
G34: 62.5 | H34: 5 | I34: 0.1164168 | J34: 45.89157092 | L34: 62.5 | M34: 5 | N34: 25.04977515 | O34: 58.3998418 | Q34: 71.42857143 | R34: 5 | S34: 8.35019145 | T34: 50.0167666 | V34: 83.33333333 | W34: 5 | X34: 0.0997002 | Y34: 50.05 | AA34: 62.5 | AB34: 5 | AC34: 33.3331002 | AD34: 66.73311685
G35: 75 | H35: 6 | I35: 37.40859562 | J35: 83.30016655 | L35: 75 | M35: 6 | N35: 24.90032475 | O35: 83.30016655 | Q35: 85.71428571 | R35: 6 | S35: 16.7165001 | T35: 66.7332667 | V35: 100 | W35: 6 | X35: 49.95 | Y35: 100 | AA35: 75 | AB35: 6 | AC35: 16.5670497 | AD35: 83.30016655
G36: 87.5 | H36: 7 | I36: 0.0664668 | J36: 83.36663335 | L36: 87.5 | M36: 7 | N36: 0.0664668 | O36: 83.36663335 | Q36: 100 | R36: 7 | S36: 33.2667333 | T36: 100 | X36: =SUM(X29:X35) -> 100 | AA36: 87.5 | AB36: 7 | AC36: 0.0664668 | AD36: 83.36663335
G37: 100 | H37: 8 | I37: 16.63336665 | J37: 100 | L37: 100 | M37: 8 | N37: 16.63336665 | O37: 100 | S37: =SUM(S29:S36) -> 100 | AA37: 100 | AB37: 8 | AC37: 16.63336665 | AD37: 100
I38: =SUM(I29:I37) -> 100 | N38: =SUM(N29:N37) -> 100 | AC38: =SUM(AC29:AC37) -> 100

Sheet Discret5 (hidden)
A1: n=2k+1 | B1: k | D1: MaxSRD=2k*(k+1)
A2: 5 | B2: 2 | D2: 12
A4: RC1 | B4: RC2 | C4: RC3 | D4: RC4 | E4: RC5 | F4: RC6 | G4: RC7 | H4: RC8 | I4: RC9 | J4: RC10 | K4: RC11 | L4: RC12 | M4: RC13 | N4: RC14 | O4: RC15 | P4: RC16
A5: 1 | B5: 1 | C5: 1 | D5: 1 | E5: 1 | F5: 1 | G5: 1 | H5: 1 | I5: 1.5 | J5: 1.5 | K5: 1.5 | L5: 1.5 | M5: 2 | N5: 2 | O5: 2.5 | P5: 3
A6: 2 | B6: 2 | C6: 2 | D6: 2 | E6: 2.5 | F6: 2.5 | G6: 3 | H6: 3.5 | I6: 1.5 | J6: 1.5 | K6: 1.5 | L6: 1.5 | M6: 2 | N6: 2 | O6: 2.5 | P6: 3
A7: 3 | B7: 3 | C7: 3.5 | D7: 4 | E7: 2.5 | F7: 2.5 | G7: 3 | H7: 3.5 | I7: 3 | J7: 3 | K7: 3.5 | L7: 4 | M7: 2 | N7: 2 | O7: 2.5 | P7: 3
A8: 4 | B8: 4.5 | C8: 3.5 | D8: 4 | E8: 4 | F8: 4.5 | G8: 3 | H8: 3.5 | I8: 4 | J8: 4.5 | K8: 3.5 | L8: 4 | M8: 4 | N8: 4.5 | O8: 2.5 | P8: 3
A9: 5 | B9: 4.5 | C9: 5 | D9: 4 | E9: 5 | F9: 4.5 | G9: 5 | H9: 3.5 | I9: 5 | J9: 4.5 | K9: 5 | L9: 4 | M9: 5 | N9: 4.5 | O9: 5 | P9: 3
A10: Cnum | B10: Cnum | C10: Cnum | D10: Cnum | E10: Cnum | F10: Cnum | G10: Cnum | H10: Cnum | I10: Cnum | J10: Cnum | K10: Cnum | L10: Cnum | M10: Cnum | N10: Cnum | O10: Cnum | P10: Cnum
A11: 7 | B11: 12 | C11: 17 | D11: 22 | E11: 17 | F11: 27 | G11: 42 | H11: 47 | I11: 12 | J11: 32 | K11: 27 | L11: 37 | M11: 22 | N11: 37 | O11: 47 | P11: 52
G12: With ties, nDig=2 | L12: With ties, nDig=2 | Q12: With ties, nDig=2 | V12: With ties, nDig=2 | AA12: With ties, nDig=2 | AF12: With ties, nDig=2 | AK12: With ties, nDig=2 | AP12: With ties, nDig=2 | AU12: With ties, nDig=2 | AZ12: With ties, nDig=2
G13: RC1 | I13: MaxSRDrep= | J13: 12 | L13: RC2, RC9 | N13: MaxSRDrep= | O13: 12 | Q13: RC3, RC5 | S13: MaxSRDrep= | T13: 12 | V13: RC4, RC13 | X13: MaxSRDrep= | Y13: 12 | AA13: RC6, RC11 | AC13: MaxSRDrep= | AD13: 12 | AF13: RC10 | AH13: MaxSRDrep= | AI13: 12 | AK13: RC12, RC14 | AM13: MaxSRDrep= | AN13: 12 | AP13: RC7 | AR13: MaxSRDrep= | AS13: 10 | AU13: RC8, RC15 | AW13: MaxSRDrep= | AX13: 9 | AZ13: RC16 | BB13: MaxSRDrep= | BC13: 6
A14: RC1 without ties | G14: RC=[1 ; 2 ; 3 ; 4 ; 5] | L14: RC=[1 ; 2 ; 3 ; 4,5 ; 4,5] or [1,5 ; 1,5 ; 3 ; 4 ; 5] | Q14: RC=[1 ; 2,5 ; 2,5 ; 4 ; 5] or [1 ; 2 ; 3,5 ; 3,5 ; 5] | V14: RC=[1 ; 2 ; 4 ; 4 ; 4] or [2 ; 2 ; 2 ; 4 ; 5] | AA14: RC=[1 ; 2,5 ; 2,5 ; 4,5 ; 4,5] or [1,5 ; 1,5 ; 3,5 ; 3,5 ; 5] | AF14: RC=[1,5 ; 1,5 ; 3 ; 4,5 ; 4,5] | AK14: RC=[1,5 ; 1,5 ; 4 ; 4 ; 4] or [2 ; 2 ; 2 ; 4,5 ; 4,5] | AP14: RC=[1; 3 ; 3 ; 3 ; 5] | AU14: RC=[1; 3,5 ; 3,5 ; 3,5 ; 3,5] or [2,5; 2,5 ; 2,5 ; 2,5 ; 5] | AZ14: RC=[3; 3 ; 3 ; 3 ; 3]
A15: SRDnor | B15: SRD | C15: freq | D15: relFr% | E15: CrFr2% | G15: SRDnor | H15: SRD | I15: relFr% | J15: CrFr% | L15: SRDnor | M15: SRD | N15: relFr% | O15: CrFr% | Q15: SRDnor | R15: SRD | S15: relFr% | T15: CrFr% | V15: SRDnor | W15: SRD | X15: relFr% | Y15: CrFr% | AA15: SRDnor | AB15: SRD | AC15: relFr% | AD15: CrFr% | AF15: SRDnor | AG15: SRD | AH15: relFr% | AI15: CrFr% | AK15: SRDnor | AL15: SRD | AM15: relFr% | AN15: CrFr% | AP15: SRDnor | AQ15: SRD | AR15: relFr% | AS15: CrFr% | AU15: SRDnor | AV15: SRD | AW15: relFr% | AX15: CrFr% | AZ15: SRDnor | BA15: SRD | BB15: relFr% | BC15: CrFr%
A16: =100*B16/D$2 -> 0 | B16: 0 | C16: 1 | D16: 0.8333333333 | E16: =D16 -> 0.8333333333 | G16: 0 | H16: 0 | I16: 0.7528752 | J16: =I16 -> 0.7528752 | L16: 0 | M16: 0 | N16: 0.03921225 | O16: =N16 -> 0.03921225 | Q16: 0 | R16: 0 | S16: 0.03921225 | T16: =S16 -> 0.03921225 | V16: =100*W16/Y$13 -> 0 | W16: 0 | X16: 0.001617 | Y16: =X16 -> 0.001617 | AA16: 0 | AB16: 0 | AC16: 0.001617 | AD16: =AC16 -> 0.001617 | AF16: 0 | AG16: 0 | AH16: 0.001617 | AI16: =AH16 -> 0.001617 | AK16: =100*AL16/AN$13 -> 0 | AL16: 0 | AM16: 4.95e-05 | AN16: =AM16 -> 4.95e-05 | AP16: 0 | AQ16: 0 | AR16: 0.001617 | AS16: =AR16 -> 0.001617 | AU16: 0 | AV16: 0 | AW16: 4.95e-05 | AX16: =AW16 -> 4.95e-05 | AZ16: 0 | BA16: 0 | BB16: 1e-06 | BC16: =BB16 -> 1e-06
A17: 16.66666667 | B17: 2 | C17: 4 | D17: 3.333333333 | E17: =D17+E16 -> 4.166666667 | G17: 8.333333333 | H17: 1 | I17: 0.156849 | J17: =I17+J16 -> 0.9097242 | L17: 8.333333333 | M17: 1 | N17: 1.5089844 | O17: =N17+O16 -> 1.54819665 | Q17: 8.333333333 | R17: 1 | S17: 1.5073674 | T17: =S17+T16 -> 1.54657965 | V17: 8.333333333 | W17: 1 | X17: 4.95e-05 | Y17: =X17+Y16 -> 0.0016665 | AA17: 8.333333333 | AB17: 1 | AC17: 0.156849 | AD17: =AC17+AD16 -> 0.158466 | AF17: 8.333333333 | AG17: 1 | AH17: 0.156849 | AI17: =AH17+AI16 -> 0.158466 | AK17: 8.333333333 | AL17: 1 | AM17: 0.003234 | AN17: =AM17+AN16 -> 0.0032835 | AP17: 10 | AQ17: 1 | AR17: 0 | AS17: =AR17+AS16 -> 0.001617 | AU17: 11.11111111 | AV17: 1 | AW17: 0 | AX17: =AW17+AX16 -> 4.95e-05 | AZ17: 16.66666667 | BA17: 1 | BB17: 0 | BC17: =BB17+BC16 -> 1e-06
A18: 33.33333333 | B18: 4 | C18: 12 | D18: 10 | E18: 14.16666667 | G18: 16.66666667 | H18: 2 | I18: 3.0212028 | J18: 3.930927 | L18: 16.66666667 | M18: 2 | N18: 0.3153645 | O18: 1.86356115 | Q18: 16.66666667 | R18: 2 | S18: 0.27771975 | T18: 1.8242994 | V18: 16.66666667 | W18: 2 | X18: 4.7541417 | Y18: 4.7558082 | AA18: 16.66666667 | AB18: 2 | AC18: 3.0147843 | AD18: 3.1732503 | AF18: 16.66666667 | AG18: 2 | AH18: 3.0180678 | AI18: 3.1765338 | AK18: 16.66666667 | AL18: 2 | AM18: 0.2449755 | AN18: 0.248259 | AP18: 20 | AQ18: 2 | AR18: 4.7525247 | AS18: 4.7541417 | AU18: 22.22222222 | AV18: 2 | AW18: 0 | AX18: 4.95e-05 | AZ18: 33.33333333 | BA18: 2 | BB18: 0 | BC18: 1e-06
A19: 50 | B19: 6 | C19: 24 | D19: 20 | E19: 34.16666667 | G19: 25 | H19: 3 | I19: 0.470646 | J19: 4.401573 | L19: 25 | M19: 3 | N19: 4.6086612 | O19: 6.47222235 | Q19: 25 | R19: 3 | S19: 4.6839012 | T19: 6.5082006 | V19: 25 | W19: 3 | X19: 0.4851495 | Y19: 5.2409577 | AA19: 25 | AB19: 3 | AC19: 0.4050585 | AD19: 3.5783088 | AF19: 25 | AG19: 3 | AH19: 0.483483 | AI19: 3.6600168 | AK19: 25 | AL19: 3 | AM19: 9.5050494 | AN19: 9.7533084 | AP19: 30 | AQ19: 3 | AR19: 0.480348 | AS19: 5.2344897 | AU19: 33.33333333 | AV19: 3 | AW19: 0.483483 | AX19: 0.4835325 | AZ19: 50 | BA19: 3 | BB19: 0 | BC19: 1e-06
A20: 66.66666667 | B20: 8 | C20: 35 | D20: 29.16666667 | E20: 63.33333333 | G20: 33.33333333 | H20: 4 | I20: 9.2892789 | J20: 13.6908519 | L20: 33.33333333 | M20: 4 | N20: 2.1461319 | O20: 8.61835425 | Q20: 33.33333333 | R20: 4 | S20: 3.5703228 | T20: 10.0785234 | V20: 33.33333333 | W20: 4 | X20: 9.40696515 | Y20: 14.64792285 | AA20: 33.33333333 | AB20: 4 | AC20: 6.5867736 | AD20: 10.1650824 | AF20: 33.33333333 | AG20: 4 | AH20: 6.5032506 | AI20: 10.1632674 | AK20: 33.33333333 | AL20: 4 | AM20: 0.4901985 | AN20: 10.2435069 | AP20: 40 | AQ20: 4 | AR20: 9.2988829 | AS20: 14.5333726 | AU20: 44.44444444 | AV20: 4 | AW20: 19.0394038 | AX20: 19.5229363 | AZ20: 66.66666667 | BA20: 4 | BB20: 0.032835 | BC20: 0.032836
A21: 83.33333333 | B21: 10 | C21: 24 | D21: 20 | E21: 83.33333333 | G21: 41.66666667 | H21: 5 | I21: 0.954129 | J21: 14.6449809 | L21: 41.66666667 | M21: 5 | N21: 11.3392983 | O21: 19.95765255 | Q21: 41.66666667 | R21: 5 | S21: 8.3373015 | T21: 18.4158249 | V21: 41.66666667 | W21: 5 | X21: 0.7157205 | Y21: 15.36364335 | AA21: 41.66666667 | AB21: 5 | AC21: 9.9068739 | AD21: 20.0719563 | AF21: 41.66666667 | AG21: 5 | AH21: 6.5133486 | AI21: 16.676616 | AK21: 41.66666667 | AL21: 5 | AM21: 9.7697259 | AN21: 20.0132328 | AP21: 50 | AQ21: 5 | AR21: 0.941391 | AS21: 15.4747636 | AU21: 55.55555556 | AV21: 5 | AW21: 1.437711 | AX21: 20.9606473 | AZ21: 83.33333333 | BA21: 5 | BB21: 0 | BC21: 0.032836
A22: 100 | B22: 12 | C22: 20 | D22: 16.66666667 | E22: 100 | G22: 50 | H22: 6 | I22: 18.8890228 | J22: 33.5340037 | L22: 50 | M22: 6 | N22: 6.7628791 | O22: 26.72053165 | Q22: 50 | R22: 6 | S22: 9.95917165 | T22: 28.37499655 | V22: 50 | W22: 6 | X22: 24.043471 | Y22: 39.40711435 | AA22: 50 | AB22: 6 | AC22: 6.6894541 | AD22: 26.7614104 | AF22: 50 | AG22: 6 | AH22: 10.6418014 | AI22: 27.3184174 | AK22: 50 | AL22: 6 | AM22: 10.0097029 | AN22: 30.0229357 | AP22: 60 | AQ22: 6 | AR22: 23.8046655 | AS22: 39.2794291 | AU22: 66.66666667 | AV22: 6 | AW22: 18.5594508 | AX22: 39.5200981 | AZ22: 100 | BA22: 6 | BB22: 99.967164 | BC22: 100
C23: =SUM(C16:C22) -> 120 | D23: =SUM(D16:D22) -> 100 | G23: 58.33333333 | H23: 7 | I23: 1.274394 | J23: 34.8083977 | L23: 58.33333333 | M23: 7 | N23: 15.3897711 | O23: 42.11030275 | Q23: 58.33333333 | R23: 7 | S23: 11.6741163 | T23: 40.04911285 | V23: 58.33333333 | W23: 7 | X23: 1.2006225 | Y23: 40.60773685 | AA23: 58.33333333 | AB23: 7 | AC23: 10.4852484 | AD23: 37.2466588 | AF23: 58.33333333 | AG23: 7 | AH23: 19.5133818 | AI23: 46.8317992 | AK23: 58.33333333 | AL23: 7 | AM23: 20.6990553 | AN23: 50.721991 | AP23: 70 | AQ23: 7 | AR23: 1.441143 | AS23: 40.7205721 | AU23: 77.77777778 | AV23: 7 | AW23: 0.979902 | AX23: 40.5000001 | BB23: =SUM(BB16:BB22) -> 100
G24: 66.66666667 | H24: 8 | I24: 27.8943555 | J24: 62.7027532 | L24: 66.66666667 | M24: 8 | N24: 17.58580065 | O24: 59.6961034 | Q24: 66.66666667 | R24: 8 | S24: 13.77113595 | T24: 53.8202488 | V24: 66.66666667 | W24: 8 | X24: 28.91863095 | Y24: 69.5263678 | AA24: 66.66666667 | AB24: 8 | AC24: 23.2336896 | AD24: 60.4803484 | AF24: 66.66666667 | AG24: 8 | AH24: 9.8576544 | AI24: 56.6894536 | AK24: 66.66666667 | AL24: 8 | AM24: 18.8043768 | AN24: 69.5263678 | AP24: 80 | AQ24: 8 | AR24: 18.8188803 | AS24: 59.5394524 | AU24: 88.88888889 | AV24: 8 | AW24: 20.4867663 | AX24: 60.9867664
G25: 75 | H25: 9 | I25: 1.274394 | J25: 63.9771472 | L25: 75 | M25: 9 | N25: 7.6110936 | O25: 67.307197 | Q25: 75 | R25: 9 | S25: 19.3564338 | T25: 73.1766826 | V25: 75 | W25: 9 | X25: 0.960597 | Y25: 70.4869648 | AA25: 75 | AB25: 9 | AC25: 12.6963342 | AD25: 73.1766826 | AF25: 75 | AG25: 9 | AH25: 13.9477932 | AI25: 70.6372468 | AK25: 75 | AL25: 9 | AM25: 0.960597 | AN25: 70.4869648 | AP25: 90 | AQ25: 9 | AR25: 0.960498 | AS25: 60.4999504 | AU25: 100 | AV25: 9 | AW25: 39.0132336 | AX25: 100
G26: 83.33333333 | H26: 10 | I26: 19.0458708 | J26: 83.023018 | L26: 83.33333333 | M26: 10 | N26: 15.715821 | O26: 83.023018 | Q26: 83.33333333 | R26: 10 | S26: 3.7432428 | T26: 76.9199254 | V26: 83.33333333 | W26: 10 | X26: 19.2794778 | Y26: 89.7664426 | AA26: 83.33333333 | AB26: 10 | AC26: 3.7432428 | AD26: 76.9199254 | AF26: 83.33333333 | AG26: 10 | AH26: 12.3857712 | AI26: 83.023018 | AK26: 83.33333333 | AL26: 10 | AM26: 19.2794778 | AN26: 89.7664426 | AP26: 100 | AQ26: 10 | AR26: 39.5000496 | AS26: 100 | AW26: =SUM(AW16:AW25) -> 100
G27: 91.66666667 | H27: 11 | I27: 0.640332 | J27: 83.66335 | L27: 91.66666667 | M27: 11 | N27: 0.640332 | O27: 83.66335 | Q27: 91.66666667 | R27: 11 | S27: 13.3267662 | T27: 90.2466916 | V27: 91.66666667 | W27: 11 | X27: 0.480249 | Y27: 90.2466916 | AA27: 91.66666667 | AB27: 11 | AC27: 13.3267662 | AD27: 90.2466916 | AF27: 91.66666667 | AG27: 11 | AH27: 0.640332 | AI27: 83.66335 | AK27: 91.66666667 | AL27: 11 | AM27: 0.480249 | AN27: 90.2466916 | AR27: =SUM(AR16:AR26) -> 100
G28: 100 | H28: 12 | I28: 16.33665 | J28: 100 | L28: 100 | M28: 12 | N28: 16.33665 | O28: 100 | Q28: 100 | R28: 12 | S28: 9.7533084 | T28: 100 | V28: 100 | W28: 12 | X28: 9.7533084 | Y28: 100 | AA28: 100 | AB28: 12 | AC28: 9.7533084 | AD28: 100 | AF28: 100 | AG28: 12 | AH28: 16.33665 | AI28: 100 | AK28: 100 | AL28: 12 | AM28: 9.7533084 | AN28: 100
I29: =SUM(I16:I28) -> 100 | N29: =SUM(N16:N28) -> 100 | S29: =SUM(S16:S28) -> 100 | X29: =SUM(X16:X28) -> 100 | AC29: =SUM(AC16:AC28) -> 100 | AH29: =SUM(AH16:AH28) -> 100 | AM29: =SUM(AM16:AM28) -> 100
G30: With ties, nDig=3 | L30: With ties, nDig=3 | Q30: With ties, nDig=3 | V30: With ties, nDig=3 | AA30: With ties, nDig=3 | AF30: With ties, nDig=3 | AK30: With ties, nDig=3 | AP30: With ties, nDig=3 | AU30: With ties, nDig=3 | AZ30: With ties, nDig=3
G31: RC1 | I31: MaxSRDrep= | J31: 12 | L31: RC2, RC9 | N31: MaxSRDrep= | O31: 12 | Q31: RC3, RC5 | S31: MaxSRDrep= | T31: 12 | V31: RC4, RC13 | X31: MaxSRDrep= | Y31: 12 | AA31: RC6, RC11 | AC31: MaxSRDrep= | AD31: 12 | AF31: RC10 | AH31: MaxSRDrep= | AI31: 12 | AK31: RC12, RC14 | AM31: MaxSRDrep= | AN31: 12 | AP31: RC7 | AR31: MaxSRDrep= | AS31: 10 | AU31: RC8, RC15 | AW31: MaxSRDrep= | AX31: 9 | AZ31: RC16 | BB31: MaxSRDrep= | BC31: 6
G32: RC=[1 ; 2 ; 3 ; 4 ; 5] | L32: RC=[1 ; 2 ; 3 ; 4,5 ; 4,5] or [1,5 ; 1,5 ; 3 ; 4 ; 5] | Q32: RC=[1 ; 2,5 ; 2,5 ; 4 ; 5] or [1 ; 2 ; 3,5 ; 3,5 ; 5] | V32: RC=[1 ; 2 ; 4 ; 4 ; 4] or [2 ; 2 ; 2 ; 4 ; 5] | AA32: RC=[1 ; 2,5 ; 2,5 ; 4,5 ; 4,5] or [1,5 ; 1,5 ; 3,5 ; 3,5 ; 5] | AF32: RC=[1,5 ; 1,5 ; 3 ; 4,5 ; 4,5] | AK32: RC=[1,5 ; 1,5 ; 4 ; 4 ; 4] or [2 ; 2 ; 2 ; 4,5 ; 4,5] | AP32: RC=[1; 3 ; 3 ; 3 ; 5] | AU32: RC=[1; 3,5 ; 3,5 ; 3,5 ; 3,5] or [2,5; 2,5 ; 2,5 ; 2,5 ; 5] | AZ32: RC=[3; 3 ; 3 ; 3 ; 3]
G33: SRDnor | H33: SRD | I33: relFr% | J33: CrFr% | L33: SRDnor | M33: SRD | N33: relFr% | O33: CrFr% | Q33: SRDnor | R33: SRD | S33: relFr% | T33: CrFr% | V33: SRDnor | W33: SRD | X33: relFr% | Y33: CrFr% | AA33: SRDnor | AB33: SRD | AC33: relFr% | AD33: CrFr% | AF33: SRDnor | AG33: SRD | AH33: relFr% | AI33: CrFr% | AK33: SRDnor | AL33: SRD | AM33: relFr% | AN33: CrFr% | AP33: SRDnor | AQ33: SRD | AR33: relFr% | AS33: CrFr% | AU33: SRDnor | AV33: SRD | AW33: relFr% | AX33: CrFr% | AZ33: SRDnor | BA33: SRD | BB33: relFr% | BC33: CrFr%
G34: 0 | H34: 0 | I34: 0.825029125 | J34: =I34 -> 0.825029125 | L34: 0 | M34: 0 | N34: 0.004141712475 | O34: =N34 -> 0.004141712475 | Q34: 0 | R34: 0 | S34: 0.004141712475 | T34: =S34 -> 0.004141712475 | V34: =100*W34/Y$13 -> 0 | W34: 0 | X34: 1.66167e-05 | Y34: =X34 -> 1.66167e-05 | AA34: 0 | AB34: 0 | AC34: 1.66167e-05 | AD34: =AC34 -> 1.66167e-05 | AF34: 0 | AG34: 0 | AH34: 1.66167e-05 | AI34: =AH34 -> 1.66167e-05 | AK34: =100*AL34/AN$13 -> 0 | AL34: 0 | AM34: 4.995e-08 | AN34: =AM34 -> 4.995e-08 | AP34: 0 | AQ34: 0 | AR34: 1.66167e-05 | AS34: =AR34 -> 1.66167e-05 | AU34: 0 | AV34: 0 | AW34: 4.995e-08 | AX34: =AW34 -> 4.995e-08 | AZ34: 0 | BA34: 0 | BB34: 1e-10 | BC34: =BB34 -> 1e-10
G35: 8.333333333 | H35: 1 | I35: 0.0165668499 | J35: =I35+J34 -> 0.8415959749 | L35: 8.333333333 | M35: 1 | N35: 1.650091483 | O35: =N35+O34 -> 1.654233196 | Q35: 8.333333333 | R35: 1 | S35: 1.650074867 | T35: =S35+T34 -> 1.654216579 | V35: 8.333333333 | W35: 1 | X35: 4.995e-08 | Y35: =X35+Y34 -> 1.666665e-05 | AA35: 8.333333333 | AB35: 1 | AC35: 0.0165668499 | AD35: =AC35+AD34 -> 0.0165834666 | AF35: 8.333333333 | AG35: 1 | AH35: 0.0165668499 | AI35: =AH35+AI34 -> 0.0165834666 | AK35: 8.333333333 | AL35: 1 | AM35: 3.32334e-05 | AN35: =AM35+AN34 -> 3.328335e-05 | AP35: 10 | AQ35: 1 | AR35: 0 | AS35: =AR35+AS34 -> 1.66167e-05 | AU35: 11.11111111 | AV35: 1 | AW35: 0 | AX35: =AW35+AX34 -> 4.995e-08 | AZ35: 16.66666667 | BA35: 1 | BB35: 0 | BC35: =BB35+BC34 -> 1e-10
G36: 16.66666667 | H36: 2 | I36: 3.3002162 | J36: 4.141812175 | L36: 16.66666667 | M36: 2 | N36: 0.03315036645 | O36: 1.687383562 | Q36: 16.66666667 | R36: 2 | S36: 0.02902522072 | T36: 1.6832418 | V36: 16.66666667 | W36: 2 | X36: 4.975041642 | Y36: 4.975058308 | AA36: 16.66666667 | AB36: 2 | AC36: 3.300149783 | AD36: 3.31673325 | AF36: 16.66666667 | AG36: 2 | AH36: 3.300183067 | AI36: 3.316766533 | AK36: 16.66666667 | AL36: 2 | AM36: 0.02494997505 | AN36: 0.0249832584 | AP36: 20 | AQ36: 2 | AR36: 4.975025025 | AS36: 4.975041642 | AU36: 22.22222222 | AV36: 2 | AW36: 0 | AX36: 4.995e-08 | AZ36: 33.33333333 | BA36: 2 | BB36: 0 | BC36: 1e-10
G37: 25 | H37: 3 | I37: 0.0497006496 | J37: 4.191512825 | L37: 25 | M37: 3 | N37: 4.958591159 | O37: 6.645974721 | Q37: 25 | R37: 3 | S37: 4.9668414 | T37: 6.6500832 | V37: 25 | W37: 3 | X37: 0.04985014995 | Y37: 5.024908458 | AA37: 25 | AB37: 3 | AC37: 0.04155005835 | AD37: 3.358283308 | AF37: 25 | AG37: 3 | AH37: 0.0498334833 | AI37: 3.366600017 | AK37: 25 | AL37: 3 | AM37: 9.95005005 | AN37: 9.975033308 | AP37: 30 | AQ37: 3 | AR37: 0.0498003498 | AS37: 5.024841991 | AU37: 33.33333333 | AV37: 3 | AW37: 0.0498334833 | AX37: 0.04983353325 | AZ37: 50 | BA37: 3 | BB37: 0 | BC37: 1e-10
G38: 33.33333333 | H38: 4 | I38: 9.925399275 | J38: 14.1169121 | L38: 33.33333333 | M38: 4 | N38: 1.716458633 | O38: 8.362433354 | Q38: 33.33333333 | R38: 4 | S38: 3.358200325 | T38: 10.00828352 | V38: 33.33333333 | W38: 4 | X38: 9.937824463 | Y38: 14.96273292 | AA38: 33.33333333 | AB38: 4 | AC38: 6.658366775 | AD38: 10.01665008 | AF38: 33.33333333 | AG38: 4 | AH38: 6.65003325 | AI38: 10.01663327 | AK38: 33.33333333 | AL38: 4 | AM38: 0.04990019985 | AN38: 10.02493351 | AP38: 40 | AQ38: 4 | AR38: 9.925498876 | AS38: 14.95034087 | AU38: 44.44444444 | AV38: 4 | AW38: 19.9003994 | AX38: 19.95023293 | AZ38: 66.66666667 | BA38: 4 | BB38: 0.0003328335 | BC38: 0.0003328336
G39: 41.66666667 | H39: 5 | I39: 0.0995341329 | J39: 14.21644623 | L39: 41.66666667 | M39: 5 | N39: 11.6333918 | O39: 19.99582515 | Q39: 41.66666667 | R39: 5 | S39: 8.3333748 | T39: 18.34165832 | V39: 41.66666667 | W39: 5 | X39: 0.07465072455 | Y39: 15.03738365 | AA39: 41.66666667 | AB39: 5 | AC39: 9.991566875 | AD39: 20.00821696 | AF39: 41.66666667 | AG39: 5 | AH39: 6.65013335 | AI39: 16.66676662 | AK39: 41.66666667 | AL39: 5 | AM39: 9.975199725 | AN39: 20.00013323 | AP39: 50 | AQ39: 5 | AR39: 0.0994013991 | AS39: 15.04974227 | AU39: 55.55555556 | AV39: 5 | AW39: 0.1493677161 | AX39: 20.09960065 | AZ39: 83.33333333 | BA39: 5 | BB39: 0 | BC39: 0.0003328336
G40: 50 | H40: 6 | I40: 19.88389902 | J40: 34.10034525 | L40: 50 | M40: 6 | N40: 6.675132875 | O40: 26.67095803 | Q40: 50 | R40: 6 | S40: 9.995841671 | T40: 28.3375 | V40: 50 | W40: 6 | X40: 24.90044097 | Y40: 39.93782461 | AA40: 50 | AB40: 6 | AC40: 6.66689945 | AD40: 26.67511641 | AF40: 50 | AG40: 6 | AH40: 10.0664168 | AI40: 26.73318342 | AK40: 50 | AL40: 6 | AM40: 10.0000997 | AN40: 30.00023293 | AP40: 60 | AQ40: 6 | AR40: 24.87555716 | AS40: 39.92529943 | AU40: 66.66666667 | AV40: 6 | AW40: 19.85059945 | AX40: 39.9502001 | AZ40: 100 | BA40: 6 | BB40: 99.99966717 | BC40: 100
G41: 58.33333333 | H41: 7 | I41: 0.1327343994 | J41: 34.23307965 | L41: 58.33333333 | M41: 7 | N41: 15.04139227 | O41: 41.7123503 | Q41: 58.33333333 | R41: 7 | S41: 11.66674162 | T41: 40.00424161 | V41: 58.33333333 | W41: 7 | X41: 0.1245006248 | Y41: 40.06232524 | AA41: 58.33333333 | AB41: 7 | AC41: 10.04985025 | AD41: 36.72496666 | AF41: 58.33333333 | AG41: 7 | AH41: 19.95013338 | AI41: 46.6833168 | AK41: 58.33333333 | AL41: 7 | AM41: 20.07448406 | AN41: 50.07471699 | AP41: 70 | AQ41: 7 | AR41: 0.1494011493 | AS41: 40.07470057 | AU41: 77.77777778 | AV41: 7 | AW41: 0.0997999002 | AX41: 40.05 | BB41: =SUM(BB34:BB40) -> 100
G42: 66.66666667 | H42: 8 | I42: 29.0339531 | J42: 63.26703275 | L42: 66.66666667 | M42: 8 | N42: 18.2546158 | O42: 59.9669661 | Q42: 66.66666667 | R42: 8 | S42: 13.37895864 | T42: 53.38320025 | V42: 66.66666667 | W42: 8 | X42: 29.88794113 | Y42: 69.95026637 | AA42: 66.66666667 | AB42: 8 | AC42: 23.32483369 | AD42: 60.04980035 | AF42: 66.66666667 | AG42: 8 | AH42: 9.98358265 | AI42: 56.66689945 | AK42: 66.66666667 | AL42: 8 | AM42: 19.87554938 | AN42: 69.95026637 | AP42: 80 | AQ42: 8 | AR42: 19.87569888 | AS42: 59.95039945 | AU42: 88.88888889 | AV42: 8 | AW42: 20.04986677 | AX42: 60.09986677
G43: 75 | H43: 9 | I43: 0.1327343994 | J43: 63.39976715 | L43: 75 | M43: 9 | N43: 6.766101099 | O43: 66.7330672 | Q43: 75 | R43: 9 | S43: 19.93356643 | T43: 73.31676668 | V43: 75 | W43: 9 | X43: 0.0996005997 | Y43: 70.04986697 | AA43: 75 | AB43: 9 | AC43: 13.26696633 | AD43: 73.31676668 | AF43: 75 | AG43: 9 | AH43: 13.3994678 | AI43: 70.06636725 | AK43: 75 | AL43: 9 | AM43: 0.0996005997 | AN43: 70.04986697 | AP43: 90 | AQ43: 9 | AR43: 0.0996004998 | AS43: 60.04999995 | AU43: 100 | AV43: 9 | AW43: 39.90013323 | AX43: 100
G44: 83.33333333 | H44: 10 | I44: 19.90046587 | J44: 83.30023302 | L44: 83.33333333 | M44: 10 | N44: 16.56716582 | O44: 83.30023302 | Q44: 83.33333333 | R44: 10 | S44: 3.374933242 | T44: 76.69169993 | V44: 83.33333333 | W44: 10 | X44: 19.92529948 | Y44: 89.97516644 | AA44: 83.33333333 | AB44: 10 | AC44: 3.374933242 | AD44: 76.69169993 | AF44: 83.33333333 | AG44: 10 | AH44: 13.23386577 | AI44: 83.30023302 | AK44: 83.33333333 | AL44: 10 | AM44: 19.92529948 | AN44: 89.97516644 | AP44: 100 | AQ44: 10 | AR44: 39.95000005 | AS44: 100 | AW44: =SUM(AW34:AW43) -> 100
G45: 91.66666667 | H45: 11 | I45: 0.0664003332 | J45: 83.36663335 | L45: 91.66666667 | M45: 11 | N45: 0.0664003332 | O45: 83.36663335 | Q45: 91.66666667 | R45: 11 | S45: 13.33326677 | T45: 90.02496669 | V45: 91.66666667 | W45: 11 | X45: 0.0498002499 | Y45: 90.02496669 | AA45: 91.66666667 | AB45: 11 | AC45: 13.33326677 | AD45: 90.02496669 | AF45: 91.66666667 | AG45: 11 | AH45: 0.0664003332 | AI45: 83.36663335 | AK45: 91.66666667 | AL45: 11 | AM45: 0.0498002499 | AN45: 90.02496669 | AR45: =SUM(AR34:AR44) -> 100
G46: 100 | H46: 12 | I46: 16.63336665 | J46: 100 | L46: 100 | M46: 12 | N46: 16.63336665 | O46: 100 | Q46: 100 | R46: 12 | S46: 9.975033308 | T46: 100 | V46: 100 | W46: 12 | X46: 9.975033308 | Y46: 100 | AA46: 100 | AB46: 12 | AC46: 9.975033308 | AD46: 100 | AF46: 100 | AG46: 12 | AH46: 16.63336665 | AI46: 100 | AK46: 100 | AL46: 12 | AM46: 9.975033308 | AN46: 100
I47: =SUM(I34:I46) -> 100 | N47: =SUM(N34:N46) -> 100 | S47: =SUM(S34:S46) -> 100 | X47: =SUM(X34:X46) -> 100 | AC47: =SUM(AC34:AC46) -> 100 | AH47: =SUM(AH34:AH46) -> 100 | AM47: =SUM(AM34:AM46) -> 100

Sheet Discret6 (hidden)
A1: n=2k | B1: k | D1: MaxSRD=2k^2
A2: 6 | B2: 3 | D2: 18
A4: RC1 | B4: RC2 | C4: RC3 | D4: RC4 | E4: RC5 | F4: RC6 | G4: RC7 | H4: RC8 | I4: RC9 | J4: RC10 | K4: RC11 | L4: RC12 | M4: RC13 | N4: RC14 | O4: RC15 | P4: RC16 | Q4: RC17 | R4: RC18 | S4: RC19 | T4: RC20 | U4: RC21 | V4: RC22 | W4: RC23 | X4: RC24 | Y4: RC25 | Z4: RC26 | AA4: RC27 | AB4: RC28 | AC4: RC29 | AD4: RC30 | AE4: RC31 | AF4: RC32
A5: 1 | B5: 1 | C5: 1 | D5: 1 | E5: 1 | F5: 1 | G5: 1 | H5: 1 | I5: 1 | J5: 1 | K5: 1 | L5: 1 | M5: 1 | N5: 1 | O5: 1 | P5: 1 | Q5: 1.5 | R5: 1.5 | S5: 1.5 | T5: 1.5 | U5: 1.5 | V5: 1.5 | W5: 1.5 | X5: 1.5 | Y5: 2 | Z5: 2 | AA5: 2 | AB5: 2 | AC5: 2.5 | AD5: 2.5 | AE5: 3 | AF5: 3.5
A6: 2 | B6: 2 | C6: 2 | D6: 2 | E6: 2 | F6: 2 | G6: 2 | H6: 2 | I6: 2.5 | J6: 2.5 | K6: 2.5 | L6: 2.5 | M6: 3 | N6: 3 | O6: 3.5 | P6: 4 | Q6: 1.5 | R6: 1.5 | S6: 1.5 | T6: 1.5 | U6: 1.5 | V6: 1.5 | W6: 1.5 | X6: 1.5 | Y6: 2 | Z6: 2 | AA6: 2 | AB6: 2 | AC6: 2.5 | AD6: 2.5 | AE6: 3 | AF6: 3.5
A7: 3 | B7: 3 | C7: 3 | D7: 3 | E7: 3.5 | F7: 3.5 | G7: 4 | H7: 4.5 | I7: 2.5 | J7: 2.5 | K7: 2.5 | L7: 2.5 | M7: 3 | N7: 3 | O7: 3.5 | P7: 4 | Q7: 3 | R7: 3 | S7: 3 | T7: 3 | U7: 3.5 | V7: 3.5 | W7: 4 | X7: 4.5 | Y7: 2 | Z7: 2 | AA7: 2 | AB7: 2 | AC7: 2.5 | AD7: 2.5 | AE7: 3 | AF7: 3.5
A8: 4 | B8: 4 | C8: 4.5 | D8: 5 | E8: 3.5 | F8: 3.5 | G8: 4 | H8: 4.5 | I8: 4 | J8: 4 | K8: 4.5 | L8: 5 | M8: 3 | N8: 3 | O8: 3.5 | P8: 4 | Q8: 4 | R8: 4 | S8: 4.5 | T8: 5 | U8: 3.5 | V8: 3.5 | W8: 4 | X8: 4.5 | Y8: 4 | Z8: 4 | AA8: 4.5 | AB8: 5 | AC8: 2.5 | AD8: 2.5 | AE8: 3 | AF8: 3.5
A9: 5 | B9: 5.5 | C9: 4.5 | D9: 5 | E9: 5 | F9: 5.5 | G9: 4 | H9: 4.5 | I9: 5 | J9: 5.5 | K9: 4.5 | L9: 5 | M9: 5 | N9: 5.5 | O9: 3.5 | P9: 4 | Q9: 5 | R9: 5.5 | S9: 4.5 | T9: 5 | U9: 5 | V9: 5.5 | W9: 4 | X9: 4.5 | Y9: 5 | Z9: 5.5 | AA9: 4.5 | AB9: 5 | AC9: 5 | AD9: 5.5 | AE9: 3 | AF9: 3.5
A10: 6 | B10: 5.5 | C10: 6 | D10: 5 | E10: 6 | F10: 5.5 | G10: 6 | H10: 4.5 | I10: 6 | J10: 5.5 | K10: 6 | L10: 5 | M10: 6 | N10: 5.5 | O10: 6 | P10: 4 | Q10: 6 | R10: 5.5 | S10: 6 | T10: 5 | U10: 6 | V10: 5.5 | W10: 6 | X10: 4.5 | Y10: 6 | Z10: 5.5 | AA10: 6 | AB10: 5 | AC10: 6 | AD10: 5.5 | AE10: 6 | AF10: 3.5
A11: Cnum | B11: Cnum | C11: Cnum | D11: Cnum | E11: Cnum | F11: Cnum | G11: Cnum | H11: Cnum | I11: Cnum | J11: Cnum | K11: Cnum | L11: Cnum | M11: Cnum | N11: Cnum | O11: Cnum | P11: Cnum | Q11: Cnum | R11: Cnum | S11: Cnum | T11: Cnum | U11: Cnum | V11: Cnum | W11: Cnum | X11: Cnum | Y11: Cnum | Z11: Cnum | AA11: Cnum | AB11: Cnum | AC11: Cnum | AD11: Cnum | AE11: Cnum | AF11: Cnum
A12: 7 | B12: 12 | C12: 17 | D12: 22 | E12: 27 | F12: 32 | G12: 37 | H12: 42 | I12: 17 | J12: 47 | K12: 52 | L12: 57 | M12: 37 | N12: 62 | O12: 67 | P12: 72 | Q12: 12 | R12: 77 | S12: 47 | T12: 82 | U12: 32 | V12: 87 | W12: 62 | X12: 92 | Y12: 22 | Z12: 82 | AA12: 57 | AB12: 97 | AC12: 42 | AD12: 92 | AE12: 72 | AF12: 102
G13: With ties, ndig=2 | L13: With ties, ndig=2 | Q13: With ties, ndig=2 | V13: With ties, ndig=2 | AA13: With ties, ndig=2 | AF13: With ties, ndig=2 | AK13: With ties, ndig=2 | AP13: With ties, ndig=2 | AU13: With ties, ndig=2 | AZ13: With ties, ndig=2 | BE13: With ties, ndig=2 | BJ13: With ties, ndig=2 | BO13: With ties, ndig=2 | BT13: With ties, ndig=2 | BY13: With ties, ndig=2 | CD13: With ties, ndig=2 | CI13: With ties, ndig=2 | CN13: With ties, ndig=2 | CS13: With ties, ndig=2 | CX13: With ties, ndig=2
G14: RC1 | I14: MaxSRDrep= | J14: 18 | L14: RC2, RC17 | N14: MaxSRDrep= | O14: 18 | Q14: RC3, RC9 | S14: MaxSRDrep= | T14: 18 | V14: RC4, RC25 | X14: MaxSRDrep= | Y14: 18 | AA14: RC5 | AC14: MaxSRDrep= | AD14: 17 | AF14: RC6, RC21 | AH14: MaxSRDrep= | AI14: 17 | AK14: RC7, RC13 | AM14: MaxSRDrep= | AN14: 16 | AP14: RC8, RC29 | AR14: MaxSRDrep= | AS14: 16 | AU14: RC10, RC19 | AW14: MaxSRDrep= | AX14: 18 | AZ14: RC11 | BB14: MaxSRDrep= | BC14: 18 | BE14: RC12, RC27 | BG14: MaxSRDrep= | BH14: 18 | BJ14: RC14, RC23 | BL14: MaxSRDrep= | BM14: 16 | BO14: RC15 | BQ14: MaxSRDrep= | BR14: 14 | BT14: RC16, RC31 | BV14: MaxSRDrep= | BW14: 12 | BY14: RC18 | CA14: MaxSRDrep= | CB14: 18 | CD14: RC20, RC26 | CF14: MaxSRDrep= | CG14: 18 | CI14: RC22 | CK14: MaxSRDrep= | CL14: 17 | CN14: RC24, RC30 | CP14: MaxSRDrep= | CQ14: 16 | CS14: RC28 | CU14: MaxSRDrep= | CV14: 18 | CX14: RC32 | CZ14: MaxSRDrep= | DA14: 9
A15: RC1 without ties | G15: RC=[1 ; 2 ; 3 ; 4 ; 5 ; 6] | L15: RC=[1 ; 2 ; 3 ; 4 ; 5,5 ; 5,5] or [1,5 ; 1,5 ; 3 ; 4 ; 5 ; 6] | Q15: RC=[1 ; 2 ; 3 ; 4,5 ; 4,5 ; 6] or [1 ; 2,5 ; 2,5 ; 4 ; 5 ; 6] | V15: RC=[1 ; 2 ; 3 ; 5 ; 5 ; 5] or [2 ; 2 ; 2 ; 4 ; 5 ; 6] | AA15: RC=[1 ; 2 ; 3,5 ; 3,5 ; 5 ; 6] | AF15: RC=[1 ; 2 ; 3,5 ; 3,5 ; 5,5 ; 5,5] or [1,5 ; 1,5 ; 3,5 ; 3,5 ; 5 ; 6] | AK15: RC=[1 ; 2 ; 4 ; 4 ; 4 ; 6] or [1 ; 3 ; 3 ; 3 ; 5 ; 6] | AP15: RC=[1 ; 2 ; 4,5 ; 4,5 ; 4,5 ; 4,5] or [2,5 ; 2,5 ; 2,5 ; 2,5 ; 5 ; 6] | AU15: RC=[1 ; 2,5 ; 2,5 ; 4 ; 5,5 ; 5,5] or [1,5 ; 1,5 ; 3 ; 4,5 ; 4,5 ; 6] | AZ15: RC=[1 ; 2,5 ; 2,5 ; 4,5 ; 4,5 ; 6] | BE15: RC=[1 ; 2,5 ; 2,5 ; 5 ; 5 ; 5] or [2 ; 2 ; 2 ; 4,5 ; 4,5 ; 6] | BJ15: RC=[1 ; 3 ; 3 ; 3 ; 5,5 ; 5,5] or [1,5 ; 1,5 ; 4 ; 4 ; 4 ; 6] | BO15: RC=[1 ; 3,5 ; 3,5 ; 3,5 ; 3,5 ; 6] | BT15: RC=[1 ; 4 ; 4 ; 4 ; 4 ; 4] or [3 ; 3 ; 3 ; 3 ; 3 ; 6] | BY15: RC=[1,5 ; 1,5 ; 3 ; 4 ; 5,5 ; 5,5] | CD15: RC=[1,5 ; 1,5 ; 3 ; 5 ; 5 ; 5] or [2 ; 2 ; 2 ; 4 ; 5,5 ; 5,5] | CI15: RC=[1,5 ; 1,5 ; 3,5 ; 3,5 ; 5,5 ; 5,5] | CN15: RC=[1,5 ; 1,5 ; 4,5 ; 4,5 ; 4,5 ; 4,5] or [2,5 ; 2,5 ; 2,5 ; 2,5 ; 5,5 ; 5,5] | CS15: RC=[2 ; 2 ; 2 ; 5 ; 5 ; 5] | CX15: RC=[3,5 ; 3,5 ; 3,5 ; 3,5 ; 3,5 ; 3,5]
A16: SRDnor | B16: SRD | C16: freq | D16: relFr% | E16: CrFr% | G16: SRDnor | H16: SRD | I16: relFr% | J16: CrFR% | L16: SRDnor | M16: SRD | N16: relFr% | O16: CrFR% | Q16: SRDnor | R16: SRD | S16: relFr% | T16: CrFR% | V16: SRDnor | W16: SRD | X16: relFr% | Y16: CrFR% | AA16: SRDnor | AB16: SRD | AC16: relFr% | AD16: CrFR% | AF16: SRDnor | AG16: SRD | AH16: relFr% | AI16: CrFR% | AK16: SRDnor | AL16: SRD | AM16: relFr% | AN16: CrFR% | AP16: SRDnor | AQ16: SRD | AR16: relFr% | AS16: CrFR% | AU16: SRDnor | AV16: SRD | AW16: relFr% | AX16: CrFR% | AZ16: SRDnor | BA16: SRD | BB16: relFr% | BC16: CrFR% | BE16: SRDnor | BF16: SRD | BG16: relFr% | BH16: CrFR% | BJ16: SRDnor | BK16: SRD | BL16: relFr% | BM16: CrFR% | BO16: SRDnor | BP16: SRD | BQ16: relFr% | BR16: CrFR% | BT16: SRDnor | BU16: SRD | BV16: relFr% | BW16: CrFR% | BY16: SRDnor | BZ16: SRD | CA16: relFr% | CB16: CrFR% | CD16: SRDnor | CE16: SRD | CF16: relFr% | CG16: CrFR% | CI16: SRDnor | CJ16: SRD | CK16: relFr% | CL16: CrFR% | CN16: SRDnor | CO16: SRD | CP16: relFr% | CQ16: CrFR% | CS16: SRDnor | CT16: SRD | CU16: relFr% | CV16: CrFR% | CX16: SRDnor | CY16: SRD | CZ16: relFr% | DA16: CrFR%
A17: =100*B17/D$2 -> 0 | B17: 0 | C17: 1 | D17: 0.1388888889 | E17: =D17 -> 0.1388888889 | G17: 0 | H17: 0 | I17: 0.11920524 | J17: 0.11920524 | L17: 0 | M17: 0 | N17: 0.007528752 | O17: 0.007528752 | Q17: 0 | R17: 0 | S17: 0.007528752 | T17: 0.007528752 | V17: 0 | W17: 0 | X17: 0.0003921225 | Y17: 0.0003921225 | AA17: 0 | AB17: 0 | AC17: 0.007528752 | AD17: 0.007528752 | AF17: 0 | AG17: 0 | AH17: 0.0003921225 | AI17: 0.0003921225 | AK17: 0 | AL17: 0 | AM17: 0.0003921225 | AN17: 0.0003921225 | AP17: 0 | AQ17: 0 | AR17: 1.617e-05 | AS17: 1.617e-05 | AU17: 0 | AV17: 0 | AW17: 0.0003921225 | AX17: 0.0003921225 | AZ17: 0 | BA17: 0 | BB17: 0.0003921225 | BC17: 0.0003921225 | BE17: 0 | BF17: 0 | BG17: 1.617e-05 | BH17: 1.617e-05 | BJ17: 0 | BK17: 0 | BL17: 1.617e-05 | BM17: 1.617e-05 | BO17: 0 | BP17: 0 | BQ17: 1.617e-05 | BR17: 1.617e-05 | BT17: 0 | BU17: 0 | BV17: 4.95e-07 | BW17: 4.95e-07 | BY17: 0 | BZ17: 0 | CA17: 0.0003921225 | CB17: 0.0003921225 | CD17: 0 | CE17: 0 | CF17: 1.617e-05 | CG17: 1.617e-05 | CI17: 0 | CJ17: 0 | CK17: 1.617e-05 | CL17: 1.617e-05 | CN17: 0 | CO17: 0 | CP17: 4.95e-07 | CQ17: 4.95e-07 | CS17: 0 | CT17: 0 | CU17: 4.95e-07 | CV17: 4.95e-07 | CX17: 0 | CY17: 0 | CZ17: 1e-08 | DA17: 1e-08
A18: 11.11111111 | B18: 2 | C18: 5 | D18: 0.6944444444 | E18: =D18+E17 -> 0.8333333333 | G18: 5.555555556 | H18: 1 | I18: 0.03764376 | J18: 0.156849 | L18: 5.555555556 | M18: 1 | N18: 0.2395868475 | O18: 0.2471155995 | Q18: 5.555555556 | R18: 1 | S18: 0.239194725 | T18: 0.246723477 | V18: 5.555555556 | W18: 1 | X18: 3.234e-05 | Y18: 0.0004244625 | AA18: 5.882352941 | AB18: 1 | AC18: 0.239194725 | AD18: 0.246723477 | AF18: 5.882352941 | AG18: 1 | AH18: 0.030131178 | AI18: 0.0305233005 | AK18: 6.25 | AL18: 1 | AM18: 1.617e-05 | AN18: 0.0004082925 | AP18: 6.25 | AQ18: 1 | AR18: 4.95e-07 | AS18: 1.6665e-05 | AU18: 5.555555556 | AV18: 1 | AW18: 0.030115008 | AX18: 0.0305071305 | AZ18: 5.555555556 | BA18: 1 | BB18: 0.030115008 | BC18: 0.0305071305 | BE18: 5.555555556 | BF18: 1 | BG18: 0.000784245 | BH18: 0.000800415 | BJ18: 6.25 | BK18: 1 | BL18: 0.000784245 | BM18: 0.000800415 | BO18: 7.142857143 | BP18: 1 | BQ18: 0 | BR18: 1.617e-05 | BT18: 8.333333333 | BU18: 1 | BV18: 0 | BW18: 4.95e-07 | BY18: 5.555555556 | BZ18: 1 | CA18: 0.030131178 | CB18: 0.0305233005 | CD18: 5.555555556 | CE18: 1 | CF18: 0.000784245 | CG18: 0.000800415 | CI18: 5.882352941 | CJ18: 1 | CK18: 0.002352735 | CL18: 0.002368905 | CN18: 6.25 | CO18: 1 | CP18: 3.234e-05 | CQ18: 3.2835e-05 | CS18: 5.555555556 | CT18: 1 | CU18: 0 | CV18: 4.95e-07 | CX18: 11.11111111 | CY18: 1 | CZ18: 0 | DA18: 1e-08
A19: 22.22222222 | B19: 4 | C19: 18 | D19: 2.5 | E19: =D19+E18 -> 3.333333333 | G19: 11.11111111 | H19: 2 | I19: 0.599947425 | J19: 0.756796425 | L19: 11.11111111 | M19: 2 | N19: 0.0832569045 | O19: 0.330372504 | Q19: 11.11111111 | R19: 2 | S19: 0.076087935 | T19: 0.322811412 | V19: 11.11111111 | W19: 2 | X19: 0.761188692 | Y19: 0.7616131545 | AA19: 11.76470588 | AB19: 2 | AC19: 0.076087935 | AD19: 0.322811412 | AF19: 11.76470588 | AG19: 2 | AH19: 0.4795819875 | AI19: 0.510105288 | AK19: 12.5 | AL19: 2 | AM19: 0.7607960745 | AN19: 0.761204367 | AP19: 12.5 | AQ19: 2 | AR19: 1.617e-05 | AS19: 3.2835e-05 | AU19: 11.11111111 | AV19: 2 | AW19: 0.479222205 | AX19: 0.5097293355 | AZ19: 11.11111111 | BA19: 2 | BB19: 0.47842179 | BC19: 0.5089289205 | BE19: 11.11111111 | BF19: 2 | BG19: 0.047558082 | BH19: 0.048358497 | BJ19: 12.5 | BK19: 2 | BL19: 0.047525247 | BM19: 0.048325662 | BO19: 14.28571429 | BP19: 2 | BQ19: 0 | BR19: 1.617e-05 | BT19: 16.66666667 | BU19: 2 | BV19: 0 | BW19: 4.95e-07 | BY19: 11.11111111 | BZ19: 2 | CA19: 0.4803824025 | CB19: 0.510905703 | CD19: 11.11111111 | CE19: 2 | CF19: 0.047558082 | CG19: 0.048358497 | CI19: 11.76470588 | CJ19: 2 | CK19: 0.090345024 | CL19: 0.092713929 | CN19: 12.5 | CO19: 2 | CP19: 0 | CQ19: 3.2835e-05 | CS19: 11.11111111 | CT19: 2 | CU19: 0.00489951 | CV19: 0.004900005 | CX19: 22.22222222 | CY19: 2 | CZ19: 0 | DA19: 1e-08
A20: 33.33333333 | B20: 6 | C20: 46 | D20: 6.388888889 | E20: 9.722222222 | G20: 16.66666667 | H20: 3 | I20: 0.15068823 | J20: 0.907484655 | L20: 16.66666667 | M20: 3 | N20: 0.975789969 | O20: 1.306162473 | Q20: 16.66666667 | R20: 3 | S20: 0.989311323 | T20: 1.312122735 | V20: 16.66666667 | W20: 3 | X20: 0.1414478835 | Y20: 0.903061038 | AA20: 17.64705882 | AB20: 3 | AC20: 0.989295153 | AD20: 1.312106565 | AF20: 17.64705882 | AG20: 3 | AH20: 0.138686856 | AI20: 0.648792144 | AK20: 18.75 | AL20: 3 | AM20: 0.140255346 | AN20: 0.901459713 | AP20: 18.75 | AQ20: 3 | AR20: 0.093482004 | AS20: 0.093514839 | AU20: 16.66666667 | AV20: 3 | AW20: 0.140255841 | AX20: 0.6499851765 | AZ20: 16.66666667 | BA20: 3 | BB20: 0.125165502 | BC20: 0.6340944225 | BE20: 16.66666667 | BF20: 3 | BG20: 1.521624489 | BH20: 1.569982986 | BJ20: 18.75 | BK20: 3 | BL20: 1.523209644 | BM20: 1.571535306 | BO20: 21.42857143 | BP20: 3 | BQ20: 0.093482004 | BR20: 0.093498174 | BT20: 25 | BU20: 3 | BV20: 0 | BW20: 4.95e-07 | BY20: 16.66666667 | BZ20: 3 | CA20: 0.1537767 | CB20: 0.664682403 | CD20: 16.66666667 | CE20: 3 | CF20: 1.524026229 | CG20: 1.572384726 | CI20: 17.64705882 | CJ20: 3 | CK20: 0.95690826 | CL20: 1.049622189 | CN20: 18.75 | CO20: 3 | CP20: 0.00483483 | CQ20: 0.004867665 | CS20: 16.66666667 | CT20: 3 | CU20: 0 | CV20: 0.004900005 | CX20: 33.33333333 | CY20: 3 | CZ20: 0 | DA20: 1e-08
A21: 44.44444444 | B21: 8 | C21: 93 | D21: 12.91666667 | E21: 22.63888889 | G21: 22.22222222 | H21: 4 | I21: 2.217737016 | J21: 3.125221671 | L21: 22.22222222 | M21: 4 | N21: 0.4845584865 | O21: 1.790720959 | Q21: 22.22222222 | R21: 4 | S21: 0.700758663 | T21: 2.012881398 | V21: 22.22222222 | W21: 4 | X21: 2.269439782 | Y21: 3.17250082 | AA21: 23.52941176 | AB21: 4 | AC21: 0.684964434 | AD21: 1.997070999 | AF21: 23.52941176 | AG21: 4 | AH21: 1.544294515 | AI21: 2.193086659 | AK21: 25 | AL21: 4 | AM21: 2.247901029 | AN21: 3.149360742 | AP21: 25 | AQ21: 4 | AR21: 3.053574018 | AS21: 3.147088857 | AU21: 22.22222222 | AV21: 4 | AW21: 1.573528258 | AX21: 2.223513435 | AZ21: 22.22222222 | BA21: 4 | BB21: 1.58830683 | BC21: 2.222401252 | BE21: 22.22222222 | BF21: 4 | BG21: 0.193432008 | BH21: 1.763414994 | BJ21: 25 | BK21: 4 | BL21: 0.2343073425 | BM21: 1.805842648 | BO21: 28.57142857 | BP21: 4 | BQ21: 3.053509833 | BR21: 3.147008007 | BT21: 33.33333333 | BU21: 4 | BV21: 0.00800415 | BW21: 0.008004645 | BY21: 22.22222222 | BZ21: 4 | CA21: 1.529597784 | CB21: 2.194280187 | CD21: 22.22222222 | CE21: 4 | CF21: 0.2374766625 | CG21: 1.809861388 | CI21: 23.52941176 | CJ21: 4 | CK21: 0.193368318 | CL21: 1.242990507 | CN21: 25 | CO21: 4 | CP21: 0.377162016 | CQ21: 0.382029681 | CS21: 22.22222222 | CT21: 4 | CU21: 4.847575194 | CV21: 4.852475199 | CX21: 44.44444444 | CY21: 4 | CZ21: 0 | DA21: 1e-08
A22: 55.55555556 | B22: 10 | C22: 137 | D22: 19.02777778 | E22: 41.66666667 | G22: 27.77777778 | H22: 5 | I22: 0.413838183 | J22: 3.539059854 | L22: 27.77777778 | M22: 5 | N22: 3.085714319 | O22: 4.876435278 | Q22: 27.77777778 | R22: 5 | S22: 2.638927022 | T22: 4.65180842 | V22: 27.77777778 | W22: 5 | X22: 0.325796394 | Y22: 3.498297214 | AA22: 29.41176471 | AB22: 5 | AC22: 2.669387622 | AD22: 4.666458621 | AF22: 29.41176471 | AG22: 5 | AH22: 1.776039903 | AI22: 3.969126562 | AK22: 31.25 | AL22: 5 | AM22: 0.366457476 | AN22: 3.515818218 | AP22: 31.25 | AQ22: 5 | AR22: 0.561249744 | AS22: 3.708338601 | AU22: 27.77777778 | AV22: 5 | AW22: 1.682718114 | AX22: 3.906231549 | AZ22: 27.77777778 | BA22: 5 | BB22: 2.2179762 | BC22: 4.440377453 | BE22: 27.77777778 | BF22: 5 | BG22: 3.193896024 | BH22: 4.957311018 | BJ22: 31.25 | BK22: 5 | BL22: 3.060632718 | BM22: 4.866475366 | BO22: 35.71428571 | BP22: 5 | BQ22: 0.554941474 | BR22: 3.701949481 | BT22: 41.66666667 | BU22: 5 | BV22: 0.000325885 | BW22: 0.00833053 | BY22: 27.77777778 | BZ22: 5 | CA22: 1.27380792 | CB22: 3.468088107 | CD22: 27.77777778 | CE22: 5 | CF22: 3.103354485 | CG22: 4.913215873 | CI22: 29.41176471 | CJ22: 5 | CK22: 2.287745526 | CL22: 3.530736033 | CN22: 31.25 | CO22: 5 | CP22: 6.097674396 | CQ22: 6.479704077 | CS22: 27.77777778 | CT22: 5 | CU22: 0.285494022 | CV22: 5.137969221 | CX22: 55.55555556 | CY22: 5 | CZ22: 0.00049104 | DA22: 0.00049105
A23: 66.66666667 | B23: 12 | C23: 148 | D23: 20.55555556 | E23: 62.22222222 | G23: 33.33333333 | H23: 6 | I23: 5.78182511 | J23: 9.320884964 | L23: 33.33333333 | M23: 6 | N23: 1.683030376 | O23: 6.559465654 | Q23: 33.33333333 | R23: 6 | S23: 2.340512955 | T23: 6.992321375 | V23: 33.33333333 | W23: 6 | X23: 6.984358953 | Y23: 10.48265617 | AA23: 35.29411765 | AB23: 6 | AC23: 2.835526914 | AD23: 7.501985535 | AF23: 35.29411765 | AG23: 6 | AH23: 3.351167507 | AI23: 7.320294069 | AK23: 37.5 | AL23: 6 | AM23: 6.875104863 | AN23: 10.39092308 | AP23: 37.5 | AQ23: 6 | AR23: 6.019254252 | AS23: 9.727592853 | AU23: 33.33333333 | AV23: 6 | AW23: 2.923312904 | AX23: 6.829544452 | AZ23: 33.33333333 | BA23: 6 | BB23: 2.295587976 | BC23: 6.735965428 | BE23: 33.33333333 | BF23: 6 | BG23: 3.373391555 | BH23: 8.330702573 | BJ23: 37.5 | BK23: 6 | BL23: 1.994016849 | BM23: 6.860492215 | BO23: 42.85714286 | BP23: 6 | BQ23: 5.931097788 | BR23: 9.633047269 | BT23: 50 | BU23: 6 | BV23: 16.17075438 | BW23: 16.17908491 | BY23: 33.33333333 | BZ23: 6 | CA23: 3.925253442 | CB23: 7.393341549 | CD23: 33.33333333 | CE23: 6 | CF23: 1.94779931 | CG23: 6.861015183 | CI23: 35.29411765 | CJ23: 6 | CK23: 4.366307484 | CL23: 7.897043517 | CN23: 37.5 | CO23: 6 | CP23: 0.573896664 | CQ23: 7.053600741 | CS23: 33.33333333 | CT23: 6 | CU23: 4.59477221 | CV23: 9.732741431 | CX23: 66.66666667 | CY23: 6 | CZ23: 0 | DA23: 0.00049105
A24: 77.77777778 | B24: 14 | C24: 136 | D24: 18.88888889 | E24: 81.11111111 | G24: 38.88888889 | H24: 7 | I24: 0.803850498 | J24: 10.12473546 | L24: 38.88888889 | M24: 7 | N24: 6.457522698 | O24: 13.01698835 | Q24: 38.88888889 | R24: 7 | S24: 5.494214979 | T24: 12.48653635 | V24: 38.88888889 | W24: 7 | X24: 0.7028416725 | Y24: 11.18549784 | AA24: 41.17647059 | AB24: 7 | AC24: 4.475781618 | AD24: 11.97776715 | AF24: 41.17647059 | AG24: 7 | AH24: 4.429712661 | AI24: 11.75000673 | AK24: 43.75 | AL24: 7 | AM24: 0.882340173 | AN24: 11.27326325 | AP24: 43.75 | AQ24: 7 | AR24: 0.846368886 | AS24: 10.57396174 | AU24: 38.88888889 | AV24: 7 | AW24: 5.505351753 | AX24: 12.33489621 | AZ24: 38.88888889 | BA24: 7 | BB24: 4.534524984 | BC24: 11.27049041 | BE24: 38.88888889 | BF24: 7 | BG24: 5.053000722 | BH24: 13.38370329 | BJ24: 43.75 | BK24: 7 | BL24: 8.085955515 | BM24: 14.94644773 | BO24: 50 | BP24: 7 | BQ24: 0.832319136 | BR24: 10.46536641 | BT24: 58.33333333 | BU24: 7 | BV24: 0.97484079 | BW24: 17.1539257 | BY24: 38.88888889 | BZ24: 7 | CA24: 4.240961604 | CB24: 11.63430315 | CD24: 38.88888889 | CE24: 7 | CF24: 8.0926494 | CG24: 14.95366458 | CI24: 41.17647059 | CJ24: 7 | CK24: 3.260469036 | CL24: 11.15751255 | CN24: 43.75 | CO24: 7 | CP24: 6.471793482 | CQ24: 13.52539422 | CS24: 38.88888889 | CT24: 7 | CU24: 0.556784844 | CV24: 10.28952627 | CX24: 77.77777778 | CY24: 7 | CZ24: 0 | DA24: 0.00049105
A25: 88.88888889 | B25: 16 | C25: 100 | D25: 13.88888889 | E25: 95 | G25: 44.44444444 | H25: 8 | I25: 11.89168472 | J25: 22.01642018 | L25: 44.44444444 | M25: 8 | N25: 4.813007513 | O25: 17.82999586 | Q25: 44.44444444 | R25: 8 | S25: 6.187213478 | T25: 18.67374983 | V25: 44.44444444 | W25: 8 | X25: 13.23932585 | Y25: 24.42482369 | AA25: 47.05882353 | AB25: 8 | AC25: 6.157987252 | AD25: 18.13575441 | AF25: 47.05882353 | AG25: 8 | AH25: 6.176408611 | AI25: 17.92641534 | AK25: 50 | AL25: 8 | AM25: 11.45931716 | AN25: 22.73258042 | AP25: 50 | AQ25: 8 | AR25: 12.56791557 | AS25: 23.14187731 | AU25: 44.44444444 | AV25: 8 | AW25: 6.037600058 | AX25: 18.37249626 | AZ25: 44.44444444 | BA25: 8 | BB25: 8.24904663 | BC25: 19.51953704 | BE25: 44.44444444 | BF25: 8 | BG25: 6.672185602 | BH25: 20.0558889 | BJ25: 50 | BK25: 8 | BL25: 5.066656297 | BM25: 20.01310403 | BO25: 57.14285714 | BP25: 8 | BQ25: 9.54657693 | BR25: 20.01194333 | BT25: 66.66666667 | BU25: 8 | BV25: 15.70391526 | BW25: 32.85784096 | BY25: 44.44444444 | BZ25: 8 | CA25: 6.054157511 | CB25: 17.68846066 | CD25: 44.44444444 | CE25: 8 | CF25: 5.067494075 | CG25: 20.02115866 | CI25: 47.05882353 | CJ25: 8 | CK25: 4.859433754 | CL25: 16.01694631 | CN25: 50 | CO25: 8 | CP25: 6.487934122 | CQ25: 20.01332834 | CS25: 44.44444444 | CT25: 8 | CU25: 19.16063962 | CV25: 29.45016589 | CX25: 88.88888889 | CY25: 8 | CZ25: 2.9499888 | DA25: 2.95047985
A26: 100 | B26: 18 | C26: 36 | D26: 5 | E26: 100 | G26: 50 | H26: 9 | I26: 1.248245767 | J26: 23.26466595 | L26: 50 | M26: 9 | N26: 9.902962255 | O26: 27.73295812 | Q26: 50 | R26: 9 | S26: 7.992283754 | T26: 26.66603359 | V26: 50 | W26: 9 | X26: 1.167556345 | Y26: 25.59238004 | AA26: 52.94117647 | AB26: 9 | AC26: 8.976688545 | AD26: 27.11244295 | AF26: 52.94117647 | AG26: 9 | AH26: 8.421361245 | AI26: 26.34777659 | AK26: 56.25 | AL26: 9 | AM26: 1.210700007 | AN26: 23.94328043 | AP26: 56.25 | AQ26: 9 | AR26: 7.056408876 | AS26: 30.19828618 | AU26: 50 | AV26: 9 | AW26: 7.556226424 | AX26: 25.92872269 | AZ26: 50 | BA26: 9 | BB26: 6.67815226 | BC26: 26.1976893 | BE26: 50 | BF26: 9 | BG26: 9.960348958 | BH26: 30.01623785 | BJ26: 56.25 | BK26: 9 | BL26: 6.937660257 | BM26: 26.95076428 | BO26: 64.28571429 | BP26: 9 | BQ26: 13.32398793 | BR26: 33.33593126 | BT26: 75 | BU26: 9 | BV26: 0.95148009 | BW26: 33.80932105 | BY26: 50 | BZ26: 9 | CA26: 11.74760401 | CB26: 29.43606467 | CD26: 50 | CE26: 9 | CF26: 10.31239946 | CG26: 30.33355812 | CI26: 52.94117647 | CJ26: 9 | CK26: 12.24688149 | CL26: 28.2638278 | CN26: 56.25 | CO26: 9 | CP26: 7.436643192 | CQ26: 27.44997154 | CS26: 50 | CT26: 9 | CU26: 1.126489528 | CV26: 30.57665542 | CX26: 100 | CY26: 9 | CZ26: 97.04950398 | DA26: 99.99998383
C27: =SUM(C17:C26) -> 720 | D27: =SUM(D17:D26) -> 100 | G27: 55.55555556 | H27: 10 | I27: 17.64951486 | J27: 40.91418081 | L27: 55.55555556 | M27: 10 | N27: 10.38766699 | O27: 38.12062511 | Q27: 55.55555556 | R27: 10 | S27: 8.594966143 | T27: 35.26099973 | V27: 55.55555556 | W27: 10 | X27: 20.37588515 | Y27: 45.96826518 | AA27: 58.82352941 | AB27: 10 | AC27: 7.743082479 | AD27: 34.85552543 | AF27: 58.82352941 | AG27: 10 | AH27: 11.18606455 | AI27: 37.53384113 | AK27: 62.5 | AL27: 10 | AM27: 18.69701577 | AN27: 42.6402962 | AP27: 62.5 | AQ27: 10 | AR27: 10.38557527 | AS27: 40.58386145 | AU27: 55.55555556 | AV27: 10 | AW27: 12.01363172 | AX27: 37.9423544 | AZ27: 55.55555556 | BA27: 10 | BB27: 8.010995256 | BC27: 34.20868456 | BE27: 55.55555556 | BF27: 10 | BG27: 10.32277803 | BH27: 40.33901589 | BJ27: 62.5 | BK27: 10 | BL27: 9.513602538 | BM27: 36.46436682 | BO27: 71.42857143 | BP27: 10 | BQ27: 7.241916594 | BR27: 40.57784786 | BT27: 83.33333333 | BU27: 10 | BV27: 15.74777441 | BW27: 49.55709546 | BY27: 55.55555556 | BZ27: 10 | CA27: 7.50482167 | CB27: 36.94088634 | CD27: 55.55555556 | CE27: 10 | CF27: 12.7346685 | CG27: 43.06822662 | CI27: 58.82352941 | CJ27: 10 | CK27: 10.80695504 | CL27: 39.07078284 | CN27: 62.5 | CO27: 10 | CP27: 19.79082019 | CQ27: 47.24079173 | CS27: 55.55555556 | CT27: 10 | CU27: 18.85293288 | CV27: 49.42958831 | CZ27: =SUM(CZ17:CZ26) -> 99.99998383
G28: 61.11111111 | H28: 11 | I28: 1.520573802 | J28: 42.43475461 | L28: 61.11111111 | M28: 11 | N28: 7.427213475 | O28: 45.54783858 | Q28: 61.11111111 | R28: 11 | S28: 12.98393049 | T28: 48.24493022 | V28: 61.11111111 | W28: 11 | X28: 1.40764998 | Y28: 47.37591516 | AA28: 64.70588235 | AB28: 11 | AC28: 13.79318124 | AD28: 48.64870667 | AF28: 64.70588235 | AG28: 11 | AH28: 9.616270356 | AI28: 47.15011149 | AK28: 68.75 | AL28: 11 | AM28: 1.40784105 | AN28: 44.04813725 | AP28: 68.75 | AQ28: 11 | AR28: 19.25162039 | AS28: 59.83548184 | AU28: 61.11111111 | AV28: 11 | AW28: 8.803341921 | AX28: 46.74569633 | AZ28: 61.11111111 | BA28: 11 | BB28: 13.40797913 | BC28: 47.61666369 | BE28: 61.11111111 | BF28: 11 | BG28: 12.84680925 | BH28: 53.18582514 | BJ28: 68.75 | BK28: 11 | BL28: 14.33976944 | BM28: 50.80413627 | BO28: 78.57142857 | BP28: 11 | BQ28: 12.56352425 | BR28: 53.14137211 | BT28: 91.66666667 | BU28: 11 | BV28: 0.95097387 | BW28: 50.50806933 | BY28: 61.11111111 | BZ28: 11 | CA28: 11.14934113 | CB28: 48.09022747 | CD28: 61.11111111 | CE28: 11 | CF28: 7.498004481 | CG28: 50.5662311 | CI28: 64.70588235 | CJ28: 11 | CK28: 6.580717308 | CL28: 45.65150015 | CN28: 68.75 | CO28: 11 | CP28: 12.59469011 | CQ28: 59.83548184 | CS28: 61.11111111 | CT28: 11 | CU28: 1.141398258 | CV28: 50.57098656
G29: 66.66666667 | H29: 12 | I29: 19.14223062 | J29: 61.57698523 | L29: 66.66666667 | M29: 12 | N29: 13.52814326 | O29: 59.07598184 | Q29: 66.66666667 | R29: 12 | S29: 8.698923304 | T29: 56.94385352 | V29: 66.66666667 | W29: 12 | X29: 17.073604 | Y29: 64.44951917 | AA29: 70.58823529 | AB29: 12 | AC29: 7.231230204 | AD29: 55.87993687 | AF29: 70.58823529 | AG29: 12 | AH29: 9.445218519 | AI29: 56.59533001 | AK29: 75 | AL29: 12 | AM29: 23.72745852 | AN29: 67.77559577 | AP29: 75 | AQ29: 12 | AR29: 7.58595321 | AS29: 67.42143505 | AU29: 66.66666667 | AV29: 12 | AW29: 10.91346948 | AX29: 57.65916581 | AZ29: 66.66666667 | BA29: 12 | BB29: 12.25861629 | BC29: 59.87527999 | BE29: 66.66666667 | BF29: 12 | BG29: 5.355123609 | BH29: 58.54094875 | BJ29: 75 | BK29: 12 | BL29: 16.97150801 | BM29: 67.77564428 | BO29: 85.71428571 | BP29: 12 | BQ29: 3.833446155 | BR29: 56.97481826 | BT29: 100 | BU29: 12 | BV29: 49.49191451 | BW29: 99.99998383 | BY29: 66.66666667 | BZ29: 12 | CA29: 8.484750978 | CB29: 56.57497845 | CD29: 66.66666667 | CE29: 12 | CF29: 12.41155773 | CG29: 62.97778883 | CI29: 70.58823529 | CJ29: 12 | CK29: 11.65919066 | CL29: 57.31069081 | CN29: 75 | CO29: 12 | CP29: 7.58595321 | CQ29: 67.42143505 | CS29: 66.66666667 | CT29: 12 | CU29: 18.88145528 | CV29: 69.45244184
G30: 72.22222222 | H30: 13 | I30: 1.314199326 | J30: 62.89118455 | L30: 72.22222222 | M30: 13 | N30: 6.605456682 | O30: 65.68143852 | Q30: 72.22222222 | R30: 13 | S30: 10.92133479 | T30: 67.86518831 | V30: 72.22222222 | W30: 13 | X30: 1.129521393 | Y30: 65.57904056 | AA30: 76.47058824 | AB30: 13 | AC30: 13.14921115 | AD30: 69.02914802 | AF30: 76.47058824 | AG30: 13 | AH30: 14.09803441 | AI30: 70.69336442 | AK30: 81.25 | AL30: 13 | AM30: 1.129509678 | AN30: 68.90510544 | AP30: 81.25 | AQ30: 13 | AR30: 12.20481847 | AS30: 79.62625352 | AU30: 72.22222222 | AV30: 13 | AW30: 11.87028741 | AX30: 69.52945322 | AZ30: 72.22222222 | BA30: 13 | BB30: 4.902367602 | BC30: 64.77764759 | BE30: 72.22222222 | BF30: 13 | BG30: 13.32710676 | BH30: 71.86805551 | BJ30: 81.25 | BK30: 13 | BL30: 1.129493508 | BM30: 68.90513778 | BO30: 92.85714286 | BP30: 13 | BQ30: 13.91031437 | BR30: 70.88513264 | BV30: =SUM(BV17:BV29) -> 99.99998383 | BY30: 72.22222222 | BZ30: 13 | CA30: 11.8966817 | CB30: 68.47166015 | CD30: 72.22222222 | CE30: 13 | CF30: 4.2654843 | CG30: 67.24327313 | CI30: 76.47058824 | CJ30: 13 | CK30: 15.04689001 | CL30: 72.35758082 | CN30: 81.25 | CO30: 13 | CP30: 12.20481847 | CQ30: 79.62625352 | CS30: 72.22222222 | CT30: 13 | CU30: 1.127071638 | CV30: 70.57951348
G31: 77.77777778 | H31: 14 | I31: 17.85201023 | J31: 80.74319478 | L31: 77.77777778 | M31: 14 | N31: 15.06175626 | O31: 80.74319478 | Q31: 77.77777778 | R31: 14 | S31: 7.787185477 | T31: 75.65237378 | V31: 77.77777778 | W31: 14 | X31: 20.76527455 | Y31: 86.34431511 | AA31: 82.35294118 | AB31: 14 | AC31: 9.922454784 | AD31: 78.95160281 | AF31: 82.35294118 | AG31: 14 | AH31: 8.258238384 | AI31: 78.95160281 | AK31: 87.5 | AL31: 14 | AM31: 14.10920986 | AN31: 83.01431531 | AP31: 87.5 | AQ31: 14 | AR31: 0.770413182 | AS31: 80.3966667 | AU31: 77.77777778 | AV31: 14 | AW31: 6.122952908 | AX31: 75.65240612 | AZ31: 77.77777778 | BA31: 14 | BB31: 12.19336401 | BC31: 76.97101159 | BE31: 77.77777778 | BF31: 14 | BG31: 11.48019226 | BH31: 83.34824777 | BJ31: 87.5 | BK31: 14 | BL31: 14.10920986 | BM31: 83.01434765 | BO31: 100 | BP31: 14 | BQ31: 29.11485119 | BR31: 99.99998383 | BY31: 77.77777778 | BZ31: 14 | CA31: 12.27153464 | CB31: 80.74319478 | CD31: 77.77777778 | CE31: 14 | CF31: 19.10104198 | CG31: 86.34431511 | CI31: 82.35294118 | CJ31: 14 | CK31: 6.594021984 | CL31: 78.95160281 | CN31: 87.5 | CO31: 14 | CP31: 0.770413182 | CQ31: 80.3966667 | CS31: 77.77777778 | CT31: 14 | CU31: 19.14597046 | CV31: 89.72548394
G32: 83.33333333 | H32: 15 | I32: 0.754471542 | J32: 81.49766633 | L32: 83.33333333 | M32: 15 | N32: 0.754471542 | O32: 81.49766633 | Q32: 83.33333333 | R32: 15 | S32: 11.34814504 | T32: 87.00051882 | V32: 83.33333333 | W32: 15 | X32: 0.656203713 | Y32: 87.00051882 | AA32: 88.23529412 | AB32: 15 | AC32: 4.45816602 | AD32: 83.40976883 | AF32: 88.23529412 | AG32: 15 | AH32: 4.45816602 | AI32: 83.40976883 | AK32: 93.75 | AL32: 15 | AM32: 0.665693028 | AN32: 83.68000833 | AP32: 93.75 | AQ32: 15 | AR32: 13.13336653 | AS32: 93.53003323 | AU32: 83.33333333 | AV32: 15 | AW32: 11.34814504 | AX32: 87.00055116 | AZ32: 83.33333333 | BA32: 15 | BB32: 13.31085591 | BC32: 90.2818675 | BE32: 83.33333333 | BF32: 15 | BG32: 6.933619737 | BH32: 90.2818675 | BJ32: 93.75 | BK32: 15 | BL32: 0.665693028 | BM32: 83.68004067 | BQ32: =SUM(BQ17:BQ31) -> 99.99998383 | BY32: 83.33333333 | BZ32: 15 | CA32: 0.754471542 | CB32: 81.49766633 | CD32: 83.33333333 | CE32: 15 | CF32: 0.656203713 | CG32: 87.00051882 | CI32: 88.23529412 | CJ32: 15 | CK32: 4.45816602 | CL32: 83.40976883 | CN32: 93.75 | CO32: 15 | CP32: 13.13336653 | CQ32: 93.53003323 | CS32: 83.33333333 | CT32: 15 | CU32: 0.556383564 | CV32: 90.2818675
G33: 88.88888889 | H33: 16 | I33: 13.36456146 | J33: 94.86222779 | L33: 88.88888889 | M33: 16 | N33: 13.36456146 | O33: 94.86222779 | Q33: 88.88888889 | R33: 16 | S33: 7.861708965 | T33: 94.86222779 | V33: 88.88888889 | W33: 16 | X33: 7.861708965 | Y33: 94.86222779 | AA33: 94.11764706 | AB33: 16 | AC33: 6.885280776 | AD33: 90.2950496 | AF33: 94.11764706 | AG33: 16 | AH33: 6.885280776 | AI33: 90.2950496 | AK33: 100 | AL33: 16 | AM33: 16.31999167 | AN33: 100 | AP33: 100 | AQ33: 16 | AR33: 6.469966767 | AS33: 100 | AU33: 88.88888889 | AV33: 16 | AW33: 7.861676625 | AX33: 94.86222779 | AZ33: 88.88888889 | BA33: 16 | BB33: 4.580360285 | BC33: 94.86222779 | BE33: 88.88888889 | BF33: 16 | BG33: 4.580360285 | BH33: 94.86222779 | BJ33: 100 | BK33: 16 | BL33: 16.31995933 | BM33: 100 | BY33: 88.88888889 | BZ33: 16 | CA33: 13.36456146 | CB33: 94.86222779 | CD33: 88.88888889 | CE33: 16 | CF33: 7.861708965 | CG33: 94.86222779 | CI33: 94.11764706 | CJ33: 16 | CK33: 6.885280776 | CL33: 90.2950496 | CN33: 100 | CO33: 16 | CP33: 6.469966767 | CQ33: 100 | CS33: 88.88888889 | CT33: 16 | CU33: 4.580360285 | CV33: 94.86222779
G34: 94.44444444 | H34: 17 | I34: 0.285297012 | J34: 95.1475248 | L34: 94.44444444 | M34: 17 | N34: 0.285297012 | O34: 95.1475248 | Q34: 94.44444444 | R34: 17 | S34: 0.285297012 | T34: 95.1475248 | V34: 94.44444444 | W34: 17 | X34: 0.285297012 | Y34: 95.1475248 | AA34: 100 | AB34: 17 | AC34: 9.704950398 | AD34: 100 | AF34: 100 | AG34: 17 | AH34: 9.704950398 | AI34: 100 | AM34: =SUM(AM15:AM33) -> 100 | AR34: =SUM(AR15:AR33) -> 100 | AU34: 94.44444444 | AV34: 17 | AW34: 0.285297012 | AX34: 95.1475248 | AZ34: 94.44444444 | BA34: 17 | BB34: 0.285297012 | BC34: 95.1475248 | BE34: 94.44444444 | BF34: 17 | BG34: 0.285297012 | BH34: 95.1475248 | BL34: =SUM(BL15:BL33) -> 100 | BY34: 94.44444444 | BZ34: 17 | CA34: 0.285297012 | CB34: 95.1475248 | CD34: 94.44444444 | CE34: 17 | CF34: 0.285297012 | CG34: 95.1475248 | CI34: 100 | CJ34: 17 | CK34: 9.704950398 | CL34: 100 | CP34: =SUM(CP17:CP33) -> 100 | CS34: 94.44444444 | CT34: 17 | CU34: 0.285297012 | CV34: 95.1475248
G35: 100 | H35: 18 | I35: 4.852475199 | J35: 100 | L35: 100 | M35: 18 | N35: 4.852475199 | O35: 100 | Q35: 100 | R35: 18 | S35: 4.852475199 | T35: 100 | V35: 100 | W35: 18 | X35: 4.852475199 | Y35: 100 | AC35: =SUM(AC16:AC34) -> 100 | AH35: =SUM(AH16:AH34) -> 100 | AU35: 100 | AV35: 18 | AW35: 4.852475199 | AX35: 100 | AZ35: 100 | BA35: 18 | BB35: 4.852475199 | BC35: 100 | BE35: 100 | BF35: 18 | BG35: 4.852475199 | BH35: 100 | BY35: 100 | BZ35: 18 | CA35: 4.852475199 | CB35: 100 | CD35: 100 | CE35: 18 | CF35: 4.852475199 | CG35: 100 | CK35: =SUM(CK17:CK34) -> 100 | CS35: 100 | CT35: 18 | CU35: 4.852475199 | CV35: 100
I36: =SUM(I17:I35) -> 100 | N36: =SUM(N17:N35) -> 100 | S36: =SUM(S17:S35) -> 100 | X36: =SUM(X17:X35) -> 100 | AW36: =SUM(AW17:AW35) -> 100 | BB36: =SUM(BB17:BB35) -> 100 | BG36: =SUM(BG17:BG35) -> 100 | CA36: =SUM(CA17:CA35) -> 100 | CF36: =SUM(CF17:CF35) -> 100 | CU36: =SUM(CU17:CU35) -> 100
G37: With ties, ndig=3 | L37: With ties, ndig=3 | Q37: With ties, ndig=3 | V37: With ties, ndig=3 | AA37: With ties, ndig=3 | AF37: With ties, ndig=3 | AK37: With ties, ndig=3 | AP37: With ties, ndig=3 | AU37: With ties, ndig=3 | AZ37: With ties, ndig=3 | BE37: With ties, ndig=3 | BJ37: With ties, ndig=3 | BO37: With ties, ndig=3 | BT37: With ties, ndig=3 | BY37: With ties, ndig=3 | CD37: With ties, ndig=3 | CI37: With ties, ndig=3 | CN37: With ties, ndig=3 | CS37: With ties, ndig=3 | CX37: With ties, ndig=3
G38: RC1 | I38: MaxSRDrep= | J38: 18 | L38: RC2, RC17 | N38: MaxSRDrep= | O38: 18 | Q38: RC3, RC9 | S38: MaxSRDrep= | T38: 18 | V38: RC4, RC25 | X38: MaxSRDrep= | Y38: 18 | AA38: RC5 | AC38: MaxSRDrep= | AD38: 17 | AF38: RC6, RC21 | AH38: MaxSRDrep= | AI38: 17 | AK38: RC7, RC13 | AM38: MaxSRDrep= | AN38: 16 | AP38: RC8, RC29 | AR38: MaxSRDrep= | AS38: 16 | AU38: RC10, RC19 | AW38: MaxSRDrep= | AX38: 18 | AZ38: RC11 | BB38: MaxSRDrep= | BC38: 18 | BE38: RC12, RC27 | BG38: MaxSRDrep= | BH38: 18 | BJ38: RC14, RC23 | BL38: MaxSRDrep= | BM38: 16 | BO38: RC15 | BQ38: MaxSRDrep= | BR38: 14 | BT38: RC16, RC31 | BV38: MaxSRDrep= | BW38: 12 | BY38: RC18 | CA38: MaxSRDrep= | CB38: 18 | CD38: RC20, RC26 | CF38: MaxSRDrep= | CG38: 18 | CI38: RC22 | CK38: MaxSRDrep= | CL38: 17 | CN38: RC24, RC30 | CP38: MaxSRDrep= | CQ38: 16 | CS38: RC28 | CU38: MaxSRDrep= | CV38: 18 | CX38: RC32 | CZ38: MaxSRDrep= | DA38: 9
G39: RC=[1 ; 2 ; 3 ; 4 ; 5 ; 6] | L39: RC=[1 ; 2 ; 3 ; 4 ; 5,5 ; 5,5] or [1,5 ; 1,5 ; 3 ; 4 ; 5 ; 6] | Q39: RC=[1 ; 2 ; 3 ; 4,5 ; 4,5 ; 6] or [1 ; 2,5 ; 2,5 ; 4 ; 5 ; 6] | V39: RC=[1 ; 2 ; 3 ; 5 ; 5 ; 5] or [2 ; 2 ; 2 ; 4 ; 5 ; 6] | AA39: RC=[1 ; 2 ; 3,5 ; 3,5 ; 5 ; 6] | AF39: RC=[1 ; 2 ; 3,5 ; 3,5 ; 5,5 ; 5,5] or [1,5 ; 1,5 ; 3,5 ; 3,5 ; 5 ; 6] | AK39: RC=[1 ; 2 ; 4 ; 4 ; 4 ; 6] or [1 ; 3 ; 3 ; 3 ; 5 ; 6] | AP39: RC=[1 ; 2 ; 4,5 ; 4,5 ; 4,5 ; 4,5] or [2,5 ; 2,5 ; 2,5 ; 2,5 ; 5 ; 6] | AU39: RC=[1 ; 2,5 ; 2,5 ; 4 ; 5,5 ; 5,5] or [1,5 ; 1,5 ; 3 ; 4,5 ; 4,5 ; 6] | AZ39: RC=[1 ; 2,5 ; 2,5 ; 4,5 ; 4,5 ; 6] | BE39: RC=[1 ; 2,5 ; 2,5 ; 5 ; 5 ; 5] or [2 ; 2 ; 2 ; 4,5 ; 4,5 ; 6] | BJ39: RC=[1 ; 3 ; 3 ; 3 ; 5,5 ; 5,5] or [1,5 ; 1,5 ; 4 ; 4 ; 4 ; 6] | BO39: RC=[1 ; 3,5 ; 3,5 ; 3,5 ; 3,5 ; 6] | BT39: RC=[1 ; 4 ; 4 ; 4 ; 4 ; 4] or [3 ; 3 ; 3 ; 3 ; 3 ; 6] | BY39: RC=[1,5 ; 1,5 ; 3 ; 4 ; 5,5 ; 5,5] | CD39: RC=[1,5 ; 1,5 ; 3 ; 5 ; 5 ; 5] or [2 ; 2 ; 2 ; 4 ; 5,5 ; 5,5] | CI39: RC=[1,5 ; 1,5 ; 3,5 ; 3,5 ; 5,5 ; 5,5] | CN39: RC=[1,5 ; 1,5 ; 4,5 ; 4,5 ; 4,5 ; 4,5] or [2,5 ; 2,5 ; 2,5 ; 2,5 ; 5,5 ; 5,5] | CS39: RC=[2 ; 2 ; 2 ; 5 ; 5 ; 5] | CX39: RC=[3,5 ; 3,5 ; 3,5 ; 3,5 ; 3,5 ; 3,5]
G40: SRDnor | H40: SRD | I40: relFr% | J40: CrFR% | L40: SRDnor | M40: SRD | N40: relFr% | O40: CrFR% | Q40: SRDnor | R40: SRD | S40: relFr% | T40: CrFR% | V40: SRDnor | W40: SRD | X40: relFr% | Y40: CrFR% | AA40: SRDnor | AB40: SRD | AC40: relFr% | AD40: CrFR% | AF40: SRDnor | AG40: SRD | AH40: relFr% | AI40: CrFR% | AK40: SRDnor | AL40: SRD | AM40: relFr% | AN40: CrFR% | AP40: SRDnor | AQ40: SRD | AR40: relFr% | AS40: CrFR% | AU40: SRDnor | AV40: SRD | AW40: relFr% | AX40: CrFR% | AZ40: SRDnor | BA40: SRD | BB40: relFr% | BC40: CrFR% | BE40: SRDnor | BF40: SRD | BG40: relFr% | BH40: CrFR% | BJ40: SRDnor | BK40: SRD | BL40: relFr% | BM40: CrFR% | BO40: SRDnor | BP40: SRD | BQ40: relFr% | BR40: CrFR% | BT40: SRDnor | BU40: SRD | BV40: relFr% | BW40: CrFR% | BY40: SRDnor | BZ40: SRD | CA40: relFr% | CB40: CrFR% | CD40: SRDnor | CE40: SRD | CF40: relFr% | CG40: CrFR% | CI40: SRDnor | CJ40: SRD | CK40: relFr% | CL40: CrFR% | CN40: SRDnor | CO40: SRD | CP40: relFr% | CQ40: CrFR% | CS40: SRDnor | CT40: SRD | CU40: relFr% | CV40: CrFR% | CX40: SRDnor | CY40: SRD | CZ40: relFr% | DA40: CrFR%
G41: 0 | H41: 0 | I41: 0.1368173299 | J41: 0.1368173299 | L41: 0 | M41: 0 | N41: 0.000825029125 | O41: 0.000825029125 | Q41: 0 | R41: 0 | S41: 0.000825029125 | T41: 0.000825029125 | V41: 0 | W41: 0 | X41: 4.141712475e-06 | Y41: 4.141712475e-06 | AA41: 0 | AB41: 0 | AC41: 0.000825029125 | AD41: 0.000825029125 | AF41: 0 | AG41: 0 | AH41: 4.141712475e-06 | AI41: 4.141712475e-06 | AK41: 0 | AL41: 0 | AM41: 4.141712475e-06 | AN41: 4.141712475e-06 | AP41: 0 | AQ41: 0 | AR41: 1.66167e-08 | AS41: 1.66167e-08 | AU41: 0 | AV41: 0 | AW41: 4.141712475e-06 | AX41: 4.141712475e-06 | AZ41: 0 | BA41: 0 | BB41: 4.141712475e-06 | BC41: 4.141712475e-06 | BE41: 0 | BF41: 0 | BG41: 1.66167e-08 | BH41: 1.66167e-08 | BJ41: 0 | BK41: 0 | BL41: 1.66167e-08 | BM41: 1.66167e-08 | BO41: 0 | BP41: 0 | BQ41: 1.66167e-08 | BR41: 1.66167e-08 | BT41: 0 | BU41: 0 | BV41: 4.995e-11 | BW41: 4.995e-11 | BY41: 0 | BZ41: 0 | CA41: 4.141712475e-06 | CB41: 4.141712475e-06 | CD41: 0 | CE41: 0 | CF41: 1.66167e-08 | CG41: 1.66167e-08 | CI41: 0 | CJ41: 0 | CK41: 1.66167e-08 | CL41: 1.66167e-08 | CN41: 0 | CO41: 0 | CP41: 4.995e-11 | CQ41: 4.995e-11 | CS41: 0 | CT41: 0 | CU41: 4.995e-11 | CV41: 4.995e-11 | CX41: 0 | CY41: 0 | CZ41: 1e-13 | DA41: 1e-13
G42: 5.555555556 | H42: 1 | I42: 0.004125145625 | J42: 0.1409424755 | L42: 5.555555556 | M42: 1 | N42: 0.2736470849 | O42: 0.2744721141 | Q42: 5.555555556 | R42: 1 | S42: 0.2736429432 | T42: 0.2744679723 | V42: 5.555555556 | W42: 1 | X42: 3.32334e-08 | Y42: 4.174945875e-06 | AA42: 5.882352941 | AB42: 1 | AC42: 0.2736429432 | AD42: 0.2744679723 | AF42: 5.882352941 | AG42: 1 | AH42: 0.003300133117 | AI42: 0.003304274829 | AK42: 6.25 | AL42: 1 | AM42: 1.66167e-08 | AN42: 4.158329175e-06 | AP42: 6.25 | AQ42: 1 | AR42: 4.995e-11 | AS42: 1.666665e-08 | AU42: 5.555555556 | AV42: 1 | AW42: 0.0033001165 | AX42: 0.003304258213 | AZ42: 5.555555556 | BA42: 1 | BB42: 0.0033001165 | BC42: 0.003304258213 | BE42: 5.555555556 | BF42: 1 | BG42: 8.28342495e-06 | BH42: 8.30004165e-06 | BJ42: 6.25 | BK42: 1 | BL42: 8.28342495e-06 | BM42: 8.30004165e-06 | BO42: 7.142857143 | BP42: 1 | BQ42: 0 | BR42: 1.66167e-08 | BT42: 8.333333333 | BU42: 1 | BV42: 0 | BW42: 4.995e-11 | BY42: 5.555555556 | BZ42: 1 | CA42: 0.003300133117 | CB42: 0.003304274829 | CD42: 5.555555556 | CE42: 1 | CF42: 8.28342495e-06 | CG42: 8.30004165e-06 | CI42: 5.882352941 | CJ42: 1 | CK42: 2.485027485e-05 | CL42: 2.486689155e-05 | CN42: 6.25 | CO42: 1 | CP42: 3.32334e-08 | CQ42: 3.328335e-08 | CS42: 5.555555556 | CT42: 1 | CU42: 0 | CV42: 4.995e-11 | CX42: 11.11111111 | CY42: 1 | CZ42: 0 | DA42: 1e-13
G43: 11.11111111 | H43: 2 | I43: 0.6841280666 | J43: 0.8250705421 | L43: 11.11111111 | M43: 2 | N43: 0.009079511938 | O43: 0.283551626 | Q43: 11.11111111 | R43: 2 | S43: 0.008258591292 | T43: 0.2827265636 | V43: 11.11111111 | W43: 2 | X43: 0.8258624376 | Y43: 0.8258666126 | AA43: 11.76470588 | AB43: 2 | AC43: 0.008258591292 | AD43: 0.2827265636 | AF43: 11.76470588 | AG43: 2 | AH43: 0.5472983282 | AI43: 0.550602603 | AK43: 12.5 | AL43: 2 | AM43: 0.8258582959 | AN43: 0.8258624542 | AP43: 12.5 | AQ43: 2 | AR43: 1.66167e-08 | AS43: 3.328335e-08 | AU43: 11.11111111 | AV43: 2 | AW43: 0.5472942197 | AX43: 0.5505984779 | AZ43: 11.11111111 | BA43: 2 | BB43: 0.5472859197 | BC43: 0.5505901779 | BE43: 11.11111111 | BF43: 2 | BG43: 0.004975058308 | BH43: 0.00498335835 | BJ43: 12.5 | BK43: 2 | BL43: 0.004975025025 | BM43: 0.004983325067 | BO43: 14.28571429 | BP43: 2 | BQ43: 0 | BR43: 1.66167e-08 | BT43: 16.66666667 | BU43: 2 | BV43: 0 | BW43: 4.995e-11 | BY43: 11.11111111 | BZ43: 2 | CA43: 0.5473066282 | CB43: 0.5506109031 | CD43: 11.11111111 | CE43: 2 | CF43: 0.004975058308 | CG43: 0.00498335835 | CI43: 11.76470588 | CJ43: 2 | CK43: 0.0099003495 | CL43: 0.009925216392 | CN43: 12.5 | CO43: 2 | CP43: 0 | CQ43: 3.328335e-08 | CS43: 11.11111111 | CT43: 2 | CU43: 4.98999501e-05 | CV43: 4.990000005e-05 | CX43: 22.22222222 | CY43: 2 | CZ43: 0 | DA43: 1e-13
G44: 16.66666667 | H44: 3 | I44: 0.01650069882 | J44: 0.841571241 | L44: 16.66666667 | M44: 3 | N44: 1.096263282 | O44: 1.379814907 | Q44: 16.66666667 | R44: 3 | S44: 1.097896806 | T44: 1.38062337 | V44: 16.66666667 | W44: 3 | X44: 0.01491269979 | Y44: 0.8407793124 | AA44: 17.64705882 | AB44: 3 | AC44: 1.09789679 | AD44: 1.380623353 | AF44: 17.64705882 | AG44: 3 | AH44: 0.01488369118 | AI44: 0.5654862942 | AK44: 18.75 | AL44: 3 | AM44: 0.01490025803 | AN44: 0.8407627122 | AP44: 18.75 | AQ44: 3 | AR44: 0.0099334832 | AS44: 0.009933516483 | AU44: 16.66666667 | AV44: 3 | AW44: 0.01490025808 | AX44: 0.565498736 | AZ44: 16.66666667 | BA44: 3 | BB44: 0.01325016655 | BC44: 0.5638403444 | BE44: 16.66666667 | BF44: 3 | BG44: 1.651716625 | BH44: 1.656699983 | BJ44: 18.75 | BK44: 3 | BL44: 1.651733208 | BM44: 1.656716534 | BO44: 21.42857143 | BP44: 3 | BQ44: 0.0099334832 | BR44: 0.009933499817 | BT44: 25 | BU44: 3 | BV44: 0 | BW44: 4.995e-11 | BY44: 16.66666667 | BZ44: 3 | CA44: 0.01653378267 | CB44: 0.5671446857 | CD44: 16.66666667 | CE44: 3 | CF44: 1.651741525 | CG44: 1.656724883 | CI44: 17.64705882 | CJ44: 3 | CK44: 1.094571906 | CL44: 1.104497122 | CN44: 18.75 | CO44: 3 | CP44: 4.98334833e-05 | CQ44: 4.986676665e-05 | CS44: 16.66666667 | CT44: 3 | CU44: 0 | CV44: 4.990000005e-05 | CX44: 33.33333333 | CY44: 3 | CZ44: 0 | DA44: 1e-13
G45: 22.22222222 | H45: 4 | I45: 2.469436472 | J45: 3.311007713 | L45: 22.22222222 | M45: 4 | N45: 0.3000895671 | O45: 1.679904475 | Q45: 22.22222222 | R45: 4 | S45: 0.5712532646 | T45: 1.951876634 | V45: 22.22222222 | W45: 4 | X45: 2.475199434 | Y45: 3.315978746 | AA45: 23.52941176 | AB45: 4 | AC45: 0.5695949727 | AD45: 1.950218326 | AF45: 23.52941176 | AG45: 4 | AH45: 1.653445542 | AI45: 2.218931836 | AK45: 25 | AL45: 4 | AM45: 2.472736639 | AN45: 3.313499351 | AP45: 25 | AQ45: 4 | AR45: 3.303541067 | AS45: 3.313474584 | AU45: 22.22222222 | AV45: 4 | AW45: 1.656737275 | AX45: 2.222236011 | AZ45: 22.22222222 | BA45: 4 | BB45: 1.658383308 | BC45: 2.222223653 | BE45: 22.22222222 | BF45: 4 | BG45: 0.0199334332 | BH45: 1.676633416 | BJ45: 25 | BK45: 4 | BL45: 0.02483806573 | BM45: 1.681554599 | BO45: 28.57142857 | BP45: 4 | BQ45: 3.303541001 | BR45: 3.313474501 | BT45: 33.33333333 | BU45: 4 | BV45: 8.30004165e-05 | BW45: 8.300046645e-05 | BY45: 22.22222222 | BZ45: 4 | CA45: 1.651799592 | CB45: 2.218944278 | CD45: 22.22222222 | CE45: 4 | CF45: 0.02487123266 | CG45: 1.681596116 | CI45: 23.52941176 | CJ45: 4 | CK45: 0.01993336683 | CL45: 1.124430489 | CN45: 25 | CO45: 4 | CP45: 0.0397671662 | CQ45: 0.03981703297 | CS45: 22.22222222 | CT45: 4 | CU45: 4.984975075 | CV45: 4.985024975 | CX45: 44.44444444 | CY45: 4 | CZ45: 0 | DA45: 1e-13
G46: 27.77777778 | H46: 5 | I46: 0.04462635631 | J46: 3.35563407 | L46: 27.77777778 | M46: 5 | N46: 3.306861959 | O46: 4.986766434 | Q46: 27.77777778 | R46: 5 | S46: 2.762892673 | T46: 4.714769307 | V46: 27.77777778 | W46: 5 | X46: 0.03475080713 | Y46: 3.350729553 | AA46: 29.41176471 | AB46: 5 | AC46: 2.766196881 | AD46: 4.716415207 | AF46: 29.41176471 | AG46: 5 | AH46: 1.678258541 | AI46: 3.897190378 | AK46: 31.25 | AL46: 5 | AM46: 0.03965148073 | AN46: 3.353150832 | AP46: 31.25 | AQ46: 5 | AR46: 0.05960126497 | AS46: 3.373075849 | AU46: 27.77777778 | AV46: 5 | AW46: 1.668325224 | AX46: 3.890561236 | AZ46: 27.77777778 | BA46: 5 | BB46: 2.222177978 | BC46: 4.44440163 | BE46: 27.77777778 | BF46: 5 | BG46: 3.318441392 | BH46: 4.995074809 | BJ46: 31.25 | BK46: 5 | BL46: 3.303615618 | BM46: 4.985170218 | BO46: 35.71428571 | BP46: 5 | BQ46: 0.05953496413 | BR46: 3.373009465 | BT46: 41.66666667 | BU46: 5 | BV46: 3.3258385e-07 | BW46: 8.33330503e-05 | BY46: 27.77777778 | BZ46: 5 | CA46: 1.127738806 | CB46: 3.346683084 | CD46: 27.77777778 | CE46: 5 | CF46: 3.308540843 | CG46: 4.990136959 | CI46: 29.41176471 | CJ46: 5 | CK46: 2.228877745 | CL46: 3.353308234 | CN46: 31.25 | CO46: 5 | CP46: 6.606982667 | CQ46: 6.6467997 | CS46: 27.77777778 | CT46: 5 | CU46: 0.0298504994 | CV46: 5.014875474 | CX46: 55.55555556 | CY46: 5 | CZ46: 4.991004e-07 | DA46: 4.991005e-07
G47: 33.33333333 | H47: 6 | I47: 6.323584301 | J47: 9.679218371 | L47: 33.33333333 | M47: 6 | N47: 1.419578032 | O47: 6.406344465 | Q47: 33.33333333 | R47: 6 | S47: 2.234653015 | T47: 6.949422322 | V47: 33.33333333 | W47: 6 | X47: 7.445353093 | Y47: 10.79608265 | AA47: 35.29411765 | AB47: 6 | AC47: 2.783605526 | AD47: 7.500020734 | AF47: 35.29411765 | AG47: 6 | AH47: 3.335012417 | AI47: 7.232202794 | AK47: 37.5 | AL47: 6 | AM47: 7.433018824 | AN47: 10.78616966 | AP47: 37.5 | AQ47: 6 | AR47: 6.597206735 | AS47: 9.970282584 | AU47: 33.33333333 | AV47: 6 | AW47: 2.792734556 | AX47: 6.683295792 | AZ47: 33.33333333 | BA47: 6 | BB47: 2.228960579 | BC47: 6.673362209 | BE47: 33.33333333 | BF47: 6 | BG47: 3.338229649 | BH47: 8.333304458 | BJ47: 37.5 | BK47: 6 | BL47: 1.701434024 | BM47: 6.686604242 | BO47: 42.85714286 | BP47: 6 | BQ47: 6.58733107 | BR47: 9.960340535 | BT47: 50 | BU47: 6 | BV47: 16.61670825 | BW47: 16.61679158 | BY47: 33.33333333 | BZ47: 6 | CA47: 3.893745268 | CB47: 7.240428352 | CD47: 33.33333333 | CE47: 6 | CF47: 1.696471557 | CG47: 6.686608517 | CI47: 35.29411765 | CJ47: 6 | CK47: 4.437656321 | CL47: 7.790964554 | CN47: 37.5 | CO47: 6 | CP47: 0.05973389967 | CQ47: 6.7065336 | CS47: 33.33333333 | CT47: 6 | CU47: 4.955461002 | CV47: 9.970336477 | CX47: 66.66666667 | CY47: 6 | CZ47: 0 | DA47: 4.991005e-07
G48: 38.88888889 | H48: 7 | I48: 0.08601888003 | J48: 9.765237251 | L48: 38.88888889 | M48: 7 | N48: 6.645075025 | O48: 13.05141949 | Q48: 38.88888889 | R48: 7 | S48: 5.548944211 | T48: 12.49836653 | V48: 38.88888889 | W48: 7 | X48: 0.07451411416 | Y48: 10.87059676 | AA48: 41.17647059 | AB48: 7 | AC48: 4.447755788 | AD48: 11.94777652 | AF48: 41.17647059 | AG48: 7 | AH48: 4.442797214 | AI48: 11.67500001 | AK48: 43.75 | AL48: 7 | AM48: 0.0943023715 | AN48: 10.88047203 | AP48: 43.75 | AQ48: 7 | AR48: 0.08945138188 | AS48: 10.05973397 | AU48: 38.88888889 | AV48: 7 | AW48: 5.550552853 | AX48: 12.23384864 | AZ48: 38.88888889 | BA48: 7 | BB48: 4.454339537 | BC48: 11.12770175 | BE48: 38.88888889 | BF48: 7 | BG48: 5.005032993 | BH48: 13.33833745 | BJ48: 43.75 | BK48: 7 | BL48: 8.308358458 | BM48: 14.9949627 | BO48: 50 | BP48: 7 | BQ48: 0.0893023469 | BR48: 10.04964288 | BT48: 58.33333333 | BU48: 7 | BV48: 0.09974983408 | BW48: 16.71654142 | BY48: 38.88888889 | BZ48: 7 | CA48: 4.421420941 | CB48: 11.66184929 | CD48: 38.88888889 | CE48: 7 | CF48: 8.308425157 | CG48: 14.99503367 | CI48: 41.17647059 | CJ48: 7 | CK48: 3.323615452 | CL48: 11.11458001 | CN48: 43.75 | CO48: 7 | CP48: 6.646716799 | CQ48: 13.3532504 | CS48: 38.88888889 | CT48: 7 | CU48: 0.05955181347 | CV48: 10.02988829 | CX48: 77.77777778 | CY48: 7 | CZ48: 0 | DA48: 4.991005e-07
G49: 44.44444444 | H49: 8 | I49: 12.80706602 | J49: 22.57230327 | L49: 44.44444444 | M49: 8 | N49: 4.730635496 | O49: 17.78205499 | Q49: 44.44444444 | R49: 8 | S49: 6.119368471 | T49: 18.617735 | V49: 44.44444444 | W49: 8 | X49: 14.0674143 | Y49: 24.93801106 | AA49: 47.05882353 | AB49: 8 | AC49: 6.116080481 | AD49: 18.063857 | AF49: 47.05882353 | AG49: 8 | AH49: 6.117763906 | AI49: 17.79276391 | AK49: 50 | AL49: 8 | AM49: 12.38836803 | AN49: 23.26884006 | AP49: 50 | AQ49: 8 | AR49: 13.25368292 | AS49: 23.31341688 | AU49: 44.44444444 | AV49: 8 | AW49: 6.102876355 | AX49: 18.336725 | AZ49: 44.44444444 | BA49: 8 | BB49: 8.324991542 | BC49: 19.45269329 | BE49: 44.44444444 | BF49: 8 | BG49: 6.666720941 | BH49: 20.00505839 | BJ49: 50 | BK49: 8 | BL49: 5.005174143 | BM49: 20.00013684 | BO49: 57.14285714 | BP49: 8 | BQ49: 9.950481553 | BR49: 20.00012443 | BT49: 66.66666667 | BU49: 8 | BV49: 16.56704142 | BW49: 33.28358283 | BY49: 44.44444444 | BZ49: 8 | CA49: 5.608532918 | CB49: 17.27038221 | CD49: 44.44444444 | CE49: 8 | CF49: 5.005186219 | CG49: 20.00021989 | CI49: 47.05882353 | CJ49: 8 | CK49: 4.487589438 | CL49: 15.60216944 | CN49: 50 | CO49: 8 | CP49: 6.646882933 | CQ49: 20.00013333 | CS49: 44.44444444 | CT49: 8 | CU49: 19.91062312 | CV49: 29.94051141 | CX49: 88.88888889 | CY49: 8 | CZ49: 0.2994999839 | DA49: 0.299500483
G50: 50 | H50: 9 | I50: 0.1332032908 | J50: 22.70550656 | L50: 50 | M50: 9 | N50: 9.742766737 | O50: 27.52482172 | Q50: 50 | R50: 9 | S50: 8.048177275 | T50: 26.66591228 | V50: 50 | W50: 9 | X50: 0.1241525881 | Y50: 25.06216364 | AA50: 52.94117647 | AB50: 9 | AC50: 9.146020438 | AD50: 27.20987744 | AF50: 52.94117647 | AG50: 9 | AH50: 8.341716359 | AI50: 26.13448027 | AK50: 56.25 | AL50: 9 | AM50: 0.129078245 | AN50: 23.39791831 | AP50: 56.25 | AQ50: 9 | AR50: 6.706566401 | AS50: 30.01998328 | AU50: 50 | AV50: 9 | AW50: 7.25706122 | AX50: 25.59378622 | AZ50: 50 | BA50: 9 | BB50: 6.66678315 | BC50: 26.11947644 | BE50: 50 | BF50: 9 | BG50: 9.995107842 | BH50: 30.00016623 | BJ50: 56.25 | BK50: 9 | BL50: 6.696360196 | BM50: 26.69649704 | BO50: 64.28571429 | BP50: 9 | BQ50: 13.333234 | BR50: 33.33335843 | BT50: 75 | BU50: 9 | BV50: 0.099501498 | BW50: 33.38308433 | BY50: 50 | BZ50: 9 | CA50: 12.17247761 | CB50: 29.44285982 | CD50: 50 | CE50: 9 | CF50: 10.03460992 | CG50: 30.03482982 | CI50: 52.94117647 | CJ50: 9 | CK50: 12.22546938 | CL50: 27.82763882 | CN50: 56.25 | CO50: 9 | CP50: 6.746366634 | CQ50: 26.74649997 | CS50: 50 | CT50: 9 | CU50: 0.119251499 | CV50: 30.05976291 | CX50: 100 | CY50: 9 | CZ50: 99.7004995 | DA50: 99.99999998
G51: 55.55555556 | H51: 10 | I51: 18.88015384 | J51: 41.5856604 | L51: 55.55555556 | M51: 10 | N51: 10.78389763 | O51: 38.30871935 | Q51: 55.55555556 | R51: 10 | S51: 8.36069622 | T51: 35.0266085 | V51: 55.55555556 | W51: 10 | X51: 21.53003086 | Y51: 46.5921945 | AA51: 58.82352941 | AB51: 10 | AC51: 7.277670597 | AD51: 34.48754804 | AF51: 58.82352941 | AG51: 10 | AH51: 11.12084859 | AI51: 37.25532886 | AK51: 62.5 | AL51: 10 | AM51: 19.86100071 | AN51: 43.25891902 | AP51: 62.5 | AQ51: 10 | AR51: 10.03985058 | AS51: 40.05983387 | AU51: 55.55555556 | AV51: 10 | AW51: 12.20063614 | AX51: 37.79442236 | AZ51: 55.55555556 | BA51: 10 | BB51: 7.80111349 | BC51: 33.92058993 | BE51: 55.55555556 | BF51: 10 | BG51: 10.03472153 | BH51: 40.03488777 | BJ51: 62.5 | BK51: 10 | BL51: 9.945663548 | BM51: 36.64216059 | BO51: 71.42857143 | BP51: 10 | BQ51: 6.726416917 | BR51: 40.05977535 | BT51: 83.33333333 | BU51: 10 | BV51: 16.56749775 | BW51: 49.95058208 | BY51: 55.55555556 | BZ51: 10 | CA51: 7.250556047 | CB51: 36.69341587 | CD51: 55.55555556 | CE51: 10 | CF51: 13.2688609 | CG51: 43.30369072 | CI51: 58.82352941 | CJ51: 10 | CK51: 11.08105699 | CL51: 38.90869581 | CN51: 62.5 | CO51: 10 | CP51: 19.97990083 | CQ51: 46.7264008 | CS51: 55.55555556 | CT51: 10 | CU51: 19.88053668 | CV51: 49.94029958 | CZ51: =SUM(CZ41:CZ50) -> 99.99999998
G52: 61.11111111 | H52: 11 | I52: 0.1621706274 | J52: 41.74783103 | L52: 61.11111111 | M52: 11 | N52: 6.749244761 | O52: 45.05796411 | Q52: 61.11111111 | R52: 11 | S52: 13.29684143 | T52: 48.32344993 | V52: 61.11111111 | W52: 11 | X52: 0.14905268 | Y52: 46.74124718 | AA52: 64.70588235 | AB52: 11 | AC52: 14.37494566 | AD52: 48.8624937 | AF52: 64.70588235 | AG52: 11 | AH52: 9.957181237 | AI52: 47.2125101 | AK52: 68.75 | AL52: 11 | AM52: 0.1490528791 | AN52: 43.4079719 | AP52: 68.75 | AQ52: 11 | AR52: 19.9205316 | AS52: 59.98036547 | AU52: 61.11111111 | AV52: 11 | AW52: 8.879035844 | AX52: 46.6734582 | AZ52: 61.11111111 | BA52: 11 | BB52: 13.343068 | BC52: 47.26365793 | BE52: 61.11111111 | BF52: 11 | BG52: 13.28346682 | BH52: 53.31835458 | BJ52: 68.75 | BK52: 11 | BL52: 13.44236981 | BM52: 50.0845304 | BO52: 78.57142857 | BP52: 11 | BQ52: 13.25363353 | BR52: 53.31340888 | BT52: 91.66666667 | BU52: 11 | BV52: 0.09950098238 | BW52: 50.05008307 | BY52: 61.11111111 | BZ52: 11 | CA52: 11.11747438 | CB52: 47.81089025 | CD52: 61.11111111 | CE52: 11 | CF52: 6.75596053 | CG52: 50.05965125 | CI52: 64.70588235 | CJ52: 11 | CK52: 6.653830672 | CL52: 45.56252648 | CN52: 68.75 | CO52: 11 | CP52: 13.25396467 | CQ52: 59.98036547 | CS52: 61.11111111 | CT52: 11 | CU52: 0.1194014148 | CV52: 50.059701
G53: 66.66666667 | H53: 12 | I53: 20.40495343 | J53: 62.15278446 | L53: 66.66666667 | M53: 12 | N53: 14.34531059 | O53: 59.40327471 | Q53: 66.66666667 | R53: 12 | S53: 8.371487667 | T53: 56.6949376 | V53: 66.66666667 | W53: 12 | X53: 18.19925982 | Y53: 64.940507 | AA53: 70.58823529 | AB53: 12 | AC53: 6.726301248 | AD53: 55.58879494 | AF53: 70.58823529 | AG53: 12 | AH53: 8.948437742 | AI53: 56.16094784 | AK53: 75 | AL53: 12 | AM53: 24.86579369 | AN53: 68.27376558 | AP53: 75 | AQ53: 12 | AR53: 6.76583598 | AS53: 66.74620145 | AU53: 66.66666667 | AV53: 12 | AW53: 10.59363221 | AX53: 57.26709041 | AZ53: 66.66666667 | BA53: 12 | BB53: 12.7230961 | BC53: 59.98675403 | BE53: 66.66666667 | BF53: 12 | BG53: 5.03505761 | BH53: 58.35341219 | BJ53: 75 | BK53: 12 | BL53: 18.18923524 | BM53: 68.27376563 | BO53: 85.71428571 | BP53: 12 | BQ53: 3.383340935 | BR53: 56.69674982 | BT53: 100 | BU53: 12 | BV53: 49.94991692 | BW53: 99.99999998 | BY53: 66.66666667 | BZ53: 12 | CA53: 8.8428747 | CB53: 56.65376495 | CD53: 66.66666667 | CE53: 12 | CF53: 13.23413902 | CG53: 63.29379027 | CI53: 70.58823529 | CJ53: 12 | CK53: 11.17057422 | CL53: 56.7331007 | CN53: 75 | CO53: 12 | CP53: 6.76583598 | CQ53: 66.74620145 | CS53: 66.66666667 | CT53: 12 | CU53: 19.88083518 | CV53: 69.94053618
G54: 72.22222222 | H54: 13 | I54: 0.1391192299 | J54: 62.29190369 | L54: 72.22222222 | M54: 13 | N54: 5.668030491 | O54: 65.0713052 | Q54: 72.22222222 | R54: 13 | S54: 11.09121384 | T54: 67.78615144 | V54: 72.22222222 | W54: 13 | X54: 0.1192770471 | Y54: 65.05978405 | AA54: 76.47058824 | AB54: 13 | AC54: 13.3134992 | AD54: 68.90229414 | AF54: 76.47058824 | AG54: 13 | AH54: 14.40798802 | AI54: 70.56893586 | AK54: 81.25 | AL54: 13 | AM54: 0.119277031 | AN54: 68.39304262 | AP54: 81.25 | AQ54: 13 | AR54: 13.2140648 | AS54: 79.96026625 | AU54: 72.22222222 | AV54: 13 | AW54: 12.18570279 | AX54: 69.45279321 | AZ54: 72.22222222 | BA54: 13 | BB54: 4.491022372 | BC54: 64.4777764 | BE54: 72.22222222 | BF54: 13 | BG54: 13.33326712 | BH54: 71.68667931 | BJ54: 81.25 | BK54: 13 | BL54: 0.1192770143 | BM54: 68.39304265 | BO54: 92.85714286 | BP54: 13 | BQ54: 13.39310032 | BR54: 70.08985013 | BV54: =SUM(BV41:BV53) -> 99.99999998 | BY54: 72.22222222 | BZ54: 13 | CA54: 11.19694172 | CB54: 67.85070667 | CD54: 72.22222222 | CE54: 13 | CF54: 3.432635513 | CG54: 66.72642578 | CI54: 76.47058824 | CJ54: 13 | CK54: 15.50247688 | CL54: 72.23557758 | CN54: 81.25 | CO54: 13 | CP54: 13.2140648 | CQ54: 79.96026625 | CS54: 72.22222222 | CT54: 13 | CU54: 0.1192520972 | CV54: 70.05978827
G55: 77.77777778 | H55: 14 | I55: 18.7795345 | J55: 81.07143819 | L55: 77.77777778 | M55: 14 | N55: 16.00013299 | O55: 81.07143819 | Q55: 77.77777778 | R55: 14 | S55: 7.777875931 | T55: 75.56402737 | V55: 77.77777778 | W55: 14 | X55: 21.57216526 | Y55: 86.63194931 | AA55: 82.35294118 | AB55: 14 | AC55: 9.993217465 | AD55: 78.89551161 | AF55: 82.35294118 | AG55: 14 | AH55: 8.326575749 | AI55: 78.89551161 | AK55: 87.5 | AL55: 14 | AM55: 14.90560669 | AN55: 83.29864931 | AP55: 87.5 | AQ55: 14 | AR55: 0.07970041632 | AS55: 80.03996667 | AU55: 77.77777778 | AV55: 14 | AW55: 6.111234198 | AX55: 75.5640274 | AZ55: 77.77777778 | BA55: 14 | BB55: 12.21893586 | BC55: 76.69671226 | BE55: 77.77777778 | BF55: 14 | BG55: 11.64680768 | BH55: 83.33348699 | BJ55: 87.5 | BK55: 14 | BL55: 14.90560669 | BM55: 83.29864934 | BO55: 100 | BP55: 14 | BQ55: 29.91014985 | BR55: 99.99999998 | BY55: 77.77777778 | BZ55: 14 | CA55: 13.22073152 | CB55: 81.07143819 | CD55: 77.77777778 | CE55: 14 | CF55: 19.90552353 | CG55: 86.63194931 | CI55: 82.35294118 | CJ55: 14 | CK55: 6.659934032 | CL55: 78.89551161 | CN55: 87.5 | CO55: 14 | CP55: 0.07970041632 | CQ55: 80.03996667 | CS55: 77.77777778 | CT55: 14 | CU55: 19.91047345 | CV55: 89.97026173
G56: 83.33333333 | H56: 15 | I56: 0.07953448215 | J56: 81.15097267 | L56: 83.33333333 | M56: 15 | N56: 0.07953448215 | O56: 81.15097267 | Q56: 83.33333333 | R56: 15 | S56: 11.13747315 | T56: 86.70150052 | V56: 83.33333333 | W56: 15 | X56: 0.06955121537 | Y56: 86.70150052 | AA56: 88.23529412 | AB56: 15 | AC56: 4.444588157 | AD56: 83.34009977 | AF56: 88.23529412 | AG56: 15 | AH56: 4.444588157 | AI56: 83.34009977 | AK56: 93.75 | AL56: 15 | AM56: 0.0696506993 | AN56: 83.36830001 | AP56: 93.75 | AQ56: 15 | AR56: 13.31333337 | AS56: 93.35330003 | AU56: 83.33333333 | AV56: 15 | AW56: 11.13747315 | AX56: 86.70150056 | AZ56: 83.33333333 | BA56: 15 | BB56: 13.33310087 | BC56: 90.02981312 | BE56: 83.33333333 | BF56: 15 | BG56: 6.696326132 | BH56: 90.02981312 | BJ56: 93.75 | BK56: 15 | BL56: 0.0696506993 | BM56: 83.36830004 | BQ56: =SUM(BQ41:BQ55) -> 99.99999998 | BY56: 83.33333333 | BZ56: 15 | CA56: 0.07953448215 | CB56: 81.15097267 | CD56: 83.33333333 | CE56: 15 | CF56: 0.06955121537 | CG56: 86.70150052 | CI56: 88.23529412 | CJ56: 15 | CK56: 4.444588157 | CL56: 83.34009977 | CN56: 93.75 | CO56: 15 | CP56: 13.31333337 | CQ56: 93.35330003 | CS56: 83.33333333 | CT56: 15 | CU56: 0.05955139835 | CV56: 90.02981312
G57: 88.88888889 | H57: 16 | I57: 13.83415205 | J57: 94.98512473 | L57: 88.88888889 | M57: 16 | N57: 13.83415205 | O57: 94.98512473 | Q57: 88.88888889 | R57: 16 | S57: 8.283624201 | T57: 94.98512473 | V57: 88.88888889 | W57: 16 | X57: 8.283624201 | Y57: 94.98512473 | AA57: 94.11764706 | AB57: 16 | AC57: 6.689850283 | AD57: 90.02995005 | AF57: 94.11764706 | AG57: 16 | AH57: 6.689850283 | AI57: 90.02995005 | AK57: 100 | AL57: 16 | AM57: 16.63169999 | AN57: 100 | AP57: 100 | AQ57: 16 | AR57: 6.646699967 | AS57: 100 | AU57: 88.88888889 | AV57: 16 | AW57: 8.283624168 | AX57: 94.98512473 | AZ57: 88.88888889 | BA57: 16 | BB57: 4.955311601 | BC57: 94.98512473 | BE57: 88.88888889 | BF57: 16 | BG57: 4.955311601 | BH57: 94.98512473 | BJ57: 100 | BK57: 16 | BL57: 16.63169996 | BM57: 100 | BY57: 88.88888889 | BZ57: 16 | CA57: 13.83415205 | CB57: 94.98512473 | CD57: 88.88888889 | CE57: 16 | CF57: 8.283624201 | CG57: 94.98512473 | CI57: 94.11764706 | CJ57: 16 | CK57: 6.689850283 | CL57: 90.02995005 | CN57: 100 | CO57: 16 | CP57: 6.646699967 | CQ57: 100 | CS57: 88.88888889 | CT57: 16 | CU57: 4.955311601 | CV57: 94.98512473
G58: 94.44444444 | H58: 17 | I58: 0.0298502997 | J58: 95.01497502 | L58: 94.44444444 | M58: 17 | N58: 0.0298502997 | O58: 95.01497502 | Q58: 94.44444444 | R58: 17 | S58: 0.0298502997 | T58: 95.01497502 | V58: 94.44444444 | W58: 17 | X58: 0.0298502997 | Y58: 95.01497502 | AA58: 100 | AB58: 17 | AC58: 9.97004995 | AD58: 100 | AF58: 100 | AG58: 17 | AH58: 9.97004995 | AI58: 100 | AM58: =SUM(AM39:AM57) -> 100 | AR58: =SUM(AR39:AR57) -> 100 | AU58: 94.44444444 | AV58: 17 | AW58: 0.0298502997 | AX58: 95.01497502 | AZ58: 94.44444444 | BA58: 17 | BB58: 0.0298502997 | BC58: 95.01497502 | BE58: 94.44444444 | BF58: 17 | BG58: 0.0298502997 | BH58: 95.01497502 | BL58: =SUM(BL39:BL57) -> 100 | BY58: 94.44444444 | BZ58: 17 | CA58: 0.0298502997 | CB58: 95.01497502 | CD58: 94.44444444 | CE58: 17 | CF58: 0.0298502997 | CG58: 95.01497502 | CI58: 100 | CJ58: 17 | CK58: 9.97004995 | CL58: 100 | CP58: =SUM(CP41:CP57) -> 100 | CS58: 94.44444444 | CT58: 17 | CU58: 0.0298502997 | CV58: 95.01497502
G59: 100 | H59: 18 | I59: 4.985024975 | J59: 100 | L59: 100 | M59: 18 | N59: 4.985024975 | O59: 100 | Q59: 100 | R59: 18 | S59: 4.985024975 | T59: 100 | V59: 100 | W59: 18 | X59: 4.985024975 | Y59: 100 | AC59: =SUM(AC40:AC58) -> 100 | AH59: =SUM(AH40:AH58) -> 100 | AU59: 100 | AV59: 18 | AW59: 4.985024975 | AX59: 100 | AZ59: 100 | BA59: 18 | BB59: 4.985024975 | BC59: 100 | BE59: 100 | BF59: 18 | BG59: 4.985024975 | BH59: 100 | BY59: 100 | BZ59: 18 | CA59: 4.985024975 | CB59: 100 | CD59: 100 | CE59: 18 | CF59: 4.985024975 | CG59: 100 | CK59: =SUM(CK41:CK58) -> 100 | CS59: 100 | CT59: 18 | CU59: 4.985024975 | CV59: 100
I60: =SUM(I41:I59) -> 100 | N60: =SUM(N41:N59) -> 100 | S60: =SUM(S41:S59) -> 100 | X60: =SUM(X41:X59) -> 100 | AW60: =SUM(AW41:AW59) -> 100 | BB60: =SUM(BB41:BB59) -> 100 | BG60: =SUM(BG41:BG59) -> 100 | CA60: =SUM(CA41:CA59) -> 100 | CF60: =SUM(CF41:CF59) -> 100 | CU60: =SUM(CU41:CU59) -> 100

Sheet Discret7 (hidden)
A1: n=2k+1 | B1: k | D1: MaxSRD=2k*(k+1)
A2: 7 | B2: 3 | D2: 24
A4: RC1 | B4: RC2 | C4: RC3 | D4: RC4 | E4: RC5 | F4: RC6 | G4: RC7 | H4: RC8 | I4: RC9 | J4: RC10 | K4: RC11 | L4: RC12 | M4: RC13 | N4: RC14 | O4: RC15 | P4: RC16 | Q4: RC17 | R4: RC18 | S4: RC19 | T4: RC20 | U4: RC21 | V4: RC22 | W4: RC23 | X4: RC24 | Y4: RC25 | Z4: RC26 | AA4: RC27 | AB4: RC28 | AC4: RC29 | AD4: RC30 | AE4: RC31 | AF4: RC32 | AG4: RC33 | AH4: RC34 | AI4: RC35 | AJ4: RC36 | AK4: RC37 | AL4: RC38 | AM4: RC39 | AN4: RC40 | AO4: RC41 | AP4: RC42 | AQ4: RC43 | AR4: RC44 | AS4: RC45 | AT4: RC46 | AU4: RC47 | AV4: RC48 | AW4: RC49 | AX4: RC50 | AY4: RC51 | AZ4: RC52 | BA4: RC53 | BB4: RC54 | BC4: RC55 | BD4: RC56 | BE4: RC57 | BF4: RC58 | BG4: RC59 | BH4: RC60 | BI4: RC61 | BJ4: RC62 | BK4: RC63 | BL4: RC64
A5: 1 | B5: 1 | C5: 1 | D5: 1 | E5: 1 | F5: 1 | G5: 1 | H5: 1 | I5: 1 | J5: 1 | K5: 1 | L5: 1 | M5: 1 | N5: 1 | O5: 1 | P5: 1 | Q5: 1 | R5: 1 | S5: 1 | T5: 1 | U5: 1 | V5: 1 | W5: 1 | X5: 1 | Y5: 1 | Z5: 1 | AA5: 1 | AB5: 1 | AC5: 1 | AD5: 1 | AE5: 1 | AF5: 1 | AG5: 1.5 | AH5: 1.5 | AI5: 1.5 | AJ5: 1.5 | AK5: 1.5 | AL5: 1.5 | AM5: 1.5 | AN5: 1.5 | AO5: 1.5 | AP5: 1.5 | AQ5: 1.5 | AR5: 1.5 | AS5: 1.5 | AT5: 1.5 | AU5: 1.5 | AV5: 1.5 | AW5: 2 | AX5: 2 | AY5: 2 | AZ5: 2 | BA5: 2 | BB5: 2 | BC5: 2 | BD5: 2 | BE5: 2.5 | BF5: 2.5 | BG5: 2.5 | BH5: 2.5 | BI5: 3 | BJ5: 3 | BK5: 3.5 | BL5: 4
A6: 2 | B6: 2 | C6: 2 | D6: 2 | E6: 2 | F6: 2 | G6: 2 | H6: 2 | I6: 2 | J6: 2 | K6: 2 | L6: 2 | M6: 2 | N6: 2 | O6: 2 | P6: 2 | Q6: 2.5 | R6: 2.5 | S6: 2.5 | T6: 2.5 | U6: 2.5 | V6: 2.5 | W6: 2.5 | X6: 2.5 | Y6: 3 | Z6: 3 | AA6: 3 | AB6: 3 | AC6: 3.5 | AD6: 3.5 | AE6: 4 | AF6: 4.5 | AG6: 1.5 | AH6: 1.5 | AI6: 1.5 | AJ6: 1.5 | AK6: 1.5 | AL6: 1.5 | AM6: 1.5 | AN6: 1.5 | AO6: 1.5 | AP6: 1.5 | AQ6: 1.5 | AR6: 1.5 | AS6: 1.5 | AT6: 1.5 | AU6: 1.5 | AV6: 1.5 | AW6: 2 | AX6: 2 | AY6: 2 | AZ6: 2 | BA6: 2 | BB6: 2 | BC6: 2 | BD6: 2 | BE6: 2.5 | BF6: 2.5 | BG6: 2.5 | BH6: 2.5 | BI6: 3 | BJ6: 3 | BK6: 3.5 | BL6: 4
A7: 3 | B7: 3 | C7: 3 | D7: 3 | E7: 3 | F7: 3 | G7: 3 | H7: 3 | I7: 3.5 | J7: 3.5 | K7: 3.5 | L7: 3.5 | M7: 4 | N7: 4 | O7: 4.5 | P7: 5 | Q7: 2.5 | R7: 2.5 | S7: 2.5 | T7: 2.5 | U7: 2.5 | V7: 2.5 | W7: 2.5 | X7: 2.5 | Y7: 3 | Z7: 3 | AA7: 3 | AB7: 3 | AC7: 3.5 | AD7: 3.5 | AE7: 4 | AF7: 4.5 | AG7: 3 | AH7: 3 | AI7: 3 | AJ7: 3 | AK7: 3 | AL7: 3 | AM7: 3 | AN7: 3 | AO7: 3.5 | AP7: 3.5 | AQ7: 3.5 | AR7: 3.5 | AS7: 4 | AT7: 4 | AU7: 4.5 | AV7: 5 | AW7: 2 | AX7: 2 | AY7: 2 | AZ7: 2 | BA7: 2 | BB7: 2 | BC7: 2 | BD7: 2 | BE7: 2.5 | BF7: 2.5 | BG7: 2.5 | BH7: 2.5 | BI7: 3 | BJ7: 3 | BK7: 3.5 | BL7: 4
A8: 4 | B8: 4 | C8: 4 | D8: 4 | E8: 4.5 | F8: 4.5 | G8: 5 | H8: 5.5 | I8: 3.5 | J8: 3.5 | K8: 3.5 | L8: 3.5 | M8: 4 | N8: 4 | O8: 4.5 | P8: 5 | Q8: 4 | R8: 4 | S8: 4 | T8: 4 | U8: 4.5 | V8: 4.5 | W8: 5 | X8: 5.5 | Y8: 3 | Z8: 3 | AA8: 3 | AB8: 3 | AC8: 3.5 | AD8: 3.5 | AE8: 4 | AF8: 4.5 | AG8: 4 | AH8: 4 | AI8: 4 | AJ8: 4 | AK8: 4.5 | AL8: 4.5 | AM8: 5 | AN8: 5.5 | AO8: 3.5 | AP8: 3.5 | AQ8: 3.5 | AR8: 3.5 | AS8: 4 | AT8: 4 | AU8: 4.5 | AV8: 5 | AW8: 4 | AX8: 4 | AY8: 4 | AZ8: 4 | BA8: 4.5 | BB8: 4.5 | BC8: 5 | BD8: 5.5 | BE8: 2.5 | BF8: 2.5 | BG8: 2.5 | BH8: 2.5 | BI8: 3 | BJ8: 3 | BK8: 3.5 | BL8: 4
A9: 5 | B9: 5 | C9: 5.5 | D9: 6 | E9: 4.5 | F9: 4.5 | G9: 5 | H9: 5.5 | I9: 5 | J9: 5 | K9: 5.5 | L9: 6 | M9: 4 | N9: 4 | O9: 4.5 | P9: 5 | Q9: 5 | R9: 5 | S9: 5.5 | T9: 6 | U9: 4.5 | V9: 4.5 | W9: 5 | X9: 5.5 | Y9: 5 | Z9: 5 | AA9: 5.5 | AB9: 6 | AC9: 3.5 | AD9: 3.5 | AE9: 4 | AF9: 4.5 | AG9: 5 | AH9: 5 | AI9: 5.5 | AJ9: 6 | AK9: 4.5 | AL9: 4.5 | AM9: 5 | AN9: 5.5 | AO9: 5 | AP9: 5 | AQ9: 5.5 | AR9: 6 | AS9: 4 | AT9: 4 | AU9: 4.5 | AV9: 5 | AW9: 5 | AX9: 5 | AY9: 5.5 | AZ9: 6 | BA9: 4.5 | BB9: 4.5 | BC9: 5 | BD9: 5.5 | BE9: 5 | BF9: 5 | BG9: 5.5 | BH9: 6 | BI9: 3 | BJ9: 3 | BK9: 3.5 | BL9: 4
A10: 6 | B10: 6.5 | C10: 5.5 | D10: 6 | E10: 6 | F10: 6.5 | G10: 5 | H10: 5.5 | I10: 6 | J10: 6.5 | K10: 5.5 | L10: 6 | M10: 6 | N10: 6.5 | O10: 4.5 | P10: 5 | Q10: 6 | R10: 6.5 | S10: 5.5 | T10: 6 | U10: 6 | V10: 6.5 | W10: 5 | X10: 5.5 | Y10: 6 | Z10: 6.5 | AA10: 5.5 | AB10: 6 | AC10: 6 | AD10: 6.5 | AE10: 4 | AF10: 4.5 | AG10: 6 | AH10: 6.5 | AI10: 5.5 | AJ10: 6 | AK10: 6 | AL10: 6.5 | AM10: 5 | AN10: 5.5 | AO10: 6 | AP10: 6.5 | AQ10: 5.5 | AR10: 6 | AS10: 6 | AT10: 6.5 | AU10: 4.5 | AV10: 5 | AW10: 6 | AX10: 6.5 | AY10: 5.5 | AZ10: 6 | BA10: 6 | BB10: 6.5 | BC10: 5 | BD10: 5.5 | BE10: 6 | BF10: 6.5 | BG10: 5.5 | BH10: 6 | BI10: 6 | BJ10: 6.5 | BK10: 3.5 | BL10: 4
A11: 7 | B11: 6.5 | C11: 7 | D11: 6 | E11: 7 | F11: 6.5 | G11: 7 | H11: 5.5 | I11: 7 | J11: 6.5 | K11: 7 | L11: 6 | M11: 7 | N11: 6.5 | O11: 7 | P11: 5 | Q11: 7 | R11: 6.5 | S11: 7 | T11: 6 | U11: 7 | V11: 6.5 | W11: 7 | X11: 5.5 | Y11: 7 | Z11: 6.5 | AA11: 7 | AB11: 6 | AC11: 7 | AD11: 6.5 | AE11: 7 | AF11: 4.5 | AG11: 7 | AH11: 6.5 | AI11: 7 | AJ11: 6 | AK11: 7 | AL11: 6.5 | AM11: 7 | AN11: 5.5 | AO11: 7 | AP11: 6.5 | AQ11: 7 | AR11: 6 | AS11: 7 | AT11: 6.5 | AU11: 7 | AV11: 5 | AW11: 7 | AX11: 6.5 | AY11: 7 | AZ11: 6 | BA11: 7 | BB11: 6.5 | BC11: 7 | BD11: 5.5 | BE11: 7 | BF11: 6.5 | BG11: 7 | BH11: 6 | BI11: 7 | BJ11: 6.5 | BK11: 7 | BL11: 4
A12: Cnum | B12: Cnum | C12: Cnum | D12: Cnum | E12: Cnum | F12: Cnum | G12: Cnum | H12: Cnum | I12: Cnum | J12: Cnum | K12: Cnum | L12: Cnum | M12: Cnum | N12: Cnum | O12: Cnum | P12: Cnum | Q12: Cnum | R12: Cnum | S12: Cnum | T12: Cnum | U12: Cnum | V12: Cnum | W12: Cnum | X12: Cnum | Y12: Cnum | Z12: Cnum | AA12: Cnum | AB12: Cnum | AC12: Cnum | AD12: Cnum | AE12: Cnum | AF12: Cnum | AG12: Cnum | AH12: Cnum | AI12: Cnum | AJ12: Cnum | AK12: Cnum | AL12: Cnum | AM12: Cnum | AN12: Cnum | AO12: Cnum | AP12: Cnum | AQ12: Cnum | AR12: Cnum | AS12: Cnum | AT12: Cnum | AU12: Cnum | AV12: Cnum | AW12: Cnum | AX12: Cnum | AY12: Cnum | AZ12: Cnum | BA12: Cnum | BB12: Cnum | BC12: Cnum | BD12: Cnum | BE12: Cnum | BF12: Cnum | BG12: Cnum | BH12: Cnum | BI12: Cnum | BJ12: Cnum | BK12: Cnum | BL12: Cnum
A13: 7 | B13: 12 | C13: 17 | D13: 22 | E13: 27 | F13: 32 | G13: 37 | H13: 42 | I13: 27 | J13: 47 | K13: 52 | L13: 57 | M13: 62 | N13: 67 | O13: 72 | P13: 77 | Q13: 17 | R13: 82 | S13: 87 | T13: 92 | U13: 52 | V13: 137 | W13: 97 | X13: 102 | Y13: 37 | Z13: 107 | AA13: 97 | AB13: 167 | AC13: 72 | AD13: 152 | AE13: 112 | AF13: 177 | AG13: 12 | AH13: 117 | AI13: 82 | AJ13: 122 | AK13: 47 | AL13: 127 | AM13: 107 | AN13: 132 | AO13: 32 | AP13: 127 | AQ13: 137 | AR13: 142 | AS13: 67 | AT13: 147 | AU13: 152 | AV13: 157 | AW13: 22 | AX13: 122 | AY13: 92 | AZ13: 162 | BA13: 57 | BB13: 142 | BC13: 167 | BD13: 172 | BE13: 42 | BF13: 132 | BG13: 102 | BH13: 172 | BI13: 77 | BJ13: 157 | BK13: 177 | BL13: 182
G14: With ties, ndig=2 | L14: With ties, ndig=2 | Q14: With ties, ndig=2 | V14: With ties, ndig=2 | AA14: With ties, ndig=2 | AF14: With ties, ndig=2 | AK14: With ties, ndig=2 | AP14: With ties, ndig=2 | AU14: With ties, ndig=2 | AZ14: With ties, ndig=2 | BE14: With ties, ndig=2 | BJ14: With ties, ndig=2 | BO14: With ties, ndig=2 | BT14: With ties, ndig=2 | BY14: With ties, ndig=2 | CD14: With ties, ndig=2 | CI14: With ties, ndig=2 | CN14: With ties, ndig=2 | CS14: With ties, ndig=2 | CX14: With ties, ndig=2 | DC14: With ties, ndig=2 | DH14: With ties, ndig=2 | DM14: With ties, ndig=2 | DR14: With ties, ndig=2 | DW14: With ties, ndig=2 | EB14: With ties, ndig=2 | EG14: With ties, ndig=2 | EL14: With ties, ndig=2 | EQ14: With ties, ndig=2 | EV14: With ties, ndig=2 | FA14: With ties, ndig=2 | FF14: With ties, ndig=2 | FK14: With ties, ndig=2 | FP14: With ties, ndig=2 | FU14: With ties, ndig=2 | FZ14: With ties, ndig=2
G15: RC1 | I15: MaxSRDrep= | J15: 24 | L15: RC2, RC33 | N15: MaxSRDrep= | O15: 24 | Q15: RC3, RC17 | S15: MaxSRDrep= | T15: 24 | V15: RC4, RC49 | X15: MaxSRDrep= | Y15: 24 | AA15: RC5, RC9 | AC15: MaxSRDrep= | AD15: 24 | AF15: RC6, RC41 | AH15: MaxSRDrep= | AI15: 24 | AK15: RC7, RC25 | AM15: MaxSRDrep= | AN15: 24 | AP15: RC8, RC57 | AR15: MaxSRDrep= | AS15: 24 | AU15: RC10, RC37 | AW15: MaxSRDrep= | AX15: 24 | AZ15: RC11, RC21 | BB15: MaxSRDrep= | BC15: 24 | BE15: RC12, RC53 | BG15: MaxSRDrep= | BH15: 24 | BJ15: RC13 | BL15: MaxSRDrep= | BM15: 22 | BO15: RC14, RC45 | BQ15: MaxSRDrep= | BR15: 22 | BT15: RC15, RC29 | BV15: MaxSRDrep= | BW15: 21 | BY15: RC16, RC61 | CA15: MaxSRDrep= | CB15: 20 | CD15: RC18, RC35 | CF15: MaxSRDrep= | CG15: 24 | CI15: RC19 | CK15: MaxSRDrep= | CL15: 24 | CN15: RC20, RC51 | CP15: MaxSRDrep= | CQ15: 24 | CS15: RC23, RC27 | CU15: MaxSRDrep= | CV15: 24 | CX15: RC24, RC59 | CZ15: MaxSRDrep= | DA15: 24 | DC15: RC26, RC39 | DE15: MaxSRDrep= | DF15: 24 | DH15: RC31 | DJ15: MaxSRDrep= | DK15: 18 | DM15: RC34 | DO15: MaxSRDrep= | DP15: 24 | DR15: RC36, RC50 | DT15: MaxSRDrep= | DU15: 24 | DW15: RC38, RC42 | DY15: MaxSRDrep= | DZ15: 24 | EB15: RC40, RC58 | ED15: MaxSRDrep= | EE15: 24 | EG15: RC43, RC22 | EI15: MaxSRDrep= | EJ15: 24 | EL15: RC44, RC54 | EN15: MaxSRDrep= | EO15: 24 | EQ15: RC46 | ES15: MaxSRDrep= | ET15: 22 | EV15: RC47, RC30 | EX15: MaxSRDrep= | EY15: 21 | FA15: RC48, RC62 | FC15: MaxSRDrep= | FD15: 20 | FF15: RC52 | FH15: MaxSRDrep= | FI15: 24 | FK15: RC55, RC28 | FM15: MaxSRDrep= | FN15: 24 | FP15: RC56, RC60 | FR15: MaxSRDrep= | FS15: 24 | FU15: RC63, RC32 | FW15: MaxSRDrep= | FX15: 16 | FZ15: RC64 | GB15: MaxSRDrep= | GC15: 12
G16: RC=[1 ; 2 ; 3 ; 4 ; 5 ; 6 ; 7] | L16: RC=[1 ; 2 ; 3 ; 4 ; 5 ; 6,5 ; 6,5] or [1,5 ; 1,5 ; 3 ; 4 ; 5 ; 6 ; 7] | Q16: RC=[1 ; 2 ; 3 ; 4 ; 5,5 ; 5,5 ; 7] or [1 ; 2,5 ; 2,5 ; 4 ; 5 ; 6 ; 7] | V16: RC=[1 ; 2 ; 3 ; 4 ; 6 ; 6 ; 6] or [2 ; 2 ; 2 ; 4 ; 5 ; 6 ; 7] | AA16: RC=[1 ; 2 ; 3 ; 4,5 ; 4,5 ; 6 ; 7] or [1 ; 2 ; 3,5 ; 3,5 ; 5 ; 6 ; 7] | AF16: RC=[1 ; 2 ; 3 ; 4,5 ; 4,5 ; 6,5 ; 6,5] or [1,5 ; 1,5 ; 3,5 ; 3,5 ; 5 ; 6 ; 7] | AK16: RC=[1 ; 2 ; 3 ; 5 ; 5 ; 5 ; 7] or [1 ; 3 ; 3 ; 3 ; 5 ; 6 ; 7] | AP16: RC=[1 ; 2 ; 3 ; 5,5 ; 5,5 ; 5,5 ; 5,5] or [2,5 ; 2,5 ; 2,5 ; 2,5 ; 5 ; 6 ; 7] | AU16: RC=[1 ; 2 ; 3,5 ; 3,5 ; 5 ; 6,5 ; 6,5] or [1,5 ; 1,5 ; 3 ; 4,5 ; 4,5 ; 6 ; 7] | AZ16: RC=[1 ; 2 ; 3,5 ; 3,5 ; 5,5 ; 5,5 ; 7] or [1 ; 2,5 ; 2,5 ; 4,5 ; 4,5 ; 6 ; 7] | BE16: RC=[1 ; 2 ; 3,5 ; 3,5 ; 6 ; 6 ; 6] or [2 ; 2 ; 2 ; 4,5 ; 4,5 ; 6 ; 7] | BJ16: RC=[1 ; 2 ; 4 ; 4 ; 4 ; 6 ; 7] | BO16: RC=[1 ; 2 ; 4 ; 4 ; 4 ; 6,5 ; 6,5] or [1,5 ; 1,5 ; 4 ; 4 ; 4 ; 6 ; 7] | BT16: RC=[1 ; 2 ; 4,5 ; 4,5 ; 4,5 ; 4,5 ; 7] or [1 ; 3,5 ; 3,5 ; 3,5 ; 3,5 ; 6 ; 7] | BY16: RC=[1 ; 2 ; 5 ; 5 ; 5 ; 5 ; 5] or [3 ; 3 ; 3 ; 3 ; 3 ; 6 ; 7] | CD16: RC=[1 ; 2,5 ; 2,5 ; 4 ; 5 ; 6,5 ; 6,5] or [1,5 ; 1,5 ; 3 ; 4 ; 5,5 ; 5,5 ; 7] | CI16: RC=[1 ; 2,5 ; 2,5 ; 4 ; 5,5 ; 5,5 ; 7] | CN16: RC=[1 ; 2,5 ; 2,5 ; 4 ; 6 ; 6 ; 6] or [2 ; 2 ; 2 ; 4 ; 5,5 ; 5,5 ; 7] | CS16: RC=[1 ; 2,5 ; 2,5 ; 5 ; 5 ; 5 ; 7] or [1 ; 3 ; 3 ; 3 ; 5,5 ; 5,5 ; 7] | CX16: RC=[1 ; 2,5 ; 2,5 ; 5,5 ; 5,5 ; 5,5 ; 5,5] or [2,5 ; 2,5 ; 2,5 ; 2,5 ; 5,5 ; 5,5 ; 7] | DC16: RC=[1 ; 3 ; 3 ; 3 ; 5 ; 6,5 ; 6,5] or [1,5 ; 1,5 ; 3 ; 5 ; 5 ; 5 ; 7] | DH16: RC=[1 ; 4 ; 4 ; 4 ; 4 ; 4 ; 7] | DM16: RC=[1,5 ; 1,5 ; 3 ; 4 ; 5 ; 6,5 ; 6,5] | DR16: RC=[1,5 ; 1,5 ; 3 ; 4 ; 6 ; 6 ; 6] or [2 ; 2 ; 2 ; 4 ; 5 ; 6,5 ; 6,5] | DW16: RC=[1,5 ; 1,5 ; 3 ; 4,5 ; 4,5 ; 6,5 ; 6,5] or [1,5 ; 1,5 ; 3,5 ; 3,5 ; 5 ; 6,5 ; 6,5] | EB16: RC=[1,5 ; 1,5 ; 3 ; 5,5 ; 5,5 ; 5,5 ; 5,5] or [2,5 ; 2,5 ; 2,5 ; 2,5 ; 5 ; 6,5 ; 6,5] | EG16: RC=[1,5 ; 1,5 ; 3,5 ; 3,5 ; 5,5 ; 5,5 ; 7] or [1 ; 2,5 ; 2,5 ; 4,5 ; 4,5 ; 6,5 ; 6,5] | EL16: RC=[1,5 ; 1,5 ; 3,5 ; 3,5 ; 6 ; 6 ; 6] or [2 ; 2 ; 2 ; 4,5 ; 4,5 ; 6,5 ; 6,5] | EQ16: RC=[1,5 ; 1,5 ; 4 ; 4 ; 4 ; 6,5 ; 6,5] | EV16: RC=[1,5 ; 1,5 ; 4,5 ; 4,5 ; 4,5 ; 4,5 ; 7] or [1 ; 3,5 ; 3,5 ; 3,5 ; 3,5 ; 6,5 ; 6,5] | FA16: RC=[1,5 ; 1,5 ; 5 ; 5 ; 5 ; 5 ; 5] or [3 ; 3 ; 3 ; 3 ; 3 ; 6,5 ; 6,5] | FF16: RC=[2 ; 2 ; 2 ; 4 ; 6 ; 6 ; 6] | FK16: RC=[2 ; 2 ; 2 ; 5 ; 5 ; 5 ; 7] or [1 ; 3 ; 3 ; 3 ; 6 ; 6 ; 6] | FP16: RC=[2 ; 2 ; 2 ; 5,5 ; 5,5 ; 5,5 ; 5,5] or [2,5 ; 2,5 ; 2,5 ; 2,5 ; 6 ; 6 ; 6] | FU16: RC=[3,5 ; 3,5 ; 3,5 ; 3,5 ; 3,5 ; 3,5 ; 7] or [1 ; 4,5 ; 4,5 ; 4,5 ; 4,5 ; 4,5 ; 4,5] | FZ16: RC=[4 ; 4 ; 4 ; 4 ; 4 ; 4 ; 4]
G17: SRDnor | H17: SRD | I17: relFr% | J17: CrFR% | L17: SRDnor | M17: SRD | N17: relFr% | O17: CrFR% | Q17: SRDnor | R17: SRD | S17: relFr% | T17: CrFR% | V17: SRDnor | W17: SRD | X17: relFr% | Y17: CrFR% | AA17: SRDnor | AB17: SRD | AC17: relFr% | AD17: CrFR% | AF17: SRDnor | AG17: SRD | AH17: relFr% | AI17: CrFR% | AK17: SRDnor | AL17: SRD | AM17: relFr% | AN17: CrFR% | AP17: SRDnor | AQ17: SRD | AR17: relFr% | AS17: CrFR% | AU17: SRDnor | AV17: SRD | AW17: relFr% | AX17: CrFR% | AZ17: SRDnor | BA17: SRD | BB17: relFr% | BC17: CrFR% | BE17: SRDnor | BF17: SRD | BG17: relFr% | BH17: CrFR% | BJ17: SRDnor | BK17: SRD | BL17: relFr% | BM17: CrFR% | BO17: SRDnor | BP17: SRD | BQ17: relFr% | BR17: CrFR% | BT17: SRDnor | BU17: SRD | BV17: relFr% | BW17: CrFR% | BY17: SRDnor | BZ17: SRD | CA17: relFr% | CB17: CrFR% | CD17: SRDnor | CE17: SRD | CF17: relFr% | CG17: CrFR% | CI17: SRDnor | CJ17: SRD | CK17: relFr% | CL17: CrFR% | CN17: SRDnor | CO17: SRD | CP17: relFr% | CQ17: CrFR% | CS17: SRDnor | CT17: SRD | CU17: relFr% | CV17: CrFR% | CX17: SRDnor | CY17: SRD | CZ17: relFr% | DA17: CrFR% | DC17: SRDnor | DD17: SRD | DE17: relFr% | DF17: CrFR% | DH17: SRDnor | DI17: SRD | DJ17: relFr% | DK17: CrFR% | DM17: SRDnor | DN17: SRD | DO17: relFr% | DP17: CrFR% | DR17: SRDnor | DS17: SRD | DT17: relFr% | DU17: CrFR% | DW17: SRDnor | DX17: SRD | DY17: relFr% | DZ17: CrFR% | EB17: SRDnor | EC17: SRD | ED17: relFr% | EE17: CrFR% | EG17: SRDnor | EH17: SRD | EI17: relFr% | EJ17: CrFR% | EL17: SRDnor | EM17: SRD | EN17: relFr% | EO17: CrFR% | EQ17: SRDnor | ER17: SRD | ES17: relFr% | ET17: CrFR% | EV17: SRDnor | EW17: SRD | EX17: relFr% | EY17: CrFR% | FA17: SRDnor | FB17: SRD | FC17: relFr% | FD17: CrFR% | FF17: SRDnor | FG17: SRD | FH17: relFr% | FI17: CrFR% | FK17: SRDnor | FL17: SRD | FM17: relFr% | FN17: CrFR% | FP17: SRDnor | FQ17: SRD | FR17: relFr% | FS17: CrFR% | FU17: SRDnor | FV17: SRD | FW17: relFr% | FX17: CrFR% | FZ17: SRDnor | GA17: SRD | GB17: relFr% | GC17: CrFR%
G18: 0 | H18: 0 | I18: 0.0160075608 | J18: 0.0160075608 | L18: 0 | M18: 0 | N18: 0.0011920524 | O18: 0.0011920524 | Q18: 0 | R18: 0 | S18: 0.0011920524 | T18: 0.0011920524 | V18: 0 | W18: 0 | X18: 7.528752e-05 | Y18: 7.528752e-05 | AA18: 0 | AB18: 0 | AC18: 0.0011920524 | AD18: 0.0011920524 | AF18: 0 | AG18: 0 | AH18: 7.528752e-05 | AI18: 7.528752e-05 | AK18: 0 | AL18: 0 | AM18: 7.528752e-05 | AN18: 7.528752e-05 | AP18: 0 | AQ18: 0 | AR18: 3.921225e-06 | AS18: 3.921225e-06 | AU18: 0 | AV18: 0 | AW18: 7.528752e-05 | AX18: 7.528752e-05 | AZ18: 0 | BA18: 0 | BB18: 7.528752e-05 | BC18: 7.528752e-05 | BE18: 0 | BF18: 0 | BG18: 3.921225e-06 | BH18: 3.921225e-06 | BJ18: 0 | BK18: 0 | BL18: 7.528752e-05 | BM18: 7.528752e-05 | BO18: 0 | BP18: 0 | BQ18: 3.921225e-06 | BR18: 3.921225e-06 | BT18: 0 | BU18: 0 | BV18: 3.921225e-06 | BW18: 3.921225e-06 | BY18: 0 | BZ18: 0 | CA18: 1.617e-07 | CB18: 1.617e-07 | CD18: 0 | CE18: 0 | CF18: 7.528752e-05 | CG18: 7.528752e-05 | CI18: 0 | CJ18: 0 | CK18: 7.528752e-05 | CL18: 7.528752e-05 | CN18: 0 | CO18: 0 | CP18: 3.921225e-06 | CQ18: 3.921225e-06 | CS18: 0 | CT18: 0 | CU18: 3.921225e-06 | CV18: 3.921225e-06 | CX18: 0 | CY18: 0 | CZ18: 1.617e-07 | DA18: 1.617e-07 | DC18: 0 | DD18: 0 | DE18: 3.921225e-06 | DF18: 3.921225e-06 | DH18: 0 | DI18: 0 | DJ18: 1.617e-07 | DK18: 1.617e-07 | DM18: 0 | DN18: 0 | DO18: 7.528752e-05 | DP18: 7.528752e-05 | DR18: 0 | DS18: 0 | DT18: 3.921225e-06 | DU18: 3.921225e-06 | DW18: 0 | DX18: 0 | DY18: 3.921225e-06 | DZ18: 3.921225e-06 | EB18: 0 | EC18: 0 | ED18: 1.617e-07 | EE18: 1.617e-07 | EG18: 0 | EH18: 0 | EI18: 3.921225e-06 | EJ18: 3.921225e-06 | EL18: 0 | EM18: 0 | EN18: 1.617e-07 | EO18: 1.617e-07 | EQ18: 0 | ER18: 0 | ES18: 1.617e-07 | ET18: 1.617e-07 | EV18: 0 | EW18: 0 | EX18: 1.617e-07 | EY18: 1.617e-07 | FA18: 0 | FB18: 0 | FC18: 4.95e-09 | FD18: 4.95e-09 | FF18: 0 | FG18: 0 | FH18: 1.617e-07 | FI18: 1.617e-07 | FK18: 0 | FL18: 0 | FM18: 1.617e-07 | FN18: 1.617e-07 | FP18: 0 | FQ18: 0 | FR18: 4.95e-09 | FS18: 4.95e-09 | FU18: 0 | FV18: 0 | FW18: 4.95e-09 | FX18: 4.95e-09 | FZ18: 0 | GA18: 0 | GB18: 0 | GC18: 0
G19: 4.166666667 | H19: 1 | I19: 0.0071523144 | J19: 0.0231598752 | L19: 4.166666667 | M19: 1 | N19: 0.03231627168 | O19: 0.03350832408 | Q19: 4.166666667 | R19: 1 | S19: 0.03224098416 | T19: 0.03343303656 | V19: 4.166666667 | W19: 1 | X19: 1.1763675e-05 | Y19: 8.7051195e-05 | AA19: 4.166666667 | AB19: 1 | AC19: 0.03224098416 | AD19: 0.03343303656 | AF19: 4.166666667 | AG19: 1 | AH19: 0.00477605205 | AI19: 0.00485133957 | AK19: 4.166666667 | AL19: 1 | AM19: 7.84245e-06 | AN19: 8.312997e-05 | AP19: 4.166666667 | AQ19: 1 | AR19: 3.234e-07 | AS19: 4.244625e-06 | AU19: 4.166666667 | AV19: 1 | AW19: 0.004772130825 | AX19: 0.004847418345 | AZ19: 4.166666667 | BA19: 1 | BB19: 0.004772130825 | BC19: 0.004847418345 | BE19: 4.166666667 | BF19: 1 | BG19: 0.00015073674 | BH19: 0.000154657965 | BJ19: 4.545454545 | BK19: 1 | BL19: 7.84245e-06 | BM19: 8.312997e-05 | BO19: 4.545454545 | BP19: 1 | BQ19: 0.00015073674 | BR19: 0.000154657965 | BT19: 4.761904762 | BU19: 1 | BV19: 1.617e-07 | BW19: 4.082925e-06 | BY19: 5 | BZ19: 1 | CA19: 4.95e-09 | CB19: 1.6665e-07 | CD19: 4.166666667 | CE19: 1 | CF19: 0.004772130825 | CG19: 0.004847418345 | CI19: 4.166666667 | CJ19: 1 | CK19: 0.0047682096 | CL19: 0.00484349712 | CN19: 4.166666667 | CO19: 1 | CP19: 0.00015057504 | CQ19: 0.000154496265 | CS19: 4.166666667 | CT19: 1 | CU19: 0.00015057504 | CV19: 0.000154496265 | CX19: 4.166666667 | CY19: 1 | CZ19: 7.84245e-06 | DA19: 8.00415e-06 | DC19: 4.166666667 | DD19: 1 | DE19: 0.00015057504 | DF19: 0.000154496265 | DH19: 5.555555556 | DI19: 1 | DJ19: 0 | DK19: 1.617e-07 | DM19: 4.166666667 | DN19: 1 | DO19: 0.00477605205 | DP19: 0.00485133957 | DR19: 4.166666667 | DS19: 1 | DT19: 0.00015073674 | DU19: 0.000154657965 | DW19: 4.166666667 | DX19: 1 | DY19: 0.00045172512 | DZ19: 0.000455646345 | EB19: 4.166666667 | EC19: 1 | ED19: 7.84245e-06 | EE19: 8.00415e-06 | EG19: 4.166666667 | EH19: 1 | EI19: 0.00045172512 | EJ19: 0.000455646345 | EL19: 4.166666667 | EM19: 1 | EN19: 1.56849e-05 | EO19: 1.58466e-05 | EQ19: 4.545454545 | ER19: 1 | ES19: 1.56849e-05 | ET19: 1.58466e-05 | EV19: 4.761904762 | EW19: 1 | EX19: 7.84245e-06 | EY19: 8.00415e-06 | FA19: 5 | FB19: 1 | FC19: 3.234e-07 | FD19: 3.2835e-07 | FF19: 4.166666667 | FG19: 1 | FH19: 0 | FI19: 1.617e-07 | FK19: 4.166666667 | FL19: 1 | FM19: 0 | FN19: 1.617e-07 | FP19: 4.166666667 | FQ19: 1 | FR19: 0 | FS19: 4.95e-09 | FU19: 6.25 | FV19: 1 | FW19: 0 | FX19: 4.95e-09 | FZ19: 8.333333333 | GA19: 1 | GB19: 0 | GC19: 0
G20: 8.333333333 | H20: 2 | I20: 0.0971746776 | J20: 0.1203345528 | L20: 8.333333333 | M20: 2 | N20: 0.01678754847 | O20: 0.05029587255 | Q20: 8.333333333 | R20: 2 | S20: 0.01565901992 | T20: 0.04909205647 | V20: 8.333333333 | W20: 2 | X20: 0.1034240269 | Y20: 0.1035110781 | AA20: 8.333333333 | AB20: 2 | AC20: 0.01565901992 | AD20: 0.04909205647 | AF20: 8.333333333 | AG20: 2 | AH20: 0.06493777636 | AI20: 0.06978911593 | AK20: 8.333333333 | AL20: 2 | AM20: 0.1033484159 | AN20: 0.1034315459 | AP20: 8.333333333 | AQ20: 2 | AR20: 7.8474e-06 | AS20: 1.2092025e-05 | AU20: 8.333333333 | AV20: 2 | AW20: 0.06487016959 | AX20: 0.06971758794 | AZ20: 8.333333333 | BA20: 2 | BB20: 0.06471567333 | BC20: 0.06956309167 | BE20: 8.333333333 | BF20: 2 | BG20: 0.007623807345 | BH20: 0.00777846531 | BJ20: 9.090909091 | BK20: 2 | BL20: 0.1033484159 | BM20: 0.1034315459 | BO20: 9.090909091 | BP20: 2 | BQ20: 0.007615803195 | BR20: 0.00777046116 | BT20: 9.523809524 | BU20: 2 | BV20: 3.921225e-06 | BW20: 8.00415e-06 | BY20: 10 | BZ20: 2 | CA20: 1.617e-07 | CB20: 3.2835e-07 | CD20: 8.333333333 | CE20: 2 | CF20: 0.06487016959 | CG20: 0.06971758794 | CI20: 8.333333333 | CJ20: 2 | CK20: 0.06464822826 | CL20: 0.06949172538 | CN20: 8.333333333 | CO20: 2 | CP20: 0.00762004782 | CQ20: 0.007774544085 | CS20: 8.333333333 | CT20: 2 | CU20: 0.00761204367 | CV20: 0.007766539935 | CX20: 8.333333333 | CY20: 2 | CZ20: 3.2835e-07 | DA20: 8.3325e-06 | DC20: 8.333333333 | DD20: 2 | DE20: 0.00761204367 | DF20: 0.007766539935 | DH20: 11.11111111 | DI20: 2 | DJ20: 0 | DK20: 1.617e-07 | DM20: 8.333333333 | DN20: 2 | DO20: 0.06509227263 | DP20: 0.0699436122 | DR20: 8.333333333 | DS20: 2 | DT20: 0.007623807345 | DU20: 0.00777846531 | DW20: 8.333333333 | DX20: 2 | DY20: 0.0143206371 | DZ20: 0.01477628344 | EB20: 8.333333333 | EC20: 2 | ED20: 3.2835e-07 | EE20: 8.3325e-06 | EG20: 8.333333333 | EH20: 2 | EI20: 0.01431263295 | EJ20: 0.01476827929 | EL20: 8.333333333 | EM20: 2 | EN20: 0.00077640255 | EO20: 0.00079224915 | EQ20: 9.090909091 | ER20: 2 | ES20: 0.00077640255 | ET20: 0.00079224915 | EV20: 9.523809524 | EW20: 2 | EX20: 0 | EY20: 8.00415e-06 | FA20: 10 | FB20: 2 | FC20: 0 | FD20: 3.2835e-07 | FF20: 8.333333333 | FG20: 2 | FH20: 0.00095050494 | FI20: 0.00095066664 | FK20: 8.333333333 | FL20: 2 | FM20: 0.00095050494 | FN20: 0.00095066664 | FP20: 8.333333333 | FQ20: 2 | FR20: 2.449755e-05 | FS20: 2.45025e-05 | FU20: 12.5 | FV20: 2 | FW20: 0 | FX20: 4.95e-09 | FZ20: 16.66666667 | GA20: 2 | GB20: 0 | GC20: 0
G21: 12.5 | H21: 3 | I21: 0.0358243116 | J21: 0.1561588644 | L21: 12.5 | M21: 3 | N21: 0.1648810005 | O21: 0.2151768731 | Q21: 12.5 | R21: 3 | S21: 0.1668248205 | T21: 0.2159168769 | V21: 12.5 | W21: 3 | X21: 0.03021774409 | Y21: 0.1337288221 | AA21: 12.5 | AB21: 3 | AC21: 0.1668210609 | AD21: 0.2159131174 | AF21: 12.5 | AG21: 3 | AH21: 0.03163503651 | AI21: 0.1014241524 | AK21: 12.5 | AL21: 3 | AM21: 0.02998011786 | AN21: 0.1334116638 | AP21: 12.5 | AQ21: 3 | AR21: 0.01490725236 | AS21: 0.01491934439 | AU21: 12.5 | AV21: 3 | AW21: 0.03192866754 | AX21: 0.1016462555 | AZ21: 12.5 | BA21: 3 | BB21: 0.02952855444 | BC21: 0.09909164611 | BE21: 12.5 | BF21: 3 | BG21: 0.2071799268 | BH21: 0.2149583921 | BJ21: 13.63636364 | BK21: 3 | BL21: 0.02998011786 | BM21: 0.1334116638 | BO21: 13.63636364 | BP21: 3 | BQ21: 0.2074848364 | BR21: 0.2152552976 | BT21: 14.28571429 | BU21: 3 | BV21: 0.01490692896 | BW21: 0.01491493311 | BY21: 15 | BZ21: 3 | CA21: 0 | CB21: 3.2835e-07 | CD21: 12.5 | CE21: 3 | CF21: 0.03192850584 | CG21: 0.1016460938 | CI21: 12.5 | CJ21: 3 | CK21: 0.02982986622 | CL21: 0.0993215916 | CN21: 12.5 | CO21: 3 | CP21: 0.2071761722 | CQ21: 0.2149507163 | CS21: 12.5 | CT21: 3 | CU21: 0.2070174264 | CV21: 0.2147839663 | CX21: 12.5 | CY21: 3 | CZ21: 0.00094298589 | DA21: 0.00095131839 | DC21: 12.5 | DD21: 3 | DE21: 0.2074810769 | DF21: 0.2152476168 | DH21: 16.66666667 | DI21: 3 | DJ21: 0 | DK21: 1.617e-07 | DM21: 12.5 | DN21: 3 | DO21: 0.03403498791 | DP21: 0.1039786001 | DR21: 12.5 | DS21: 3 | DT21: 0.2076435773 | DU21: 0.2154220426 | DW21: 12.5 | DX21: 3 | DY21: 0.1299301265 | DZ21: 0.1447064099 | EB21: 12.5 | EC21: 3 | ED21: 0.00094298589 | EE21: 0.00095131839 | EG21: 12.5 | EH21: 3 | EI21: 0.1294705589 | EJ21: 0.1442388382 | EL21: 12.5 | EM21: 3 | EN21: 0.03043248978 | EO21: 0.03122473893 | EQ21: 13.63636364 | ER21: 3 | ES21: 0.03041615808 | ET21: 0.03120840723 | EV21: 14.28571429 | EW21: 3 | EX21: 0.00093482004 | EY21: 0.00094282419 | FA21: 15 | FB21: 3 | FC21: 0 | FD21: 3.2835e-07 | FF21: 12.5 | FG21: 3 | FH21: 4.80348e-05 | FI21: 0.00099870144 | FK21: 12.5 | FL21: 3 | FM21: 2.40174e-05 | FN21: 0.00097468404 | FP21: 12.5 | FQ21: 3 | FR21: 4.83483e-05 | FS21: 7.28508e-05 | FU21: 18.75 | FV21: 3 | FW21: 0 | FX21: 4.95e-09 | FZ21: 25 | GA21: 3 | GB21: 0 | GC21: 0
G22: 16.66666667 | H22: 4 | I22: 0.4166434503 | J22: 0.5728023147 | L22: 16.66666667 | M22: 4 | N22: 0.09665575573 | O22: 0.3118326288 | Q22: 16.66666667 | R22: 4 | S22: 0.1241766926 | T22: 0.3400935696 | V22: 16.66666667 | W22: 4 | X22: 0.4130260195 | Y22: 0.5467548417 | AA22: 16.66666667 | AB22: 4 | AC22: 0.1216531297 | AD22: 0.3375662471 | AF22: 16.66666667 | AG22: 4 | AH22: 0.2765138572 | AI22: 0.3779380097 | AK22: 16.66666667 | AL22: 4 | AM22: 0.4095571372 | AN22: 0.542968801 | AP22: 16.66666667 | AQ22: 4 | AR22: 0.4160434659 | AS22: 0.4309628103 | AU22: 16.66666667 | AV22: 4 | AW22: 0.2808904294 | AX22: 0.3825366849 | AZ22: 16.66666667 | BA22: 4 | BB22: 0.2829213006 | BC22: 0.3820129467 | BE22: 16.66666667 | BF22: 4 | BG22: 0.05389380645 | BH22: 0.2688521986 | BJ22: 18.18181818 | BK22: 4 | BL22: 0.409398558 | BM22: 0.5428102218 | BO22: 18.18181818 | BP22: 4 | BQ22: 0.06022971685 | BR22: 0.2754850144 | BT22: 19.04761905 | BU22: 4 | BV22: 0.4160158556 | BW22: 0.4309307887 | BY22: 20 | BZ22: 4 | CA22: 0.00154496265 | CB22: 0.001545291 | CD22: 16.66666667 | CE22: 4 | CF22: 0.2808985953 | CG22: 0.3825446891 | CI22: 16.66666667 | CJ22: 4 | CK22: 0.2875038058 | CL22: 0.3868253974 | CN22: 16.66666667 | CO22: 4 | CP22: 0.05385724113 | CQ22: 0.2688079574 | CS22: 16.66666667 | CT22: 4 | CU22: 0.05323141362 | CV22: 0.2680153799 | CX22: 16.66666667 | CY22: 4 | CZ22: 0.0602615475 | DA22: 0.06121286589 | DC22: 16.66666667 | DD22: 4 | DE22: 0.06019316143 | DF22: 0.2754407782 | DH22: 22.22222222 | DI22: 4 | DJ22: 0.00154496265 | DK22: 0.00154512435 | DM22: 16.66666667 | DN22: 4 | DO22: 0.2745025922 | DP22: 0.3784811923 | DR22: 16.66666667 | DS22: 4 | DT22: 0.06085603441 | DU22: 0.276278077 | DW22: 16.66666667 | DX22: 4 | DY22: 0.05581866213 | DZ22: 0.2005250721 | EB22: 16.66666667 | EC22: 4 | ED22: 0.06030925395 | EE22: 0.06126057234 | EG22: 16.66666667 | EH22: 4 | EI22: 0.05119726804 | EJ22: 0.1954361062 | EL22: 16.66666667 | EM22: 4 | EN22: 0.4140752019 | EO22: 0.4452999408 | EQ22: 18.18181818 | ER22: 4 | ES22: 0.4146933437 | ET22: 0.4459017509 | EV22: 19.04761905 | EW22: 4 | EX22: 0.0603012498 | EY22: 0.06124407399 | FA22: 20 | FB22: 4 | FC22: 8.00415e-05 | FD22: 8.036985e-05 | FF22: 16.66666667 | FG22: 4 | FH22: 0.6657392303 | FI22: 0.6667379317 | FK22: 16.66666667 | FL22: 4 | FM22: 0.6652747713 | FN22: 0.6662494554 | FP22: 16.66666667 | FQ22: 4 | FR22: 0.00190198008 | FS22: 0.00197483088 | FU22: 25 | FV22: 4 | FW22: 0 | FX22: 4.95e-09 | FZ22: 33.33333333 | GA22: 4 | GB22: 0 | GC22: 0
G23: 20.83333333 | H23: 5 | I23: 0.1218036296 | J23: 0.6946059443 | L23: 20.83333333 | M23: 5 | N23: 0.6260248776 | O23: 0.9378575064 | Q23: 20.83333333 | R23: 5 | S23: 0.5708376242 | T23: 0.9109311938 | V23: 20.83333333 | W23: 5 | X23: 0.09719199715 | Y23: 0.6439468388 | AA23: 20.83333333 | AB23: 5 | AC23: 0.5755155033 | AD23: 0.9130817503 | AF23: 20.83333333 | AG23: 5 | AH23: 0.2949323096 | AI23: 0.6728703193 | AK23: 20.83333333 | AL23: 5 | AM23: 0.1030353873 | AN23: 0.6460041883 | AP23: 20.83333333 | AQ23: 5 | AR23: 0.1349711567 | AS23: 0.5659339669 | AU23: 20.83333333 | AV23: 5 | AW23: 0.2759160258 | AX23: 0.6584527107 | AZ23: 20.83333333 | BA23: 5 | BB23: 0.3468829645 | BC23: 0.7288959112 | BE23: 20.83333333 | BF23: 5 | BG23: 0.6462774064 | BH23: 0.9151296049 | BJ23: 22.72727273 | BK23: 5 | BL23: 0.1030476262 | BM23: 0.645857848 | BO23: 22.72727273 | BP23: 5 | BQ23: 0.6256531697 | BR23: 0.9011381841 | BT23: 23.80952381 | BU23: 5 | BV23: 0.1337574252 | BW23: 0.564688214 | BY23: 25 | BZ23: 5 | CA23: 0.00015927945 | CB23: 0.00170457045 | CD23: 20.83333333 | CE23: 5 | CF23: 0.2812675812 | CG23: 0.6638122702 | CI23: 20.83333333 | CJ23: 5 | CK23: 0.3320497402 | CL23: 0.7188751376 | CN23: 20.83333333 | CO23: 5 | CP23: 0.6468256228 | CQ23: 0.9156335803 | CS23: 20.83333333 | CT23: 5 | CU23: 0.6399579651 | CV23: 0.9079733451 | CX23: 20.83333333 | CY23: 5 | CZ23: 0.8302891674 | DA23: 0.8915020333 | DC23: 20.83333333 | DD23: 5 | DE23: 0.6264863662 | DF23: 0.9019271445 | DH23: 27.77777778 | DI23: 5 | DJ23: 0.0001584759 | DK23: 0.00170360025 | DM23: 20.83333333 | DN23: 5 | DO23: 0.2292821154 | DP23: 0.6077633077 | DR23: 20.83333333 | DS23: 5 | DT23: 0.6328525437 | DU23: 0.9091306207 | DW23: 20.83333333 | DX23: 5 | DY23: 0.4562147344 | DZ23: 0.6567398064 | EB23: 20.83333333 | EC23: 5 | ED23: 0.833015203 | EE23: 0.8942757754 | EG23: 20.83333333 | EH23: 5 | EI23: 0.466360326 | EJ23: 0.6617964322 | EL23: 20.83333333 | EM23: 5 | EN23: 0.07915324956 | EO23: 0.5244531904 | EQ23: 22.72727273 | ER23: 5 | ES23: 0.09237345348 | ET23: 0.5382752044 | EV23: 23.80952381 | EW23: 5 | EX23: 0.8329835098 | EY23: 0.8942275838 | FA23: 25 | FB23: 5 | FC23: 0.0030899253 | FD23: 0.00317029515 | FF23: 20.83333333 | FG23: 5 | FH23: 0.09419603886 | FI23: 0.7609339706 | FK23: 20.83333333 | FL23: 5 | FM23: 0.09280557247 | FN23: 0.7590550278 | FP23: 20.83333333 | FQ23: 5 | FR23: 0.095050494 | FS23: 0.09702532488 | FU23: 31.25 | FV23: 5 | FW23: 0.00011957715 | FX23: 0.0001195821 | FZ23: 41.66666667 | GA23: 5 | GB23: 0 | GC23: 0
G24: 25 | H24: 6 | I24: 1.296319088 | J24: 1.990925032 | L24: 25 | M24: 6 | N24: 0.36588643 | O24: 1.303743936 | Q24: 25 | R24: 6 | S24: 0.4742788019 | T24: 1.385209996 | V24: 25 | W24: 6 | X24: 1.485480327 | Y24: 2.129427166 | AA24: 25 | AB24: 6 | AC24: 0.5339770374 | AD24: 1.447058788 | AF24: 25 | AG24: 6 | AH24: 0.8286978206 | AI24: 1.50156814 | AK24: 25 | AL24: 6 | AM24: 1.464840704 | AN24: 2.110844893 | AP24: 25 | AQ24: 6 | AR24: 1.237071322 | AS24: 1.803005289 | AU24: 25 | AV24: 6 | AW24: 0.7908093739 | AX24: 1.449262085 | AZ24: 25 | BA24: 6 | BB24: 0.7102504769 | BC24: 1.439146388 | BE24: 25 | BF24: 6 | BG24: 0.5291975784 | BH24: 1.444327183 | BJ24: 27.27272727 | BK24: 6 | BL24: 1.457687905 | BM24: 2.103545753 | BO24: 27.27272727 | BP24: 6 | BQ24: 0.3657433883 | BR24: 1.266881572 | BT24: 28.57142857 | BU24: 6 | BV24: 1.223101752 | BW24: 1.787789966 | BY24: 30 | BZ24: 6 | CA24: 2.219940061 | CB24: 2.221644631 | CD24: 25 | CE24: 6 | CF24: 0.785483655 | CG24: 1.449295925 | CI24: 25 | CJ24: 6 | CK24: 0.6572280676 | CL24: 1.376103205 | CN24: 25 | CO24: 6 | CP24: 0.5504727286 | CQ24: 1.466106309 | CS24: 25 | CT24: 6 | CU24: 0.5566335812 | CV24: 1.464606926 | CX24: 25 | CY24: 6 | CZ24: 0.1865240843 | DA24: 1.078026118 | DC24: 25 | DD24: 6 | DE24: 0.3713529019 | DF24: 1.273280046 | DH24: 33.33333333 | DI24: 6 | DJ24: 2.219921238 | DK24: 2.221624838 | DM24: 25 | DN24: 6 | DO24: 0.9008304565 | DP24: 1.508593764 | DR24: 25 | DS24: 6 | DT24: 0.3597207101 | DU24: 1.268851331 | DW24: 25 | DX24: 6 | DY24: 0.6414628661 | DZ24: 1.298202673 | EB24: 25 | EC24: 6 | ED24: 0.2123899747 | EE24: 1.10666575 | EG24: 25 | EH24: 6 | EI24: 0.7807079848 | EJ24: 1.442504417 | EL24: 25 | EM24: 6 | EN24: 0.923848115 | EO24: 1.448301305 | EQ24: 27.27272727 | ER24: 6 | ES24: 0.893996859 | ET24: 1.432272063 | EV24: 28.57142857 | EW24: 6 | EX24: 0.2098876448 | EY24: 1.104115229 | FA24: 30 | FB24: 6 | FC24: 0.1617900207 | FD24: 0.1649603159 | FF24: 25 | FG24: 6 | FH24: 1.294478218 | FI24: 2.055412189 | FK24: 25 | FL24: 6 | FM24: 1.274022496 | FN24: 2.033077524 | FP24: 25 | FQ24: 6 | FR24: 2.667753625 | FS24: 2.76477895 | FU24: 37.5 | FV24: 6 | FW24: 4.8807e-06 | FX24: 0.0001244628 | FZ24: 50 | GA24: 6 | GB24: 6.8607e-06 | GC24: 6.8607e-06
G25: 29.16666667 | H25: 7 | I25: 0.3012646867 | J25: 2.292189719 | L25: 29.16666667 | M25: 7 | N25: 1.674560059 | O25: 2.978303996 | Q25: 29.16666667 | R25: 7 | S25: 1.496898521 | T25: 2.882108517 | V25: 29.16666667 | W25: 7 | X25: 0.2648113863 | Y25: 2.394238552 | AA25: 29.16666667 | AB25: 7 | AC25: 1.377615428 | AD25: 2.824674216 | AF25: 29.16666667 | AG25: 7 | AH25: 0.9281742345 | AI25: 2.429742374 | AK25: 29.16666667 | AL25: 7 | AM25: 0.2979366208 | AN25: 2.408781513 | AP25: 29.16666667 | AQ25: 7 | AR25: 0.3164553206 | AS25: 2.11946061 | AU25: 29.16666667 | AV25: 7 | AW25: 1.180013044 | AX25: 2.629275128 | AZ25: 29.16666667 | BA25: 7 | BB25: 1.111030421 | BC25: 2.550176809 | BE25: 29.16666667 | BF25: 7 | BG25: 1.643519492 | BH25: 3.087846676 | BJ25: 31.81818182 | BK25: 7 | BL25: 0.3126861075 | BM25: 2.41623186 | BO25: 31.81818182 | BP25: 7 | BQ25: 1.975559889 | BR25: 3.242441461 | BT25: 33.33333333 | BU25: 7 | BV25: 0.3111104169 | BW25: 2.098900383 | BY25: 35 | BZ25: 7 | CA25: 0.3185808846 | CB25: 2.540225516 | CD25: 29.16666667 | CE25: 7 | CF25: 1.027148058 | CG25: 2.476443984 | CI25: 29.16666667 | CJ25: 7 | CK25: 1.262236673 | CL25: 2.638339878 | CN25: 29.16666667 | CO25: 7 | CP25: 1.584830778 | CQ25: 3.050937087 | CS25: 29.16666667 | CT25: 7 | CU25: 1.576533353 | CV25: 3.041140279 | CX25: 29.16666667 | CY25: 7 | CZ25: 1.81364003 | DA25: 2.891666147 | DC25: 29.16666667 | DD25: 7 | DE25: 1.962639344 | DF25: 3.235919391 | DH25: 38.88888889 | DI25: 7 | DJ25: 0.3137450547 | DK25: 2.535369893 | DM25: 29.16666667 | DN25: 7 | DO25: 0.8522460339 | DP25: 2.360839798 | DR25: 29.16666667 | DS25: 7 | DT25: 1.998270104 | DU25: 3.267121435 | DW25: 29.16666667 | DX25: 7 | DY25: 1.022024629 | DZ25: 2.320227301 | EB25: 29.16666667 | EC25: 7 | ED25: 1.726402606 | EE25: 2.833068356 | EG25: 29.16666667 | EH25: 7 | EI25: 0.8272222959 | EJ25: 2.269726713 | EL25: 29.16666667 | EM25: 7 | EN25: 1.457030409 | EO25: 2.905331715 | EQ25: 31.81818182 | ER25: 7 | ES25: 1.019361549 | ET25: 2.451633613 | EV25: 33.33333333 | EW25: 7 | EX25: 1.696266366 | EY25: 2.800381594 | FA25: 35 | FB25: 7 | FC25: 4.436942194 | FD25: 4.60190251 | FF25: 29.16666667 | FG25: 7 | FH25: 0.1827596598 | FI25: 2.238171849 | FK25: 29.16666667 | FL25: 7 | FM25: 0.2231543505 | FN25: 2.256231874 | FP25: 29.16666667 | FQ25: 7 | FR25: 0.2735085593 | FS25: 3.038287509 | FU25: 43.75 | FV25: 7 | FW25: 0.00011863665 | FX25: 0.00024309945 | FZ25: 58.33333333 | GA25: 7 | GB25: 0 | GC25: 6.8607e-06
G26: 33.33333333 | H26: 8 | I26: 3.257042461 | J26: 5.54923218 | L26: 33.33333333 | M26: 8 | N26: 1.129252928 | O26: 4.107556924 | Q26: 33.33333333 | R26: 8 | S26: 1.443527448 | T26: 4.325635965 | V26: 33.33333333 | W26: 8 | X26: 3.6484795 | Y26: 6.042718052 | AA26: 33.33333333 | AB26: 8 | AC26: 1.625284686 | AD26: 4.449958902 | AF26: 33.33333333 | AG26: 8 | AH26: 1.97887281 | AI26: 4.408615184 | AK26: 33.33333333 | AL26: 8 | AM26: 3.363912276 | AN26: 5.77269379 | AP26: 33.33333333 | AQ26: 8 | AR26: 3.430245733 | AS26: 5.549706343 | AU26: 33.33333333 | AV26: 8 | AW26: 1.635341305 | AX26: 4.264616433 | AZ26: 33.33333333 | BA26: 8 | BB26: 1.841254303 | BC26: 4.391431112 | BE26: 33.33333333 | BF26: 8 | BG26: 1.898380603 | BH26: 4.986227279 | BJ26: 36.36363636 | BK26: 8 | BL26: 3.348000187 | BM26: 5.764232047 | BO26: 36.36363636 | BP26: 8 | BQ26: 1.154643669 | BR26: 4.39708513 | BT26: 38.0952381 | BU26: 8 | BV26: 2.97595488 | BW26: 5.074855263 | BY26: 40 | BZ26: 8 | CA26: 4.375347122 | CB26: 6.915572638 | CD26: 33.33333333 | CE26: 8 | CF26: 1.807556202 | CG26: 4.284000186 | CI26: 33.33333333 | CJ26: 8 | CK26: 1.717994321 | CL26: 4.356334199 | CN26: 33.33333333 | CO26: 8 | CP26: 1.515507034 | CQ26: 4.566444121 | CS26: 33.33333333 | CT26: 8 | CU26: 1.513931663 | CV26: 4.555071942 | CX26: 33.33333333 | CY26: 8 | CZ26: 1.899447332 | DA26: 4.79111348 | DC26: 33.33333333 | DD26: 8 | DE26: 1.152802428 | DF26: 4.388721818 | DH26: 44.44444444 | DI26: 8 | DJ26: 4.299002908 | DK26: 6.834372801 | DM26: 33.33333333 | DN26: 8 | DO26: 2.03287295 | DP26: 4.393712748 | DR26: 33.33333333 | DS26: 8 | DT26: 1.130456489 | DU26: 4.397577924 | DW26: 33.33333333 | DX26: 8 | DY26: 1.909425547 | DZ26: 4.229652849 | EB26: 33.33333333 | EC26: 8 | ED26: 1.173609427 | EE26: 4.006677783 | EG26: 33.33333333 | EH26: 8 | EI26: 1.678103944 | EJ26: 3.947830657 | EL26: 33.33333333 | EM26: 8 | EN26: 1.904439316 | EO26: 4.809771031 | EQ26: 36.36363636 | ER26: 8 | ES26: 2.429219749 | ET26: 4.880853362 | EV26: 38.0952381 | EW26: 8 | EX26: 1.137604667 | EY26: 3.937986261 | FA26: 40 | FB26: 8 | FC26: 0.3264681766 | FD26: 4.928370686 | FF26: 33.33333333 | FG26: 8 | FH26: 4.676562484 | FI26: 6.914734333 | FK26: 33.33333333 | FL26: 8 | FM26: 4.59017414 | FN26: 6.846406015 | FP26: 33.33333333 | FQ26: 8 | FR26: 2.501914749 | FS26: 5.540202258 | FU26: 50 | FV26: 8 | FW26: 0.4753710365 | FX26: 0.475614136 | FZ26: 66.66666667 | GA26: 8 | GB26: 0 | GC26: 6.8607e-06
G27: 37.5 | H27: 9 | I27: 0.6053501167 | J27: 6.154582296 | L27: 37.5 | M27: 9 | N27: 3.541374081 | O27: 7.648931004 | Q27: 37.5 | R27: 9 | S27: 3.048374646 | T27: 7.374010611 | V27: 37.5 | W27: 9 | X27: 0.5362868986 | Y27: 6.57900495 | AA27: 37.5 | AB27: 9 | AC27: 2.785487977 | AD27: 7.235446878 | AF27: 37.5 | AG27: 9 | AH27: 2.624827156 | AI27: 7.03344234 | AK27: 37.5 | AL27: 9 | AM27: 0.5966923901 | AN27: 6.36938618 | AP27: 37.5 | AQ27: 9 | AR27: 1.395383717 | AS27: 6.94509006 | AU27: 37.5 | AV27: 9 | AW27: 2.655503016 | AX27: 6.920119449 | AZ27: 37.5 | BA27: 9 | BB27: 2.561745364 | BC27: 6.953176476 | BE27: 37.5 | BF27: 9 | BG27: 2.630172397 | BH27: 7.616399676 | BJ27: 40.90909091 | BK27: 9 | BL27: 0.6128620159 | BM27: 6.377094063 | BO27: 40.90909091 | BP27: 9 | BQ27: 3.414194179 | BR27: 7.811279309 | BT27: 42.85714286 | BU27: 9 | BV27: 2.217825544 | BW27: 7.292680807 | BY27: 45 | BZ27: 9 | CA27: 0.4659058866 | CB27: 7.381478524 | CD27: 37.5 | CE27: 9 | CF27: 2.912558089 | CG27: 7.196558274 | CI27: 37.5 | CJ27: 9 | CK27: 2.346934808 | CL27: 6.703269007 | CN27: 37.5 | CO27: 9 | CP27: 3.514776746 | CQ27: 8.081220867 | CS27: 37.5 | CT27: 9 | CU27: 3.03656393 | CV27: 7.591635872 | CX27: 37.5 | CY27: 9 | CZ27: 2.041584416 | DA27: 6.832697896 | DC27: 37.5 | DD27: 9 | DE27: 3.430719105 | DF27: 7.819440923 | DH27: 50 | DI27: 9 | DJ27: 0.6092772411 | DK27: 7.443650042 | DM27: 37.5 | DN27: 9 | DO27: 2.583012101 | DP27: 6.976724849 | DR27: 37.5 | DS27: 9 | DT27: 3.887518037 | DU27: 8.285095961 | DW27: 37.5 | DX27: 9 | DY27: 2.53665312 | DZ27: 6.766305969 | EB27: 37.5 | EC27: 9 | ED27: 3.825701484 | EE27: 7.832379267 | EG27: 37.5 | EH27: 9 | EI27: 3.282573073 | EJ27: 7.23040373 | EL27: 37.5 | EM27: 9 | EN27: 2.390186139 | EO27: 7.19995717 | EQ27: 40.90909091 | ER27: 9 | ES27: 2.689321415 | ET27: 7.570174776 | EV27: 42.85714286 | EW27: 9 | EX27: 2.948743464 | EY27: 6.886729725 | FA27: 45 | FB27: 9 | FC27: 4.601580314 | FD27: 9.529951 | FF27: 37.5 | FG27: 9 | FH27: 0.4572648003 | FI27: 7.371999133 | FK27: 37.5 | FL27: 9 | FM27: 0.5901636579 | FN27: 7.436569672 | FP27: 37.5 | FQ27: 9 | FR27: 0.5550114154 | FS27: 6.095213673 | FU27: 56.25 | FV27: 9 | FW27: 13.34398455 | FX27: 13.81959869 | FZ27: 75 | GA27: 9 | GB27: 0 | GC27: 6.8607e-06
G28: 41.66666667 | H28: 10 | I28: 6.462604734 | J28: 12.61718703 | L28: 41.66666667 | M28: 10 | N28: 2.800200944 | O28: 10.44913195 | Q28: 41.66666667 | R28: 10 | S28: 3.274760165 | T28: 10.64877078 | V28: 41.66666667 | W28: 10 | X28: 7.467217606 | Y28: 14.04622256 | AA28: 41.66666667 | AB28: 10 | AC28: 3.271300816 | AD28: 10.50674769 | AF28: 41.66666667 | AG28: 10 | AH28: 3.472613527 | AI28: 10.50605587 | AK28: 41.66666667 | AL28: 10 | AM28: 6.92738559 | AN28: 13.29677177 | AP28: 41.66666667 | AQ28: 10 | AR28: 5.810447876 | AS28: 12.75553794 | AU28: 41.66666667 | AV28: 10 | AW28: 3.803949044 | AX28: 10.72406849 | AZ28: 41.66666667 | BA28: 10 | BB28: 3.586525072 | BC28: 10.53970155 | BE28: 41.66666667 | BF28: 10 | BG28: 3.892777213 | BH28: 11.50917689 | BJ28: 45.45454545 | BK28: 10 | BL28: 6.468749984 | BM28: 12.84584405 | BO28: 45.45454545 | BP28: 10 | BQ28: 2.715328065 | BR28: 10.52660737 | BT28: 47.61904762 | BU28: 10 | BV28: 4.202821812 | BW28: 11.49550262 | BY28: 50 | BZ28: 10 | CA28: 8.8982765 | CB28: 16.27975502 | CD28: 41.66666667 | CE28: 10 | CF28: 3.414968734 | CG28: 10.61152701 | CI28: 41.66666667 | CJ28: 10 | CK28: 4.275769705 | CL28: 10.97903871 | CN28: 41.66666667 | CO28: 10 | CP28: 3.848111721 | CQ28: 11.92933259 | CS28: 41.66666667 | CT28: 10 | CU28: 3.414618372 | CV28: 11.00625424 | CX28: 41.66666667 | CY28: 10 | CZ28: 4.845083226 | DA28: 11.67778112 | DC28: 41.66666667 | DD28: 10 | DE28: 3.191791177 | DF28: 11.0112321 | DH28: 55.55555556 | DI28: 10 | DJ28: 6.396689295 | DK28: 13.84033934 | DM28: 41.66666667 | DN28: 10 | DO28: 3.525911931 | DP28: 10.50263678 | DR28: 41.66666667 | DS28: 10 | DT28: 3.203232646 | DU28: 11.48832861 | DW28: 41.66666667 | DX28: 10 | DY28: 3.426150661 | DZ28: 10.19245663 | EB28: 41.66666667 | EC28: 10 | ED28: 4.469959357 | EE28: 12.30233862 | EG28: 41.66666667 | EH28: 10 | EI28: 3.170151728 | EJ28: 10.40055546 | EL28: 41.66666667 | EM28: 10 | EN28: 4.376609931 | EO28: 11.5765671 | EQ28: 45.45454545 | ER28: 10 | ES28: 2.711997397 | ET28: 10.28217217 | EV28: 47.61904762 | EW28: 10 | EX28: 5.500690454 | EY28: 12.38742018 | FA28: 50 | FB28: 10 | FC28: 4.759179732 | FD28: 14.28913073 | FF28: 41.66666667 | FG28: 10 | FH28: 7.896782978 | FI28: 15.26878211 | FK28: 41.66666667 | FL28: 10 | FM28: 6.400302479 | FN28: 13.83687215 | FP28: 41.66666667 | FQ28: 10 | FR28: 8.101768147 | FS28: 14.19698182 | FU28: 62.5 | FV28: 10 | FW28: 1.403326773 | FX28: 15.22292546 | FZ28: 83.33333333 | GA28: 10 | GB28: 0.068263965 | GC28: 0.0682708257
G29: 45.83333333 | H29: 11 | I29: 0.9960893738 | J29: 13.6132764 | L29: 45.83333333 | M29: 11 | N29: 5.47043337 | O29: 15.91956532 | Q29: 45.83333333 | R29: 11 | S29: 4.952890398 | T29: 15.60166117 | V29: 45.83333333 | W29: 11 | X29: 0.9599577016 | Y29: 15.00618026 | AA29: 45.83333333 | AB29: 11 | AC29: 5.17258719 | AD29: 15.67933488 | AF29: 45.83333333 | AG29: 11 | AH29: 4.642051792 | AI29: 15.14810766 | AK29: 45.83333333 | AL29: 11 | AM29: 1.024836232 | AN29: 14.321608 | AP29: 45.83333333 | AQ29: 11 | AR29: 4.093134561 | AS29: 16.8486725 | AU29: 45.83333333 | AV29: 11 | AW29: 4.235594817 | AX29: 14.95966331 | AZ29: 45.83333333 | BA29: 11 | BB29: 4.458883 | BC29: 14.99858455 | BE29: 45.83333333 | BF29: 11 | BG29: 5.988481543 | BH29: 17.49765843 | BJ29: 50 | BK29: 11 | BL29: 0.9790520735 | BM29: 13.82489612 | BO29: 50 | BP29: 11 | BQ29: 5.777515229 | BR29: 16.3041226 | BT29: 52.38095238 | BU29: 11 | BV29: 5.594234077 | BW29: 17.0897367 | BY29: 55 | BZ29: 11 | CA29: 0.7712199841 | CB29: 17.05097501 | CD29: 45.83333333 | CE29: 11 | CF29: 4.496133186 | CG29: 15.1076602 | CI29: 45.83333333 | CJ29: 11 | CK29: 4.156021836 | CL29: 15.13506055 | CN29: 45.83333333 | CO29: 11 | CP29: 5.192435654 | CQ29: 17.12176824 | CS29: 45.83333333 | CT29: 11 | CU29: 5.623800159 | CV29: 16.6300544 | CX29: 45.83333333 | CY29: 11 | CZ29: 6.397710867 | DA29: 18.07549199 | DC29: 45.83333333 | DD29: 11 | DE29: 5.756478347 | DF29: 16.76771045 | DH29: 61.11111111 | DI29: 11 | DJ29: 0.905809844 | DK29: 14.74614918 | DM29: 45.83333333 | DN29: 11 | DO29: 5.878252507 | DP29: 16.38088929 | DR29: 45.83333333 | DS29: 11 | DT29: 6.244867405 | DU29: 17.73319601 | DW29: 45.83333333 | DX29: 11 | DY29: 5.304657207 | DZ29: 15.49711384 | EB29: 45.83333333 | EC29: 11 | ED29: 3.446472128 | EE29: 15.74881075 | EG29: 45.83333333 | EH29: 11 | EI29: 3.951371185 | EJ29: 14.35192664 | EL29: 45.83333333 | EM29: 11 | EN29: 5.662942935 | EO29: 17.23951004 | EQ29: 50 | ER29: 11 | ES29: 5.389789108 | ET29: 15.67196128 | EV29: 52.38095238 | EW29: 11 | EX29: 4.066112865 | EY29: 16.45353304 | FA29: 55 | FB29: 11 | FC29: 4.914816418 | FD29: 19.20394715 | FF29: 45.83333333 | FG29: 11 | FH29: 0.9112133088 | FI29: 16.17999542 | FK29: 45.83333333 | FL29: 11 | FM29: 0.9088152115 | FN29: 14.74568736 | FP29: 45.83333333 | FQ29: 11 | FR29: 5.915205399 | FS29: 20.11218722 | FU29: 68.75 | FV29: 11 | FW29: 12.90604808 | FX29: 28.12897354 | FZ29: 91.66666667 | GA29: 11 | GB29: 0 | GC29: 0.0682708257
G30: 50 | H30: 12 | I30: 10.52431548 | J30: 24.13759189 | L30: 50 | M30: 12 | N30: 5.889136298 | O30: 21.80870162 | Q30: 50 | R30: 12 | S30: 5.389226789 | T30: 20.99088796 | V30: 50 | W30: 12 | X30: 11.23923995 | Y30: 26.24542021 | AA30: 50 | AB30: 12 | AC30: 5.095879434 | AD30: 20.77521432 | AF30: 50 | AG30: 12 | AH30: 6.352038649 | AI30: 21.50014631 | AK30: 50 | AL30: 12 | AM30: 10.49841127 | AN30: 24.82001927 | AP30: 50 | AQ30: 12 | AR30: 7.242334414 | AS30: 24.09100691 | AU30: 50 | AV30: 12 | AW30: 6.823302229 | AX30: 21.78296554 | AZ30: 50 | BA30: 12 | BB30: 5.986981802 | BC30: 20.98556635 | BE30: 50 | BF30: 12 | BG30: 4.92555093 | BH30: 22.42320936 | BJ30: 54.54545455 | BK30: 12 | BL30: 11.21238511 | BM30: 25.03728123 | BO30: 54.54545455 | BP30: 12 | BQ30: 5.740308189 | BR30: 22.04443079 | BT30: 57.14285714 | BU30: 12 | BV30: 4.713496813 | BW30: 21.80323351 | BY30: 60 | BZ30: 12 | CA30: 13.29883803 | CB30: 30.34981304 | CD30: 50 | CE30: 12 | CF30: 6.579614646 | CG30: 21.68727484 | CI30: 50 | CJ30: 12 | CK30: 5.610509911 | CL30: 20.74557046 | CN30: 50 | CO30: 12 | CP30: 5.423976825 | CQ30: 22.54574507 | CS30: 50 | CT30: 12 | CU30: 5.150602692 | CV30: 21.78065709 | CX30: 50 | CY30: 12 | CZ30: 5.228975283 | DA30: 23.30446727 | DC30: 50 | DD30: 12 | DE30: 5.042738769 | DF30: 21.81044922 | DH30: 66.66666667 | DI30: 12 | DJ30: 17.81659951 | DK30: 32.56274869 | DM30: 50 | DN30: 12 | DO30: 4.717512965 | DP30: 21.09840225 | DR30: 50 | DS30: 12 | DT30: 6.436273122 | DU30: 24.16946913 | DW30: 50 | DX30: 12 | DY30: 6.095530117 | DZ30: 21.59264395 | EB30: 50 | EC30: 12 | ED30: 10.10399243 | EE30: 25.85280318 | EG30: 50 | EH30: 12 | EI30: 6.92972879 | EJ30: 21.28165543 | EL30: 50 | EM30: 12 | EN30: 6.334750996 | EO30: 23.57426103 | EQ30: 54.54545455 | ER30: 12 | ES30: 6.212303951 | ET30: 21.88426523 | EV30: 57.14285714 | EW30: 12 | EX30: 6.64810898 | EY30: 23.10164202 | FA30: 60 | FB30: 12 | FC30: 4.494439062 | FD30: 23.69838621 | FF30: 50 | FG30: 12 | FH30: 13.18260515 | FI30: 29.36260057 | FK30: 50 | FL30: 12 | FM30: 13.20025622 | FN30: 27.94594358 | FP30: 50 | FQ30: 12 | FR30: 5.984686748 | FS30: 26.09687397 | FU30: 75 | FV30: 12 | FW30: 1.380033753 | FX30: 29.50900729 | FZ30: 100 | GA30: 12 | GB30: 99.93156448 | GC30: 99.99983531
G31: 54.16666667 | H31: 13 | I31: 1.414990614 | J31: 25.5525825 | L31: 54.16666667 | M31: 13 | N31: 6.304487228 | O31: 28.11318884 | Q31: 54.16666667 | R31: 13 | S31: 7.773855763 | T31: 28.76474373 | V31: 54.16666667 | W31: 13 | X31: 1.332904786 | Y31: 27.578325 | AA31: 54.16666667 | AB31: 13 | AC31: 8.184836224 | AD31: 28.96005054 | AF31: 54.16666667 | AG31: 13 | AH31: 7.225317284 | AI31: 28.72546359 | AK31: 54.16666667 | AL31: 13 | AM31: 1.328068888 | AN31: 26.14808816 | AP31: 54.16666667 | AQ31: 13 | AR31: 10.03138422 | AS31: 34.12239113 | AU31: 54.16666667 | AV31: 13 | AW31: 6.431154162 | AX31: 28.2141197 | AZ31: 54.16666667 | BA31: 13 | BB31: 7.099660318 | BC31: 28.08522667 | BE31: 54.16666667 | BF31: 13 | BG31: 9.038222706 | BH31: 31.46143207 | BJ31: 59.09090909 | BK31: 13 | BL31: 1.363765434 | BM31: 26.40104666 | BO31: 59.09090909 | BP31: 13 | BQ31: 7.636327294 | BR31: 29.68075809 | BT31: 61.9047619 | BU31: 13 | BV31: 9.033702573 | BW31: 30.83693608 | BY31: 65 | BZ31: 13 | CA31: 1.242240886 | CB31: 31.59205393 | CD31: 54.16666667 | CE31: 13 | CF31: 6.85144162 | CG31: 28.53871646 | CI31: 54.16666667 | CJ31: 13 | CK31: 7.583538414 | CL31: 28.32910887 | CN31: 54.16666667 | CO31: 13 | CP31: 8.826102596 | CQ31: 31.37184766 | CS31: 54.16666667 | CT31: 13 | CU31: 7.503091431 | CV31: 29.28374853 | CX31: 54.16666667 | CY31: 13 | CZ31: 9.337856703 | DA31: 32.64232397 | DC31: 54.16666667 | DD31: 13 | DE31: 7.633413862 | DF31: 29.44386308 | DH31: 72.22222222 | DI31: 13 | DJ31: 1.551709502 | DK31: 34.11445819 | DM31: 54.16666667 | DN31: 13 | DO31: 8.03432669 | DP31: 29.13272894 | DR31: 54.16666667 | DS31: 13 | DT31: 5.707047789 | DU31: 29.87651692 | DW31: 54.16666667 | DX31: 13 | DY31: 6.586042475 | DZ31: 28.17868643 | EB31: 54.16666667 | EC31: 13 | ED31: 7.750312829 | EE31: 33.60311601 | EG31: 54.16666667 | EH31: 13 | EI31: 7.898652252 | EJ31: 29.18030768 | EL31: 54.16666667 | EM31: 13 | EN31: 6.834292683 | EO31: 30.40855371 | EQ31: 59.09090909 | ER31: 13 | ES31: 10.07722628 | ET31: 31.96149151 | EV31: 61.9047619 | EW31: 13 | EX31: 6.381821965 | EY31: 29.48346399 | FA31: 65 | FB31: 13 | FC31: 15.18674836 | FD31: 38.88513457 | FF31: 54.16666667 | FG31: 13 | FH31: 1.285038308 | FI31: 30.64763888 | FK31: 54.16666667 | FL31: 13 | FM31: 1.276514597 | FN31: 29.22245818 | FP31: 54.16666667 | FQ31: 13 | FR31: 10.87676843 | FS31: 36.97364239 | FU31: 81.25 | FV31: 13 | FW31: 12.87824267 | FX31: 42.38724997 | GB31: =SUM(GB18:GB30) -> 99.99983531
G32: 58.33333333 | H32: 14 | I32: 13.29048793 | J32: 38.84307043 | L32: 58.33333333 | M32: 14 | N32: 8.511777934 | O32: 36.62496678 | Q32: 58.33333333 | R32: 14 | S32: 6.489714024 | T32: 35.25445775 | V32: 58.33333333 | W32: 14 | X32: 14.32199895 | Y32: 41.90032395 | AA32: 58.33333333 | AB32: 14 | AC32: 5.980987784 | AD32: 34.94103833 | AF32: 58.33333333 | AG32: 14 | AH32: 6.747563755 | AI32: 35.47302735 | AK32: 58.33333333 | AL32: 14 | AM32: 15.70911869 | AN32: 41.85720685 | AP32: 58.33333333 | AQ32: 14 | AR32: 5.540268782 | AS32: 39.66265991 | AU32: 58.33333333 | AV32: 14 | AW32: 7.297372252 | AX32: 35.51149195 | AZ32: 58.33333333 | BA32: 14 | BB32: 7.918097409 | BC32: 36.00332408 | BE32: 58.33333333 | BF32: 14 | BG32: 6.156371887 | BH32: 37.61780395 | BJ32: 63.63636364 | BK32: 14 | BL32: 14.75251888 | BM32: 41.15356554 | BO32: 63.63636364 | BP32: 14 | BQ32: 9.736935945 | BR32: 39.41769403 | BT32: 66.66666667 | BU32: 14 | BV32: 7.036203205 | BW32: 37.87313929 | BY32: 70 | BZ32: 14 | CA32: 24.94388825 | CB32: 56.53594218 | CD32: 58.33333333 | CE32: 14 | CF32: 7.248856808 | CG32: 35.78757327 | CI32: 58.33333333 | CJ32: 14 | CK32: 7.359663042 | CL32: 35.68877192 | CN32: 58.33333333 | CO32: 14 | CP32: 7.358434252 | CQ32: 38.73028191 | CS32: 58.33333333 | CT32: 14 | CU32: 8.32816107 | CV32: 37.6119096 | CX32: 58.33333333 | CY32: 14 | CZ32: 8.411377993 | DA32: 41.05370197 | DC32: 58.33333333 | DD32: 14 | DE32: 10.67851 | DF32: 40.12237308 | DH32: 77.77777778 | DI32: 14 | DJ32: 15.27350188 | DK32: 49.38796007 | DM32: 58.33333333 | DN32: 14 | DO32: 6.433870761 | DP32: 35.5665997 | DR32: 58.33333333 | DS32: 14 | DT32: 9.370635932 | DU32: 39.24715286 | DW32: 58.33333333 | DX32: 14 | DY32: 8.23050961 | DZ32: 36.40919604 | EB32: 58.33333333 | EC32: 14 | ED32: 7.712836464 | EE32: 41.31595247 | EG32: 58.33333333 | EH32: 14 | EI32: 5.875978697 | EJ32: 35.05628638 | EL32: 58.33333333 | EM32: 14 | EN32: 7.596080913 | EO32: 38.00463463 | EQ32: 63.63636364 | ER32: 14 | ES32: 5.720299639 | ET32: 37.68179115 | EV32: 66.66666667 | EW32: 14 | EX32: 6.461386188 | EY32: 35.94485018 | FA32: 70 | FB32: 14 | FC32: 17.65083113 | FD32: 56.5359657 | FF32: 58.33333333 | FG32: 14 | FH32: 13.01210072 | FI32: 43.6597396 | FK32: 58.33333333 | FL32: 14 | FM32: 15.80227349 | FN32: 45.02473167 | FP32: 58.33333333 | FQ32: 14 | FR32: 6.526626814 | FS32: 43.50026921 | FU32: 87.5 | FV32: 14 | FW32: 0.9699667073 | FX32: 43.35721667
G33: 62.5 | H33: 15 | I33: 1.542412965 | J33: 40.38548339 | L33: 62.5 | M33: 15 | N33: 6.253055396 | O33: 42.87802217 | Q33: 62.5 | R33: 15 | S33: 8.911972187 | T33: 44.16642994 | V33: 62.5 | W33: 15 | X33: 1.46184834 | Y33: 43.36217229 | AA33: 62.5 | AB33: 15 | AC33: 9.554278432 | AD33: 44.49531676 | AF33: 62.5 | AG33: 15 | AH33: 8.603310889 | AI33: 44.07633824 | AK33: 62.5 | AL33: 15 | AM33: 1.537421834 | AN33: 43.39462868 | AP33: 62.5 | AQ33: 15 | AR33: 10.50576259 | AS33: 50.1684225 | AU33: 62.5 | AV33: 15 | AW33: 9.831203978 | AX33: 45.34269593 | AZ33: 62.5 | BA33: 15 | BB33: 7.172587955 | BC33: 43.17591203 | BE33: 62.5 | BF33: 15 | BG33: 10.29101492 | BH33: 47.90881888 | BJ33: 68.18181818 | BK33: 15 | BL33: 1.517550774 | BM33: 42.67111632 | BO33: 68.18181818 | BP33: 15 | BQ33: 5.210627588 | BR33: 44.62832162 | BT33: 71.42857143 | BU33: 15 | BV33: 9.633668421 | BW33: 47.50680771 | BY33: 75 | BZ33: 15 | CA33: 1.236417046 | CB33: 57.77235922 | CD33: 62.5 | CE33: 15 | CF33: 7.959621098 | CG33: 43.74719437 | CI33: 62.5 | CJ33: 15 | CK33: 8.203531214 | CL33: 43.89230313 | CN33: 62.5 | CO33: 15 | CP33: 8.000795596 | CQ33: 46.73107751 | CS33: 62.5 | CT33: 15 | CU33: 10.22185269 | CV33: 47.83376228 | CX33: 62.5 | CY33: 15 | CZ33: 7.97452616 | DA33: 49.02822813 | DC33: 62.5 | DD33: 15 | DE33: 5.228994466 | DF33: 45.35136754 | DH33: 83.33333333 | DI33: 15 | DJ33: 1.237331167 | DK33: 50.62529123 | DM33: 62.5 | DN33: 15 | DO33: 9.391940438 | DP33: 44.95854014 | DR33: 62.5 | DS33: 15 | DT33: 7.055899257 | DU33: 46.30305211 | DW33: 62.5 | DX33: 15 | DY33: 8.269000811 | DZ33: 44.67819685 | EB33: 62.5 | EC33: 15 | ED33: 7.177168234 | EE33: 48.49312071 | EG33: 62.5 | EH33: 15 | EI33: 8.084964621 | EJ33: 43.141251 | EL33: 62.5 | EM33: 15 | EN33: 10.6336584 | EO33: 48.63829303 | EQ33: 68.18181818 | ER33: 15 | ES33: 8.903735772 | ET33: 46.58552692 | EV33: 71.42857143 | EW33: 15 | EX33: 15.8389949 | EY33: 51.78384507 | FA33: 75 | FB33: 15 | FC33: 1.236393519 | FD33: 57.77235922 | FF33: 62.5 | FG33: 15 | FH33: 1.284942107 | FI33: 44.94468171 | FK33: 62.5 | FL33: 15 | FM33: 1.379682765 | FN33: 46.40441443 | FP33: 62.5 | FQ33: 15 | FR33: 10.35064669 | FS33: 53.85091589 | FU33: 93.75 | FV33: 15 | FW33: 15.2559218 | FX33: 58.61313848
G34: 66.66666667 | H34: 16 | I34: 16.04633421 | J34: 56.43181761 | L34: 66.66666667 | M34: 16 | N34: 11.85036981 | O34: 54.72839198 | Q34: 66.66666667 | R34: 16 | S34: 8.497156791 | T34: 52.66358673 | V34: 66.66666667 | W34: 16 | X34: 15.76124687 | Y34: 59.12341916 | AA34: 66.66666667 | AB34: 16 | AC34: 8.109583459 | AD34: 52.60490022 | AF34: 66.66666667 | AG34: 16 | AH34: 9.134531386 | AI34: 53.21086962 | AK34: 66.66666667 | AL34: 16 | AM34: 14.75573398 | AN34: 58.15036266 | AP34: 66.66666667 | AQ34: 16 | AR34: 6.806291883 | AS34: 56.97471438 | AU34: 66.66666667 | AV34: 16 | AW34: 6.966817648 | AX34: 52.30951358 | AZ34: 66.66666667 | BA34: 16 | BB34: 10.25247852 | BC34: 53.42839056 | BE34: 66.66666667 | BF34: 16 | BG34: 8.569209339 | BH34: 56.47802822 | BJ34: 72.72727273 | BK34: 16 | BL34: 16.15099728 | BM34: 58.8221136 | BO34: 72.72727273 | BP34: 16 | BQ34: 12.06434106 | BR34: 56.69266268 | BT34: 76.19047619 | BU34: 16 | BV34: 14.38584685 | BW34: 61.89265456 | BY34: 80 | BZ34: 16 | CA34: 13.19192204 | CB34: 70.96428127 | CD34: 66.66666667 | CE34: 16 | CF34: 9.522365362 | CG34: 53.26955973 | CI34: 66.66666667 | CJ34: 16 | CK34: 9.540981912 | CL34: 53.43328504 | CN34: 66.66666667 | CO34: 16 | CP34: 7.422051743 | CQ34: 54.15312925 | CS34: 66.66666667 | CT34: 16 | CU34: 6.764729759 | CV34: 54.59849204 | CX34: 66.66666667 | CY34: 16 | CZ34: 11.19358596 | DA34: 60.22181409 | DC34: 66.66666667 | DD34: 16 | DE34: 10.66953604 | DF34: 56.02090358 | DH34: 88.88888889 | DI34: 16 | DJ34: 13.22368837 | DK34: 63.84897961 | DM34: 66.66666667 | DN34: 16 | DO34: 8.066426212 | DP34: 53.02496635 | DR34: 66.66666667 | DS34: 16 | DT34: 11.85765952 | DU34: 58.16071164 | DW34: 66.66666667 | DX34: 16 | DY34: 8.237286131 | DZ34: 52.91548298 | EB34: 66.66666667 | EC34: 16 | ED34: 9.527765262 | EE34: 58.02088597 | EG34: 66.66666667 | EH34: 16 | EI34: 11.62808683 | EJ34: 54.76933783 | EL34: 66.66666667 | EM34: 16 | EN34: 8.245908245 | EO34: 56.88420127 | EQ34: 72.72727273 | ER34: 16 | ES34: 7.97768485 | ET34: 54.56321177 | EV34: 76.19047619 | EW34: 16 | EX34: 10.10883302 | EY34: 61.89267809 | FA34: 80 | FB34: 16 | FC34: 13.19192204 | FD34: 70.96428127 | FF34: 66.66666667 | FG34: 16 | FH34: 18.70633752 | FI34: 63.65101923 | FK34: 66.66666667 | FL34: 16 | FM34: 13.69001113 | FN34: 60.09442557 | FP34: 66.66666667 | FQ34: 16 | FR34: 4.051736434 | FS34: 57.90265233 | FU34: 100 | FV34: 16 | FW34: 41.38680663 | FX34: 99.9999451
G35: 70.83333333 | H35: 17 | I35: 1.445006512 | J35: 57.87682412 | L35: 70.83333333 | M35: 17 | N35: 5.063831009 | O35: 59.79222299 | Q35: 70.83333333 | R35: 17 | S35: 9.271385179 | T35: 61.93497191 | V35: 70.83333333 | W35: 17 | X35: 1.297797605 | Y35: 60.42121676 | AA35: 70.83333333 | AB35: 17 | AC35: 9.349054257 | AD35: 61.95395448 | AF35: 70.83333333 | AG35: 17 | AH35: 9.847538804 | AI35: 63.05840843 | AK35: 70.83333333 | AL35: 17 | AM35: 1.350350047 | AN35: 59.50071271 | AP35: 70.83333333 | AQ35: 17 | AR35: 14.15173138 | AS35: 71.12644576 | AU35: 70.83333333 | AV35: 17 | AW35: 9.333996692 | AX35: 61.64351027 | AZ35: 70.83333333 | BA35: 17 | BB35: 9.648645073 | BC35: 63.07703563 | BE35: 70.83333333 | BF35: 17 | BG35: 6.756576283 | BH35: 63.2346045 | BJ35: 77.27272727 | BK35: 17 | BL35: 1.435010838 | BM35: 60.25712443 | BO35: 77.27272727 | BP35: 17 | BQ35: 5.965287847 | BR35: 62.65795053 | BT35: 80.95238095 | BU35: 17 | BV35: 6.229868948 | BW35: 68.12252351 | BY35: 85 | BZ35: 17 | CA35: 0.9419799947 | CB35: 71.90626126 | CD35: 70.83333333 | CE35: 17 | CF35: 9.769885572 | CG35: 63.0394453 | CI35: 70.83333333 | CJ35: 17 | CK35: 7.066348138 | CL35: 60.49963318 | CN35: 70.83333333 | CO35: 17 | CP35: 11.54868213 | CQ35: 65.70181138 | CS35: 70.83333333 | CT35: 17 | CU35: 8.747672168 | CV35: 63.34616421 | CX35: 70.83333333 | CY35: 17 | CZ35: 7.48227775 | DA35: 67.70409184 | DC35: 70.83333333 | DD35: 17 | DE35: 5.880662994 | DF35: 61.90156658 | DH35: 94.44444444 | DI35: 17 | DJ35: 0.9414095576 | DK35: 64.79038916 | DM35: 70.83333333 | DN35: 17 | DO35: 8.682655505 | DP35: 61.70762186 | DR35: 70.83333333 | DS35: 17 | DT35: 3.364978519 | DU35: 61.52569016 | DW35: 70.83333333 | DX35: 17 | DY35: 9.832481239 | DZ35: 62.74796422 | EB35: 70.83333333 | EC35: 17 | ED35: 14.05602992 | EE35: 72.07691589 | EG35: 70.83333333 | EH35: 17 | EI35: 8.929094547 | EJ35: 63.69843238 | EL35: 70.83333333 | EM35: 17 | EN35: 6.971799975 | EO35: 63.85600125 | EQ35: 77.27272727 | ER35: 17 | ES35: 10.49556486 | ET35: 65.05877663 | EV35: 80.95238095 | EW35: 17 | EX35: 6.22984542 | EY35: 68.12252351 | FA35: 85 | FB35: 17 | FC35: 0.9419799947 | FD35: 71.90626126 | FF35: 70.83333333 | FG35: 17 | FH35: 1.282387795 | FI35: 64.93340703 | FK35: 70.83333333 | FL35: 17 | FM35: 1.283919311 | FN35: 61.37834488 | FP35: 70.83333333 | FQ35: 17 | FR35: 16.21313216 | FS35: 74.11578449 | FW35: =SUM(FW18:FW34) -> 99.9999451
G36: 75 | H36: 18 | I36: 15.2454964 | J36: 73.12232052 | L36: 75 | M36: 18 | N36: 12.71277701 | O36: 72.505 | Q36: 75 | R36: 18 | S36: 7.706024044 | T36: 69.64099595 | V36: 75 | W36: 18 | X36: 15.96964406 | Y36: 76.39086083 | AA36: 75 | AB36: 18 | AC36: 8.086960982 | AD36: 70.04091546 | AF36: 75 | AG36: 18 | AH36: 6.365186514 | AI36: 69.42359494 | AK36: 75 | AL36: 18 | AM36: 17.42197684 | AN36: 76.92268955 | AP36: 75 | AQ36: 18 | AR36: 3.544410492 | AS36: 74.67085626 | AU36: 75 | AV36: 18 | AW36: 9.823090844 | AX36: 71.46660111 | AZ36: 75 | BA36: 18 | BB36: 6.316090378 | BC36: 69.39312601 | BE36: 75 | BF36: 18 | BG36: 8.621075434 | BH36: 71.85567993 | BJ36: 81.81818182 | BK36: 18 | BL36: 16.87934209 | BM36: 77.13646653 | BO36: 81.81818182 | BP36: 18 | BQ36: 14.47852384 | BR36: 77.13647437 | BT36: 85.71428571 | BU36: 18 | BV36: 8.834485664 | BW36: 76.95700917 | BY36: 90 | BZ36: 18 | CA36: 13.51040256 | CB36: 85.41666383 | CD36: 75 | CE36: 18 | CF36: 5.984230132 | CG36: 69.02367543 | CI36: 75 | CJ36: 18 | CK36: 10.25821766 | CL36: 70.75785084 | CN36: 75 | CO36: 18 | CP36: 8.718766882 | CQ36: 74.42057826 | CS36: 75 | CT36: 18 | CU36: 9.229731105 | CV36: 72.57589531 | CX36: 75 | CY36: 18 | CZ36: 8.962481914 | DA36: 76.66657376 | DC36: 75 | DD36: 18 | DE36: 15.02112297 | DF36: 76.92268955 | DH36: 100 | DI36: 18 | DJ36: 35.20950888 | DK36: 99.99989805 | DM36: 75 | DN36: 18 | DO36: 10.18005763 | DP36: 71.88767948 | DR36: 75 | DS36: 18 | DT36: 14.24785015 | DU36: 75.77354031 | DW36: 75 | DX36: 18 | DY36: 8.101316376 | DZ36: 70.8492806 | EB36: 75 | EC36: 18 | ED36: 2.593940371 | EE36: 74.67085626 | EG36: 75 | EH36: 18 | EI36: 5.077373111 | EJ36: 68.77580549 | EL36: 75 | EM36: 18 | EN36: 7.382358168 | EO36: 71.23835941 | EQ36: 81.81818182 | ER36: 18 | ES36: 12.07770558 | ET36: 77.13648221 | EV36: 85.71428571 | EW36: 18 | EX36: 8.834485664 | EY36: 76.95700917 | FA36: 90 | FB36: 18 | FC36: 13.51040256 | FD36: 85.41666383 | FF36: 75 | FG36: 18 | FH36: 13.14989866 | FI36: 78.08330569 | FK36: 75 | FL36: 18 | FM36: 20.33706552 | FN36: 81.7154104 | FP36: 75 | FQ36: 18 | FR36: 6.168701883 | FS36: 80.28448637
G37: 79.16666667 | H37: 19 | I37: 1.084146097 | J37: 74.20646662 | L37: 79.16666667 | M37: 19 | N37: 2.414317286 | O37: 74.91931729 | Q37: 79.16666667 | R37: 19 | S37: 8.331913916 | T37: 77.97290987 | V37: 79.16666667 | W37: 19 | X37: 1.054777176 | Y37: 77.445638 | AA37: 79.16666667 | AB37: 19 | AC37: 7.421765477 | AD37: 77.46268093 | AF37: 79.16666667 | AG37: 19 | AH37: 8.751936666 | AI37: 78.17553161 | AK37: 79.16666667 | AL37: 19 | AM37: 0.9400723848 | AN37: 77.86276194 | AP37: 79.16666667 | AQ37: 19 | AR37: 9.17962155 | AS37: 83.85047781 | AU37: 79.16666667 | AV37: 19 | AW37: 5.996079821 | AX37: 77.46268093 | AZ37: 79.16666667 | BA37: 19 | BB37: 7.366029267 | BC37: 76.75915527 | BE37: 79.16666667 | BF37: 19 | BG37: 10.33038267 | BH37: 82.1860626 | BJ37: 86.36363636 | BK37: 19 | BL37: 0.9821495924 | BM37: 78.11861612 | BO37: 86.36363636 | BP37: 19 | BQ37: 0.9821417499 | BR37: 78.11861612 | BT37: 90.47619048 | BU37: 19 | BV37: 2.361801146 | BW37: 79.31881032 | BY37: 95 | BZ37: 19 | CA37: 0.6276887174 | CB37: 86.04435254 | CD37: 79.16666667 | CE37: 19 | CF37: 9.662085105 | CG37: 78.68576054 | CI37: 79.16666667 | CJ37: 19 | CK37: 9.385507988 | CL37: 80.14335883 | CN37: 79.16666667 | CO37: 19 | CP37: 5.195508699 | CQ37: 79.61608696 | CS37: 79.16666667 | CT37: 19 | CU37: 10.01020439 | CV37: 82.5860997 | CX37: 79.16666667 | CY37: 19 | CZ37: 9.053709007 | DA37: 85.72028276 | DC37: 79.16666667 | DD37: 19 | DE37: 0.9400723848 | DF37: 77.86276194 | DJ37: =SUM(DJ18:DJ36) -> 99.99989805 | DM37: 79.16666667 | DN37: 19 | DO37: 3.744488474 | DP37: 75.63216796 | DR37: 79.16666667 | DS37: 19 | DT37: 2.384948364 | DU37: 78.15848867 | DW37: 79.16666667 | DX37: 19 | DY37: 7.32625101 | DZ37: 78.17553161 | EB37: 79.16666667 | EC37: 19 | ED37: 9.17962155 | EE37: 83.85047781 | EG37: 79.16666667 | EH37: 19 | EI37: 8.696200456 | EJ37: 77.47200595 | EL37: 79.16666667 | EM37: 19 | EN37: 11.66055386 | EO37: 82.89891327 | EQ37: 86.36363636 | ER37: 19 | ES37: 0.9821339075 | ET37: 78.11861612 | EV37: 90.47619048 | EW37: 19 | EX37: 2.361801146 | EY37: 79.31881032 | FA37: 95 | FB37: 19 | FC37: 0.6276887174 | FD37: 86.04435254 | FF37: 79.16666667 | FG37: 19 | FH37: 1.00550941 | FI37: 79.0888151 | FK37: 79.16666667 | FL37: 19 | FM37: 0.8706892986 | FN37: 82.5860997 | FP37: 79.16666667 | FQ37: 19 | FR37: 5.43579639 | FS37: 85.72028276
G38: 83.33333333 | H38: 20 | I38: 13.33398185 | J38: 87.54044846 | L38: 83.33333333 | M38: 20 | N38: 12.62113117 | O38: 87.54044846 | Q38: 83.33333333 | R38: 20 | S38: 8.306362493 | T38: 86.27927236 | V38: 83.33333333 | W38: 20 | X38: 11.54711547 | Y38: 88.99275347 | AA38: 83.33333333 | AB38: 20 | AC38: 7.064845108 | AD38: 84.52752604 | AF38: 83.33333333 | AG38: 20 | AH38: 6.351994438 | AI38: 84.52752604 | AK38: 83.33333333 | AL38: 20 | AM38: 11.88628686 | AN38: 89.7490488 | AP38: 83.33333333 | AQ38: 20 | AR38: 4.828547324 | AS38: 88.67902513 | AU38: 83.33333333 | AV38: 20 | AW38: 7.064845108 | AX38: 84.52752604 | AZ38: 83.33333333 | BA38: 20 | BB38: 10.57316112 | BC38: 87.3323164 | BE38: 83.33333333 | BF38: 20 | BG38: 5.146253796 | BH38: 87.3323164 | BJ38: 90.90909091 | BK38: 20 | BL38: 8.756408036 | BM38: 86.87502415 | BO38: 90.90909091 | BP38: 20 | BQ38: 8.756408036 | BR38: 86.87502415 | BT38: 95.23809524 | BU38: 20 | BV38: 9.644721248 | BW38: 88.96353157 | BY38: 100 | BZ38: 20 | CA38: 13.95564746 | CB38: 100 | CD38: 83.33333333 | CE38: 20 | CF38: 7.593511822 | CG38: 86.27927236 | CI38: 83.33333333 | CJ38: 20 | CK38: 4.874737428 | CL38: 85.01809626 | CN38: 83.33333333 | CO38: 20 | CP38: 8.115490407 | CQ38: 87.73157737 | CS38: 83.33333333 | CT38: 20 | CU38: 7.162949103 | CV38: 89.7490488 | CX38: 83.33333333 | CY38: 20 | CZ38: 2.958742368 | DA38: 88.67902513 | DC38: 83.33333333 | DD38: 20 | DE38: 11.88628686 | DF38: 89.7490488 | DM38: 83.33333333 | DN38: 20 | DO38: 11.9082805 | DP38: 87.54044846 | DR38: 83.33333333 | DS38: 20 | DT38: 10.8342648 | DU38: 88.99275347 | DW38: 83.33333333 | DX38: 20 | DY38: 6.351994438 | DZ38: 84.52752604 | EB38: 83.33333333 | EC38: 20 | ED38: 4.828547324 | EE38: 88.67902513 | EG38: 83.33333333 | EH38: 20 | EI38: 9.860310454 | EJ38: 87.3323164 | EL38: 83.33333333 | EM38: 20 | EN38: 4.433403125 | EO38: 87.3323164 | EQ38: 90.90909091 | ER38: 20 | ES38: 8.756408036 | ET38: 86.87502415 | EV38: 95.23809524 | EW38: 20 | EX38: 9.644721248 | EY38: 88.96353157 | FA38: 100 | FB38: 20 | FC38: 13.95564746 | FD38: 100 | FF38: 83.33333333 | FG38: 20 | FH38: 11.35624339 | FI38: 90.44505848 | FK38: 83.33333333 | FL38: 20 | FM38: 7.162949103 | FN38: 89.7490488 | FP38: 83.33333333 | FQ38: 20 | FR38: 2.958742368 | FS38: 88.67902513
G39: 87.5 | H39: 21 | I39: 0.6479633219 | J39: 88.18841178 | L39: 87.5 | M39: 21 | N39: 0.6479633219 | O39: 88.18841178 | Q39: 87.5 | R39: 21 | S39: 3.311554209 | T39: 89.59082657 | V39: 87.5 | W39: 21 | X39: 0.5980730961 | Y39: 89.59082657 | AA39: 87.5 | AB39: 21 | AC39: 6.85659525 | AD39: 91.38412129 | AF39: 87.5 | AG39: 21 | AH39: 6.85659525 | AI39: 91.38412129 | AK39: 87.5 | AL39: 21 | AM39: 0.5151056714 | AN39: 90.26415447 | AP39: 87.5 | AQ39: 21 | AR39: 5.792326638 | AS39: 94.47135177 | AU39: 87.5 | AV39: 21 | AW39: 6.85659525 | AX39: 91.38412129 | AZ39: 87.5 | BA39: 21 | BB39: 4.051804894 | BC39: 91.38412129 | BE39: 87.5 | BF39: 21 | BG39: 4.051804894 | BH39: 91.38412129 | BJ39: 95.45454545 | BK39: 21 | BL39: 0.564856714 | BM39: 87.43988087 | BO39: 95.45454545 | BP39: 21 | BQ39: 0.564856714 | BR39: 87.43988087 | BT39: 100 | BU39: 21 | BV39: 11.03646843 | BW39: 100 | CA39: =SUM(CA18:CA38) -> 100 | CD39: 87.5 | CE39: 21 | CF39: 3.311554209 | CG39: 89.59082657 | CI39: 87.5 | CJ39: 21 | CK39: 5.975145096 | CL39: 90.99324135 | CN39: 87.5 | CO39: 21 | CP39: 3.261663983 | CQ39: 90.99324135 | CS39: 87.5 | CT39: 21 | CU39: 0.5151056714 | CV39: 90.26415447 | CX39: 87.5 | CY39: 21 | CZ39: 5.792326638 | DA39: 94.47135177 | DC39: 87.5 | DD39: 21 | DE39: 0.5151056714 | DF39: 90.26415447 | DM39: 87.5 | DN39: 21 | DO39: 0.6479633219 | DP39: 88.18841178 | DR39: 87.5 | DS39: 21 | DT39: 0.5980730961 | DU39: 89.59082657 | DW39: 87.5 | DX39: 21 | DY39: 6.85659525 | DZ39: 91.38412129 | EB39: 87.5 | EC39: 21 | ED39: 5.792326638 | EE39: 94.47135177 | EG39: 87.5 | EH39: 21 | EI39: 4.051804894 | EJ39: 91.38412129 | EL39: 87.5 | EM39: 21 | EN39: 4.051804894 | EO39: 91.38412129 | EQ39: 95.45454545 | ER39: 21 | ES39: 0.564856714 | ET39: 87.43988087 | EV39: 100 | EW39: 21 | EX39: 11.03646843 | EY39: 100 | FC39: =SUM(FC18:FC38) -> 100 | FF39: 87.5 | FG39: 21 | FH39: 0.5481828703 | FI39: 90.99324135 | FK39: 87.5 | FL39: 21 | FM39: 0.5151056714 | FN39: 90.26415447 | FP39: 87.5 | FQ39: 21 | FR39: 5.792326638 | FS39: 94.47135177
G40: 91.66666667 | H40: 22 | I40: 6.676716029 | J40: 94.86512781 | L40: 91.66666667 | M40: 22 | N40: 6.676716029 | O40: 94.86512781 | Q40: 91.66666667 | R40: 22 | S40: 5.274301245 | T40: 94.86512781 | V40: 91.66666667 | W40: 22 | X40: 5.274301245 | Y40: 94.86512781 | AA40: 91.66666667 | AB40: 22 | AC40: 1.575925832 | AD40: 92.96004713 | AF40: 91.66666667 | AG40: 22 | AH40: 1.575925832 | AI40: 92.96004713 | AK40: 91.66666667 | AL40: 22 | AM40: 6.788454938 | AN40: 97.05260941 | AP40: 91.66666667 | AQ40: 22 | AR40: 2.58125764 | AS40: 97.05260941 | AU40: 91.66666667 | AV40: 22 | AW40: 1.575925832 | AX40: 92.96004713 | AZ40: 91.66666667 | BA40: 22 | BB40: 1.575925832 | BC40: 92.96004713 | BE40: 91.66666667 | BF40: 22 | BG40: 1.575925832 | BH40: 92.96004713 | BJ40: 100 | BK40: 22 | BL40: 12.56011913 | BM40: 100 | BO40: 100 | BP40: 22 | BQ40: 12.56011913 | BR40: 100 | BV40: =SUM(BV18:BV39) -> 100 | CD40: 91.66666667 | CE40: 22 | CF40: 5.274301245 | CG40: 94.86512781 | CI40: 91.66666667 | CJ40: 22 | CK40: 3.871886461 | CL40: 94.86512781 | CN40: 91.66666667 | CO40: 22 | CP40: 3.871886461 | CQ40: 94.86512781 | CS40: 91.66666667 | CT40: 22 | CU40: 6.788454938 | CV40: 97.05260941 | CX40: 91.66666667 | CY40: 22 | CZ40: 2.58125764 | DA40: 97.05260941 | DC40: 91.66666667 | DD40: 22 | DE40: 6.788454938 | DF40: 97.05260941 | DM40: 91.66666667 | DN40: 22 | DO40: 6.676716029 | DP40: 94.86512781 | DR40: 91.66666667 | DS40: 22 | DT40: 5.274301245 | DU40: 94.86512781 | DW40: 91.66666667 | DX40: 22 | DY40: 1.575925832 | DZ40: 92.96004713 | EB40: 91.66666667 | EC40: 22 | ED40: 2.58125764 | EE40: 97.05260941 | EG40: 91.66666667 | EH40: 22 | EI40: 1.575925832 | EJ40: 92.96004713 | EL40: 91.66666667 | EM40: 22 | EN40: 1.575925832 | EO40: 92.96004713 | EQ40: 100 | ER40: 22 | ES40: 12.56011913 | ET40: 100 | EX40: =SUM(EX18:EX39) -> 100 | FF40: 91.66666667 | FG40: 22 | FH40: 3.871886461 | FI40: 94.86512781 | FK40: 91.66666667 | FL40: 22 | FM40: 6.788454938 | FN40: 97.05260941 | FP40: 91.66666667 | FQ40: 22 | FR40: 2.58125764 | FS40: 97.05260941
G41: 95.83333333 | H41: 23 | I41: 0.2824440419 | J41: 95.14757186 | L41: 95.83333333 | M41: 23 | N41: 0.2824440419 | O41: 95.14757186 | Q41: 95.83333333 | R41: 23 | S41: 0.2824440419 | T41: 95.14757186 | V41: 95.83333333 | W41: 23 | X41: 0.2824440419 | Y41: 95.14757186 | AA41: 95.83333333 | AB41: 23 | AC41: 4.280858313 | AD41: 97.24090544 | AF41: 95.83333333 | AG41: 23 | AH41: 4.280858313 | AI41: 97.24090544 | AK41: 95.83333333 | AL41: 23 | AM41: 0.1882960279 | AN41: 97.24090544 | AP41: 95.83333333 | AQ41: 23 | AR41: 0.1882960279 | AS41: 97.24090544 | AU41: 95.83333333 | AV41: 23 | AW41: 4.280858313 | AX41: 97.24090544 | AZ41: 95.83333333 | BA41: 23 | BB41: 4.280858313 | BC41: 97.24090544 | BE41: 95.83333333 | BF41: 23 | BG41: 4.280858313 | BH41: 97.24090544 | BL41: =SUM(BL18:BL40) -> 100 | BQ41: =SUM(BQ18:BQ40) -> 100 | CD41: 95.83333333 | CE41: 23 | CF41: 0.2824440419 | CG41: 95.14757186 | CI41: 95.83333333 | CJ41: 23 | CK41: 0.2824440419 | CL41: 95.14757186 | CN41: 95.83333333 | CO41: 23 | CP41: 0.2824440419 | CQ41: 95.14757186 | CS41: 95.83333333 | CT41: 23 | CU41: 0.1882960279 | CV41: 97.24090544 | CX41: 95.83333333 | CY41: 23 | CZ41: 0.1882960279 | DA41: 97.24090544 | DC41: 95.83333333 | DD41: 23 | DE41: 0.1882960279 | DF41: 97.24090544 | DM41: 95.83333333 | DN41: 23 | DO41: 0.2824440419 | DP41: 95.14757186 | DR41: 95.83333333 | DS41: 23 | DT41: 0.2824440419 | DU41: 95.14757186 | DW41: 95.83333333 | DX41: 23 | DY41: 4.280858313 | DZ41: 97.24090544 | EB41: 95.83333333 | EC41: 23 | ED41: 0.1882960279 | EE41: 97.24090544 | EG41: 95.83333333 | EH41: 23 | EI41: 4.280858313 | EJ41: 97.24090544 | EL41: 95.83333333 | EM41: 23 | EN41: 4.280858313 | EO41: 97.24090544 | ES41: =SUM(ES18:ES40) -> 100 | FF41: 95.83333333 | FG41: 23 | FH41: 0.2824440419 | FI41: 95.14757186 | FK41: 95.83333333 | FL41: 23 | FM41: 0.1882960279 | FN41: 97.24090544 | FP41: 95.83333333 | FQ41: 23 | FR41: 0.1882960279 | FS41: 97.24090544
G42: 100 | H42: 24 | I42: 4.852428144 | J42: 100 | L42: 100 | M42: 24 | N42: 4.852428144 | O42: 100 | Q42: 100 | R42: 24 | S42: 4.852428144 | T42: 100 | V42: 100 | W42: 24 | X42: 4.852428144 | Y42: 100 | AA42: 100 | AB42: 24 | AC42: 2.759094562 | AD42: 100 | AF42: 100 | AG42: 24 | AH42: 2.759094562 | AI42: 100 | AK42: 100 | AL42: 24 | AM42: 2.759094562 | AN42: 100 | AP42: 100 | AQ42: 24 | AR42: 2.759094562 | AS42: 100 | AU42: 100 | AV42: 24 | AW42: 2.759094562 | AX42: 100 | AZ42: 100 | BA42: 24 | BB42: 2.759094562 | BC42: 100 | BE42: 100 | BF42: 24 | BG42: 2.759094562 | BH42: 100 | CD42: 100 | CE42: 24 | CF42: 4.852428144 | CG42: 100 | CI42: 100 | CJ42: 24 | CK42: 4.852428144 | CL42: 100 | CN42: 100 | CO42: 24 | CP42: 4.852428144 | CQ42: 100 | CS42: 100 | CT42: 24 | CU42: 2.759094562 | CV42: 100 | CX42: 100 | CY42: 24 | CZ42: 2.759094562 | DA42: 100 | DC42: 100 | DD42: 24 | DE42: 2.759094562 | DF42: 100 | DM42: 100 | DN42: 24 | DO42: 4.852428144 | DP42: 100 | DR42: 100 | DS42: 24 | DT42: 4.852428144 | DU42: 100 | DW42: 100 | DX42: 24 | DY42: 2.759094562 | DZ42: 100 | EB42: 100 | EC42: 24 | ED42: 2.759094562 | EE42: 100 | EG42: 100 | EH42: 24 | EI42: 2.759094562 | EJ42: 100 | EL42: 100 | EM42: 24 | EN42: 2.759094562 | EO42: 100 | FF42: 100 | FG42: 24 | FH42: 4.852428144 | FI42: 100 | FK42: 100 | FL42: 24 | FM42: 2.759094562 | FN42: 100 | FP42: 100 | FQ42: 24 | FR42: 2.759094562 | FS42: 100
I43: =SUM(I18:I42) -> 100 | N43: =SUM(N18:N42) -> 100 | S43: =SUM(S18:S42) -> 100 | X43: =SUM(X18:X42) -> 100 | AC43: =SUM(AC18:AC42) -> 100 | AH43: =SUM(AH18:AH42) -> 100 | AM43: =SUM(AM18:AM42) -> 100 | AR43: =SUM(AR18:AR42) -> 100 | AW43: =SUM(AW18:AW42) -> 100 | BB43: =SUM(BB18:BB42) -> 100 | BG43: =SUM(BG18:BG42) -> 100 | CF43: =SUM(CF18:CF42) -> 100 | CK43: =SUM(CK18:CK42) -> 100 | CP43: =SUM(CP18:CP42) -> 100 | CU43: =SUM(CU18:CU42) -> 100 | CZ43: =SUM(CZ18:CZ42) -> 100 | DE43: =SUM(DE18:DE42) -> 100 | DO43: =SUM(DO18:DO42) -> 100 | DT43: =SUM(DT18:DT42) -> 100 | DY43: =SUM(DY18:DY42) -> 100 | ED43: =SUM(ED18:ED42) -> 100 | EI43: =SUM(EI18:EI42) -> 100 | EN43: =SUM(EN18:EN42) -> 100 | FH43: =SUM(FH18:FH42) -> 100 | FM43: =SUM(FM18:FM42) -> 100 | FR43: =SUM(FR18:FR42) -> 100
G44: With ties, ndig=3 | L44: With ties, ndig=3 | Q44: With ties, ndig=3 | V44: With ties, ndig=3 | AA44: With ties, ndig=3 | AF44: With ties, ndig=3 | AK44: With ties, ndig=3 | AP44: With ties, ndig=3 | AU44: With ties, ndig=3 | AZ44: With ties, ndig=3 | BE44: With ties, ndig=3 | BJ44: With ties, ndig=3 | BO44: With ties, ndig=3 | BT44: With ties, ndig=3 | BY44: With ties, ndig=3 | CD44: With ties, ndig=3 | CI44: With ties, ndig=3 | CN44: With ties, ndig=3 | CS44: With ties, ndig=3 | CX44: With ties, ndig=3 | DC44: With ties, ndig=3 | DH44: With ties, ndig=3 | DM44: With ties, ndig=3 | DR44: With ties, ndig=3 | DW44: With ties, ndig=3 | EB44: With ties, ndig=3 | EG44: With ties, ndig=3 | EL44: With ties, ndig=3 | EQ44: With ties, ndig=3 | EV44: With ties, ndig=3 | FA44: With ties, ndig=3 | FF44: With ties, ndig=3 | FK44: With ties, ndig=3 | FP44: With ties, ndig=3 | FU44: With ties, ndig=3 | FZ44: With ties, ndig=3
G45: RC1 | I45: MaxSRDrep= | J45: 24 | L45: RC2, RC33 | N45: MaxSRDrep= | O45: 24 | Q45: RC3, RC17 | S45: MaxSRDrep= | T45: 24 | V45: RC4, RC49 | X45: MaxSRDrep= | Y45: 24 | AA45: RC5, RC9 | AC45: MaxSRDrep= | AD45: 24 | AF45: RC6, RC41 | AH45: MaxSRDrep= | AI45: 24 | AK45: RC7, RC25 | AM45: MaxSRDrep= | AN45: 24 | AP45: RC8, RC57 | AR45: MaxSRDrep= | AS45: 24 | AU45: RC10, RC37 | AW45: MaxSRDrep= | AX45: 24 | AZ45: RC11, RC21 | BB45: MaxSRDrep= | BC45: 24 | BE45: RC12, RC53 | BG45: MaxSRDrep= | BH45: 24 | BJ45: RC13 | BL45: MaxSRDrep= | BM45: 22 | BO45: RC14, RC45 | BQ45: MaxSRDrep= | BR45: 22 | BT45: RC15, RC29 | BV45: MaxSRDrep= | BW45: 21 | BY45: RC16, RC61 | CA45: MaxSRDrep= | CB45: 20 | CD45: RC18, RC35 | CF45: MaxSRDrep= | CG45: 24 | CI45: RC19 | CK45: MaxSRDrep= | CL45: 24 | CN45: RC20, RC51 | CP45: MaxSRDrep= | CQ45: 24 | CS45: RC23, RC27 | CU45: MaxSRDrep= | CV45: 24 | CX45: RC24, RC59 | CZ45: MaxSRDrep= | DA45: 24 | DC45: RC26, RC39 | DE45: MaxSRDrep= | DF45: 24 | DH45: RC31 | DJ45: MaxSRDrep= | DK45: 18 | DM45: RC34 | DO45: MaxSRDrep= | DP45: 24 | DR45: RC36, RC50 | DT45: MaxSRDrep= | DU45: 24 | DW45: RC38, RC42 | DY45: MaxSRDrep= | DZ45: 24 | EB45: RC40, RC58 | ED45: MaxSRDrep= | EE45: 24 | EG45: RC43, RC22 | EI45: MaxSRDrep= | EJ45: 24 | EL45: RC44, RC54 | EN45: MaxSRDrep= | EO45: 24 | EQ45: RC46 | ES45: MaxSRDrep= | ET45: 22 | EV45: RC47, RC30 | EX45: MaxSRDrep= | EY45: 21 | FA45: RC48, RC62 | FC45: MaxSRDrep= | FD45: 20 | FF45: RC52 | FH45: MaxSRDrep= | FI45: 24 | FK45: RC55, RC28 | FM45: MaxSRDrep= | FN45: 24 | FP45: RC56, RC60 | FR45: MaxSRDrep= | FS45: 24 | FU45: RC63, RC32 | FW45: MaxSRDrep= | FX45: 16 | FZ45: RC64 | GB45: MaxSRDrep= | GC45: 12
G46: RC=[1 ; 2 ; 3 ; 4 ; 5 ; 6 ; 7] | L46: RC=[1 ; 2 ; 3 ; 4 ; 5 ; 6,5 ; 6,5] or [1,5 ; 1,5 ; 3 ; 4 ; 5 ; 6 ; 7] | Q46: RC=[1 ; 2 ; 3 ; 4 ; 5,5 ; 5,5 ; 7] or [1 ; 2,5 ; 2,5 ; 4 ; 5 ; 6 ; 7] | V46: RC=[1 ; 2 ; 3 ; 4 ; 6 ; 6 ; 6] or [2 ; 2 ; 2 ; 4 ; 5 ; 6 ; 7] | AA46: RC=[1 ; 2 ; 3 ; 4,5 ; 4,5 ; 6 ; 7] or [1 ; 2 ; 3,5 ; 3,5 ; 5 ; 6 ; 7] | AF46: RC=[1 ; 2 ; 3 ; 4,5 ; 4,5 ; 6,5 ; 6,5] or [1,5 ; 1,5 ; 3,5 ; 3,5 ; 5 ; 6 ; 7] | AK46: RC=[1 ; 2 ; 3 ; 5 ; 5 ; 5 ; 7] or [1 ; 3 ; 3 ; 3 ; 5 ; 6 ; 7] | AP46: RC=[1 ; 2 ; 3 ; 5,5 ; 5,5 ; 5,5 ; 5,5] or [2,5 ; 2,5 ; 2,5 ; 2,5 ; 5 ; 6 ; 7] | AU46: RC=[1 ; 2 ; 3,5 ; 3,5 ; 5 ; 6,5 ; 6,5] or [1,5 ; 1,5 ; 3 ; 4,5 ; 4,5 ; 6 ; 7] | AZ46: RC=[1 ; 2 ; 3,5 ; 3,5 ; 5,5 ; 5,5 ; 7] or [1 ; 2,5 ; 2,5 ; 4,5 ; 4,5 ; 6 ; 7] | BE46: RC=[1 ; 2 ; 3,5 ; 3,5 ; 6 ; 6 ; 6] or [2 ; 2 ; 2 ; 4,5 ; 4,5 ; 6 ; 7] | BJ46: RC=[1 ; 2 ; 4 ; 4 ; 4 ; 6 ; 7] | BO46: RC=[1 ; 2 ; 4 ; 4 ; 4 ; 6,5 ; 6,5] or [1,5 ; 1,5 ; 4 ; 4 ; 4 ; 6 ; 7] | BT46: RC=[1 ; 2 ; 4,5 ; 4,5 ; 4,5 ; 4,5 ; 7] or [1 ; 3,5 ; 3,5 ; 3,5 ; 3,5 ; 6 ; 7] | BY46: RC=[1 ; 2 ; 5 ; 5 ; 5 ; 5 ; 5] or [3 ; 3 ; 3 ; 3 ; 3 ; 6 ; 7] | CD46: RC=[1 ; 2,5 ; 2,5 ; 4 ; 5 ; 6,5 ; 6,5] or [1,5 ; 1,5 ; 3 ; 4 ; 5,5 ; 5,5 ; 7] | CI46: RC=[1 ; 2,5 ; 2,5 ; 4 ; 5,5 ; 5,5 ; 7] | CN46: RC=[1 ; 2,5 ; 2,5 ; 4 ; 6 ; 6 ; 6] or [2 ; 2 ; 2 ; 4 ; 5,5 ; 5,5 ; 7] | CS46: RC=[1 ; 2,5 ; 2,5 ; 5 ; 5 ; 5 ; 7] or [1 ; 3 ; 3 ; 3 ; 5,5 ; 5,5 ; 7] | CX46: RC=[1 ; 2,5 ; 2,5 ; 5,5 ; 5,5 ; 5,5 ; 5,5] or [2,5 ; 2,5 ; 2,5 ; 2,5 ; 5,5 ; 5,5 ; 7] | DC46: RC=[1 ; 3 ; 3 ; 3 ; 5 ; 6,5 ; 6,5] or [1,5 ; 1,5 ; 3 ; 5 ; 5 ; 5 ; 7] | DH46: RC=[1 ; 4 ; 4 ; 4 ; 4 ; 4 ; 7] | DM46: RC=[1,5 ; 1,5 ; 3 ; 4 ; 5 ; 6,5 ; 6,5] | DR46: RC=[1,5 ; 1,5 ; 3 ; 4 ; 6 ; 6 ; 6] or [2 ; 2 ; 2 ; 4 ; 5 ; 6,5 ; 6,5] | DW46: RC=[1,5 ; 1,5 ; 3 ; 4,5 ; 4,5 ; 6,5 ; 6,5] or [1,5 ; 1,5 ; 3,5 ; 3,5 ; 5 ; 6,5 ; 6,5] | EB46: RC=[1,5 ; 1,5 ; 3 ; 5,5 ; 5,5 ; 5,5 ; 5,5] or [2,5 ; 2,5 ; 2,5 ; 2,5 ; 5 ; 6,5 ; 6,5] | EG46: RC=[1,5 ; 1,5 ; 3,5 ; 3,5 ; 5,5 ; 5,5 ; 7] or [1 ; 2,5 ; 2,5 ; 4,5 ; 4,5 ; 6,5 ; 6,5] | EL46: RC=[1,5 ; 1,5 ; 3,5 ; 3,5 ; 6 ; 6 ; 6] or [2 ; 2 ; 2 ; 4,5 ; 4,5 ; 6,5 ; 6,5] | EQ46: RC=[1,5 ; 1,5 ; 4 ; 4 ; 4 ; 6,5 ; 6,5] | EV46: RC=[1,5 ; 1,5 ; 4,5 ; 4,5 ; 4,5 ; 4,5 ; 7] or [1 ; 3,5 ; 3,5 ; 3,5 ; 3,5 ; 6,5 ; 6,5] | FA46: RC=[1,5 ; 1,5 ; 5 ; 5 ; 5 ; 5 ; 5] or [3 ; 3 ; 3 ; 3 ; 3 ; 6,5 ; 6,5] | FF46: RC=[2 ; 2 ; 2 ; 4 ; 6 ; 6 ; 6] | FK46: RC=[2 ; 2 ; 2 ; 5 ; 5 ; 5 ; 7] or [1 ; 3 ; 3 ; 3 ; 6 ; 6 ; 6] | FP46: RC=[2 ; 2 ; 2 ; 5,5 ; 5,5 ; 5,5 ; 5,5] or [2,5 ; 2,5 ; 2,5 ; 2,5 ; 6 ; 6 ; 6] | FU46: RC=[3,5 ; 3,5 ; 3,5 ; 3,5 ; 3,5 ; 3,5 ; 7] or [1 ; 4,5 ; 4,5 ; 4,5 ; 4,5 ; 4,5 ; 4,5] | FZ46: RC=[4 ; 4 ; 4 ; 4 ; 4 ; 4 ; 4]
G47: SRDnor | H47: SRD | I47: relFr% | J47: CrFR% | L47: SRDnor | M47: SRD | N47: relFr% | O47: CrFR% | Q47: SRDnor | R47: SRD | S47: relFr% | T47: CrFR% | V47: SRDnor | W47: SRD | X47: relFr% | Y47: CrFR% | AA47: SRDnor | AB47: SRD | AC47: relFr% | AD47: CrFR% | AF47: SRDnor | AG47: SRD | AH47: relFr% | AI47: CrFR% | AK47: SRDnor | AL47: SRD | AM47: relFr% | AN47: CrFR% | AP47: SRDnor | AQ47: SRD | AR47: relFr% | AS47: CrFR% | AU47: SRDnor | AV47: SRD | AW47: relFr% | AX47: CrFR% | AZ47: SRDnor | BA47: SRD | BB47: relFr% | BC47: CrFR% | BE47: SRDnor | BF47: SRD | BG47: relFr% | BH47: CrFR% | BJ47: SRDnor | BK47: SRD | BL47: relFr% | BM47: CrFR% | BO47: SRDnor | BP47: SRD | BQ47: relFr% | BR47: CrFR% | BT47: SRDnor | BU47: SRD | BV47: relFr% | BW47: CrFR% | BY47: SRDnor | BZ47: SRD | CA47: relFr% | CB47: CrFR% | CD47: SRDnor | CE47: SRD | CF47: relFr% | CG47: CrFR% | CI47: SRDnor | CJ47: SRD | CK47: relFr% | CL47: CrFR% | CN47: SRDnor | CO47: SRD | CP47: relFr% | CQ47: CrFR% | CS47: SRDnor | CT47: SRD | CU47: relFr% | CV47: CrFR% | CX47: SRDnor | CY47: SRD | CZ47: relFr% | DA47: CrFR% | DC47: SRDnor | DD47: SRD | DE47: relFr% | DF47: CrFR% | DH47: SRDnor | DI47: SRD | DJ47: relFr% | DK47: CrFR% | DM47: SRDnor | DN47: SRD | DO47: relFr% | DP47: CrFR% | DR47: SRDnor | DS47: SRD | DT47: relFr% | DU47: CrFR% | DW47: SRDnor | DX47: SRD | DY47: relFr% | DZ47: CrFR% | EB47: SRDnor | EC47: SRD | ED47: relFr% | EE47: CrFR% | EG47: SRDnor | EH47: SRD | EI47: relFr% | EJ47: CrFR% | EL47: SRDnor | EM47: SRD | EN47: relFr% | EO47: CrFR% | EQ47: SRDnor | ER47: SRD | ES47: relFr% | ET47: CrFR% | EV47: SRDnor | EW47: SRD | EX47: relFr% | EY47: CrFR% | FA47: SRDnor | FB47: SRD | FC47: relFr% | FD47: CrFR% | FF47: SRDnor | FG47: SRD | FH47: relFr% | FI47: CrFR% | FK47: SRDnor | FL47: SRD | FM47: relFr% | FN47: CrFR% | FP47: SRDnor | FQ47: SRD | FR47: relFr% | FS47: CrFR% | FU47: SRDnor | FV47: SRD | FW47: relFr% | FX47: CrFR% | FZ47: SRDnor | GA47: SRD | GB47: relFr% | GC47: CrFR%
G48: 0 | H48: 0 | I48: 0.01942806085 | J48: 0.01942806085 | L48: 0 | M48: 0 | N48: 0.0001368173299 | O48: 0.0001368173299 | Q48: 0 | R48: 0 | S48: 0.0001368173299 | T48: 0.0001368173299 | V48: 0 | W48: 0 | X48: 8.25029125e-07 | Y48: 8.25029125e-07 | AA48: 0 | AB48: 0 | AC48: 0.0001368173299 | AD48: 0.0001368173299 | AF48: 0 | AG48: 0 | AH48: 8.25029125e-07 | AI48: 8.25029125e-07 | AK48: 0 | AL48: 0 | AM48: 8.25029125e-07 | AN48: 8.25029125e-07 | AP48: 0 | AQ48: 0 | AR48: 4.141712475e-09 | AS48: 4.141712475e-09 | AU48: 0 | AV48: 0 | AW48: 8.25029125e-07 | AX48: 8.25029125e-07 | AZ48: 0 | BA48: 0 | BB48: 8.25029125e-07 | BC48: 8.25029125e-07 | BE48: 0 | BF48: 0 | BG48: 4.141712475e-09 | BH48: 4.141712475e-09 | BJ48: 0 | BK48: 0 | BL48: 8.25029125e-07 | BM48: 8.25029125e-07 | BO48: 0 | BP48: 0 | BQ48: 4.141712475e-09 | BR48: 4.141712475e-09 | BT48: 0 | BU48: 0 | BV48: 4.141712475e-09 | BW48: 4.141712475e-09 | BY48: 0 | BZ48: 0 | CA48: 1.66167e-11 | CB48: 1.66167e-11 | CD48: 0 | CE48: 0 | CF48: 8.25029125e-07 | CG48: 8.25029125e-07 | CI48: 0 | CJ48: 0 | CK48: 8.25029125e-07 | CL48: 8.25029125e-07 | CN48: 0 | CO48: 0 | CP48: 4.141712475e-09 | CQ48: 4.141712475e-09 | CS48: 0 | CT48: 0 | CU48: 4.141712475e-09 | CV48: 4.141712475e-09 | CX48: 0 | CY48: 0 | CZ48: 1.66167e-11 | DA48: 1.66167e-11 | DC48: 0 | DD48: 0 | DE48: 4.141712475e-09 | DF48: 4.141712475e-09 | DH48: 0 | DI48: 0 | DJ48: 1.66167e-11 | DK48: 1.66167e-11 | DM48: 0 | DN48: 0 | DO48: 8.25029125e-07 | DP48: 8.25029125e-07 | DR48: 0 | DS48: 0 | DT48: 4.141712475e-09 | DU48: 4.141712475e-09 | DW48: 0 | DX48: 0 | DY48: 4.141712475e-09 | DZ48: 4.141712475e-09 | EB48: 0 | EC48: 0 | ED48: 1.66167e-11 | EE48: 1.66167e-11 | EG48: 0 | EH48: 0 | EI48: 4.141712475e-09 | EJ48: 4.141712475e-09 | EL48: 0 | EM48: 0 | EN48: 1.66167e-11 | EO48: 1.66167e-11 | EQ48: 0 | ER48: 0 | ES48: 1.66167e-11 | ET48: 1.66167e-11 | EV48: 0 | EW48: 0 | EX48: 1.66167e-11 | EY48: 1.66167e-11 | FA48: 0 | FB48: 0 | FC48: 4.995e-14 | FD48: 4.995e-14 | FF48: 0 | FG48: 0 | FH48: 1.66167e-11 | FI48: 1.66167e-11 | FK48: 0 | FL48: 0 | FM48: 1.66167e-11 | FN48: 1.66167e-11 | FP48: 0 | FQ48: 0 | FR48: 4.995e-14 | FS48: 4.995e-14 | FU48: 0 | FV48: 0 | FW48: 4.995e-14 | FX48: 4.995e-14 | FZ48: 0 | GA48: 0 | GB48: 0 | GC48: 0
G49: 4.166666667 | H49: 1 | I49: 0.0008209039794 | J49: 0.02024896483 | L49: 4.166666667 | M49: 1 | N49: 0.03885942181 | O49: 0.03899623914 | Q49: 4.166666667 | R49: 1 | S49: 0.03885859678 | T49: 0.03899541411 | V49: 4.166666667 | W49: 1 | X49: 1.242513742e-08 | Y49: 8.374542624e-07 | AA49: 4.166666667 | AB49: 1 | AC49: 0.03885859678 | AD49: 0.03899541411 | AF49: 4.166666667 | AG49: 1 | AH49: 0.000547277603 | AI49: 0.0005481026321 | AK49: 4.166666667 | AL49: 1 | AM49: 8.28342495e-09 | AN49: 8.3331255e-07 | AP49: 4.166666667 | AQ49: 1 | AR49: 3.32334e-11 | AS49: 4.174945875e-09 | AU49: 4.166666667 | AV49: 1 | AW49: 0.0005472734613 | AX49: 0.0005480984904 | AZ49: 4.166666667 | BA49: 1 | BB49: 0.0005472734613 | BC49: 0.0005480984904 | BE49: 4.166666667 | BF49: 1 | BG49: 1.650074867e-06 | BH49: 1.654216579e-06 | BJ49: 4.545454545 | BK49: 1 | BL49: 8.28342495e-09 | BM49: 8.3331255e-07 | BO49: 4.545454545 | BP49: 1 | BQ49: 1.650074867e-06 | BR49: 1.654216579e-06 | BT49: 4.761904762 | BU49: 1 | BV49: 1.66167e-11 | BW49: 4.158329175e-09 | BY49: 5 | BZ49: 1 | CA49: 4.995e-14 | CB49: 1.666665e-11 | CD49: 4.166666667 | CE49: 1 | CF49: 0.0005472734613 | CG49: 0.0005480984904 | CI49: 4.166666667 | CJ49: 1 | CK49: 0.0005472693196 | CL49: 0.0005480943487 | CN49: 4.166666667 | CO49: 1 | CP49: 1.65005825e-06 | CQ49: 1.654199963e-06 | CS49: 4.166666667 | CT49: 1 | CU49: 1.65005825e-06 | CV49: 1.654199963e-06 | CX49: 4.166666667 | CY49: 1 | CZ49: 8.28342495e-09 | DA49: 8.30004165e-09 | DC49: 4.166666667 | DD49: 1 | DE49: 1.65005825e-06 | DF49: 1.654199963e-06 | DH49: 5.555555556 | DI49: 1 | DJ49: 0 | DK49: 1.66167e-11 | DM49: 4.166666667 | DN49: 1 | DO49: 0.000547277603 | DP49: 0.0005481026321 | DR49: 4.166666667 | DS49: 1 | DT49: 1.650074867e-06 | DU49: 1.654216579e-06 | DW49: 4.166666667 | DX49: 1 | DY49: 4.95017475e-06 | DZ49: 4.954316463e-06 | EB49: 4.166666667 | EC49: 1 | ED49: 8.28342495e-09 | EE49: 8.30004165e-09 | EG49: 4.166666667 | EH49: 1 | EI49: 4.95017475e-06 | EJ49: 4.954316463e-06 | EL49: 4.166666667 | EM49: 1 | EN49: 1.65668499e-08 | EO49: 1.65834666e-08 | EQ49: 4.545454545 | ER49: 1 | ES49: 1.65668499e-08 | ET49: 1.65834666e-08 | EV49: 4.761904762 | EW49: 1 | EX49: 8.28342495e-09 | EY49: 8.30004165e-09 | FA49: 5 | FB49: 1 | FC49: 3.32334e-11 | FD49: 3.328335e-11 | FF49: 4.166666667 | FG49: 1 | FH49: 0 | FI49: 1.66167e-11 | FK49: 4.166666667 | FL49: 1 | FM49: 0 | FN49: 1.66167e-11 | FP49: 4.166666667 | FQ49: 1 | FR49: 0 | FS49: 4.995e-14 | FU49: 6.25 | FV49: 1 | FW49: 0 | FX49: 4.995e-14 | FZ49: 8.333333333 | GA49: 1 | GB49: 0 | GC49: 0
G50: 8.333333333 | H50: 2 | I50: 0.1165807405 | J50: 0.1368297053 | L50: 8.333333333 | M50: 2 | N50: 0.001916292498 | O50: 0.04091253164 | Q50: 8.333333333 | R50: 2 | S50: 0.001780287772 | T50: 0.04077570188 | V50: 8.333333333 | W50: 2 | X50: 0.1173917442 | Y50: 0.1173925816 | AA50: 8.333333333 | AB50: 2 | AC50: 0.001780287772 | AD50: 0.04077570188 | AF50: 8.333333333 | AG50: 2 | AH50: 0.07772214789 | AI50: 0.07827025052 | AK50: 8.333333333 | AL50: 2 | AM50: 0.1173909191 | AN50: 0.1173917524 | AP50: 8.333333333 | AQ50: 2 | AR50: 8.2834749e-09 | AS50: 1.245842077e-08 | AU50: 8.333333333 | AV50: 2 | AW50: 0.07772133113 | AX50: 0.07826942962 | AZ50: 8.333333333 | BA50: 2 | BB50: 0.07771967693 | BC50: 0.07826777542 | BE50: 8.333333333 | BF50: 2 | BG50: 0.0008258748793 | BH50: 0.0008275290959 | BJ50: 9.090909091 | BK50: 2 | BL50: 0.1173909191 | BM50: 0.1173917524 | BO50: 9.090909091 | BP50: 2 | BQ50: 0.0008258665793 | BR50: 0.0008275207959 | BT50: 9.523809524 | BU50: 2 | BV50: 4.141712475e-09 | BW50: 8.30004165e-09 | BY50: 10 | BZ50: 2 | CA50: 1.66167e-11 | CB50: 3.328335e-11 | CD50: 8.333333333 | CE50: 2 | CF50: 0.07772133113 | CG50: 0.07826942962 | CI50: 8.333333333 | CJ50: 2 | CK50: 0.07771886018 | CL50: 0.07826695453 | CN50: 8.333333333 | CO50: 2 | CP50: 0.0008258707542 | CQ50: 0.0008275249542 | CS50: 8.333333333 | CT50: 2 | CU50: 0.0008258624542 | CV50: 0.0008275166541 | CX50: 8.333333333 | CY50: 2 | CZ50: 3.328335e-11 | DA50: 8.333325e-09 | DC50: 8.333333333 | DD50: 2 | DE50: 0.0008258624542 | DF50: 0.0008275166541 | DH50: 11.11111111 | DI50: 2 | DJ50: 0 | DK50: 1.66167e-11 | DM50: 8.333333333 | DN50: 2 | DO50: 0.07772380209 | DP50: 0.07827190472 | DR50: 8.333333333 | DS50: 2 | DT50: 0.0008258748793 | DU50: 0.0008275290959 | DW50: 8.333333333 | DX50: 2 | DY50: 0.001641824559 | DZ50: 0.001646778875 | EB50: 8.333333333 | EC50: 2 | ED50: 3.328335e-11 | EE50: 8.333325e-09 | EG50: 8.333333333 | EH50: 2 | EI50: 0.001641816259 | EJ50: 0.001646770575 | EL50: 8.333333333 | EM50: 2 | EN50: 8.275141525e-06 | EO50: 8.291724992e-06 | EQ50: 9.090909091 | ER50: 2 | ES50: 8.275141525e-06 | ET50: 8.291724992e-06 | EV50: 9.523809524 | EW50: 2 | EX50: 0 | EY50: 8.30004165e-09 | FA50: 10 | FB50: 2 | FC50: 0 | FD50: 3.328335e-11 | FF50: 8.333333333 | FG50: 2 | FH50: 9.95005005e-06 | FI50: 9.950066667e-06 | FK50: 8.333333333 | FL50: 2 | FM50: 9.95005005e-06 | FN50: 9.950066667e-06 | FP50: 8.333333333 | FQ50: 2 | FR50: 2.494997505e-08 | FS50: 2.4950025e-08 | FU50: 12.5 | FV50: 2 | FW50: 0 | FX50: 4.995e-14 | FZ50: 16.66666667 | GA50: 2 | GB50: 0 | GC50: 0
G51: 12.5 | H51: 3 | I51: 0.004104586164 | J51: 0.1409342915 | L51: 12.5 | M51: 3 | N51: 0.1945806565 | O51: 0.2354931881 | Q51: 12.5 | R51: 3 | S51: 0.1948493534 | T51: 0.2356250553 | V51: 12.5 | W51: 3 | X51: 0.003300970521 | Y51: 0.1206935522 | AA51: 12.5 | AB51: 3 | AC51: 0.1948493493 | AD51: 0.2356250511 | AF51: 12.5 | AG51: 3 | AH51: 0.003563892244 | AI51: 0.08183414277 | AK51: 12.5 | AL51: 3 | AM51: 0.003298483009 | AN51: 0.1206902354 | AP51: 12.5 | AQ51: 3 | AR51: 0.001648408225 | AS51: 0.001648420683 | AU51: 12.5 | AV51: 3 | AW51: 0.00356718411 | AX51: 0.08183661373 | AZ51: 12.5 | BA51: 3 | BB51: 0.003293532851 | BC51: 0.08156130827 | BE51: 12.5 | BF51: 3 | BG51: 0.2347868216 | BH51: 0.2356143507 | BJ51: 13.63636364 | BK51: 3 | BL51: 0.003298483009 | BM51: 0.1206902354 | BO51: 13.63636364 | BP51: 3 | BQ51: 0.2347901258 | BR51: 0.2356176466 | BT51: 14.28571429 | BU51: 3 | BV51: 0.001648408192 | BW51: 0.001648416492 | BY51: 15 | BZ51: 3 | CA51: 0 | CB51: 3.328335e-11 | CD51: 12.5 | CE51: 3 | CF51: 0.003567184094 | CG51: 0.08183661371 | CI51: 12.5 | CJ51: 3 | CK51: 0.003296832984 | CL51: 0.08156378751 | CN51: 12.5 | CO51: 3 | CP51: 0.2347868174 | CQ51: 0.2356143424 | CS51: 12.5 | CT51: 3 | CU51: 0.2347851591 | CV51: 0.2356126757 | CX51: 12.5 | CY51: 3 | CZ51: 9.941799858e-06 | DA51: 9.950133183e-06 | DC51: 12.5 | DD51: 3 | DE51: 0.2347901217 | DF51: 0.2356176383 | DH51: 16.66666667 | DI51: 3 | DJ51: 0 | DK51: 1.66167e-11 | DM51: 12.5 | DN51: 3 | DO51: 0.003837543487 | DP51: 0.08210944821 | DR51: 12.5 | DS51: 3 | DT51: 0.2347917842 | DU51: 0.2356193133 | DW51: 12.5 | DX51: 3 | DY51: 0.1554443537 | DZ51: 0.1570911326 | EB51: 12.5 | EC51: 3 | ED51: 9.941799858e-06 | EE51: 9.950133183e-06 | EG51: 12.5 | EH51: 3 | EI51: 0.1554393953 | EJ51: 0.1570861658 | EL51: 12.5 | EM51: 3 | EN51: 0.00330343325 | EO51: 0.003311724975 | EQ51: 13.63636364 | ER51: 3 | ES51: 0.003303416617 | ET51: 0.003311708342 | EV51: 14.28571429 | EW51: 3 | EX51: 9.9334832e-06 | EY51: 9.941783242e-06 | FA51: 15 | FB51: 3 | FC51: 0 | FD51: 3.328335e-11 | FF51: 12.5 | FG51: 3 | FH51: 4.98003498e-08 | FI51: 9.999867016e-06 | FK51: 12.5 | FL51: 3 | FM51: 2.49001749e-08 | FN51: 9.974966842e-06 | FP51: 12.5 | FQ51: 3 | FR51: 4.98334833e-08 | FS51: 7.47835083e-08 | FU51: 18.75 | FV51: 3 | FW51: 0 | FX51: 4.995e-14 | FZ51: 25 | GA51: 3 | GB51: 0 | GC51: 0
G52: 16.66666667 | H52: 4 | I52: 0.4871192129 | J52: 0.6280535044 | L52: 16.66666667 | M52: 4 | N52: 0.04612240261 | O52: 0.2816155908 | Q52: 16.66666667 | R52: 4 | S52: 0.08443452614 | T52: 0.3200595814 | V52: 16.66666667 | W52: 4 | X52: 0.4691871791 | Y52: 0.5898807313 | AA52: 16.66666667 | AB52: 4 | AC52: 0.08415925378 | AD52: 0.3197843049 | AF52: 16.66666667 | AG52: 4 | AH52: 0.3128041128 | AI52: 0.3946382556 | AK52: 16.66666667 | AL52: 4 | AM52: 0.4687783316 | AN52: 0.5894685671 | AP52: 16.66666667 | AQ52: 4 | AR52: 0.4695918227 | AS52: 0.4712402434 | AU52: 16.66666667 | AV52: 4 | AW52: 0.3133472405 | AX52: 0.3951838542 | AZ52: 16.66666667 | BA52: 4 | BB52: 0.3136167748 | BC52: 0.3951780831 | BE52: 16.66666667 | BF52: 4 | BG52: 0.005787645629 | BH52: 0.2414019963 | BJ52: 18.18181818 | BK52: 4 | BL52: 0.4687766733 | BM52: 0.5894669087 | BO52: 18.18181818 | BP52: 4 | BQ52: 0.006599486713 | BR52: 0.2422171333 | BT52: 19.04761905 | BU52: 4 | BV52: 0.4695917937 | BW52: 0.4712402102 | BY52: 20 | BZ52: 4 | CA52: 1.654199963e-05 | CB52: 1.654203291e-05 | CD52: 16.66666667 | CE52: 4 | CF52: 0.3133472488 | CG52: 0.3951838625 | CI52: 16.66666667 | CJ52: 4 | CK52: 0.3141623568 | CL52: 0.3957261443 | CN52: 16.66666667 | CO52: 4 | CP52: 0.005786861967 | CQ52: 0.2414012044 | CS52: 16.66666667 | CT52: 4 | CU52: 0.005780236884 | CV52: 0.2413929126 | CX52: 16.66666667 | CY52: 4 | CZ52: 0.00660026615 | DA52: 0.006610216284 | DC52: 16.66666667 | DD52: 4 | DE52: 0.006598703052 | DF52: 0.2422163414 | DH52: 22.22222222 | DI52: 4 | DJ52: 1.654199963e-05 | DK52: 1.654201624e-05 | DM52: 16.66666667 | DN52: 4 | DO52: 0.3125345992 | DP52: 0.3946440474 | DR52: 16.66666667 | DS52: 4 | DT52: 0.006606111847 | DU52: 0.2422254251 | DW52: 16.66666667 | DX52: 4 | DY52: 0.006056321864 | DZ52: 0.1631474545 | EB52: 16.66666667 | EC52: 4 | ED52: 0.006600315918 | EE52: 0.006610266051 | EG52: 16.66666667 | EH52: 4 | EI52: 0.005510698478 | EJ52: 0.1625968643 | EL52: 16.66666667 | EM52: 4 | EN52: 0.4695703597 | EO52: 0.4728820846 | EQ52: 18.18181818 | ER52: 4 | ES52: 0.4695769765 | ET52: 0.4728886848 | EV52: 19.04761905 | EW52: 4 | EX52: 0.006600307618 | EY52: 0.006610249401 | FA52: 20 | FB52: 4 | FC52: 8.30004165e-08 | FD52: 8.303369985e-08 | FF52: 16.66666667 | FG52: 4 | FH52: 0.7093006646 | FI52: 0.7093106645 | FK52: 16.66666667 | FL52: 4 | FM52: 0.7092957019 | FN52: 0.7093056769 | FP52: 16.66666667 | FQ52: 4 | FR52: 1.99001998e-05 | FS52: 1.997498331e-05 | FU52: 25 | FV52: 4 | FW52: 0 | FX52: 4.995e-14 | FZ52: 33.33333333 | GA52: 4 | GB52: 0 | GC52: 0
G53: 20.83333333 | H53: 5 | I53: 0.01370833282 | J53: 0.6417618372 | L53: 20.83333333 | M53: 5 | N53: 0.704409187 | O53: 0.9860247777 | Q53: 20.83333333 | R53: 5 | S53: 0.6277840404 | T53: 0.9478436218 | V53: 20.83333333 | W53: 5 | X53: 0.01071645668 | Y53: 0.600597188 | AA53: 20.83333333 | AB53: 5 | AC53: 0.6283304682 | AD53: 0.9481147731 | AF53: 20.83333333 | AG53: 5 | AH53: 0.2444103318 | AI53: 0.6390485874 | AK53: 20.83333333 | AL53: 5 | AM53: 0.01152255975 | AN53: 0.6009911268 | AP53: 20.83333333 | AQ53: 5 | AR53: 0.01484248959 | AS53: 0.486082733 | AU53: 20.83333333 | AV53: 5 | AW53: 0.2422213164 | AX53: 0.6374051706 | AZ53: 20.83333333 | BA53: 5 | BB53: 0.3207527435 | BC53: 0.7159308266 | BE53: 20.83333333 | BF53: 5 | BG53: 0.7068579522 | BH53: 0.9482599485 | BJ53: 22.72727273 | BK53: 5 | BL53: 0.01152257223 | BM53: 0.6009894809 | BO53: 22.72727273 | BP53: 5 | BQ53: 0.7044050661 | BR53: 0.9466221994 | BT53: 23.80952381 | BU53: 5 | BV53: 0.01482928071 | BW53: 0.4860694909 | BY53: 25 | BZ53: 5 | CA53: 1.659177994e-07 | CB53: 1.670795071e-05 | CD53: 20.83333333 | CE53: 5 | CF53: 0.2427751653 | CG53: 0.6379590278 | CI53: 20.83333333 | CJ53: 5 | CK53: 0.3191044139 | CL53: 0.7148305582 | CN53: 20.83333333 | CO53: 5 | CP53: 0.7068644945 | CQ53: 0.9482656989 | CS53: 20.83333333 | CT53: 5 | CU53: 0.706046874 | CV53: 0.9474397866 | CX53: 20.83333333 | CY53: 5 | CZ53: 0.9391638532 | DA53: 0.9457740695 | DC53: 20.83333333 | DD53: 5 | DE53: 0.7044148919 | DF53: 0.9466312333 | DH53: 27.77777778 | DI53: 5 | DJ53: 1.658347659e-07 | DK53: 1.670785101e-05 | DM53: 20.83333333 | DN53: 5 | DO53: 0.1664327164 | DP53: 0.5610767638 | DR53: 20.83333333 | DS53: 5 | DT53: 0.7052260197 | DU53: 0.9474514449 | DW53: 20.83333333 | DX53: 5 | DY53: 0.4739914986 | DZ53: 0.6371389531 | EB53: 20.83333333 | EC53: 5 | ED53: 0.9391935708 | EE53: 0.9458038369 | EG53: 20.83333333 | EH53: 5 | EI53: 0.4750926457 | EJ53: 0.63768951 | EL53: 20.83333333 | EM53: 5 | EN53: 0.008290157817 | EO53: 0.4811722425 | EQ53: 22.72727273 | ER53: 5 | ES53: 0.009920382335 | ET53: 0.4828090672 | EV53: 23.80952381 | EW53: 5 | EX53: 0.9391935377 | EY53: 0.9458037871 | FA53: 25 | FB53: 5 | FC53: 3.308399925e-05 | FD53: 3.316703295e-05 | FF53: 20.83333333 | FG53: 5 | FH53: 0.0099401996 | FI53: 0.7192508641 | FK53: 20.83333333 | FL53: 5 | FM53: 0.009925311801 | FN53: 0.7192309887 | FP53: 20.83333333 | FQ53: 5 | FR53: 0.00995005005 | FS53: 0.009970025033 | FU53: 31.25 | FV53: 5 | FW53: 1.244507747e-07 | FX53: 1.244508246e-07 | FZ53: 41.66666667 | GA53: 5 | GB53: 0 | GC53: 0
G54: 25 | H54: 6 | I54: 1.484334849 | J54: 2.126096686 | L54: 25 | M54: 6 | N54: 0.2521167947 | O54: 1.238141572 | Q54: 25 | R54: 6 | S54: 0.4053456122 | T54: 1.353189234 | V54: 25 | W54: 6 | X54: 1.646863207 | Y54: 2.247460395 | AA54: 25 | AB54: 6 | AC54: 0.4825155198 | AD54: 1.430630293 | AF54: 25 | AG54: 6 | AH54: 0.8680750512 | AI54: 1.507123639 | AK54: 25 | AL54: 6 | AM54: 1.64441105 | AN54: 2.245402177 | AP54: 25 | AQ54: 6 | AR54: 1.407168399 | AS54: 1.893251132 | AU54: 25 | AV54: 6 | AW54: 0.7933726983 | AX54: 1.430777869 | AZ54: 25 | BA54: 6 | BB54: 0.7137466745 | BC54: 1.429677501 | BE54: 25 | BF54: 6 | BG54: 0.4819674919 | BH54: 1.43022744 | BJ54: 27.27272727 | BK54: 6 | BL54: 1.643590146 | BM54: 2.244579627 | BO54: 27.27272727 | BP54: 6 | BQ54: 0.2521144066 | BR54: 1.198736606 | BT54: 28.57142857 | BU54: 6 | BV54: 1.405531417 | BW54: 1.891600908 | BY54: 30 | BZ54: 6 | CA54: 2.364343861 | CB54: 2.364360569 | CD54: 25 | CE54: 6 | CF54: 0.7928188782 | CG54: 1.430777906 | CI54: 25 | CJ54: 6 | CK54: 0.6371454332 | CL54: 1.351975991 | CN54: 25 | CO54: 6 | CP54: 0.4844285207 | CQ54: 1.43269422 | CS54: 25 | CT54: 6 | CU54: 0.4852386867 | CV54: 1.432678473 | CX54: 25 | CY54: 6 | CZ54: 0.0198605324 | DA54: 0.9656346019 | DC54: 25 | DD54: 6 | DE54: 0.2529180263 | DF54: 1.19954926 | DH54: 33.33333333 | DI54: 6 | DJ54: 2.36434384 | DK54: 2.364360548 | DM54: 25 | DN54: 6 | DO54: 0.9468654073 | DP54: 1.507942171 | DR54: 25 | DS54: 6 | DT54: 0.2513058781 | DU54: 1.198757323 | DW54: 25 | DX54: 6 | DY54: 0.6354856816 | DZ54: 1.272624635 | EB54: 25 | EC54: 6 | ED54: 0.02311441397 | EE54: 0.9689182508 | EG54: 25 | EH54: 6 | EI54: 0.7925188594 | EJ54: 1.430208369 | EL54: 25 | EM54: 6 | EN54: 0.9490974154 | EO54: 1.430269658 | EQ54: 27.27272727 | ER54: 6 | ES54: 0.9458005615 | ET54: 1.428609629 | EV54: 28.57142857 | EW54: 6 | EX54: 0.02308791374 | EY54: 0.9688917008 | FA54: 30 | FB54: 6 | FC54: 0.0166167915 | FD54: 0.01664995853 | FF54: 25 | FG54: 6 | FH54: 1.413735829 | FI54: 2.132986693 | FK54: 25 | FL54: 6 | FM54: 1.411285356 | FN54: 2.130516345 | FP54: 25 | FQ54: 6 | FR54: 2.837252458 | FS54: 2.847222483 | FU54: 37.5 | FV54: 6 | FW54: 4.988007e-10 | FX54: 1.249496253e-07 | FZ54: 50 | GA54: 6 | GB54: 6.986007e-10 | GC54: 6.986007e-10
G55: 29.16666667 | H55: 7 | I55: 0.03349282139 | J55: 2.159589507 | L55: 29.16666667 | M55: 7 | N55: 1.808894725 | O55: 3.047036298 | Q55: 29.16666667 | R55: 7 | S55: 1.577402171 | T55: 2.930591405 | V55: 29.16666667 | W55: 7 | X55: 0.02888559609 | Y55: 2.276345991 | AA55: 29.16666667 | AB55: 7 | AC55: 1.423063222 | AD55: 2.853693515 | AF55: 29.16666667 | AG55: 7 | AH55: 0.8788162838 | AI55: 2.385939922 | AK55: 29.16666667 | AL55: 7 | AM55: 0.03296049358 | AN55: 2.278362671 | AP55: 29.16666667 | AQ55: 7 | AR55: 0.034649988 | AS55: 1.92790112 | AU55: 29.16666667 | AV55: 7 | AW55: 1.189122975 | AX55: 2.619900844 | AZ55: 29.16666667 | BA55: 7 | BB55: 1.111109038 | BC55: 2.540786539 | BE55: 29.16666667 | BF55: 7 | BG55: 1.664187259 | BH55: 3.0944147 | BJ55: 31.81818182 | BK55: 7 | BL55: 0.03460724353 | BM55: 2.279186871 | BO55: 31.81818182 | BP55: 7 | BQ55: 2.124691328 | BR55: 3.323427934 | BT55: 33.33333333 | BU55: 7 | BV55: 0.03459066847 | BW55: 1.926191576 | BY55: 35 | BZ55: 7 | CA55: 0.03318358308 | CB55: 2.397544152 | CD55: 29.16666667 | CE55: 7 | CF55: 1.030952176 | CG55: 2.461730082 | CI55: 29.16666667 | CJ55: 7 | CK55: 1.269263172 | CL55: 2.621239163 | CN55: 29.16666667 | CO55: 7 | CP55: 1.657602076 | CQ55: 3.090296295 | CS55: 29.16666667 | CT55: 7 | CU55: 1.656771015 | CV55: 3.089449488 | CX55: 29.16666667 | CY55: 7 | CZ55: 1.894854773 | DA55: 2.860489374 | DC55: 29.16666667 | DD55: 7 | DE55: 2.1230644 | DF55: 3.322613659 | DH55: 38.88888889 | DI55: 7 | DJ55: 0.0331337495 | DK55: 2.397494298 | DM55: 29.16666667 | DN55: 7 | DO55: 0.7992413707 | DP55: 2.307183542 | DR55: 29.16666667 | DS55: 7 | DT55: 2.12716729 | DU55: 3.325924613 | DW55: 29.16666667 | DX55: 7 | DY55: 0.9595780893 | DZ55: 2.232202724 | EB55: 29.16666667 | EC55: 7 | ED55: 1.884987524 | EE55: 2.853905775 | EG55: 29.16666667 | EH55: 7 | EI55: 0.7964918483 | EJ55: 2.226700218 | EL55: 29.16666667 | EM55: 7 | EN55: 1.431854887 | EO55: 2.862124545 | EQ55: 31.81818182 | ER55: 7 | ES55: 0.9590539205 | ET55: 2.387663549 | EV55: 33.33333333 | EW55: 7 | EX55: 1.88168739 | EY55: 2.850579091 | FA55: 35 | FB55: 7 | FC55: 4.728654803 | FD55: 4.745304762 | FF55: 29.16666667 | FG55: 7 | FH55: 0.01982077345 | FI55: 2.152807467 | FK55: 29.16666667 | FL55: 7 | FM55: 0.02471669912 | FN55: 2.155233044 | FP55: 29.16666667 | FQ55: 7 | FR55: 0.02972154581 | FS55: 2.876944029 | FU55: 43.75 | FV55: 7 | FW55: 1.243513742e-07 | FX55: 2.493009995e-07 | FZ55: 58.33333333 | GA55: 7 | GB55: 0 | GC55: 6.986007e-10
G56: 33.33333333 | H56: 8 | I56: 3.660186734 | J56: 5.819776241 | L56: 33.33333333 | M56: 8 | N56: 0.9712704552 | O56: 4.018306753 | Q56: 33.33333333 | R56: 8 | S56: 1.359519311 | T56: 4.290110715 | V56: 33.33333333 | W56: 8 | X56: 4.003896857 | Y56: 6.280242848 | AA56: 33.33333333 | AB56: 8 | AC56: 1.591305944 | AD56: 4.444999458 | AF56: 33.33333333 | AG56: 8 | AH56: 1.983574479 | AI56: 4.369514401 | AK56: 33.33333333 | AL56: 8 | AM56: 3.760095618 | AN56: 6.038458289 | AP56: 33.33333333 | AQ56: 8 | AR56: 3.7682455 | AS56: 5.69614662 | AU56: 33.33333333 | AV56: 8 | AW56: 1.592281131 | AX56: 4.212181976 | AZ56: 33.33333333 | BA56: 8 | BB56: 1.827056175 | BC56: 4.367842714 | BE56: 33.33333333 | BF56: 8 | BG56: 1.903947779 | BH56: 4.998362479 | BJ56: 36.36363636 | BK56: 8 | BL56: 3.75843646 | BM56: 6.037623331 | BO56: 36.36363636 | BP56: 8 | BQ56: 0.9738997187 | BR56: 4.297327653 | BT56: 38.0952381 | BU56: 8 | BV56: 3.293780898 | BW56: 5.219972474 | BY56: 40 | BZ56: 8 | CA56: 4.7205457 | CB56: 7.118089852 | CD56: 33.33333333 | CE56: 8 | CF56: 1.752645026 | CG56: 4.214375108 | CI56: 33.33333333 | CJ56: 8 | CK56: 1.74275296 | CL56: 4.363992123 | CN56: 33.33333333 | CO56: 8 | CP56: 1.437690608 | CQ56: 4.527986904 | CS56: 33.33333333 | CT56: 8 | CU56: 1.437671056 | CV56: 4.527120544 | CX56: 33.33333333 | CY56: 8 | CZ56: 1.904702611 | DA56: 4.765191985 | DC56: 33.33333333 | DD56: 8 | DE56: 0.9738798808 | DF56: 4.29649354 | DH56: 44.44444444 | DI56: 8 | DJ56: 4.712286847 | DK56: 7.109781144 | DM56: 33.33333333 | DN56: 8 | DO56: 1.990105509 | DP56: 4.297289051 | DR56: 33.33333333 | DS56: 8 | DT56: 0.9714057924 | DU56: 4.297330406 | DW56: 33.33333333 | DX56: 8 | DY56: 1.905307574 | DZ56: 4.137510298 | EB56: 33.33333333 | EC56: 8 | ED56: 0.9755911777 | EE56: 3.829496952 | EG56: 33.33333333 | EH56: 8 | EI56: 1.597204901 | EJ56: 3.823905119 | EL56: 33.33333333 | EM56: 8 | EN56: 1.904757087 | EO56: 4.766881632 | EQ56: 36.36363636 | ER56: 8 | ES56: 2.387423678 | ET56: 4.775087227 | EV56: 38.0952381 | EW56: 8 | EX56: 0.9722281847 | EY56: 3.822807276 | FA56: 40 | FB56: 8 | FC56: 0.03326645933 | FD56: 4.778571221 | FF56: 33.33333333 | FG56: 8 | FH56: 4.965276279 | FI56: 7.118083746 | FK56: 33.33333333 | FL56: 8 | FM56: 4.955422611 | FN56: 7.110655655 | FP56: 33.33333333 | FQ56: 8 | FR56: 2.817610579 | FS56: 5.694554608 | FU56: 50 | FV56: 8 | FW56: 0.04975037086 | FX56: 0.04975062016 | FZ56: 66.66666667 | GA56: 8 | GB56: 0 | GC56: 6.986007e-10
G57: 37.5 | H57: 9 | I57: 0.06676820113 | J57: 5.886544442 | L57: 37.5 | M57: 9 | N57: 3.674736094 | O57: 7.693042847 | Q57: 37.5 | R57: 9 | S57: 3.125310574 | T57: 7.415421289 | V57: 37.5 | W57: 9 | X57: 0.05858710486 | Y57: 6.338829953 | AA57: 37.5 | AB57: 9 | AC57: 2.813892093 | AD57: 7.258891551 | AF57: 37.5 | AG57: 9 | AH57: 2.619357642 | AI57: 6.988872043 | AK57: 37.5 | AL57: 9 | AM57: 0.0659307966 | AN57: 6.104389086 | AP57: 37.5 | AQ57: 9 | AR57: 1.00029449 | AS57: 6.69644111 | AU57: 37.5 | AV57: 9 | AW57: 2.623160323 | AX57: 6.835342299 | AZ57: 37.5 | BA57: 9 | BB57: 2.541902607 | BC57: 6.909745321 | BE57: 37.5 | BF57: 9 | BG57: 2.61990999 | BH57: 7.618272469 | BJ57: 40.90909091 | BK57: 9 | BL57: 0.06759246357 | BM57: 6.105215794 | BO57: 40.90909091 | BP57: 9 | BQ57: 3.554855353 | BR57: 7.852183006 | BT57: 42.85714286 | BU57: 9 | BV57: 1.939375509 | BW57: 7.159347983 | BY57: 45 | BZ57: 9 | CA57: 0.04965091558 | CB57: 7.167740767 | CD57: 37.5 | CE57: 9 | CF57: 2.934017742 | CG57: 7.148392849 | CI57: 37.5 | CJ57: 9 | CK57: 2.235467929 | CL57: 6.599460052 | CN57: 37.5 | CO57: 9 | CP57: 3.565611171 | CQ57: 8.093598075 | CS57: 37.5 | CT57: 9 | CU57: 3.088655905 | CV57: 7.615776449 | CX57: 37.5 | CY57: 9 | CZ57: 1.9181377 | DA57: 6.683329685 | DC57: 37.5 | DD57: 9 | DE57: 3.556521874 | DF57: 7.853015414 | DH57: 50 | DI57: 9 | DJ57: 0.06606932767 | DK57: 7.175850472 | DM57: 37.5 | DN57: 9 | DO57: 2.684772756 | DP57: 6.982061806 | DR57: 37.5 | DS57: 9 | DT57: 4.03027269 | DU57: 8.327603096 | DW57: 37.5 | DX57: 9 | DY57: 2.539153007 | DZ57: 6.676663304 | EB57: 37.5 | EC57: 9 | ED57: 3.81267203 | EE57: 7.642168982 | EG57: 37.5 | EH57: 9 | EI57: 3.328325075 | EJ57: 7.152230194 | EL57: 37.5 | EM57: 9 | EN57: 2.381048607 | EO57: 7.147930239 | EQ57: 40.90909091 | ER57: 9 | ES57: 2.837480995 | ET57: 7.612568222 | EV57: 42.85714286 | EW57: 9 | EX57: 2.867056457 | EY57: 6.689863733 | FA57: 45 | FB57: 9 | FC57: 4.745304429 | FD57: 9.52387565 | FF57: 37.5 | FG57: 9 | FH57: 0.04955232639 | FI57: 7.167636072 | FK57: 37.5 | FL57: 9 | FM57: 0.06437324126 | FN57: 7.175028897 | FP57: 37.5 | FQ57: 9 | FR57: 0.05953204612 | FS57: 5.754086655 | FU57: 56.25 | FV57: 9 | FW57: 14.18631254 | FX57: 14.23606316 | FZ57: 75 | GA57: 9 | GB57: 0 | GC57: 6.986007e-10
G58: 41.66666667 | H58: 10 | I58: 7.173707831 | J58: 13.06025227 | L58: 41.66666667 | M58: 10 | N58: 2.708435961 | O58: 10.40147881 | Q58: 41.66666667 | R58: 10 | S58: 3.185475217 | T58: 10.60089651 | V58: 41.66666667 | W58: 10 | X58: 8.132600054 | Y58: 14.47143001 | AA58: 41.66666667 | AB58: 10 | AC58: 3.185190011 | AD58: 10.44408156 | AF58: 41.66666667 | AG58: 10 | AH58: 3.419540104 | AI58: 10.40841215 | AK58: 41.66666667 | AL58: 10 | AM58: 7.649032649 | AN58: 13.75342173 | AP58: 41.66666667 | AQ58: 10 | AR58: 6.149189635 | AS58: 12.84563075 | AU58: 41.66666667 | AV58: 10 | AW58: 3.879293446 | AX58: 10.71463575 | AZ58: 41.66666667 | BA58: 10 | BB58: 3.573078671 | BC58: 10.48282399 | BE58: 41.66666667 | BF58: 10 | BG58: 3.818601825 | BH58: 11.43687429 | BJ58: 45.45454545 | BK58: 10 | BL58: 7.174517977 | BM58: 13.27973377 | BO58: 45.45454545 | BP58: 10 | BQ58: 2.628267615 | BR58: 10.48045062 | BT58: 47.61904762 | BU58: 10 | BV58: 4.275893375 | BW58: 11.43524136 | BY58: 50 | BZ58: 10 | CA58: 9.457566464 | CB58: 16.62530723 | CD58: 41.66666667 | CE58: 10 | CF58: 3.412474172 | CG58: 10.56086702 | CI58: 41.66666667 | CJ58: 10 | CK58: 4.355687057 | CL58: 10.95514711 | CN58: 41.66666667 | CO58: 10 | CP58: 3.813655916 | CQ58: 11.90725399 | CS58: 41.66666667 | CT58: 10 | CU58: 3.342390632 | CV58: 10.95816708 | CX58: 41.66666667 | CY58: 10 | CZ58: 4.771725967 | DA58: 11.45505565 | DC58: 41.66666667 | DD58: 10 | DE58: 3.104461362 | DF58: 10.95747678 | DH58: 55.55555556 | DI58: 10 | DJ58: 7.060435864 | DK58: 14.23628634 | DM58: 41.66666667 | DN58: 10 | DO58: 3.284170246 | DP58: 10.26623205 | DR58: 41.66666667 | DS58: 10 | DT58: 3.106071818 | DU58: 11.43367491 | DW58: 41.66666667 | DX58: 10 | DY58: 3.342761155 | DZ58: 10.01942446 | EB58: 41.66666667 | EC58: 10 | ED58: 4.729005767 | EE58: 12.37117475 | EG58: 41.66666667 | EH58: 10 | EI58: 3.173559228 | EJ58: 10.32578942 | EL58: 41.66666667 | EM58: 10 | EN58: 4.2956182 | EO58: 11.44354844 | EQ58: 45.45454545 | ER58: 10 | ES58: 2.417242983 | ET58: 10.0298112 | EV58: 47.61904762 | EW58: 10 | EX58: 5.691155115 | EY58: 12.38101885 | FA58: 50 | FB58: 10 | FC58: 4.761872052 | FD58: 14.2857477 | FF58: 41.66666667 | FG58: 10 | FH58: 8.497214847 | FI58: 15.66485092 | FK58: 41.66666667 | FL58: 10 | FM58: 7.061217991 | FN58: 14.23624689 | FP58: 41.66666667 | FQ58: 10 | FR58: 8.521737913 | FS58: 14.27582457 | FU58: 62.5 | FV58: 10 | FW58: 0.1490033739 | FX58: 14.38506653 | FZ58: 83.33333333 | GA58: 10 | GB58: 0.0006982513996 | GC58: 0.0006982520983
G59: 45.83333333 | H59: 11 | I59: 0.1096540025 | J59: 13.16990628 | L59: 45.83333333 | M59: 11 | N59: 5.441332669 | O59: 15.84281148 | Q59: 45.83333333 | R59: 11 | S59: 5.03006849 | T59: 15.630965 | V59: 45.83333333 | W59: 11 | X59: 0.1048035819 | Y59: 14.57623359 | AA59: 45.83333333 | AB59: 11 | AC59: 5.336558273 | AD59: 15.78063984 | AF59: 45.83333333 | AG59: 11 | AH59: 4.676649644 | AI59: 15.08506179 | AK59: 45.83333333 | AL59: 11 | AM59: 0.1121944909 | AN59: 13.86561623 | AP59: 45.83333333 | AQ59: 11 | AR59: 3.839357418 | AS59: 16.68498816 | AU59: 45.83333333 | AV59: 11 | AW59: 4.067496026 | AX59: 14.78213177 | AZ59: 45.83333333 | BA59: 11 | BB59: 4.445589878 | BC59: 14.92841387 | BE59: 45.83333333 | BF59: 11 | BG59: 6.168215922 | BH59: 17.60509022 | BJ59: 50 | BK59: 11 | BL59: 0.1072392 | BM59: 13.38697297 | BO59: 50 | BP59: 11 | BQ59: 5.7224025 | BR59: 16.20285312 | BT59: 52.38095238 | BU59: 11 | BV59: 5.701088657 | BW59: 17.13633001 | BY59: 55 | BZ59: 11 | CA59: 0.08268628442 | CB59: 16.70799352 | CD59: 45.83333333 | CE59: 11 | CF59: 4.378887423 | CG59: 14.93975444 | CI59: 45.83333333 | CJ59: 11 | CK59: 4.129772678 | CL59: 15.08491979 | CN59: 45.83333333 | CO59: 11 | CP59: 5.232396803 | CQ59: 17.13965079 | CS59: 45.83333333 | CT59: 11 | CU59: 5.704385216 | CV59: 16.6625523 | CX59: 45.83333333 | CY59: 11 | CZ59: 6.636988694 | DA59: 18.09204435 | DC59: 45.83333333 | DD59: 11 | DE59: 5.720686485 | DF59: 16.67816326 | DH59: 61.11111111 | DI59: 11 | DJ59: 0.09900597324 | DK59: 14.33529231 | DM59: 45.83333333 | DN59: 11 | DO59: 6.155869436 | DP59: 16.42210149 | DR59: 45.83333333 | DS59: 11 | DT59: 6.197753892 | DU59: 17.63142881 | DW59: 45.83333333 | DX59: 11 | DY59: 5.245260792 | DZ59: 15.26468525 | EB59: 45.83333333 | EC59: 11 | ED59: 2.920021213 | EE59: 15.29119596 | EG59: 45.83333333 | EH59: 11 | EI59: 3.823448632 | EJ59: 14.14923805 | EL59: 45.83333333 | EM59: 11 | EN59: 5.707784328 | EO59: 17.15133277 | EQ59: 50 | ER59: 11 | ES59: 5.67806017 | ET59: 15.70787137 | EV59: 52.38095238 | EW59: 11 | EX59: 3.836090386 | EY59: 16.21710923 | FA59: 55 | FB59: 11 | FC59: 4.778422716 | FD59: 19.06417042 | FF59: 45.83333333 | FG59: 11 | FH59: 0.09907429874 | FI59: 15.76392522 | FK59: 45.83333333 | FL59: 11 | FM59: 0.09904493262 | FN59: 14.33529182 | FP59: 45.83333333 | FQ59: 11 | FR59: 5.734304601 | FS59: 20.01012917 | FU59: 68.75 | FV59: 11 | FW59: 14.13695954 | FX59: 28.52202608 | FZ59: 91.66666667 | GA59: 11 | GB59: 0 | GC59: 0.0006982520983
G60: 50 | H60: 12 | I60: 11.59386403 | J60: 24.76377031 | L60: 50 | M60: 12 | N60: 6.049508804 | O60: 21.89232028 | Q60: 50 | R60: 12 | S60: 5.254227002 | T60: 20.885192 | V60: 50 | W60: 12 | X60: 12.25596565 | Y60: 26.83219923 | AA60: 50 | AB60: 12 | AC60: 4.798602155 | AD60: 20.57924199 | AF60: 50 | AG60: 12 | AH60: 6.209569825 | AI60: 21.29463162 | AK60: 50 | AL60: 12 | AM60: 11.53804773 | AN60: 25.40366396 | AP60: 50 | AQ60: 12 | AR60: 7.154340156 | AS60: 23.83932832 | AU60: 50 | AV60: 12 | AW60: 6.896693455 | AX60: 21.67882523 | AZ60: 50 | BA60: 12 | BB60: 5.955729045 | BC60: 20.88414292 | BE60: 50 | BF60: 12 | BG60: 4.567561299 | BH60: 22.17265152 | BJ60: 54.54545455 | BK60: 12 | BL60: 12.25307416 | BM60: 25.64004713 | BO60: 54.54545455 | BP60: 12 | BQ60: 5.927039291 | BR60: 22.12989241 | BT60: 57.14285714 | BU60: 12 | BV60: 4.331977599 | BW60: 21.46830761 | BY60: 60 | BZ60: 12 | CA60: 14.17838481 | CB60: 30.88637833 | CD60: 50 | CE60: 12 | CF60: 6.657545124 | CG60: 21.59729957 | CI60: 50 | CJ60: 12 | CK60: 5.490036523 | CL60: 20.57495631 | CN60: 50 | CO60: 12 | CP60: 5.257948375 | CQ60: 22.39759917 | CS60: 50 | CT60: 12 | CU60: 5.015751369 | CV60: 21.67830367 | CX60: 50 | CY60: 12 | CZ60: 4.81156584 | DA60: 22.90361019 | DC60: 50 | DD60: 12 | DE60: 5.213679253 | DF60: 21.89184251 | DH60: 66.66666667 | DI60: 12 | DJ60: 18.91536286 | DK60: 33.25065517 | DM60: 50 | DN60: 12 | DO60: 4.402599036 | DP60: 20.82470052 | DR60: 50 | DS60: 12 | DT60: 6.639640185 | DU60: 24.27106899 | DW60: 50 | DX60: 12 | DY60: 6.180521775 | DZ60: 21.44520703 | EB60: 50 | EC60: 12 | ED60: 10.43647627 | EE60: 25.72767223 | EG60: 50 | EH60: 12 | EI60: 6.837431179 | EJ60: 20.98666923 | EL60: 50 | EM60: 12 | EN60: 6.208394037 | EO60: 23.3597268 | EQ60: 54.54545455 | ER60: 12 | ES60: 5.767262716 | ET60: 21.47513409 | EV60: 57.14285714 | EW60: 12 | EX60: 6.666465157 | EY60: 22.88357439 | FA60: 60 | FB60: 12 | FC60: 4.72926719 | FD60: 23.79343761 | FF60: 50 | FG60: 12 | FH60: 14.16672233 | FI60: 29.93064755 | FK60: 50 | FL60: 12 | FM60: 14.16691095 | FN60: 28.50220277 | FP60: 50 | FQ60: 12 | FR60: 5.743977137 | FS60: 25.75410631 | FU60: 75 | FV60: 12 | FW60: 0.1487551083 | FX60: 28.67078118 | FZ60: 100 | GA60: 12 | GB60: 99.99930157 | GC60: 99.99999983
G61: 54.16666667 | H61: 13 | I61: 0.1550752013 | J61: 24.91884551 | L61: 54.16666667 | M61: 13 | N61: 5.922286989 | O61: 27.81460727 | Q61: 54.16666667 | R61: 13 | S61: 7.918886775 | T61: 28.80407877 | V61: 54.16666667 | W61: 13 | X61: 0.1452685615 | Y61: 26.9774678 | AA61: 54.16666667 | AB61: 13 | AC61: 8.528584424 | AD61: 29.10782641 | AF61: 54.16666667 | AG61: 13 | AH61: 7.432993874 | AI61: 28.72762549 | AK61: 54.16666667 | AL61: 13 | AM61: 0.1452142541 | AN61: 25.54887821 | AP61: 54.16666667 | AQ61: 13 | AR61: 10.42677059 | AS61: 34.26609891 | AU61: 54.16666667 | AV61: 13 | AW61: 6.498180696 | AX61: 28.17700592 | AZ61: 54.16666667 | BA61: 13 | BB61: 6.997272049 | BC61: 27.88141496 | BE61: 54.16666667 | BF61: 13 | BG61: 9.470970903 | BH61: 31.64362242 | BJ61: 59.09090909 | BK61: 13 | BL61: 0.1485769164 | BM61: 25.78862405 | BO61: 59.09090909 | BP61: 13 | BQ61: 7.198751726 | BR61: 29.32864414 | BT61: 61.9047619 | BU61: 13 | BV61: 9.470924382 | BW61: 30.939232 | BY61: 65 | BZ61: 13 | CA61: 0.1323873277 | CB61: 31.01876566 | CD61: 54.16666667 | CE61: 13 | CF61: 6.827661354 | CG61: 28.42496092 | CI61: 54.16666667 | CJ61: 13 | CK61: 7.615688126 | CL61: 28.19064444 | CN61: 54.16666667 | CO61: 13 | CP61: 9.024404046 | CQ61: 31.42200321 | CS61: 54.16666667 | CT61: 13 | CU61: 7.60589515 | CV61: 29.28419882 | CX61: 54.16666667 | CY61: 13 | CZ61: 9.503955559 | DA61: 32.40756574 | DC61: 54.16666667 | DD61: 13 | DE61: 7.198717347 | DF61: 29.09055986 | DH61: 72.22222222 | DI61: 13 | DJ61: 0.1654718283 | DK61: 33.416127 | DM61: 54.16666667 | DN61: 13 | DO61: 8.231758687 | DP61: 29.05645921 | DR61: 54.16666667 | DS61: 13 | DT61: 5.290747797 | DU61: 29.56181679 | DW61: 54.16666667 | DX61: 13 | DY61: 6.514732054 | DZ61: 27.95993908 | EB61: 54.16666667 | EC61: 13 | ED61: 7.632366848 | EE61: 33.36003908 | EG61: 54.16666667 | EH61: 13 | EI61: 8.075268527 | EJ61: 29.06193776 | EL61: 54.16666667 | EM61: 13 | EN61: 7.106800505 | EO61: 30.46652731 | EQ61: 59.09090909 | ER61: 13 | ES61: 10.43618259 | ET61: 31.91131668 | EV61: 61.9047619 | EW61: 13 | EX61: 6.633840772 | EY61: 29.51741516 | FA61: 65 | FB61: 13 | FC61: 14.38468541 | FD61: 38.17812302 | FF61: 54.16666667 | FG61: 13 | FH61: 0.1388051537 | FI61: 30.0694527 | FK61: 54.16666667 | FL61: 13 | FM61: 0.1387156288 | FN61: 28.6409184 | FP61: 54.16666667 | FQ61: 13 | FR61: 11.3690696 | FS61: 37.1231759 | FU61: 81.25 | FV61: 13 | FW61: 14.13666179 | FX61: 42.80744298 | GB61: =SUM(GB48:GB60) -> 99.99999983
G62: 58.33333333 | H62: 14 | I62: 14.60026764 | J62: 39.51911315 | L62: 58.33333333 | M62: 14 | N62: 9.056887997 | O62: 36.87149527 | Q62: 58.33333333 | R62: 14 | S62: 6.29303565 | T62: 35.09711442 | V62: 58.33333333 | W62: 14 | X62: 15.56242452 | Y62: 42.53989232 | AA62: 58.33333333 | AB62: 14 | AC62: 5.602037301 | AD62: 34.70986371 | AF62: 58.33333333 | AG62: 14 | AH62: 6.464482763 | AI62: 35.19210825 | AK62: 58.33333333 | AL62: 14 | AM62: 16.98683473 | AN62: 42.53571294 | AP62: 58.33333333 | AQ62: 14 | AR62: 4.847643248 | AS62: 39.11374216 | AU62: 58.33333333 | AV62: 14 | AW62: 7.018494021 | AX62: 35.19549994 | AZ62: 58.33333333 | BA62: 14 | BB62: 8.146051635 | BC62: 36.0274666 | BE62: 58.33333333 | BF62: 14 | BG62: 5.761444574 | BH62: 37.40506699 | BJ62: 63.63636364 | BK62: 14 | BL62: 16.03366057 | BM62: 41.82228462 | BO62: 63.63636364 | BP62: 14 | BQ62: 10.39384583 | BR62: 39.72248997 | BT62: 66.66666667 | BU62: 14 | BV62: 6.706349734 | BW62: 37.64558173 | BY62: 70 | BZ62: 14 | CA62: 26.05803955 | CB62: 57.0768052 | CD62: 58.33333333 | CE62: 14 | CF62: 7.154411158 | CG62: 35.57937208 | CI62: 58.33333333 | CJ62: 14 | CK62: 7.448815807 | CL62: 35.63946024 | CN62: 58.33333333 | CO62: 14 | CP62: 7.165264457 | CQ62: 38.58726767 | CS62: 58.33333333 | CT62: 14 | CU62: 8.120066498 | CV62: 37.40426531 | CX62: 58.33333333 | CY62: 14 | CZ62: 8.554822555 | DA62: 40.9623883 | DC62: 58.33333333 | DD62: 14 | DE62: 11.34536847 | DF62: 40.43592833 | DH62: 77.77777778 | DI62: 14 | DJ62: 16.51777093 | DK62: 49.93389792 | DM62: 58.33333333 | DN62: 14 | DO62: 6.355085878 | DP62: 35.41154509 | DR62: 58.33333333 | DS62: 14 | DT62: 9.929251514 | DU62: 39.4910683 | DW62: 58.33333333 | DX62: 14 | DY62: 8.111568941 | DZ62: 36.07150802 | EB62: 58.33333333 | EC62: 14 | ED62: 7.631951523 | EE62: 40.9919906 | EG62: 58.33333333 | EH62: 14 | EI62: 5.871058306 | EJ62: 34.93299606 | EL62: 58.33333333 | EM62: 14 | EN62: 7.19236792 | EO62: 37.65889523 | EQ62: 63.63636364 | ER62: 14 | ES62: 5.711378603 | ET62: 37.62269529 | EV62: 66.66666667 | EW62: 14 | EX62: 5.793740844 | EY62: 35.31115601 | FA62: 70 | FB62: 14 | FC62: 18.89868221 | FD62: 57.07680523 | FF62: 58.33333333 | FG62: 14 | FH62: 14.14702855 | FI62: 44.21648125 | FK62: 58.33333333 | FL62: 14 | FM62: 16.9989947 | FN62: 45.6399131 | FP62: 58.33333333 | FQ62: 14 | FR62: 5.80337015 | FS62: 42.92654605 | FU62: 87.5 | FV62: 14 | FW62: 0.09969995544 | FX62: 42.90714293
G63: 62.5 | H63: 15 | I63: 0.1683516036 | J63: 39.68746475 | L63: 62.5 | M63: 15 | N63: 5.492328301 | O63: 42.36382357 | Q63: 62.5 | R63: 15 | S63: 9.033262908 | T63: 44.13037733 | V63: 62.5 | W63: 15 | X63: 0.1585614847 | Y63: 42.6984538 | AA63: 62.5 | AB63: 15 | AC63: 9.809419288 | AD63: 44.519283 | AF63: 62.5 | AG63: 15 | AH63: 8.856061225 | AI63: 44.04816948 | AK63: 62.5 | AL63: 15 | AM63: 0.166810582 | AN63: 42.70252352 | AP63: 62.5 | AQ63: 15 | AR63: 11.32639549 | AS63: 50.44013765 | AU63: 62.5 | AV63: 15 | AW63: 10.12346759 | AX63: 45.31896753 | AZ63: 62.5 | BA63: 15 | BB63: 6.862361026 | BC63: 42.88982763 | BE63: 62.5 | BF63: 15 | BG63: 10.45634628 | BH63: 47.86141327 | BJ63: 68.18181818 | BK63: 15 | BL63: 0.1651047523 | BM63: 41.98738937 | BO63: 68.18181818 | BP63: 15 | BQ63: 4.387902893 | BR63: 44.11039286 | BT63: 71.42857143 | BU63: 15 | BV63: 9.533915356 | BW63: 47.17949709 | BY63: 75 | BZ63: 15 | CA63: 0.1323364504 | CB63: 57.20914165 | CD63: 62.5 | CE63: 15 | CF63: 8.079888472 | CG63: 43.65926055 | CI63: 62.5 | CJ63: 15 | CK63: 7.965172954 | CL63: 43.6046332 | CN63: 62.5 | CO63: 15 | CP63: 8.085293153 | CQ63: 46.67256083 | CS63: 62.5 | CT63: 15 | CU63: 10.4511337 | CV63: 47.85539901 | CX63: 62.5 | CY63: 15 | CZ63: 7.655610049 | DA63: 48.61799835 | DC63: 62.5 | DD63: 15 | DE63: 4.389593715 | DF63: 44.82552205 | DH63: 83.33333333 | DI63: 15 | DJ63: 0.1323374006 | DK63: 50.06623532 | DM63: 62.5 | DN63: 15 | DO63: 9.230159955 | DP63: 44.64170504 | DR63: 62.5 | DS63: 15 | DT63: 6.286084731 | DU63: 45.77715303 | DW63: 62.5 | DX63: 15 | DY63: 8.537426574 | DZ63: 44.60893459 | EB63: 62.5 | EC63: 15 | ED63: 7.566681594 | EE63: 48.5586722 | EG63: 62.5 | EH63: 15 | EI63: 7.810345461 | EJ63: 42.74334153 | EL63: 62.5 | EM63: 15 | EN63: 10.91771068 | EO63: 48.57660591 | EQ63: 68.18181818 | ER63: 15 | ES63: 8.610701067 | ET63: 46.23339635 | EV63: 71.42857143 | EW63: 15 | EX63: 16.15396569 | EY63: 51.4651217 | FA63: 75 | FB63: 15 | FC63: 0.1323364256 | FD63: 57.20914165 | FF63: 62.5 | FG63: 15 | FH63: 0.1388050391 | FI63: 44.35528629 | FK63: 62.5 | FL63: 15 | FM63: 0.1487458144 | FN63: 45.78865891 | FP63: 62.5 | FQ63: 15 | FR63: 11.30984537 | FS63: 54.23639142 | FU63: 93.75 | FV63: 15 | FW63: 14.38541449 | FX63: 57.29255742
G64: 66.66666667 | H64: 16 | I64: 17.37731328 | J64: 57.06477802 | L64: 66.66666667 | M64: 16 | N64: 12.74613168 | O64: 55.10995524 | Q64: 66.66666667 | R64: 16 | S64: 8.42080183 | T64: 52.55117916 | V64: 66.66666667 | W64: 16 | X64: 16.99334216 | Y64: 59.69179596 | AA64: 66.66666667 | AB64: 16 | AC64: 7.955725309 | AD64: 52.47500831 | AF64: 66.66666667 | AG64: 16 | AH64: 8.846001629 | AI64: 52.89417111 | AK64: 66.66666667 | AL64: 16 | AM64: 16.03443706 | AN64: 58.73696058 | AP64: 66.66666667 | AQ64: 16 | AR64: 5.833163809 | AS64: 56.27330145 | AU64: 66.66666667 | AV64: 16 | AW64: 6.840303036 | AX64: 52.15927057 | AZ64: 66.66666667 | BA64: 16 | BB64: 10.3813848 | BC64: 53.27121243 | BE64: 66.66666667 | BF64: 16 | BG64: 8.572147881 | BH64: 56.43356115 | BJ64: 72.72727273 | BK64: 16 | BL64: 17.45893787 | BM64: 59.44632723 | BO64: 72.72727273 | BP64: 16 | BQ64: 12.98074774 | BR64: 57.0911406 | BT64: 76.19047619 | BU64: 16 | BV64: 14.7221507 | BW64: 61.90164779 | BY64: 80 | BZ64: 16 | CA64: 14.16979547 | CB64: 71.37893712 | CD64: 66.66666667 | CE64: 16 | CF64: 9.311081408 | CG64: 52.97034196 | CI64: 66.66666667 | CJ64: 16 | CK64: 9.73820332 | CL64: 53.34283652 | CN64: 66.66666667 | CO64: 16 | CP64: 7.384369212 | CQ64: 54.05693004 | CS64: 66.66666667 | CT64: 16 | CU64: 6.674416912 | CV64: 54.52981592 | CX64: 66.66666667 | CY64: 16 | CZ64: 11.40521248 | DA64: 60.02321083 | DC64: 66.66666667 | DD64: 16 | DE64: 11.55625189 | DF64: 56.38177394 | DH64: 88.88888889 | DI64: 16 | DJ64: 14.17012721 | DK64: 64.23636253 | DM64: 66.66666667 | DN64: 16 | DO64: 8.513427419 | DP64: 53.15513246 | DR64: 66.66666667 | DS64: 16 | DT64: 12.74819126 | DU64: 58.52534429 | DW64: 66.66666667 | DX64: 16 | DY64: 7.969498769 | DZ64: 52.57843336 | EB64: 66.66666667 | EC64: 16 | ED64: 8.676947003 | EE64: 57.2356192 | EG64: 66.66666667 | EH64: 16 | EI64: 11.73484682 | EJ64: 54.47818835 | EL64: 66.66666667 | EM64: 16 | EN64: 8.113226811 | EO64: 56.68983272 | EQ64: 72.72727273 | ER64: 16 | ES64: 8.502557612 | ET64: 54.73595397 | EV64: 76.19047619 | EW64: 16 | EX64: 10.43652611 | EY64: 61.90164781 | FA64: 80 | FB64: 16 | FC64: 14.16979547 | FD64: 71.37893712 | FF64: 66.66666667 | FG64: 16 | FH64: 19.861103 | FI64: 64.21638929 | FK64: 66.66666667 | FL64: 16 | FM64: 14.85645837 | FN64: 60.64511728 | FP64: 66.66666667 | FQ64: 16 | FR64: 2.986047546 | FS64: 57.22243897 | FU64: 100 | FV64: 16 | FW64: 42.70744252 | FX64: 99.99999994
G65: 70.83333333 | H65: 17 | I65: 0.156394148 | J65: 57.22117217 | L65: 70.83333333 | M65: 17 | N65: 4.088157186 | O65: 59.19811243 | Q65: 70.83333333 | R65: 17 | S65: 9.214979816 | T65: 61.76615898 | V65: 70.83333333 | W65: 17 | X65: 0.1404274308 | Y65: 59.83222339 | AA65: 70.83333333 | AB65: 17 | AC65: 9.362925316 | AD65: 61.83793363 | AF65: 70.83333333 | AG65: 17 | AH65: 10.12512944 | AI65: 63.01930055 | AK65: 70.83333333 | AL65: 17 | AM65: 0.1454569624 | AN65: 58.88241754 | AP65: 70.83333333 | AQ65: 17 | AR65: 15.12225584 | AS65: 71.3955573 | AU65: 70.83333333 | AV65: 17 | AW65: 9.219629829 | AX65: 61.3789004 | AZ65: 70.83333333 | BA65: 17 | BB65: 9.680194298 | BC65: 62.95140673 | BE65: 70.83333333 | BF65: 17 | BG65: 6.67507106 | BH65: 63.10863221 | BJ65: 77.27272727 | BK65: 17 | BL65: 0.1552931584 | BM65: 59.60162039 | BO65: 77.27272727 | BP65: 17 | BQ65: 4.893879799 | BR65: 61.9850204 | BT65: 80.95238095 | BU65: 17 | BV65: 5.77042432 | BW65: 67.67207211 | BY65: 85 | BZ65: 17 | CA65: 0.09940201671 | CB65: 71.47833914 | CD65: 70.83333333 | CE65: 17 | CF65: 9.977183957 | CG65: 62.94752592 | CI65: 70.83333333 | CJ65: 17 | CK65: 6.992939254 | CL65: 60.33577577 | CN65: 70.83333333 | CO65: 17 | CP65: 11.4432536 | CQ65: 65.50018364 | CS65: 70.83333333 | CT65: 17 | CU65: 8.591173873 | CV65: 63.1209898 | CX65: 70.83333333 | CY65: 17 | CZ65: 7.60269283 | DA65: 67.62590366 | DC65: 70.83333333 | DD65: 17 | DE65: 4.88404364 | DF65: 61.26581758 | DH65: 94.44444444 | DI65: 17 | DJ65: 0.09940142345 | DK65: 64.33576395 | DM65: 70.83333333 | DN65: 17 | DO65: 8.019920224 | DP65: 61.17505269 | DR65: 70.83333333 | DS65: 17 | DT65: 2.488246041 | DU65: 61.01359033 | DW65: 70.83333333 | DX65: 17 | DY65: 9.981833953 | DZ65: 62.56026732 | EB65: 70.83333333 | EC65: 17 | ED65: 15.11229914 | EE65: 72.34791834 | EG65: 70.83333333 | EH65: 17 | EI65: 9.177576456 | EJ65: 63.6557648 | EL65: 70.83333333 | EM65: 17 | EN65: 7.123157566 | EO65: 63.81299029 | EQ65: 77.27272727 | ER65: 17 | ES65: 9.632466439 | ET65: 64.3684204 | EV65: 80.95238095 | EW65: 17 | EX65: 5.770424295 | EY65: 67.67207211 | FA65: 85 | FB65: 17 | FC65: 0.09940201671 | FD65: 71.47833914 | FF65: 70.83333333 | FG65: 17 | FH65: 0.1387755111 | FI65: 64.3551648 | FK65: 70.83333333 | FL65: 17 | FM65: 0.1387905443 | FN65: 60.78390783 | FP65: 70.83333333 | FQ65: 17 | FR65: 17.04358438 | FS65: 74.26602335 | FW65: =SUM(FW48:FW64) -> 99.99999994
G66: 75 | H66: 18 | I66: 16.37135895 | J66: 73.59253113 | L66: 75 | M66: 18 | N66: 13.69010294 | O66: 72.88821537 | Q66: 75 | R66: 18 | S66: 7.909728373 | T66: 69.67588735 | V66: 75 | W66: 18 | X66: 17.0156733 | Y66: 76.84789669 | AA66: 75 | AB66: 18 | AC66: 8.09440407 | AD66: 69.9323377 | AF66: 75 | AG66: 18 | AH66: 6.208721399 | AI66: 69.22802195 | AK66: 75 | AL66: 18 | AM66: 18.44821879 | AN66: 77.33063633 | AP66: 75 | AQ66: 18 | AR66: 2.930004135 | AS66: 74.32556143 | AU66: 75 | AV66: 18 | AW66: 9.981978847 | AX66: 71.36087924 | AZ66: 75 | BA66: 18 | BB66: 6.343886456 | BC66: 69.29529318 | BE66: 75 | BF66: 18 | BG66: 8.576425964 | BH66: 71.68505818 | BJ66: 81.81818182 | BK66: 18 | BL66: 17.96461861 | BM66: 77.56623901 | BO66: 81.81818182 | BP66: 18 | BQ66: 15.58121862 | BR66: 77.56623901 | BT66: 85.71428571 | BU66: 18 | BV66: 9.450925195 | BW66: 77.1229973 | BY66: 90 | BZ66: 18 | CA66: 14.20297894 | CB66: 85.68131808 | CD66: 75 | CE66: 18 | CF66: 6.024045682 | CG66: 68.9715716 | CI66: 75 | CJ66: 18 | CK66: 10.16873509 | CL66: 70.50451086 | CN66: 75 | CO66: 18 | CP66: 9.010608354 | CQ66: 74.510792 | CS66: 75 | CT66: 18 | CU66: 9.490889639 | CV66: 72.61187944 | CX66: 75 | CY66: 18 | CZ66: 8.614326637 | DA66: 76.24023029 | DC66: 75 | DD66: 18 | DE66: 16.06481876 | DF66: 77.33063633 | DH66: 100 | DI66: 18 | DJ66: 35.66423594 | DK66: 99.99999989 | DM66: 75 | DN66: 18 | DO66: 11.00884694 | DP66: 72.18389962 | DR66: 75 | DS66: 18 | DT66: 15.12999061 | DU66: 76.14358094 | DW66: 75 | DX66: 18 | DY66: 8.096296176 | DZ66: 70.65656349 | EB66: 75 | EC66: 18 | ED66: 1.977643091 | EE66: 74.32556143 | EG66: 75 | EH66: 18 | EI66: 4.935212628 | EJ66: 68.59097743 | EL66: 75 | EM66: 18 | EN66: 7.167752135 | EO66: 70.98074242 | EQ66: 81.81818182 | ER66: 18 | ES66: 13.19781862 | ET66: 77.56623902 | EV66: 85.71428571 | EW66: 18 | EX66: 9.450925195 | EY66: 77.1229973 | FA66: 90 | FB66: 18 | FC66: 14.20297894 | FD66: 85.68131808 | FF66: 75 | FG66: 18 | FH66: 14.16190833 | FI66: 78.51707313 | FK66: 75 | FL66: 18 | FM66: 21.31194233 | FN66: 82.09585016 | FP66: 75 | FQ66: 18 | FR66: 5.763817138 | FS66: 80.02984049
G67: 79.16666667 | H67: 19 | I67: 0.1168052295 | J67: 73.70933636 | L67: 79.16666667 | M67: 19 | N67: 1.535391762 | O67: 74.42360714 | Q67: 79.16666667 | R67: 19 | S67: 7.980438903 | T67: 77.65632625 | V67: 79.16666667 | W67: 19 | X67: 0.1140093689 | Y67: 76.96190606 | AA67: 79.16666667 | AB67: 19 | AC67: 7.455933414 | AD67: 77.38827111 | AF67: 79.16666667 | AG67: 19 | AH67: 8.874519946 | AI67: 78.10254189 | AK67: 79.16666667 | AL67: 19 | AM67: 0.1008746234 | AN67: 77.43151096 | AP67: 79.16666667 | AQ67: 19 | AR67: 9.487372336 | AS67: 83.81293377 | AU67: 79.16666667 | AV67: 19 | AW67: 6.027391869 | AX67: 77.38827111 | AZ67: 79.16666667 | BA67: 19 | BB67: 7.166583331 | BC67: 76.46187652 | BE67: 79.16666667 | BF67: 19 | BG67: 10.46123367 | BH67: 82.14629185 | BJ67: 86.36363636 | BK67: 19 | BL67: 0.1057902099 | BM67: 77.67202922 | BO67: 86.36363636 | BP67: 19 | BQ67: 0.1057902016 | BR67: 77.67202922 | BT67: 90.47619048 | BU67: 19 | BV67: 1.951334935 | BW67: 79.07433224 | BY67: 95 | BZ67: 19 | CA67: 0.06626770261 | CB67: 85.74758578 | CD67: 79.16666667 | CE67: 19 | CF67: 9.399025436 | CG67: 78.37059703 | CI67: 79.16666667 | CJ67: 19 | CK67: 9.510417261 | CL67: 80.01492812 | CN67: 79.16666667 | CO67: 19 | CP67: 4.809715937 | CQ67: 79.32050793 | CS67: 79.16666667 | CT67: 19 | CU67: 9.578148968 | CV67: 82.1900284 | CX67: 79.16666667 | CY67: 19 | CZ67: 9.47411542 | DA67: 85.71434571 | DC67: 79.16666667 | DD67: 19 | DE67: 0.1008746234 | DF67: 77.43151096 | DJ67: =SUM(DJ48:DJ66) -> 99.99999989 | DM67: 79.16666667 | DN67: 19 | DO67: 2.953978294 | DP67: 75.13787792 | DR67: 79.16666667 | DS67: 19 | DT67: 1.532595901 | DU67: 77.67617684 | DW67: 79.16666667 | DX67: 19 | DY67: 7.445978401 | DZ67: 78.10254189 | EB67: 79.16666667 | EC67: 19 | ED67: 9.487372336 | EE67: 83.81293377 | EG67: 79.16666667 | EH67: 19 | EI67: 8.585169864 | EJ67: 77.1761473 | EL67: 79.16666667 | EM67: 19 | EN67: 11.8798202 | EO67: 82.86056263 | EQ67: 86.36363636 | ER67: 19 | ES67: 0.1057901933 | ET67: 77.67202922 | EV67: 90.47619048 | EW67: 19 | EX67: 1.951334935 | EY67: 79.07433224 | FA67: 95 | FB67: 19 | FC67: 0.06626770261 | FD67: 85.74758578 | FF67: 79.16666667 | FG67: 19 | FH67: 0.1090146133 | FI67: 78.62608774 | FK67: 79.16666667 | FL67: 19 | FM67: 0.09417824388 | FN67: 82.1900284 | FP67: 79.16666667 | FQ67: 19 | FR67: 5.684505227 | FS67: 85.71434571
G68: 83.33333333 | H68: 20 | I68: 14.11315029 | J68: 87.82248664 | L68: 83.33333333 | M68: 20 | N68: 13.39887951 | O68: 87.82248664 | Q68: 83.33333333 | R68: 20 | S68: 8.755011606 | T68: 86.41133786 | V68: 83.33333333 | W68: 20 | X68: 12.29163949 | Y68: 89.25354555 | AA68: 83.33333333 | AB68: 20 | AC68: 6.922358489 | AD68: 84.3106296 | AF68: 83.33333333 | AG68: 20 | AH68: 6.208087709 | AI68: 84.3106296 | AK68: 83.33333333 | AL68: 20 | AM68: 12.54123583 | AN68: 89.97274679 | AP68: 83.33333333 | AQ68: 20 | AR68: 4.768574392 | AS68: 88.58150816 | AU68: 83.33333333 | AV68: 20 | AW68: 6.922358489 | AX68: 84.3106296 | AZ68: 83.33333333 | BA68: 20 | BB68: 10.70087109 | BC68: 87.16274761 | BE68: 83.33333333 | BF68: 20 | BG68: 5.016455762 | BH68: 87.16274761 | BJ68: 90.90909091 | BK68: 20 | BL68: 9.441157086 | BM68: 87.1131863 | BO68: 90.90909091 | BP68: 20 | BQ68: 9.441157086 | BR68: 87.1131863 | BT68: 95.23809524 | BU68: 20 | BV68: 9.537016436 | BW68: 88.61134868 | BY68: 100 | BZ68: 20 | CA68: 14.25241422 | CB68: 100 | CD68: 83.33333333 | CE68: 20 | CF68: 8.040740825 | CG68: 86.41133786 | CI68: 83.33333333 | CJ68: 20 | CK68: 4.985260954 | CL68: 85.00018908 | CN68: 83.33333333 | CO68: 20 | CP68: 8.521888839 | CQ68: 87.84239677 | CS68: 83.33333333 | CT68: 20 | CU68: 7.782718385 | CV68: 89.97274679 | CX68: 83.33333333 | CY68: 20 | CZ68: 2.867162446 | DA68: 88.58150816 | DC68: 83.33333333 | DD68: 20 | DE68: 12.54123583 | DF68: 89.97274679 | DM68: 83.33333333 | DN68: 20 | DO68: 12.68460873 | DP68: 87.82248664 | DR68: 83.33333333 | DS68: 20 | DT68: 11.57736871 | DU68: 89.25354555 | DW68: 83.33333333 | DX68: 20 | DY68: 6.208087709 | DZ68: 84.3106296 | EB68: 83.33333333 | EC68: 20 | ED68: 4.768574392 | EE68: 88.58150816 | EG68: 83.33333333 | EH68: 20 | EI68: 9.986600312 | EJ68: 87.16274761 | EL68: 83.33333333 | EM68: 20 | EN68: 4.302184981 | EO68: 87.16274761 | EQ68: 90.90909091 | ER68: 20 | ES68: 9.441157086 | ET68: 87.1131863 | EV68: 95.23809524 | EW68: 20 | EX68: 9.537016436 | EY68: 88.61134868 | FA68: 100 | FB68: 20 | FC68: 14.25241422 | FD68: 100 | FF68: 83.33333333 | FG68: 20 | FH68: 12.05851672 | FI68: 90.68460447 | FK68: 83.33333333 | FL68: 20 | FM68: 7.782718385 | FN68: 89.97274679 | FP68: 83.33333333 | FQ68: 20 | FR68: 2.867162446 | FS68: 88.58150816
G69: 87.5 | H69: 21 | I69: 0.0694619963 | J69: 87.89194864 | L69: 87.5 | M69: 21 | N69: 0.0694619963 | O69: 87.89194864 | Q69: 87.5 | R69: 21 | S69: 2.906669803 | T69: 89.31800766 | V69: 87.5 | W69: 21 | X69: 0.06446210853 | Y69: 89.31800766 | AA69: 87.5 | AB69: 21 | AC69: 7.11299688 | AD69: 91.42362648 | AF69: 87.5 | AG69: 21 | AH69: 7.11299688 | AI69: 91.42362648 | AK69: 87.5 | AL69: 21 | AM69: 0.05464112305 | AN69: 90.02738791 | AP69: 87.5 | AQ69: 21 | AR69: 5.724056775 | AS69: 94.30556493 | AU69: 87.5 | AV69: 21 | AW69: 7.11299688 | AX69: 91.42362648 | AZ69: 87.5 | BA69: 21 | BB69: 4.260878874 | BC69: 91.42362648 | BE69: 87.5 | BF69: 21 | BG69: 4.260878874 | BH69: 91.42362648 | BJ69: 95.45454545 | BK69: 21 | BL69: 0.05964086567 | BM69: 87.17282717 | BO69: 95.45454545 | BP69: 21 | BQ69: 0.05964086567 | BR69: 87.17282717 | BT69: 100 | BU69: 21 | BV69: 11.38865132 | BW69: 100 | CA69: =SUM(CA48:CA68) -> 100 | CD69: 87.5 | CE69: 21 | CF69: 2.906669803 | CG69: 89.31800766 | CI69: 87.5 | CJ69: 21 | CK69: 5.74387761 | CL69: 90.74406669 | CN69: 87.5 | CO69: 21 | CP69: 2.901669915 | CQ69: 90.74406669 | CS69: 87.5 | CT69: 21 | CU69: 0.05464112305 | CV69: 90.02738791 | CX69: 87.5 | CY69: 21 | CZ69: 5.724056775 | DA69: 94.30556493 | DC69: 87.5 | DD69: 21 | DE69: 0.05464112305 | DF69: 90.02738791 | DM69: 87.5 | DN69: 21 | DO69: 0.0694619963 | DP69: 87.89194864 | DR69: 87.5 | DS69: 21 | DT69: 0.06446210853 | DU69: 89.31800766 | DW69: 87.5 | DX69: 21 | DY69: 7.11299688 | DZ69: 91.42362648 | EB69: 87.5 | EC69: 21 | ED69: 5.724056775 | EE69: 94.30556493 | EG69: 87.5 | EH69: 21 | EI69: 4.260878874 | EJ69: 91.42362648 | EL69: 87.5 | EM69: 21 | EN69: 4.260878874 | EO69: 91.42362648 | EQ69: 95.45454545 | ER69: 21 | ES69: 0.05964086567 | ET69: 87.17282717 | EV69: 100 | EW69: 21 | EX69: 11.38865132 | EY69: 100 | FC69: =SUM(FC48:FC68) -> 100 | FF69: 87.5 | FG69: 21 | FH69: 0.05946222075 | FI69: 90.74406669 | FK69: 87.5 | FL69: 21 | FM69: 0.05464112305 | FN69: 90.02738791 | FP69: 87.5 | FQ69: 21 | FR69: 5.724056775 | FS69: 94.30556493
G70: 91.66666667 | H70: 22 | I70: 7.093205986 | J70: 94.98515463 | L70: 91.66666667 | M70: 22 | N70: 7.093205986 | O70: 94.98515463 | Q70: 91.66666667 | R70: 22 | S70: 5.667146962 | T70: 94.98515463 | V70: 91.66666667 | W70: 22 | X70: 5.667146962 | Y70: 94.98515463 | AA70: 91.66666667 | AB70: 22 | AC70: 1.443546279 | AD70: 92.86717276 | AF70: 91.66666667 | AG70: 22 | AH70: 1.443546279 | AI70: 92.86717276 | AK70: 91.66666667 | AL70: 22 | AM70: 7.105568981 | AN70: 97.13295689 | AP70: 91.66666667 | AQ70: 22 | AR70: 2.827391959 | AS70: 97.13295689 | AU70: 91.66666667 | AV70: 22 | AW70: 1.443546279 | AX70: 92.86717276 | AZ70: 91.66666667 | BA70: 22 | BB70: 1.443546279 | BC70: 92.86717276 | BE70: 91.66666667 | BF70: 22 | BG70: 1.443546279 | BH70: 92.86717276 | BJ70: 100 | BK70: 22 | BL70: 12.82717283 | BM70: 100 | BO70: 100 | BP70: 22 | BQ70: 12.82717283 | BR70: 100 | BV70: =SUM(BV48:BV69) -> 100 | CD70: 91.66666667 | CE70: 22 | CF70: 5.667146962 | CG70: 94.98515463 | CI70: 91.66666667 | CJ70: 22 | CK70: 4.241087938 | CL70: 94.98515463 | CN70: 91.66666667 | CO70: 22 | CP70: 4.241087938 | CQ70: 94.98515463 | CS70: 91.66666667 | CT70: 22 | CU70: 7.105568981 | CV70: 97.13295689 | CX70: 91.66666667 | CY70: 22 | CZ70: 2.827391959 | DA70: 97.13295689 | DC70: 91.66666667 | DD70: 22 | DE70: 7.105568981 | DF70: 97.13295689 | DM70: 91.66666667 | DN70: 22 | DO70: 7.093205986 | DP70: 94.98515463 | DR70: 91.66666667 | DS70: 22 | DT70: 5.667146962 | DU70: 94.98515463 | DW70: 91.66666667 | DX70: 22 | DY70: 1.443546279 | DZ70: 92.86717276 | EB70: 91.66666667 | EC70: 22 | ED70: 2.827391959 | EE70: 97.13295689 | EG70: 91.66666667 | EH70: 22 | EI70: 1.443546279 | EJ70: 92.86717276 | EL70: 91.66666667 | EM70: 22 | EN70: 1.443546279 | EO70: 92.86717276 | EQ70: 100 | ER70: 22 | ES70: 12.82717283 | ET70: 100 | EX70: =SUM(EX48:EX69) -> 100 | FF70: 91.66666667 | FG70: 22 | FH70: 4.241087938 | FI70: 94.98515463 | FK70: 91.66666667 | FL70: 22 | FM70: 7.105568981 | FN70: 97.13295689 | FP70: 91.66666667 | FQ70: 22 | FR70: 2.827391959 | FS70: 97.13295689
G71: 95.83333333 | H71: 23 | I71: 0.0298204494 | J71: 95.01497507 | L71: 95.83333333 | M71: 23 | N71: 0.0298204494 | O71: 95.01497507 | Q71: 95.83333333 | R71: 23 | S71: 0.0298204494 | T71: 95.01497507 | V71: 95.83333333 | W71: 23 | X71: 0.0298204494 | Y71: 95.01497507 | AA71: 95.83333333 | AB71: 23 | AC71: 4.285664431 | AD71: 97.15283719 | AF71: 95.83333333 | AG71: 23 | AH71: 4.285664431 | AI71: 97.15283719 | AK71: 95.83333333 | AL71: 23 | AM71: 0.0198802996 | AN71: 97.15283719 | AP71: 95.83333333 | AQ71: 23 | AR71: 0.0198802996 | AS71: 97.15283719 | AU71: 95.83333333 | AV71: 23 | AW71: 4.285664431 | AX71: 97.15283719 | AZ71: 95.83333333 | BA71: 23 | BB71: 4.285664431 | BC71: 97.15283719 | BE71: 95.83333333 | BF71: 23 | BG71: 4.285664431 | BH71: 97.15283719 | BL71: =SUM(BL48:BL70) -> 100 | BQ71: =SUM(BQ48:BQ70) -> 100 | CD71: 95.83333333 | CE71: 23 | CF71: 0.0298204494 | CG71: 95.01497507 | CI71: 95.83333333 | CJ71: 23 | CK71: 0.0298204494 | CL71: 95.01497507 | CN71: 95.83333333 | CO71: 23 | CP71: 0.0298204494 | CQ71: 95.01497507 | CS71: 95.83333333 | CT71: 23 | CU71: 0.0198802996 | CV71: 97.15283719 | CX71: 95.83333333 | CY71: 23 | CZ71: 0.0198802996 | DA71: 97.15283719 | DC71: 95.83333333 | DD71: 23 | DE71: 0.0198802996 | DF71: 97.15283719 | DM71: 95.83333333 | DN71: 23 | DO71: 0.0298204494 | DP71: 95.01497507 | DR71: 95.83333333 | DS71: 23 | DT71: 0.0298204494 | DU71: 95.01497507 | DW71: 95.83333333 | DX71: 23 | DY71: 4.285664431 | DZ71: 97.15283719 | EB71: 95.83333333 | EC71: 23 | ED71: 0.0198802996 | EE71: 97.15283719 | EG71: 95.83333333 | EH71: 23 | EI71: 4.285664431 | EJ71: 97.15283719 | EL71: 95.83333333 | EM71: 23 | EN71: 4.285664431 | EO71: 97.15283719 | ES71: =SUM(ES48:ES70) -> 100 | FF71: 95.83333333 | FG71: 23 | FH71: 0.0298204494 | FI71: 95.01497507 | FK71: 95.83333333 | FL71: 23 | FM71: 0.0198802996 | FN71: 97.15283719 | FP71: 95.83333333 | FQ71: 23 | FR71: 0.0198802996 | FS71: 97.15283719
G72: 100 | H72: 24 | I72: 4.985024925 | J72: 100 | L72: 100 | M72: 24 | N72: 4.985024925 | O72: 100 | Q72: 100 | R72: 24 | S72: 4.985024925 | T72: 100 | V72: 100 | W72: 24 | X72: 4.985024925 | Y72: 100 | AA72: 100 | AB72: 24 | AC72: 2.847162807 | AD72: 100 | AF72: 100 | AG72: 24 | AH72: 2.847162807 | AI72: 100 | AK72: 100 | AL72: 24 | AM72: 2.847162807 | AN72: 100 | AP72: 100 | AQ72: 24 | AR72: 2.847162807 | AS72: 100 | AU72: 100 | AV72: 24 | AW72: 2.847162807 | AX72: 100 | AZ72: 100 | BA72: 24 | BB72: 2.847162807 | BC72: 100 | BE72: 100 | BF72: 24 | BG72: 2.847162807 | BH72: 100 | CD72: 100 | CE72: 24 | CF72: 4.985024925 | CG72: 100 | CI72: 100 | CJ72: 24 | CK72: 4.985024925 | CL72: 100 | CN72: 100 | CO72: 24 | CP72: 4.985024925 | CQ72: 100 | CS72: 100 | CT72: 24 | CU72: 2.847162807 | CV72: 100 | CX72: 100 | CY72: 24 | CZ72: 2.847162807 | DA72: 100 | DC72: 100 | DD72: 24 | DE72: 2.847162807 | DF72: 100 | DM72: 100 | DN72: 24 | DO72: 4.985024925 | DP72: 100 | DR72: 100 | DS72: 24 | DT72: 4.985024925 | DU72: 100 | DW72: 100 | DX72: 24 | DY72: 2.847162807 | DZ72: 100 | EB72: 100 | EC72: 24 | ED72: 2.847162807 | EE72: 100 | EG72: 100 | EH72: 24 | EI72: 2.847162807 | EJ72: 100 | EL72: 100 | EM72: 24 | EN72: 2.847162807 | EO72: 100 | FF72: 100 | FG72: 24 | FH72: 4.985024925 | FI72: 100 | FK72: 100 | FL72: 24 | FM72: 2.847162807 | FN72: 100 | FP72: 100 | FQ72: 24 | FR72: 2.847162807 | FS72: 100
I73: =SUM(I48:I72) -> 100 | N73: =SUM(N48:N72) -> 100 | S73: =SUM(S48:S72) -> 100 | X73: =SUM(X48:X72) -> 100 | AC73: =SUM(AC48:AC72) -> 100 | AH73: =SUM(AH48:AH72) -> 100 | AM73: =SUM(AM48:AM72) -> 100 | AR73: =SUM(AR48:AR72) -> 100 | AW73: =SUM(AW48:AW72) -> 100 | BB73: =SUM(BB48:BB72) -> 100 | BG73: =SUM(BG48:BG72) -> 100 | CF73: =SUM(CF48:CF72) -> 100 | CK73: =SUM(CK48:CK72) -> 100 | CP73: =SUM(CP48:CP72) -> 100 | CU73: =SUM(CU48:CU72) -> 100 | CZ73: =SUM(CZ48:CZ72) -> 100 | DE73: =SUM(DE48:DE72) -> 100 | DO73: =SUM(DO48:DO72) -> 100 | DT73: =SUM(DT48:DT72) -> 100 | DY73: =SUM(DY48:DY72) -> 100 | ED73: =SUM(ED48:ED72) -> 100 | EI73: =SUM(EI48:EI72) -> 100 | EN73: =SUM(EN48:EN72) -> 100 | FH73: =SUM(FH48:FH72) -> 100 | FM73: =SUM(FM48:FM72) -> 100 | FR73: =SUM(FR48:FR72) -> 100

Sheet Discret8 (hidden)
A1: n=2k | B1: k | D1: MaxSRD=2k^2
A2: 8 | B2: 4 | D2: 32
A4: RC1 | B4: RC2 | C4: RC3 | D4: RC4 | E4: RC5 | F4: RC6 | G4: RC7 | H4: RC8 | I4: RC9 | J4: RC10 | K4: RC11 | L4: RC12 | M4: RC13 | N4: RC14 | O4: RC15 | P4: RC16 | Q4: RC17 | R4: RC18 | S4: RC19 | T4: RC20 | U4: RC21 | V4: RC22 | W4: RC23 | X4: RC24 | Y4: RC25 | Z4: RC26 | AA4: RC27 | AB4: RC28 | AC4: RC29 | AD4: RC30 | AE4: RC31 | AF4: RC32 | AG4: RC33 | AH4: RC34 | AI4: RC35 | AJ4: RC36 | AK4: RC37 | AL4: RC38 | AM4: RC39 | AN4: RC40 | AO4: RC41 | AP4: RC42 | AQ4: RC43 | AR4: RC44 | AS4: RC45 | AT4: RC46 | AU4: RC47 | AV4: RC48 | AW4: RC49 | AX4: RC50 | AY4: RC51 | AZ4: RC52 | BA4: RC53 | BB4: RC54 | BC4: RC55 | BD4: RC56 | BE4: RC57 | BF4: RC58 | BG4: RC59 | BH4: RC60 | BI4: RC61 | BJ4: RC62 | BK4: RC63 | BL4: RC64 | BM4: RC65 | BN4: RC66 | BO4: RC67 | BP4: RC68 | BQ4: RC69 | BR4: RC70 | BS4: RC71 | BT4: RC72 | BU4: RC73 | BV4: RC74 | BW4: RC75 | BX4: RC76 | BY4: RC77 | BZ4: RC78 | CA4: RC79 | CB4: RC80 | CC4: RC81 | CD4: RC82 | CE4: RC83 | CF4: RC84 | CG4: RC85 | CH4: RC86 | CI4: RC87 | CJ4: RC88 | CK4: RC89 | CL4: RC90 | CM4: RC91 | CN4: RC92 | CO4: RC93 | CP4: RC94 | CQ4: RC95 | CR4: RC96 | CS4: RC97 | CT4: RC98 | CU4: RC99 | CV4: RC100 | CW4: RC101 | CX4: RC102 | CY4: RC103 | CZ4: RC104 | DA4: RC105 | DB4: RC106 | DC4: RC107 | DD4: RC108 | DE4: RC109 | DF4: RC110 | DG4: RC111 | DH4: RC112 | DI4: RC113 | DJ4: RC114 | DK4: RC115 | DL4: RC116 | DM4: RC117 | DN4: RC118 | DO4: RC119 | DP4: RC120 | DQ4: RC121 | DR4: RC122 | DS4: RC123 | DT4: RC124 | DU4: RC125 | DV4: RC126 | DW4: RC127 | DX4: RC128
A5: 1 | B5: 1 | C5: 1 | D5: 1 | E5: 1 | F5: 1 | G5: 1 | H5: 1 | I5: 1 | J5: 1 | K5: 1 | L5: 1 | M5: 1 | N5: 1 | O5: 1 | P5: 1 | Q5: 1 | R5: 1 | S5: 1 | T5: 1 | U5: 1 | V5: 1 | W5: 1 | X5: 1 | Y5: 1 | Z5: 1 | AA5: 1 | AB5: 1 | AC5: 1 | AD5: 1 | AE5: 1 | AF5: 1 | AG5: 1 | AH5: 1 | AI5: 1 | AJ5: 1 | AK5: 1 | AL5: 1 | AM5: 1 | AN5: 1 | AO5: 1 | AP5: 1 | AQ5: 1 | AR5: 1 | AS5: 1 | AT5: 1 | AU5: 1 | AV5: 1 | AW5: 1 | AX5: 1 | AY5: 1 | AZ5: 1 | BA5: 1 | BB5: 1 | BC5: 1 | BD5: 1 | BE5: 1 | BF5: 1 | BG5: 1 | BH5: 1 | BI5: 1 | BJ5: 1 | BK5: 1 | BL5: 1 | BM5: 1.5 | BN5: 1.5 | BO5: 1.5 | BP5: 1.5 | BQ5: 1.5 | BR5: 1.5 | BS5: 1.5 | BT5: 1.5 | BU5: 1.5 | BV5: 1.5 | BW5: 1.5 | BX5: 1.5 | BY5: 1.5 | BZ5: 1.5 | CA5: 1.5 | CB5: 1.5 | CC5: 1.5 | CD5: 1.5 | CE5: 1.5 | CF5: 1.5 | CG5: 1.5 | CH5: 1.5 | CI5: 1.5 | CJ5: 1.5 | CK5: 1.5 | CL5: 1.5 | CM5: 1.5 | CN5: 1.5 | CO5: 1.5 | CP5: 1.5 | CQ5: 1.5 | CR5: 1.5 | CS5: 2 | CT5: 2 | CU5: 2 | CV5: 2 | CW5: 2 | CX5: 2 | CY5: 2 | CZ5: 2 | DA5: 2 | DB5: 2 | DC5: 2 | DD5: 2 | DE5: 2 | DF5: 2 | DG5: 2 | DH5: 2 | DI5: 2.5 | DJ5: 2.5 | DK5: 2.5 | DL5: 2.5 | DM5: 2.5 | DN5: 2.5 | DO5: 2.5 | DP5: 2.5 | DQ5: 3 | DR5: 3 | DS5: 3 | DT5: 3 | DU5: 3.5 | DV5: 3.5 | DW5: 4 | DX5: 4.5
A6: 2 | B6: 2 | C6: 2 | D6: 2 | E6: 2 | F6: 2 | G6: 2 | H6: 2 | I6: 2 | J6: 2 | K6: 2 | L6: 2 | M6: 2 | N6: 2 | O6: 2 | P6: 2 | Q6: 2 | R6: 2 | S6: 2 | T6: 2 | U6: 2 | V6: 2 | W6: 2 | X6: 2 | Y6: 2 | Z6: 2 | AA6: 2 | AB6: 2 | AC6: 2 | AD6: 2 | AE6: 2 | AF6: 2 | AG6: 2.5 | AH6: 2.5 | AI6: 2.5 | AJ6: 2.5 | AK6: 2.5 | AL6: 2.5 | AM6: 2.5 | AN6: 2.5 | AO6: 2.5 | AP6: 2.5 | AQ6: 2.5 | AR6: 2.5 | AS6: 2.5 | AT6: 2.5 | AU6: 2.5 | AV6: 2.5 | AW6: 3 | AX6: 3 | AY6: 3 | AZ6: 3 | BA6: 3 | BB6: 3 | BC6: 3 | BD6: 3 | BE6: 3.5 | BF6: 3.5 | BG6: 3.5 | BH6: 3.5 | BI6: 4 | BJ6: 4 | BK6: 4.5 | BL6: 5 | BM6: 1.5 | BN6: 1.5 | BO6: 1.5 | BP6: 1.5 | BQ6: 1.5 | BR6: 1.5 | BS6: 1.5 | BT6: 1.5 | BU6: 1.5 | BV6: 1.5 | BW6: 1.5 | BX6: 1.5 | BY6: 1.5 | BZ6: 1.5 | CA6: 1.5 | CB6: 1.5 | CC6: 1.5 | CD6: 1.5 | CE6: 1.5 | CF6: 1.5 | CG6: 1.5 | CH6: 1.5 | CI6: 1.5 | CJ6: 1.5 | CK6: 1.5 | CL6: 1.5 | CM6: 1.5 | CN6: 1.5 | CO6: 1.5 | CP6: 1.5 | CQ6: 1.5 | CR6: 1.5 | CS6: 2 | CT6: 2 | CU6: 2 | CV6: 2 | CW6: 2 | CX6: 2 | CY6: 2 | CZ6: 2 | DA6: 2 | DB6: 2 | DC6: 2 | DD6: 2 | DE6: 2 | DF6: 2 | DG6: 2 | DH6: 2 | DI6: 2.5 | DJ6: 2.5 | DK6: 2.5 | DL6: 2.5 | DM6: 2.5 | DN6: 2.5 | DO6: 2.5 | DP6: 2.5 | DQ6: 3 | DR6: 3 | DS6: 3 | DT6: 3 | DU6: 3.5 | DV6: 3.5 | DW6: 4 | DX6: 4.5
A7: 3 | B7: 3 | C7: 3 | D7: 3 | E7: 3 | F7: 3 | G7: 3 | H7: 3 | I7: 3 | J7: 3 | K7: 3 | L7: 3 | M7: 3 | N7: 3 | O7: 3 | P7: 3 | Q7: 3.5 | R7: 3.5 | S7: 3.5 | T7: 3.5 | U7: 3.5 | V7: 3.5 | W7: 3.5 | X7: 3.5 | Y7: 4 | Z7: 4 | AA7: 4 | AB7: 4 | AC7: 4.5 | AD7: 4.5 | AE7: 5 | AF7: 5.5 | AG7: 2.5 | AH7: 2.5 | AI7: 2.5 | AJ7: 2.5 | AK7: 2.5 | AL7: 2.5 | AM7: 2.5 | AN7: 2.5 | AO7: 2.5 | AP7: 2.5 | AQ7: 2.5 | AR7: 2.5 | AS7: 2.5 | AT7: 2.5 | AU7: 2.5 | AV7: 2.5 | AW7: 3 | AX7: 3 | AY7: 3 | AZ7: 3 | BA7: 3 | BB7: 3 | BC7: 3 | BD7: 3 | BE7: 3.5 | BF7: 3.5 | BG7: 3.5 | BH7: 3.5 | BI7: 4 | BJ7: 4 | BK7: 4.5 | BL7: 5 | BM7: 3 | BN7: 3 | BO7: 3 | BP7: 3 | BQ7: 3 | BR7: 3 | BS7: 3 | BT7: 3 | BU7: 3 | BV7: 3 | BW7: 3 | BX7: 3 | BY7: 3 | BZ7: 3 | CA7: 3 | CB7: 3 | CC7: 3.5 | CD7: 3.5 | CE7: 3.5 | CF7: 3.5 | CG7: 3.5 | CH7: 3.5 | CI7: 3.5 | CJ7: 3.5 | CK7: 4 | CL7: 4 | CM7: 4 | CN7: 4 | CO7: 4.5 | CP7: 4.5 | CQ7: 5 | CR7: 5.5 | CS7: 2 | CT7: 2 | CU7: 2 | CV7: 2 | CW7: 2 | CX7: 2 | CY7: 2 | CZ7: 2 | DA7: 2 | DB7: 2 | DC7: 2 | DD7: 2 | DE7: 2 | DF7: 2 | DG7: 2 | DH7: 2 | DI7: 2.5 | DJ7: 2.5 | DK7: 2.5 | DL7: 2.5 | DM7: 2.5 | DN7: 2.5 | DO7: 2.5 | DP7: 2.5 | DQ7: 3 | DR7: 3 | DS7: 3 | DT7: 3 | DU7: 3.5 | DV7: 3.5 | DW7: 4 | DX7: 4.5
A8: 4 | B8: 4 | C8: 4 | D8: 4 | E8: 4 | F8: 4 | G8: 4 | H8: 4 | I8: 4.5 | J8: 4.5 | K8: 4.5 | L8: 4.5 | M8: 5 | N8: 5 | O8: 5.5 | P8: 6 | Q8: 3.5 | R8: 3.5 | S8: 3.5 | T8: 3.5 | U8: 3.5 | V8: 3.5 | W8: 3.5 | X8: 3.5 | Y8: 4 | Z8: 4 | AA8: 4 | AB8: 4 | AC8: 4.5 | AD8: 4.5 | AE8: 5 | AF8: 5.5 | AG8: 4 | AH8: 4 | AI8: 4 | AJ8: 4 | AK8: 4 | AL8: 4 | AM8: 4 | AN8: 4 | AO8: 4.5 | AP8: 4.5 | AQ8: 4.5 | AR8: 4.5 | AS8: 5 | AT8: 5 | AU8: 5.5 | AV8: 6 | AW8: 3 | AX8: 3 | AY8: 3 | AZ8: 3 | BA8: 3 | BB8: 3 | BC8: 3 | BD8: 3 | BE8: 3.5 | BF8: 3.5 | BG8: 3.5 | BH8: 3.5 | BI8: 4 | BJ8: 4 | BK8: 4.5 | BL8: 5 | BM8: 4 | BN8: 4 | BO8: 4 | BP8: 4 | BQ8: 4 | BR8: 4 | BS8: 4 | BT8: 4 | BU8: 4.5 | BV8: 4.5 | BW8: 4.5 | BX8: 4.5 | BY8: 5 | BZ8: 5 | CA8: 5.5 | CB8: 6 | CC8: 3.5 | CD8: 3.5 | CE8: 3.5 | CF8: 3.5 | CG8: 3.5 | CH8: 3.5 | CI8: 3.5 | CJ8: 3.5 | CK8: 4 | CL8: 4 | CM8: 4 | CN8: 4 | CO8: 4.5 | CP8: 4.5 | CQ8: 5 | CR8: 5.5 | CS8: 4 | CT8: 4 | CU8: 4 | CV8: 4 | CW8: 4 | CX8: 4 | CY8: 4 | CZ8: 4 | DA8: 4.5 | DB8: 4.5 | DC8: 4.5 | DD8: 4.5 | DE8: 5 | DF8: 5 | DG8: 5.5 | DH8: 6 | DI8: 2.5 | DJ8: 2.5 | DK8: 2.5 | DL8: 2.5 | DM8: 2.5 | DN8: 2.5 | DO8: 2.5 | DP8: 2.5 | DQ8: 3 | DR8: 3 | DS8: 3 | DT8: 3 | DU8: 3.5 | DV8: 3.5 | DW8: 4 | DX8: 4.5
A9: 5 | B9: 5 | C9: 5 | D9: 5 | E9: 5.5 | F9: 5.5 | G9: 6 | H9: 6.5 | I9: 4.5 | J9: 4.5 | K9: 4.5 | L9: 4.5 | M9: 5 | N9: 5 | O9: 5.5 | P9: 6 | Q9: 5 | R9: 5 | S9: 5 | T9: 5 | U9: 5.5 | V9: 5.5 | W9: 6 | X9: 6.5 | Y9: 4 | Z9: 4 | AA9: 4 | AB9: 4 | AC9: 4.5 | AD9: 4.5 | AE9: 5 | AF9: 5.5 | AG9: 5 | AH9: 5 | AI9: 5 | AJ9: 5 | AK9: 5.5 | AL9: 5.5 | AM9: 6 | AN9: 6.5 | AO9: 4.5 | AP9: 4.5 | AQ9: 4.5 | AR9: 4.5 | AS9: 5 | AT9: 5 | AU9: 5.5 | AV9: 6 | AW9: 5 | AX9: 5 | AY9: 5 | AZ9: 5 | BA9: 5.5 | BB9: 5.5 | BC9: 6 | BD9: 6.5 | BE9: 3.5 | BF9: 3.5 | BG9: 3.5 | BH9: 3.5 | BI9: 4 | BJ9: 4 | BK9: 4.5 | BL9: 5 | BM9: 5 | BN9: 5 | BO9: 5 | BP9: 5 | BQ9: 5.5 | BR9: 5.5 | BS9: 6 | BT9: 6.5 | BU9: 4.5 | BV9: 4.5 | BW9: 4.5 | BX9: 4.5 | BY9: 5 | BZ9: 5 | CA9: 5.5 | CB9: 6 | CC9: 5 | CD9: 5 | CE9: 5 | CF9: 5 | CG9: 5.5 | CH9: 5.5 | CI9: 6 | CJ9: 6.5 | CK9: 4 | CL9: 4 | CM9: 4 | CN9: 4 | CO9: 4.5 | CP9: 4.5 | CQ9: 5 | CR9: 5.5 | CS9: 5 | CT9: 5 | CU9: 5 | CV9: 5 | CW9: 5.5 | CX9: 5.5 | CY9: 6 | CZ9: 6.5 | DA9: 4.5 | DB9: 4.5 | DC9: 4.5 | DD9: 4.5 | DE9: 5 | DF9: 5 | DG9: 5.5 | DH9: 6 | DI9: 5 | DJ9: 5 | DK9: 5 | DL9: 5 | DM9: 5.5 | DN9: 5.5 | DO9: 6 | DP9: 6.5 | DQ9: 3 | DR9: 3 | DS9: 3 | DT9: 3 | DU9: 3.5 | DV9: 3.5 | DW9: 4 | DX9: 4.5
A10: 6 | B10: 6 | C10: 6.5 | D10: 7 | E10: 5.5 | F10: 5.5 | G10: 6 | H10: 6.5 | I10: 6 | J10: 6 | K10: 6.5 | L10: 7 | M10: 5 | N10: 5 | O10: 5.5 | P10: 6 | Q10: 6 | R10: 6 | S10: 6.5 | T10: 7 | U10: 5.5 | V10: 5.5 | W10: 6 | X10: 6.5 | Y10: 6 | Z10: 6 | AA10: 6.5 | AB10: 7 | AC10: 4.5 | AD10: 4.5 | AE10: 5 | AF10: 5.5 | AG10: 6 | AH10: 6 | AI10: 6.5 | AJ10: 7 | AK10: 5.5 | AL10: 5.5 | AM10: 6 | AN10: 6.5 | AO10: 6 | AP10: 6 | AQ10: 6.5 | AR10: 7 | AS10: 5 | AT10: 5 | AU10: 5.5 | AV10: 6 | AW10: 6 | AX10: 6 | AY10: 6.5 | AZ10: 7 | BA10: 5.5 | BB10: 5.5 | BC10: 6 | BD10: 6.5 | BE10: 6 | BF10: 6 | BG10: 6.5 | BH10: 7 | BI10: 4 | BJ10: 4 | BK10: 4.5 | BL10: 5 | BM10: 6 | BN10: 6 | BO10: 6.5 | BP10: 7 | BQ10: 5.5 | BR10: 5.5 | BS10: 6 | BT10: 6.5 | BU10: 6 | BV10: 6 | BW10: 6.5 | BX10: 7 | BY10: 5 | BZ10: 5 | CA10: 5.5 | CB10: 6 | CC10: 6 | CD10: 6 | CE10: 6.5 | CF10: 7 | CG10: 5.5 | CH10: 5.5 | CI10: 6 | CJ10: 6.5 | CK10: 6 | CL10: 6 | CM10: 6.5 | CN10: 7 | CO10: 4.5 | CP10: 4.5 | CQ10: 5 | CR10: 5.5 | CS10: 6 | CT10: 6 | CU10: 6.5 | CV10: 7 | CW10: 5.5 | CX10: 5.5 | CY10: 6 | CZ10: 6.5 | DA10: 6 | DB10: 6 | DC10: 6.5 | DD10: 7 | DE10: 5 | DF10: 5 | DG10: 5.5 | DH10: 6 | DI10: 6 | DJ10: 6 | DK10: 6.5 | DL10: 7 | DM10: 5.5 | DN10: 5.5 | DO10: 6 | DP10: 6.5 | DQ10: 6 | DR10: 6 | DS10: 6.5 | DT10: 7 | DU10: 3.5 | DV10: 3.5 | DW10: 4 | DX10: 4.5
A11: 7 | B11: 7.5 | C11: 6.5 | D11: 7 | E11: 7 | F11: 7.5 | G11: 6 | H11: 6.5 | I11: 7 | J11: 7.5 | K11: 6.5 | L11: 7 | M11: 7 | N11: 7.5 | O11: 5.5 | P11: 6 | Q11: 7 | R11: 7.5 | S11: 6.5 | T11: 7 | U11: 7 | V11: 7.5 | W11: 6 | X11: 6.5 | Y11: 7 | Z11: 7.5 | AA11: 6.5 | AB11: 7 | AC11: 7 | AD11: 7.5 | AE11: 5 | AF11: 5.5 | AG11: 7 | AH11: 7.5 | AI11: 6.5 | AJ11: 7 | AK11: 7 | AL11: 7.5 | AM11: 6 | AN11: 6.5 | AO11: 7 | AP11: 7.5 | AQ11: 6.5 | AR11: 7 | AS11: 7 | AT11: 7.5 | AU11: 5.5 | AV11: 6 | AW11: 7 | AX11: 7.5 | AY11: 6.5 | AZ11: 7 | BA11: 7 | BB11: 7.5 | BC11: 6 | BD11: 6.5 | BE11: 7 | BF11: 7.5 | BG11: 6.5 | BH11: 7 | BI11: 7 | BJ11: 7.5 | BK11: 4.5 | BL11: 5 | BM11: 7 | BN11: 7.5 | BO11: 6.5 | BP11: 7 | BQ11: 7 | BR11: 7.5 | BS11: 6 | BT11: 6.5 | BU11: 7 | BV11: 7.5 | BW11: 6.5 | BX11: 7 | BY11: 7 | BZ11: 7.5 | CA11: 5.5 | CB11: 6 | CC11: 7 | CD11: 7.5 | CE11: 6.5 | CF11: 7 | CG11: 7 | CH11: 7.5 | CI11: 6 | CJ11: 6.5 | CK11: 7 | CL11: 7.5 | CM11: 6.5 | CN11: 7 | CO11: 7 | CP11: 7.5 | CQ11: 5 | CR11: 5.5 | CS11: 7 | CT11: 7.5 | CU11: 6.5 | CV11: 7 | CW11: 7 | CX11: 7.5 | CY11: 6 | CZ11: 6.5 | DA11: 7 | DB11: 7.5 | DC11: 6.5 | DD11: 7 | DE11: 7 | DF11: 7.5 | DG11: 5.5 | DH11: 6 | DI11: 7 | DJ11: 7.5 | DK11: 6.5 | DL11: 7 | DM11: 7 | DN11: 7.5 | DO11: 6 | DP11: 6.5 | DQ11: 7 | DR11: 7.5 | DS11: 6.5 | DT11: 7 | DU11: 7 | DV11: 7.5 | DW11: 4 | DX11: 4.5
A12: 8 | B12: 7.5 | C12: 8 | D12: 7 | E12: 8 | F12: 7.5 | G12: 8 | H12: 6.5 | I12: 8 | J12: 7.5 | K12: 8 | L12: 7 | M12: 8 | N12: 7.5 | O12: 8 | P12: 6 | Q12: 8 | R12: 7.5 | S12: 8 | T12: 7 | U12: 8 | V12: 7.5 | W12: 8 | X12: 6.5 | Y12: 8 | Z12: 7.5 | AA12: 8 | AB12: 7 | AC12: 8 | AD12: 7.5 | AE12: 8 | AF12: 5.5 | AG12: 8 | AH12: 7.5 | AI12: 8 | AJ12: 7 | AK12: 8 | AL12: 7.5 | AM12: 8 | AN12: 6.5 | AO12: 8 | AP12: 7.5 | AQ12: 8 | AR12: 7 | AS12: 8 | AT12: 7.5 | AU12: 8 | AV12: 6 | AW12: 8 | AX12: 7.5 | AY12: 8 | AZ12: 7 | BA12: 8 | BB12: 7.5 | BC12: 8 | BD12: 6.5 | BE12: 8 | BF12: 7.5 | BG12: 8 | BH12: 7 | BI12: 8 | BJ12: 7.5 | BK12: 8 | BL12: 5 | BM12: 8 | BN12: 7.5 | BO12: 8 | BP12: 7 | BQ12: 8 | BR12: 7.5 | BS12: 8 | BT12: 6.5 | BU12: 8 | BV12: 7.5 | BW12: 8 | BX12: 7 | BY12: 8 | BZ12: 7.5 | CA12: 8 | CB12: 6 | CC12: 8 | CD12: 7.5 | CE12: 8 | CF12: 7 | CG12: 8 | CH12: 7.5 | CI12: 8 | CJ12: 6.5 | CK12: 8 | CL12: 7.5 | CM12: 8 | CN12: 7 | CO12: 8 | CP12: 7.5 | CQ12: 8 | CR12: 5.5 | CS12: 8 | CT12: 7.5 | CU12: 8 | CV12: 7 | CW12: 8 | CX12: 7.5 | CY12: 8 | CZ12: 6.5 | DA12: 8 | DB12: 7.5 | DC12: 8 | DD12: 7 | DE12: 8 | DF12: 7.5 | DG12: 8 | DH12: 6 | DI12: 8 | DJ12: 7.5 | DK12: 8 | DL12: 7 | DM12: 8 | DN12: 7.5 | DO12: 8 | DP12: 6.5 | DQ12: 8 | DR12: 7.5 | DS12: 8 | DT12: 7 | DU12: 8 | DV12: 7.5 | DW12: 8 | DX12: 4.5
A13: Cnum | B13: Cnum | C13: Cnum | D13: Cnum | E13: Cnum | F13: Cnum | G13: Cnum | H13: Cnum | I13: Cnum | J13: Cnum | K13: Cnum | L13: Cnum | M13: Cnum | N13: Cnum | O13: Cnum | P13: Cnum | Q13: Cnum | R13: Cnum | S13: Cnum | T13: Cnum | U13: Cnum | V13: Cnum | W13: Cnum | X13: Cnum | Y13: Cnum | Z13: Cnum | AA13: Cnum | AB13: Cnum | AC13: Cnum | AD13: Cnum | AE13: Cnum | AF13: Cnum | AG13: Cnum | AH13: Cnum | AI13: Cnum | AJ13: Cnum | AK13: Cnum | AL13: Cnum | AM13: Cnum | AN13: Cnum | AO13: Cnum | AP13: Cnum | AQ13: Cnum | AR13: Cnum | AS13: Cnum | AT13: Cnum | AU13: Cnum | AV13: Cnum | AW13: Cnum | AX13: Cnum | AY13: Cnum | AZ13: Cnum | BA13: Cnum | BB13: Cnum | BC13: Cnum | BD13: Cnum | BE13: Cnum | BF13: Cnum | BG13: Cnum | BH13: Cnum | BI13: Cnum | BJ13: Cnum | BK13: Cnum | BL13: Cnum | BM13: Cnum | BN13: Cnum | BO13: Cnum | BP13: Cnum | BQ13: Cnum | BR13: Cnum | BS13: Cnum | BT13: Cnum | BU13: Cnum | BV13: Cnum | BW13: Cnum | BX13: Cnum | BY13: Cnum | BZ13: Cnum | CA13: Cnum | CB13: Cnum | CC13: Cnum | CD13: Cnum | CE13: Cnum | CF13: Cnum | CG13: Cnum | CH13: Cnum | CI13: Cnum | CJ13: Cnum | CK13: Cnum | CL13: Cnum | CM13: Cnum | CN13: Cnum | CO13: Cnum | CP13: Cnum | CQ13: Cnum | CR13: Cnum | CS13: Cnum | CT13: Cnum | CU13: Cnum | CV13: Cnum | CW13: Cnum | CX13: Cnum | CY13: Cnum | CZ13: Cnum | DA13: Cnum | DB13: Cnum | DC13: Cnum | DD13: Cnum | DE13: Cnum | DF13: Cnum | DG13: Cnum | DH13: Cnum | DI13: Cnum | DJ13: Cnum | DK13: Cnum | DL13: Cnum | DM13: Cnum | DN13: Cnum | DO13: Cnum | DP13: Cnum | DQ13: Cnum | DR13: Cnum | DS13: Cnum | DT13: Cnum | DU13: Cnum | DV13: Cnum | DW13: Cnum | DX13: Cnum
A14: 7 | B14: 12 | C14: 17 | D14: 22 | E14: 27 | F14: 32 | G14: 37 | H14: 42 | I14: 47 | J14: 52 | K14: 57 | L14: 62 | M14: 67 | N14: 72 | O14: 77 | P14: 82 | Q14: 27 | R14: 87 | S14: 92 | T14: 97 | U14: 102 | V14: 107 | W14: 112 | X14: 117 | Y14: 67 | Z14: 122 | AA14: 127 | AB14: 132 | AC14: 137 | AD14: 142 | AE14: 147 | AF14: 152 | AG14: 17 | AH14: 157 | AI14: 162 | AJ14: 167 | AK14: 92 | AL14: 172 | AM14: 177 | AN14: 182 | AO14: 57 | AP14: 187 | AQ14: 192 | AR14: 197 | AS14: 127 | AT14: 202 | AU14: 207 | AV14: 352 | AW14: 37 | AX14: 212 | AY14: 177 | AZ14: 217 | BA14: 112 | BB14: 222 | BC14: 227 | BD14: 342 | BE14: 77 | BF14: 232 | BG14: 207 | BH14: 332 | BI14: 147 | BJ14: 237 | BK14: 242 | BL14: 357 | BM14: 12 | BN14: 247 | BO14: 157 | BP14: 252 | BQ14: 87 | BR14: 257 | BS14: 212 | BT14: 262 | BU14: 52 | BV14: 267 | BW14: 187 | BX14: 272 | BY14: 122 | BZ14: 277 | CA14: 232 | CB14: 282 | CC14: 32 | CD14: 257 | CE14: 172 | CF14: 287 | CG14: 107 | CH14: 292 | CI14: 222 | CJ14: 297 | CK14: 72 | CL14: 277 | CM14: 202 | CN14: 302 | CO14: 142 | CP14: 307 | CQ14: 237 | CR14: 312 | CS14: 22 | CT14: 252 | CU14: 167 | CV14: 317 | CW14: 97 | CX14: 287 | CY14: 217 | CZ14: 322 | DA14: 62 | DB14: 272 | DC14: 197 | DD14: 327 | DE14: 132 | DF14: 302 | DG14: 332 | DH14: 337 | DI14: 42 | DJ14: 262 | DK14: 182 | DL14: 322 | DM14: 117 | DN14: 297 | DO14: 342 | DP14: 347 | DQ14: 82 | DR14: 282 | DS14: 352 | DT14: 337 | DU14: 152 | DV14: 312 | DW14: 357 | DX14: 362
G15: With ties, ndig=2 | L15: With ties, ndig=2 | Q15: With ties, ndig=2 | V15: With ties, ndig=2 | AA15: With ties, ndig=2 | AF15: With ties, ndig=2 | AK15: With ties, ndig=2 | AP15: With ties, ndig=2 | AU15: With ties, ndig=2 | AZ15: With ties, ndig=2 | BE15: With ties, ndig=2 | BJ15: With ties, ndig=2 | BO15: With ties, ndig=2 | BT15: With ties, ndig=2 | BY15: With ties, ndig=2 | CD15: With ties, ndig=2 | CI15: With ties, ndig=2 | CN15: With ties, ndig=2 | CS15: With ties, ndig=2 | CX15: With ties, ndig=2 | DC15: With ties, ndig=2 | DH15: With ties, ndig=2 | DM15: With ties, ndig=2 | DR15: With ties, ndig=2 | DW15: With ties, ndig=2 | EB15: With ties, ndig=2 | EG15: With ties, ndig=2 | EL15: With ties, ndig=2 | EQ15: With ties, ndig=2 | EV15: With ties, ndig=2 | FA15: With ties, ndig=2 | FF15: With ties, ndig=2 | FK15: With ties, ndig=2 | FP15: With ties, ndig=2 | FU15: With ties, ndig=2 | FZ15: With ties, ndig=2 | GE15: With ties, ndig=2 | GJ15: With ties, ndig=2 | GO15: With ties, ndig=2 | GT15: With ties, ndig=2 | GY15: With ties, ndig=2 | HD15: With ties, ndig=2 | HI15: With ties, ndig=2 | HN15: With ties, ndig=2 | HS15: With ties, ndig=2 | HX15: With ties, ndig=2 | IC15: With ties, ndig=2 | IH15: With ties, ndig=2 | IM15: With ties, ndig=2 | IR15: With ties, ndig=2 | IW15: With ties, ndig=2 | JB15: With ties, ndig=2 | JG15: With ties, ndig=2 | JL15: With ties, ndig=2 | JQ15: With ties, ndig=2 | JV15: With ties, ndig=2 | KA15: With ties, ndig=2 | KF15: With ties, ndig=2 | KK15: With ties, ndig=2 | KP15: With ties, ndig=2 | KU15: With ties, ndig=2 | KZ15: With ties, ndig=2 | LE15: With ties, ndig=2 | LJ15: With ties, ndig=2 | LO15: With ties, ndig=2 | LT15: With ties, ndig=2 | LY15: With ties, ndig=2 | MD15: With ties, ndig=2 | MI15: With ties, ndig=2 | MN15: With ties, ndig=2 | MS15: With ties, ndig=2 | MX15: With ties, ndig=2
G16: RC1 | I16: MaxSRDrep= | J16: 32 | L16: RC2, RC65 | N16: MaxSRDrep= | O16: 32 | Q16: RC3, RC33 | S16: MaxSRDrep= | T16: 32 | V16: RC4, RC97 | X16: MaxSRDrep= | Y16: 32 | AA16: RC5, RC17 | AC16: MaxSRDrep= | AD16: 32 | AF16: RC6, RC81 | AH16: MaxSRDrep= | AI16: 32 | AK16: RC7, RC49 | AM16: MaxSRDrep= | AN16: 32 | AP16: RC8, RC113 | AR16: MaxSRDrep= | AS16: 32 | AU16: RC9 | AW16: MaxSRDrep= | AX16: 31 | AZ16: RC10, RC73 | BB16: MaxSRDrep= | BC16: 31 | BE16: RC11, RC41 | BG16: MaxSRDrep= | BH16: 31 | BJ16: RC12, RC105 | BL16: MaxSRDrep= | BM16: 31 | BO16: RC13, RC25 | BQ16: MaxSRDrep= | BR16: 30 | BT16: RC14, RC89 | BV16: MaxSRDrep= | BW16: 30 | BY16: RC15, RC57 | CA16: MaxSRDrep= | CB16: 30 | CD16: RC16, RC121 | CF16: MaxSRDrep= | CG16: 30 | CI16: RC18, RC69 | CK16: MaxSRDrep= | CL16: 32 | CN16: RC19, RC37 | CP16: MaxSRDrep= | CQ16: 32 | CS16: RC20, RC101 | CU16: MaxSRDrep= | CV16: 32 | CX16: RC21 | CZ16: MaxSRDrep= | DA16: 32 | DC16: RC22, RC85 | DE16: MaxSRDrep= | DF16: 32 | DH16: RC23, RC53 | DJ16: MaxSRDrep= | DK16: 32 | DM16: RC24, RC117 | DO16: MaxSRDrep= | DP16: 32 | DR16: RC26, RC77 | DT16: MaxSRDrep= | DU16: 30 | DW16: RC27, RC45 | DY16: MaxSRDrep= | DZ16: 30 | EB16: RC28, RC109 | ED16: MaxSRDrep= | EE16: 30 | EG16: RC29 | EI16: MaxSRDrep= | EJ16: 28 | EL16: RC30, RC93 | EN16: MaxSRDrep= | EO16: 28 | EQ16: RC31, RC61 | ES16: MaxSRDrep= | ET16: 26 | EV16: RC32, RC125 | EX16: MaxSRDrep= | EY16: 25 | FA16: RC34, RC67 | FC16: MaxSRDrep= | FD16: 32 | FF16: RC35 | FH16: MaxSRDrep= | FI16: 32 | FK16: RC36, RC99 | FM16: MaxSRDrep= | FN16: 32 | FP16: RC38, RC83 | FR16: MaxSRDrep= | FS16: 32 | FU16: RC39, RC51 | FW16: MaxSRDrep= | FX16: 32 | FZ16: RC40, RC115 | GB16: MaxSRDrep= | GC16: 32 | GE16: RC42, RC75 | GG16: MaxSRDrep= | GH16: 31 | GJ16: RC43 | GL16: MaxSRDrep= | GM16: 31 | GO16: RC44, RC107 | GQ16: MaxSRDrep= | GR16: 31 | GT16: RC46, RC91 | GV16: MaxSRDrep= | GW16: 30 | GY16: RC47, RC59 | HA16: MaxSRDrep= | HB16: 30 | HD16: RC50, RC71 | HF16: MaxSRDrep= | HG16: 32 | HI16: RC52, RC103 | HK16: MaxSRDrep= | HL16: 32 | HN16: RC54, RC87 | HP16: MaxSRDrep= | HQ16: 32 | HS16: RC55 | HU16: MaxSRDrep= | HV16: 32 | HX16: RC58, RC79 | HZ16: MaxSRDrep= | IA16: 30 | IC16: RC62, RC95 | IE16: MaxSRDrep= | IF16: 26 | IH16: RC63 | IJ16: MaxSRDrep= | IK16: 23 | IM16: RC66 | IO16: MaxSRDrep= | IP16: 32 | IR16: RC68, RC98 | IT16: MaxSRDrep= | IU16: 32 | IW16: RC70, RC82 | IY16: MaxSRDrep= | IZ16: 32 | JB16: RC72, RC114 | JD16: MaxSRDrep= | JE16: 32 | JG16: RC74 | JI16: MaxSRDrep= | JJ16: 31 | JL16: RC76, RC106 | JN16: MaxSRDrep= | JO16: 31 | JQ16: RC78, RC90 | JS16: MaxSRDrep= | JT16: 30 | JV16: RC80, RC122 | JX16: MaxSRDrep= | JY16: 30 | KA16: RC84, RC102 | KC16: MaxSRDrep= | KD16: 32 | KF16: RC86 | KH16: MaxSRDrep= | KI16: 32 | KK16: RC88, RC118 | KM16: MaxSRDrep= | KN16: 32 | KP16: RC92, RC110 | KR16: MaxSRDrep= | KS16: 30 | KU16: RC94 | KW16: MaxSRDrep= | KX16: 28 | KZ16: RC96, RC126 | LB16: MaxSRDrep= | LC16: 25 | LE16: RC100 | LG16: MaxSRDrep= | LH16: 32 | LJ16: RC104, RC116 | LL16: MaxSRDrep= | LM16: 32 | LO16: RC108 | LQ16: MaxSRDrep= | LR16: 31 | LT16: RC111, RC60 | LV16: MaxSRDrep= | LW16: 30 | LY16: RC112, RC124 | MA16: MaxSRDrep= | MB16: 30 | MD16: RC119, RC56 | MF16: MaxSRDrep= | MG16: 32 | MI16: RC120 | MK16: MaxSRDrep= | ML16: 32 | MN16: RC123, RC48 | MP16: MaxSRDrep= | MQ16: 30 | MS16: RC127, RC64 | MU16: MaxSRDrep= | MV16: 20 | MX16: RC128 | MZ16: MaxSRDrep= | NA16: 16
G17: RC=[1 ; 2 ; 3 ; 4 ; 5 ; 6 ; 7 ; 8] | L17: RC=[1 ; 2 ; 3 ; 4 ; 5 ; 6 ; 7,5 ; 7,5] or [1,5 ; 1,5 ; 3 ; 4 ; 5 ; 6 ; 7 ; 8] | Q17: RC=[1 ; 2 ; 3 ; 4 ; 5 ; 6,5 ; 6,5 ; 8] or [1 ; 2,5 ; 2,5 ; 4 ; 5 ; 6 ; 7 ; 8] | V17: RC=[1 ; 2 ; 3 ; 4 ; 5 ; 7 ; 7 ; 7] or [2 ; 2 ; 2 ; 4 ; 5 ; 6 ; 7 ; 8] | AA17: RC=[1 ; 2 ; 3 ; 4 ; 5,5 ; 5,5 ; 7 ; 8] or [1 ; 2 ; 3,5 ; 3,5 ; 5 ; 6 ; 7 ; 8] | AF17: RC=[1 ; 2 ; 3 ; 4 ; 5,5 ; 5,5 ; 7,5 ; 7,5] or [1,5 ; 1,5 ; 3,5 ; 3,5 ; 5 ; 6 ; 7 ; 8] | AK17: RC=[1 ; 2 ; 3 ; 4 ; 6 ; 6 ; 6 ; 8] or [1 ; 3 ; 3 ; 3 ; 5 ; 6 ; 7 ; 8] | AP17: RC=[1 ; 2 ; 3 ; 4 ; 6,5 ; 6,5 ; 6,5 ; 6,5] or [2,5 ; 2,5 ; 2,5 ; 2,5 ; 5 ; 6 ; 7 ; 8] | AU17: RC=[1 ; 2 ; 3 ; 4,5 ; 4,5 ; 6 ; 7 ; 8] | AZ17: RC=[1 ; 2 ; 3 ; 4,5 ; 4,5 ; 6 ; 7,5 ; 7,5] or [1,5 ; 1,5 ; 3 ; 4,5 ; 4,5 ; 6 ; 7 ; 8] | BE17: RC=[1 ; 2 ; 3 ; 4,5 ; 4,5 ; 6,5 ; 6,5 ; 8] or [1 ; 2,5 ; 2,5 ; 4,5 ; 4,5 ; 6 ; 7 ; 8] | BJ17: RC=[1 ; 2 ; 3 ; 4,5 ; 4,5 ; 7 ; 7 ; 7] or [2 ; 2 ; 2 ; 4,5 ; 4,5 ; 6 ; 7 ; 8] | BO17: RC=[1 ; 2 ; 3 ; 5 ; 5 ; 5 ; 7 ; 8] or [1 ; 2 ; 4 ; 4 ; 4 ; 6 ; 7 ; 8] | BT17: RC=[1 ; 2 ; 3 ; 5 ; 5 ; 5 ; 7,5 ; 7,5] or [1,5 ; 1,5 ; 4 ; 4 ; 4 ; 6 ; 7 ; 8] | BY17: RC=[1 ; 2 ; 3 ; 5,5 ; 5,5 ; 5,5 ; 5,5 ; 8] or [1 ; 3,5 ; 3,5 ; 3,5 ; 3,5 ; 6 ; 7 ; 8] | CD17: RC=[1 ; 2 ; 3 ; 6 ; 6 ; 6 ; 6 ; 6] or [3 ; 3 ; 3 ; 3 ; 3 ; 6 ; 7 ; 8] | CI17: RC=[1 ; 2 ; 3,5 ; 3,5 ; 5 ; 6 ; 7,5 ; 7,5] or [1,5 ; 1,5 ; 3 ; 4 ; 5,5 ; 5,5 ; 7 ; 8] | CN17: RC=[1 ; 2 ; 3,5 ; 3,5 ; 5 ; 6,5 ; 6,5 ; 8] or [1 ; 2,5 ; 2,5 ; 4 ; 5,5 ; 5,5 ; 7 ; 8] | CS17: RC=[1 ; 2 ; 3,5 ; 3,5 ; 5 ; 7 ; 7 ; 7] or [2 ; 2 ; 2 ; 4 ; 5,5 ; 5,5 ; 7 ; 8] | CX17: RC=[1 ; 2 ; 3,5 ; 3,5 ; 5,5 ; 5,5 ; 7 ; 8] | DC17: RC=[1 ; 2 ; 3,5 ; 3,5 ; 5,5 ; 5,5 ; 7,5 ; 7,5] or [1,5 ; 1,5 ; 3,5 ; 3,5 ; 5,5 ; 5,5 ; 7 ; 8] | DH17: RC=[1 ; 2 ; 3,5 ; 3,5 ; 6 ; 6 ; 6 ; 8] or [1 ; 3 ; 3 ; 3 ; 5,5 ; 5,5 ; 7 ; 8] | DM17: RC=[1 ; 2 ; 3,5 ; 3,5 ; 6,5 ; 6,5 ; 6,5 ; 6,5] or [2,5 ; 2,5 ; 2,5 ; 2,5 ; 5,5 ; 5,5 ; 7 ; 8] | DR17: RC=[1 ; 2 ; 4 ; 4 ; 4 ; 6 ; 7,5 ; 7,5] or [1,5 ; 1,5 ; 3 ; 5 ; 5 ; 5 ; 7 ; 8] | DW17: RC=[1 ; 2 ; 4 ; 4 ; 4 ; 6,5 ; 6,5 ; 8] or [1 ; 2,5 ; 2,5 ; 5 ; 5 ; 5 ; 7 ; 8] | EB17: RC=[1 ; 2 ; 4 ; 4 ; 4 ; 7 ; 7 ; 7] or [2 ; 2 ; 2 ; 5 ; 5 ; 5 ; 7 ; 8] | EG17: RC=[1 ; 2 ; 4,5 ; 4,5 ; 4,5 ; 4,5 ; 7 ; 8] | EL17: RC=[1 ; 2 ; 4,5 ; 4,5 ; 4,5 ; 4,5 ; 7,5 ; 7,5] or [1,5 ; 1,5 ; 4,5 ; 4,5 ; 4,5 ; 4,5 ; 7 ; 8] | EQ17: RC=[1 ; 2 ; 5 ; 5 ; 5 ; 5 ; 5 ; 8] or [1 ; 4 ; 4 ; 4 ; 4 ; 4 ; 7 ; 8] | EV17: RC=[1 ; 2 ; 5,5 ; 5,5 ; 5,5 ; 5,5 ; 5,5 ; 5,5] or [3,5 ; 3,5 ; 3,5 ; 3,5 ; 3,5 ; 3,5 ; 7 ; 8] | FA17: RC=[1 ; 2,5 ; 2,5 ; 4 ; 5 ; 6 ; 7,5 ; 7,5] or [1,5 ; 1,5 ; 3 ; 4 ; 5 ; 6,5 ; 6,5 ; 8] | FF17: RC=[1 ; 2,5 ; 2,5 ; 4 ; 5 ; 6,5 ; 6,5 ; 8] | FK17: RC=[1 ; 2,5 ; 2,5 ; 4 ; 5 ; 7 ; 7 ; 7] or [2 ; 2 ; 2 ; 4 ; 5 ; 6,5 ; 6,5 ; 8] | FP17: RC=[1 ; 2,5 ; 2,5 ; 4 ; 5,5 ; 5,5 ; 7,5 ; 7,5] or [1,5 ; 1,5 ; 3,5 ; 3,5 ; 5 ; 6,5 ; 6,5 ; 8] | FU17: RC=[1 ; 2,5 ; 2,5 ; 4 ; 6 ; 6 ; 6 ; 8] or [1 ; 3 ; 3 ; 3 ; 5 ; 6,5 ; 6,5 ; 8] | FZ17: RC=[1 ; 2,5 ; 2,5 ; 4 ; 6,5 ; 6,5 ; 6,5 ; 6,5] or [2,5 ; 2,5 ; 2,5 ; 2,5 ; 5 ; 6,5 ; 6,5 ; 8] | GE17: RC=[1 ; 2,5 ; 2,5 ; 4,5 ; 4,5 ; 6 ; 7,5 ; 7,5] or [1,5 ; 1,5 ; 3 ; 4,5 ; 4,5 ; 6,5 ; 6,5 ; 8] | GJ17: RC=[1 ; 2,5 ; 2,5 ; 4,5 ; 4,5 ; 6,5 ; 6,5 ; 8] | GO17: RC=[1 ; 2,5 ; 2,5 ; 4,5 ; 4,5 ; 7 ; 7 ; 7] or [2 ; 2 ; 2 ; 4,5 ; 4,5 ; 6,5 ; 6,5 ; 8] | GT17: RC=[1 ; 2,5 ; 2,5 ; 5 ; 5 ; 5 ; 7,5 ; 7,5] or [1,5 ; 1,5 ; 4 ; 4 ; 4 ; 6,5 ; 6,5 ; 8] | GY17: RC=[1 ; 2,5 ; 2,5 ; 5,5 ; 5,5 ; 5,5 ; 5,5 ; 8] or [1 ; 3,5 ; 3,5 ; 3,5 ; 3,5 ; 6,5 ; 6,5 ; 8] | HD17: RC=[1 ; 3 ; 3 ; 3 ; 5 ; 6 ; 7,5 ; 7,5] or [1,5 ; 1,5 ; 3 ; 4 ; 6 ; 6 ; 6 ; 8] | HI17: RC=[1 ; 3 ; 3 ; 3 ; 5 ; 7 ; 7 ; 7] or [2 ; 2 ; 2 ; 4 ; 6 ; 6 ; 6 ; 8] | HN17: RC=[1 ; 3 ; 3 ; 3 ; 5,5 ; 5,5 ; 7,5 ; 7,5] or [1,5 ; 1,5 ; 3,5 ; 3,5 ; 6 ; 6 ; 6 ; 8] | HS17: RC=[1 ; 3 ; 3 ; 3 ; 6 ; 6 ; 6 ; 8] | HX17: RC=[1 ; 3,5 ; 3,5 ; 3,5 ; 3,5 ; 6 ; 7,5 ; 7,5] or [1,5 ; 1,5 ; 3 ; 5,5 ; 5,5 ; 5,5 ; 5,5 ; 8] | IC17: RC=[1 ; 4 ; 4 ; 4 ; 4 ; 4 ; 7,5 ; 7,5] or [1,5 ; 1,5 ; 5 ; 5 ; 5 ; 5 ; 5 ; 8] | IH17: RC=[1 ; 4,5 ; 4,5 ; 4,5 ; 4,5 ; 4,5 ; 4,5 ; 8] | IM17: RC=[1,5 ; 1,5 ; 3 ; 4 ; 5 ; 6 ; 7,5 ; 7,5] | IR17: RC=[1,5 ; 1,5 ; 3 ; 4 ; 5 ; 7 ; 7 ; 7] or [2 ; 2 ; 2 ; 4 ; 5 ; 6 ; 7,5 ; 7,5] | IW17: RC=[1,5 ; 1,5 ; 3 ; 4 ; 5,5 ; 5,5 ; 7,5 ; 7,5] or [1,5 ; 1,5 ; 3,5 ; 3,5 ; 5 ; 6 ; 7,5 ; 7,5] | JB17: RC=[1,5 ; 1,5 ; 3 ; 4 ; 6,5 ; 6,5 ; 6,5 ; 6,5] or [2,5 ; 2,5 ; 2,5 ; 2,5 ; 5 ; 6 ; 7,5 ; 7,5] | JG17: RC=[1,5 ; 1,5 ; 3 ; 4,5 ; 4,5 ; 6 ; 7,5 ; 7,5] | JL17: RC=[1,5 ; 1,5 ; 3 ; 4,5 ; 4,5 ; 7 ; 7 ; 7] or [2 ; 2 ; 2 ; 4,5 ; 4,5 ; 6 ; 7,5 ; 7,5] | JQ17: RC=[1,5 ; 1,5 ; 3 ; 5 ; 5 ; 5 ; 7,5 ; 7,5] or [1,5 ; 1,5 ; 4 ; 4 ; 4 ; 6 ; 7,5 ; 7,5] | JV17: RC=[1,5 ; 1,5 ; 3 ; 6 ; 6 ; 6 ; 6 ; 6] or [3 ; 3 ; 3 ; 3 ; 3 ; 6 ; 7,5 ; 7,5] | KA17: RC=[1,5 ; 1,5 ; 3,5 ; 3,5 ; 5 ; 7 ; 7 ; 7] or [2 ; 2 ; 2 ; 4 ; 5,5 ; 5,5 ; 7,5 ; 7,5] | KF17: RC=[1,5 ; 1,5 ; 3,5 ; 3,5 ; 5,5 ; 5,5 ; 7,5 ; 7,5] | KK17: RC=[1,5 ; 1,5 ; 3,5 ; 3,5 ; 6,5 ; 6,5 ; 6,5 ; 6,5] or [2,5 ; 2,5 ; 2,5 ; 2,5 ; 5,5 ; 5,5 ; 7,5 ; 7,5] | KP17: RC=[1,5 ; 1,5 ; 4 ; 4 ; 4 ; 7 ; 7 ; 7] or [2 ; 2 ; 2 ; 5 ; 5 ; 5 ; 7,5 ; 7,5] | KU17: RC=[1,5 ; 1,5 ; 4,5 ; 4,5 ; 4,5 ; 4,5 ; 7,5 ; 7,5] | KZ17: RC=[1,5 ; 1,5 ; 5,5 ; 5,5 ; 5,5 ; 5,5 ; 5,5 ; 5,5] or [3,5 ; 3,5 ; 3,5 ; 3,5 ; 3,5 ; 3,5 ; 7,5 ; 7,5] | LE17: RC=[2 ; 2 ; 2 ; 4 ; 5 ; 7 ; 7 ; 7] | LJ17: RC=[2 ; 2 ; 2 ; 4 ; 6,5 ; 6,5 ; 6,5 ; 6,5] or [2,5 ; 2,5 ; 2,5 ; 2,5 ; 5 ; 7 ; 7 ; 7] | LO17: RC=[2 ; 2 ; 2 ; 4,5 ; 4,5 ; 7 ; 7 ; 7] | LT17: RC=[2 ; 2 ; 2 ; 5,5 ; 5,5 ; 5,5 ; 5,5 ; 8] or [1 ; 3,5 ; 3,5 ; 3,5 ; 3,5 ; 7 ; 7 ; 7] | LY17: RC=[2 ; 2 ; 2 ; 6 ; 6 ; 6 ; 6 ; 6] or [3 ; 3 ; 3 ; 3 ; 3 ; 7 ; 7 ; 7] | MD17: RC=[2,5 ; 2,5 ; 2,5 ; 2,5 ; 6 ; 6 ; 6 ; 8] or [1 ; 3 ; 3 ; 3 ; 6,5 ; 6,5 ; 6,5 ; 6,5] | MI17: RC=[2,5 ; 2,5 ; 2,5 ; 2,5 ; 6,5 ; 6,5 ; 6,5 ; 6,5] | MN17: RC=[3 ; 3 ; 3 ; 3 ; 3 ; 6,5 ; 6,5 ; 8] or [1 ; 2,5 ; 2,5 ; 6 ; 6 ; 6 ; 6 ; 6] | MS17: RC=[4 ; 4 ; 4 ; 4 ; 4 ; 4 ; 4 ; 8] or [1 ; 5 ; 5 ; 5 ; 5 ; 5 ; 5 ; 5] | MX17: RC=[4,5 ; 4,5 ; 4,5 ; 4,5 ; 4,5 ; 4,5 ; 4,5 ; 4,5]
G18: SRDnor | H18: SRD | I18: relFr% | J18: CrFR% | L18: SRDnor | M18: SRD | N18: relFr% | O18: CrFR% | Q18: SRDnor | R18: SRD | S18: relFr% | T18: CrFR% | V18: SRDnor | W18: SRD | X18: relFr% | Y18: CrFR% | AA18: SRDnor | AB18: SRD | AC18: relFr% | AD18: CrFR% | AF18: SRDnor | AG18: SRD | AH18: relFr% | AI18: CrFR% | AK18: SRDnor | AL18: SRD | AM18: relFr% | AN18: CrFR% | AP18: SRDnor | AQ18: SRD | AR18: relFr% | AS18: CrFR% | AU18: SRDnor | AV18: SRD | AW18: relFr% | AX18: CrFR% | AZ18: SRDnor | BA18: SRD | BB18: relFr% | BC18: CrFR% | BE18: SRDnor | BF18: SRD | BG18: relFr% | BH18: CrFR% | BJ18: SRDnor | BK18: SRD | BL18: relFr% | BM18: CrFR% | BO18: SRDnor | BP18: SRD | BQ18: relFr% | BR18: CrFR% | BT18: SRDnor | BU18: SRD | BV18: relFr% | BW18: CrFR% | BY18: SRDnor | BZ18: SRD | CA18: relFr% | CB18: CrFR% | CD18: SRDnor | CE18: SRD | CF18: relFr% | CG18: CrFR% | CI18: SRDnor | CJ18: SRD | CK18: relFr% | CL18: CrFR% | CN18: SRDnor | CO18: SRD | CP18: relFr% | CQ18: CrFR% | CS18: SRDnor | CT18: SRD | CU18: relFr% | CV18: CrFR% | CX18: SRDnor | CY18: SRD | CZ18: relFr% | DA18: CrFR% | DC18: SRDnor | DD18: SRD | DE18: relFr% | DF18: CrFR% | DH18: SRDnor | DI18: SRD | DJ18: relFr% | DK18: CrFR% | DM18: SRDnor | DN18: SRD | DO18: relFr% | DP18: CrFR% | DR18: SRDnor | DS18: SRD | DT18: relFr% | DU18: CrFR% | DW18: SRDnor | DX18: SRD | DY18: relFr% | DZ18: CrFR% | EB18: SRDnor | EC18: SRD | ED18: relFr% | EE18: CrFR% | EG18: SRDnor | EH18: SRD | EI18: relFr% | EJ18: CrFR% | EL18: SRDnor | EM18: SRD | EN18: relFr% | EO18: CrFR% | EQ18: SRDnor | ER18: SRD | ES18: relFr% | ET18: CrFR% | EV18: SRDnor | EW18: SRD | EX18: relFr% | EY18: CrFR% | FA18: SRDnor | FB18: SRD | FC18: relFr% | FD18: CrFR% | FF18: SRDnor | FG18: SRD | FH18: relFr% | FI18: CrFR% | FK18: SRDnor | FL18: SRD | FM18: relFr% | FN18: CrFR% | FP18: SRDnor | FQ18: SRD | FR18: relFr% | FS18: CrFR% | FU18: SRDnor | FV18: SRD | FW18: relFr% | FX18: CrFR% | FZ18: SRDnor | GA18: SRD | GB18: relFr% | GC18: CrFR% | GE18: SRDnor | GF18: SRD | GG18: relFr% | GH18: CrFR% | GJ18: SRDnor | GK18: SRD | GL18: relFr% | GM18: CrFR% | GO18: SRDnor | GP18: SRD | GQ18: relFr% | GR18: CrFR% | GT18: SRDnor | GU18: SRD | GV18: relFr% | GW18: CrFR% | GY18: SRDnor | GZ18: SRD | HA18: relFr% | HB18: CrFR% | HD18: SRDnor | HE18: SRD | HF18: relFr% | HG18: CrFR% | HI18: SRDnor | HJ18: SRD | HK18: relFr% | HL18: CrFR% | HN18: SRDnor | HO18: SRD | HP18: relFr% | HQ18: CrFR% | HS18: SRDnor | HT18: SRD | HU18: relFr% | HV18: CrFR% | HX18: SRDnor | HY18: SRD | HZ18: relFr% | IA18: CrFR% | IC18: SRDnor | ID18: SRD | IE18: relFr% | IF18: CrFR% | IH18: SRDnor | II18: SRD | IJ18: relFr% | IK18: CrFR% | IM18: SRDnor | IN18: SRD | IO18: relFr% | IP18: CrFR% | IR18: SRDnor | IS18: SRD | IT18: relFr% | IU18: CrFR% | IW18: SRDnor | IX18: SRD | IY18: relFr% | IZ18: CrFR% | JB18: SRDnor | JC18: SRD | JD18: relFr% | JE18: CrFR% | JG18: SRDnor | JH18: SRD | JI18: relFr% | JJ18: CrFR% | JL18: SRDnor | JM18: SRD | JN18: relFr% | JO18: CrFR% | JQ18: SRDnor | JR18: SRD | JS18: relFr% | JT18: CrFR% | JV18: SRDnor | JW18: SRD | JX18: relFr% | JY18: CrFR% | KA18: SRDnor | KB18: SRD | KC18: relFr% | KD18: CrFR% | KF18: SRDnor | KG18: SRD | KH18: relFr% | KI18: CrFR% | KK18: SRDnor | KL18: SRD | KM18: relFr% | KN18: CrFR% | KP18: SRDnor | KQ18: SRD | KR18: relFr% | KS18: CrFR% | KU18: SRDnor | KV18: SRD | KW18: relFr% | KX18: CrFR% | KZ18: SRDnor | LA18: SRD | LB18: relFr% | LC18: CrFR% | LE18: SRDnor | LF18: SRD | LG18: relFr% | LH18: CrFR% | LJ18: SRDnor | LK18: SRD | LL18: relFr% | LM18: CrFR% | LO18: SRDnor | LP18: SRD | LQ18: relFr% | LR18: CrFR% | LT18: SRDnor | LU18: SRD | LV18: relFr% | LW18: CrFR% | LY18: SRDnor | LZ18: SRD | MA18: relFr% | MB18: CrFR% | MD18: SRDnor | ME18: SRD | MF18: relFr% | MG18: CrFR% | MI18: SRDnor | MJ18: SRD | MK18: relFr% | ML18: CrFR% | MN18: SRDnor | MO18: SRD | MP18: relFr% | MQ18: CrFR% | MS18: SRDnor | MT18: SRD | MU18: relFr% | MV18: CrFR% | MX18: SRDnor | MY18: SRD | MZ18: relFr% | NA18: CrFR%
G19: 0 | H19: 0 | I19: 0.001860878943 | J19: 0.001860878943 | L19: 0 | M19: 0 | N19: 0.000160075608 | O19: 0.000160075608 | Q19: 0 | R19: 0 | S19: 0.000160075608 | T19: 0.000160075608 | V19: 0 | W19: 0 | X19: 1.1920524e-05 | Y19: 1.1920524e-05 | AA19: 0 | AB19: 0 | AC19: 0.000160075608 | AD19: 0.000160075608 | AF19: 0 | AG19: 0 | AH19: 1.1920524e-05 | AI19: 1.1920524e-05 | AK19: 0 | AL19: 0 | AM19: 1.1920524e-05 | AN19: 1.1920524e-05 | AP19: 0 | AQ19: 0 | AR19: 7.528752e-07 | AS19: 7.528752e-07 | AU19: 0 | AV19: 0 | AW19: 0.000160075608 | AX19: 0.000160075608 | AZ19: 0 | BA19: 0 | BB19: 1.1920524e-05 | BC19: 1.1920524e-05 | BE19: 0 | BF19: 0 | BG19: 1.1920524e-05 | BH19: 1.1920524e-05 | BJ19: 0 | BK19: 0 | BL19: 7.528752e-07 | BM19: 7.528752e-07 | BO19: 0 | BP19: 0 | BQ19: 1.1920524e-05 | BR19: 1.1920524e-05 | BT19: 0 | BU19: 0 | BV19: 7.528752e-07 | BW19: 7.528752e-07 | BY19: 0 | BZ19: 0 | CA19: 7.528752e-07 | CB19: 7.528752e-07 | CD19: 0 | CE19: 0 | CF19: 3.921225e-08 | CG19: 3.921225e-08 | CI19: 0 | CJ19: 0 | CK19: 1.1920524e-05 | CL19: 1.1920524e-05 | CN19: 0 | CO19: 0 | CP19: 1.1920524e-05 | CQ19: 1.1920524e-05 | CS19: 0 | CT19: 0 | CU19: 7.528752e-07 | CV19: 7.528752e-07 | CX19: 0 | CY19: 0 | CZ19: 1.1920524e-05 | DA19: 1.1920524e-05 | DC19: 0 | DD19: 0 | DE19: 7.528752e-07 | DF19: 7.528752e-07 | DH19: 0 | DI19: 0 | DJ19: 7.528752e-07 | DK19: 7.528752e-07 | DM19: 0 | DN19: 0 | DO19: 3.921225e-08 | DP19: 3.921225e-08 | DR19: 0 | DS19: 0 | DT19: 7.528752e-07 | DU19: 7.528752e-07 | DW19: 0 | DX19: 0 | DY19: 7.528752e-07 | DZ19: 7.528752e-07 | EB19: 0 | EC19: 0 | ED19: 3.921225e-08 | EE19: 3.921225e-08 | EG19: 0 | EH19: 0 | EI19: 7.528752e-07 | EJ19: 7.528752e-07 | EL19: 0 | EM19: 0 | EN19: 3.921225e-08 | EO19: 3.921225e-08 | EQ19: 0 | ER19: 0 | ES19: 3.921225e-08 | ET19: 3.921225e-08 | EV19: 0 | EW19: 0 | EX19: 1.617e-09 | EY19: 1.617e-09 | FA19: 0 | FB19: 0 | FC19: 1.1920524e-05 | FD19: 1.1920524e-05 | FF19: 0 | FG19: 0 | FH19: 1.1920524e-05 | FI19: 1.1920524e-05 | FK19: 0 | FL19: 0 | FM19: 7.528752e-07 | FN19: 7.528752e-07 | FP19: 0 | FQ19: 0 | FR19: 7.528752e-07 | FS19: 7.528752e-07 | FU19: 0 | FV19: 0 | FW19: 7.528752e-07 | FX19: 7.528752e-07 | FZ19: 0 | GA19: 0 | GB19: 3.921225e-08 | GC19: 3.921225e-08 | GE19: 0 | GF19: 0 | GG19: 7.528752e-07 | GH19: 7.528752e-07 | GJ19: 0 | GK19: 0 | GL19: 7.528752e-07 | GM19: 7.528752e-07 | GO19: 0 | GP19: 0 | GQ19: 3.921225e-08 | GR19: 3.921225e-08 | GT19: 0 | GU19: 0 | GV19: 3.921225e-08 | GW19: 3.921225e-08 | GY19: 0 | GZ19: 0 | HA19: 3.921225e-08 | HB19: 3.921225e-08 | HD19: 0 | HE19: 0 | HF19: 7.528752e-07 | HG19: 7.528752e-07 | HI19: 0 | HJ19: 0 | HK19: 3.921225e-08 | HL19: 3.921225e-08 | HN19: 0 | HO19: 0 | HP19: 3.921225e-08 | HQ19: 3.921225e-08 | HS19: 0 | HT19: 0 | HU19: 1.1763675e-07 | HV19: 1.1763675e-07 | HX19: 0 | HY19: 0 | HZ19: 0 | IA19: 0 | IC19: 0 | ID19: 0 | IE19: 0 | IF19: 0 | IH19: 0 | II19: 0 | IJ19: 1.1763675e-06 | IK19: 1.1763675e-06 | IM19: 0 | IN19: 0 | IO19: 5.39e-11 | IP19: 5.39e-11 | IR19: 0 | IS19: 0 | IT19: 2.695e-11 | IU19: 2.695e-11 | IW19: 0 | IX19: 0 | IY19: 2.3841048e-05 | IZ19: 2.3841048e-05 | JB19: 0 | JC19: 0 | JD19: 3.0115008e-06 | JE19: 3.0115008e-06 | JG19: 0 | JH19: 0 | JI19: 1.5057504e-06 | JJ19: 1.5057504e-06 | JL19: 0 | JM19: 0 | JN19: 1.9606125e-08 | JO19: 1.9606125e-08 | JQ19: 0 | JR19: 0 | JS19: 2.2586256e-06 | JT19: 2.2586256e-06 | JV19: 0 | JW19: 0 | JX19: 3.921225e-07 | JY19: 3.921225e-07 | KA19: 0 | KB19: 0 | KC19: 3.921225e-08 | KD19: 3.921225e-08 | KF19: 0 | KG19: 0 | KH19: 2.156e-10 | KI19: 2.156e-10 | KK19: 0 | KL19: 0 | KM19: 2.352735e-07 | KN19: 2.352735e-07 | KP19: 0 | KQ19: 0 | KR19: 1.21275e-09 | KS19: 1.21275e-09 | KU19: 0 | KV19: 0 | KW19: 4.312e-09 | KX19: 4.312e-09 | KZ19: 0 | LA19: 0 | LB19: 4.95e-11 | LC19: 4.95e-11 | LE19: 0 | LF19: 0 | LG19: 3.921225e-08 | LH19: 3.921225e-08 | LJ19: 0 | LK19: 0 | LL19: 1.617e-09 | LM19: 1.617e-09 | LO19: 0 | LP19: 0 | LQ19: 1.617e-09 | LR19: 1.617e-09 | LT19: 0 | LU19: 0 | LV19: 1.617e-09 | LW19: 1.617e-09 | LY19: 0 | LZ19: 0 | MA19: 4.95e-11 | MB19: 4.95e-11 | MD19: 0 | ME19: 0 | MF19: 1.617e-09 | MG19: 1.617e-09 | MI19: 0 | MJ19: 0 | MK19: 4.95e-11 | ML19: 4.95e-11 | MN19: 0 | MO19: 0 | MP19: 1.617e-09 | MQ19: 1.617e-09 | MS19: 0 | MT19: 0 | MU19: 4.95e-11 | MV19: 4.95e-11 | MX19: 0 | MY19: 0 | MZ19: 0 | NA19: 0
G20: 3.125 | H20: 1 | I20: 0.001120529256 | J20: 0.002981408199 | L20: 3.125 | M20: 1 | N20: 0.003769440036 | O20: 0.003929515644 | Q20: 3.125 | R20: 1 | S20: 0.003769439982 | T20: 0.00392951559 | V20: 3.125 | W20: 1 | X20: 2.25865255e-06 | Y20: 1.417917655e-05 | AA20: 3.125 | AB20: 1 | AC20: 0.003769439982 | AD20: 0.00392951559 | AF20: 3.125 | AG20: 1 | AH20: 0.0006656492304 | AI20: 0.0006775697544 | AK20: 3.125 | AL20: 1 | AM20: 2.2586256e-06 | AN20: 1.41791496e-05 | AP20: 3.125 | AQ20: 1 | AR20: 3.0899253e-06 | AS20: 3.8428005e-06 | AU20: 3.225806452 | AV20: 1 | AW20: 0.003769439982 | AX20: 0.00392951559 | AZ20: 3.225806452 | BA20: 1 | BB20: 0.0006425610576 | BC20: 0.0006544815816 | BE20: 3.225806452 | BF20: 1 | BG20: 0.0006418081824 | BH20: 0.0006537287064 | BJ20: 3.225806452 | BK20: 1 | BL20: 2.389986637e-05 | BM20: 2.465274157e-05 | BO20: 3.333333333 | BP20: 1 | BQ20: 2.2586256e-06 | BR20: 1.41791496e-05 | BT20: 3.333333333 | BU20: 1 | BV20: 2.613888585e-05 | BW20: 2.689176105e-05 | BY20: 3.333333333 | BZ20: 1 | CA20: 3.921225e-08 | CB20: 7.9208745e-07 | CD20: 3.333333333 | CE20: 1 | CF20: 3.937395e-07 | CG20: 4.3295175e-07 | CI20: 3.125 | CJ20: 1 | CK20: 0.0006410553072 | CL20: 0.0006529758312 | CN20: 3.125 | CO20: 1 | CP20: 0.0006410553072 | CQ20: 0.0006529758312 | CS20: 3.125 | CT20: 1 | CU20: 2.388026025e-05 | CV20: 2.463313545e-05 | CX20: 3.125 | CY20: 1 | CZ20: 0.0006418081824 | DA20: 0.0006537287064 | DC20: 3.125 | DD20: 1 | DE20: 7.15233596e-05 | DF20: 7.22762348e-05 | DH20: 3.125 | DI20: 1 | DJ20: 2.388026025e-05 | DK20: 2.463313545e-05 | DM20: 3.125 | DN20: 1 | DO20: 1.7410239e-06 | DP20: 1.78023615e-06 | DR20: 3.333333333 | DS20: 1 | DT20: 2.3841048e-05 | DU20: 2.45939232e-05 | DW20: 3.333333333 | DX20: 1 | DY20: 2.388026025e-05 | DZ20: 2.463313545e-05 | EB20: 3.333333333 | EC20: 1 | ED20: 1.21275e-09 | EE20: 4.0425e-08 | EG20: 3.571428571 | EH20: 1 | EI20: 7.84245e-08 | EJ20: 8.312997e-07 | EL20: 3.571428571 | EM20: 1 | EN20: 1.5100624e-06 | EO20: 1.54927465e-06 | EQ20: 3.846153846 | ER20: 1 | ES20: 4.0425e-09 | ET20: 4.325475e-08 | EV20: 4 | EW20: 1 | EX20: 4.95e-11 | EY20: 1.6665e-09 | FA20: 3.125 | FB20: 1 | FC20: 0.0006418081824 | FD20: 0.0006537287064 | FF20: 3.125 | FG20: 1 | FH20: 0.0006410553072 | FI20: 0.0006529758312 | FK20: 3.125 | FL20: 1 | FM20: 2.388026025e-05 | FN20: 2.463313545e-05 | FP20: 3.125 | FQ20: 1 | FR20: 7.1523144e-05 | FS20: 7.22760192e-05 | FU20: 3.125 | FV20: 1 | FW20: 2.3841048e-05 | FX20: 2.45939232e-05 | FZ20: 3.125 | GA20: 1 | GB20: 1.5057504e-06 | GC20: 1.54496265e-06 | GE20: 3.225806452 | GF20: 1 | GG20: 7.1523144e-05 | GH20: 7.22760192e-05 | GJ20: 3.225806452 | GK20: 1 | GL20: 7.1523144e-05 | GM20: 7.22760192e-05 | GO20: 3.225806452 | GP20: 1 | GQ20: 3.0115008e-06 | GR20: 3.05071305e-06 | GT20: 3.333333333 | GU20: 1 | GV20: 3.0115008e-06 | GW20: 3.05071305e-06 | GY20: 3.333333333 | GZ20: 1 | HA20: 1.5057504e-06 | HB20: 1.54496265e-06 | HD20: 3.125 | HE20: 1 | HF20: 2.388026025e-05 | HG20: 2.463313545e-05 | HI20: 3.125 | HJ20: 1 | HK20: 0 | HL20: 3.921225e-08 | HN20: 3.125 | HO20: 1 | HP20: 3.0115008e-06 | HQ20: 3.05071305e-06 | HS20: 3.125 | HT20: 1 | HU20: 0 | HV20: 1.1763675e-07 | HX20: 3.333333333 | HY20: 1 | HZ20: 1.5580334e-06 | IA20: 1.5580334e-06 | IC20: 3.846153846 | ID20: 1 | IE20: 7.84245e-08 | IF20: 7.84245e-08 | IH20: 4.347826087 | II20: 1 | IJ20: 0 | IK20: 1.1763675e-06 | IM20: 3.125 | IN20: 1 | IO20: 0.0006656492304 | IP20: 0.0006656492843 | IR20: 3.125 | IS20: 1 | IT20: 2.389986637e-05 | IU20: 2.389989332e-05 | IW20: 3.125 | IX20: 1 | IY20: 4.76824194e-05 | IZ20: 7.15234674e-05 | JB20: 3.125 | JC20: 1 | JD20: 1.7410239e-06 | JE20: 4.7525247e-06 | JG20: 3.225806452 | JH20: 1 | JI20: 4.76822038e-05 | JJ20: 4.91879542e-05 | JL20: 3.225806452 | JM20: 1 | JN20: 1.5058043e-06 | JO20: 1.525410425e-06 | JQ20: 3.333333333 | JR20: 1 | JS20: 3.0115008e-06 | JT20: 5.2701264e-06 | JV20: 3.333333333 | JW20: 1 | JX20: 7.84245e-08 | JY20: 4.70547e-07 | KA20: 3.125 | KB20: 1 | KC20: 1.5058043e-06 | KD20: 1.54501655e-06 | KF20: 3.125 | KG20: 1 | KH20: 5.06935968e-05 | KI20: 5.06938124e-05 | KK20: 3.125 | KL20: 1 | KM20: 6.1014261e-06 | KN20: 6.3366996e-06 | KP20: 3.333333333 | KQ20: 1 | KR20: 7.84245e-08 | KS20: 7.963725e-08 | KU20: 3.571428571 | KV20: 1 | KW20: 1.56849e-07 | KX20: 1.61161e-07 | KZ20: 4 | LA20: 1 | LB20: 3.234e-09 | LC20: 3.2835e-09 | LE20: 3.125 | LF20: 1 | LG20: 1.617e-09 | LH20: 4.082925e-08 | LJ20: 3.125 | LK20: 1 | LL20: 0 | LM20: 1.617e-09 | LO20: 3.225806452 | LP20: 1 | LQ20: 7.84245e-08 | LR20: 8.00415e-08 | LT20: 3.333333333 | LU20: 1 | LV20: 0 | LW20: 1.617e-09 | LY20: 3.333333333 | LZ20: 1 | MA20: 0 | MB20: 4.95e-11 | MD20: 3.125 | ME20: 1 | MF20: 0 | MG20: 1.617e-09 | MI20: 3.125 | MJ20: 1 | MK20: 0 | ML20: 4.95e-11 | MN20: 3.333333333 | MO20: 1 | MP20: 7.84245e-08 | MQ20: 8.00415e-08 | MS20: 5 | MT20: 1 | MU20: 0 | MV20: 4.95e-11 | MX20: 6.25 | MY20: 1 | MZ20: 0 | NA20: 0
G21: 6.25 | H21: 2 | I21: 0.01326456313 | J21: 0.01624597133 | L21: 6.25 | M21: 2 | N21: 0.00276306991 | O21: 0.006692585553 | Q21: 6.25 | R21: 2 | S21: 0.002589568027 | T21: 0.006519083617 | V21: 6.25 | W21: 2 | X21: 0.01217362507 | Y21: 0.01218780425 | AA21: 6.25 | AB21: 2 | AC21: 0.0026126562 | AD21: 0.00654217179 | AF21: 6.25 | AG21: 2 | AH21: 0.007623155255 | AI21: 0.008300725009 | AK21: 6.25 | AL21: 2 | AM21: 0.01216168494 | AN21: 0.01217586409 | AP21: 6.25 | AQ21: 2 | AR21: 2.4971331e-06 | AS21: 6.3399336e-06 | AU21: 6.451612903 | AV21: 2 | AW21: 0.002590320902 | AX21: 0.006519836492 | AZ21: 6.451612903 | BA21: 2 | BB21: 0.007612681448 | BC21: 0.008267163029 | BE21: 6.451612903 | BF21: 2 | BG21: 0.007611948071 | BH21: 0.008265676777 | BJ21: 6.451612903 | BK21: 2 | BL21: 0.001036534926 | BM21: 0.001061187668 | BO21: 6.666666667 | BP21: 2 | BQ21: 0.01216382593 | BR21: 0.01217800508 | BT21: 6.666666667 | BU21: 2 | BV21: 0.001036495256 | BW21: 0.001063387017 | BY21: 6.666666667 | BZ21: 2 | CA21: 1.5073674e-06 | CB21: 2.29945485e-06 | CD21: 6.666666667 | CE21: 2 | CF21: 7.8474e-08 | CG21: 5.1142575e-07 | CI21: 6.25 | CJ21: 2 | CK21: 0.007612662057 | CL21: 0.008265637888 | CN21: 6.25 | CO21: 2 | CP21: 0.007601494085 | CQ21: 0.008254469916 | CS21: 6.25 | CT21: 2 | CU21: 0.001035819646 | CV21: 0.001060452782 | CX21: 6.25 | CY21: 2 | CZ21: 0.007611909074 | DA21: 0.00826563778 | DC21: 6.25 | DD21: 2 | DE21: 0.00197239298 | DF21: 0.002044669215 | DH21: 6.25 | DI21: 2 | DJ21: 0.001035858805 | DK21: 0.00106049194 | DM21: 6.25 | DN21: 2 | DO21: 6.14225535e-06 | DP21: 7.9224915e-06 | DR21: 6.666666667 | DS21: 2 | DT21: 0.00103578038 | DU21: 0.001060374303 | DW21: 6.666666667 | DX21: 2 | DY21: 0.00103578038 | DZ21: 0.001060413516 | EB21: 6.666666667 | EC21: 2 | ED21: 0.0001521200027 | EE21: 0.0001521604277 | EG21: 7.142857143 | EH21: 2 | EI21: 1.5100624e-06 | EJ21: 2.3413621e-06 | EL21: 7.142857143 | EM21: 2 | EN21: 1.1763675e-07 | EO21: 1.6669114e-06 | EQ21: 7.692307692 | ER21: 2 | ES21: 3.921225e-08 | ET21: 8.2467e-08 | EV21: 8 | EW21: 2 | EX21: 1.617e-09 | EY21: 3.2835e-09 | FA21: 6.25 | FB21: 2 | FC21: 0.007611948178 | FD21: 0.008265676885 | FF21: 6.25 | FG21: 2 | FH21: 0.007601494085 | FI21: 0.008254469916 | FK21: 6.25 | FL21: 2 | FM21: 0.001035819646 | FN21: 0.001060452782 | FP21: 6.25 | FQ21: 2 | FR21: 0.00197171853 | FS21: 0.002043994549 | FU21: 6.25 | FV21: 2 | FW21: 0.001035145142 | FX21: 0.001059739065 | FZ21: 6.25 | GA21: 2 | GB21: 6.1046601e-06 | GC21: 7.64962275e-06 | GE21: 6.451612903 | GF21: 2 | GG21: 0.001927028328 | GH21: 0.001999304347 | GJ21: 6.451612903 | GK21: 2 | GL21: 0.001923997221 | GM21: 0.00199627324 | GO21: 6.451612903 | GP21: 2 | GQ21: 0.0001237633205 | GR21: 0.0001268140335 | GT21: 6.666666667 | GU21: 2 | GV21: 0.0001282409552 | GW21: 0.0001312916682 | GY21: 6.666666667 | GZ21: 2 | HA21: 1.617e-09 | HB21: 1.54657965e-06 | HD21: 6.25 | HE21: 2 | HF21: 0.00103578038 | HG21: 0.001060413516 | HI21: 6.25 | HJ21: 2 | HK21: 0.0001520807904 | HL21: 0.0001521200027 | HN21: 6.25 | HO21: 2 | HP21: 0.0001237224912 | HQ21: 0.0001267732043 | HS21: 6.25 | HT21: 2 | HU21: 0.0001520807904 | HV21: 0.0001521984272 | HX21: 6.666666667 | HY21: 2 | HZ21: 8.00415e-08 | IA21: 1.6380749e-06 | IC21: 7.692307692 | ID21: 2 | IE21: 0 | IF21: 7.84245e-08 | IH21: 8.695652174 | II21: 2 | IJ21: 0 | IK21: 1.1763675e-06 | IM21: 6.25 | IN21: 2 | IO21: 0.007636503186 | IP21: 0.00830215247 | IR21: 6.25 | IS21: 2 | IT21: 0.001000773112 | IU21: 0.001024673005 | IW21: 6.25 | IX21: 2 | IY21: 0.001954574934 | IZ21: 0.002026098401 | JB21: 6.25 | JC21: 2 | JD21: 3.1699668e-06 | JE21: 7.9224915e-06 | JG21: 6.451612903 | JH21: 2 | JI21: 0.001973898731 | JJ21: 0.002023086685 | JL21: 6.451612903 | JM21: 2 | JN21: 0.0001261407956 | JO21: 0.000127666206 | JQ21: 6.666666667 | JR21: 2 | JS21: 0.0001238024518 | JT21: 0.0001290725782 | JV21: 6.666666667 | JW21: 2 | JX21: 3.2835e-09 | JY21: 4.738305e-07 | KA21: 6.25 | KB21: 2 | KC21: 0.0001215042906 | KD21: 0.0001230493072 | KF21: 6.25 | KG21: 2 | KH21: 0.0002384106956 | KI21: 0.000289104508 | KK21: 6.25 | KL21: 2 | KM21: 3.0115008e-06 | KN21: 9.3482004e-06 | KP21: 6.666666667 | KQ21: 2 | KR21: 4.811504775e-06 | KS21: 4.891142025e-06 | KU21: 7.142857143 | KV21: 2 | KW21: 3.0115008e-06 | KX21: 3.1726618e-06 | KZ21: 8 | LA21: 2 | LB21: 0 | LC21: 3.2835e-09 | LE21: 6.25 | LF21: 2 | LG21: 0.0001476028323 | LH21: 0.0001476436616 | LJ21: 6.25 | LK21: 2 | LL21: 1.366939035e-05 | LM21: 1.367100735e-05 | LO21: 6.451612903 | LP21: 2 | LQ21: 9.38741265e-06 | LR21: 9.46745415e-06 | LT21: 6.666666667 | LU21: 2 | LV21: 4.63488795e-06 | LW21: 4.63650495e-06 | LY21: 6.666666667 | LZ21: 2 | MA21: 1.416492e-06 | MB21: 1.4165415e-06 | MD21: 6.25 | ME21: 2 | MF21: 4.7525247e-06 | MG21: 4.7541417e-06 | MI21: 6.25 | MJ21: 2 | MK21: 0 | ML21: 4.95e-11 | MN21: 6.666666667 | MO21: 2 | MP21: 7.842945e-07 | MQ21: 8.64336e-07 | MS21: 10 | MT21: 2 | MU21: 0 | MV21: 4.95e-11 | MX21: 12.5 | MY21: 2 | MZ21: 0 | NA21: 0
G22: 9.375 | H22: 3 | I22: 0.006767344241 | J22: 0.02301331558 | L22: 9.375 | M22: 3 | N22: 0.02320369759 | O22: 0.02989628314 | Q22: 9.375 | R22: 3 | S22: 0.02345301939 | T22: 0.02997210301 | V22: 9.375 | W22: 3 | X22: 0.00509589264 | Y22: 0.01728369689 | AA22: 9.375 | AB22: 3 | AC22: 0.02345301958 | AD22: 0.02999519137 | AF22: 9.375 | AG22: 3 | AH22: 0.005602972302 | AI22: 0.01390369731 | AK22: 9.375 | AL22: 3 | AM22: 0.005094383818 | AN22: 0.01727024791 | AP22: 9.375 | AQ22: 3 | AR22: 0.002022451339 | AS22: 0.002028791272 | AU22: 9.677419355 | AV22: 3 | AW22: 0.02345305858 | AX22: 0.02997289507 | AZ22: 9.677419355 | BA22: 3 | BB22: 0.005646988052 | BC22: 0.01391415108 | BE22: 9.677419355 | BF22: 3 | BG22: 0.005277609778 | BH22: 0.01354328655 | BJ22: 9.677419355 | BK22: 3 | BL22: 0.02447911823 | BM22: 0.02554030589 | BO22: 10 | BP22: 3 | BQ22: 0.00509438503 | BR22: 0.01727239011 | BT22: 10 | BU22: 3 | BV22: 0.02452741507 | BW22: 0.02559080208 | BY22: 10 | BZ22: 3 | CA22: 0.0020163107 | CB22: 0.002018610155 | CD22: 10 | CE22: 3 | CF22: 3.937395e-07 | CG22: 9.0516525e-07 | CI22: 9.375 | CJ22: 3 | CK22: 0.005646176359 | CL22: 0.01391181425 | CN22: 9.375 | CO22: 3 | CP22: 0.005320872653 | CQ22: 0.01357534257 | CS22: 9.375 | CT22: 3 | CU22: 0.0244737909 | CV22: 0.02553424368 | CX22: 9.375 | CY22: 3 | CZ22: 0.005320755016 | DA22: 0.0135863928 | DC22: 9.375 | DD22: 3 | DE22: 0.0152791072 | DF22: 0.01732377642 | DH22: 9.375 | DI22: 3 | DJ22: 0.02445058226 | DK22: 0.0255110742 | DM22: 9.375 | DN22: 3 | DO22: 0.0001521624489 | DP22: 0.0001600849404 | DR22: 10 | DS22: 3 | DT22: 0.02445284242 | DU22: 0.02551321673 | DW22: 10 | DX22: 3 | DY22: 0.02445050505 | DZ22: 0.02551091856 | EB22: 10 | EC22: 3 | ED22: 9.448009725e-06 | EE22: 0.0001616084374 | EG22: 10.71428571 | EH22: 3 | EI22: 0.002016349912 | EJ22: 0.002018691275 | EL22: 10.71428571 | EM22: 3 | EN22: 0.00015057504 | EO22: 0.0001522419514 | EQ22: 11.53846154 | ER22: 3 | ES22: 0 | ET22: 8.2467e-08 | EV22: 12 | EW22: 3 | EX22: 0 | EY22: 3.2835e-09 | FA22: 9.375 | FB22: 3 | FC22: 0.005649999553 | FD22: 0.01391567644 | FF22: 9.375 | FG22: 3 | FH22: 0.005322339191 | FI22: 0.01357680911 | FK22: 9.375 | FL22: 3 | FM22: 0.02447604993 | FN22: 0.02553650271 | FP22: 9.375 | FQ22: 3 | FR22: 0.01525970541 | FS22: 0.01730369996 | FU22: 9.375 | FV22: 3 | FW22: 0.02444987021 | FX22: 0.02550960928 | FZ22: 9.375 | GA22: 3 | GB22: 0.0001527082359 | GC22: 0.0001603578586 | GE22: 9.677419355 | GF22: 3 | GG22: 0.01525970498 | GH22: 0.01725900933 | GJ22: 9.677419355 | GK22: 3 | GL22: 0.01523586372 | GM22: 0.01723213696 | GO22: 9.677419355 | GP22: 3 | GQ22: 0.004132738225 | GR22: 0.004259552258 | GT22: 10 | GU22: 3 | GV22: 0.004132581268 | GW22: 0.004263872936 | GY22: 10 | GZ22: 3 | HA22: 0.0001506534645 | HB22: 0.0001522000442 | HD22: 9.375 | HE22: 3 | HF22: 0.02445371172 | HG22: 0.02551412524 | HI22: 9.375 | HJ22: 3 | HK22: 9.39242535e-06 | HL22: 0.000161512428 | HN22: 9.375 | HO22: 3 | HP22: 0.004274279302 | HQ22: 0.004401052506 | HS22: 9.375 | HT22: 3 | HU22: 9.2730099e-06 | HV22: 0.0001614714371 | HX22: 10 | HY22: 3 | HZ22: 0.00015057504 | IA22: 0.0001522131149 | IC22: 11.53846154 | ID22: 3 | IE22: 0 | IF22: 7.84245e-08 | IH22: 13.04347826 | II22: 3 | IJ22: 0 | IK22: 1.1763675e-06 | IM22: 9.375 | IN22: 3 | IO22: 0.005879284438 | IP22: 0.01418143691 | IR22: 9.375 | IS22: 3 | IT22: 0.0246214121 | IU22: 0.0256460851 | IW22: 9.375 | IX22: 3 | IY22: 0.01544147734 | IZ22: 0.01746757574 | JB22: 9.375 | JC22: 3 | JD22: 0.000155095633 | JE22: 0.0001630181245 | JG22: 9.677419355 | JH22: 3 | JI22: 0.01533725593 | JJ22: 0.01736034261 | JL22: 9.677419355 | JM22: 3 | JN22: 0.004064148427 | JO22: 0.004191814633 | JQ22: 10 | JR22: 3 | JS22: 0.004137025054 | JT22: 0.004266097632 | JV22: 10 | JW22: 3 | JX22: 8.626695e-07 | JY22: 1.3365e-06 | KA22: 9.375 | KB22: 3 | KC22: 0.004067474272 | KD22: 0.00419052358 | KF22: 9.375 | KG22: 3 | KH22: 0.005139296408 | KI22: 0.005428400916 | KK22: 9.375 | KL22: 3 | KM22: 9.5115174e-06 | KN22: 1.88597178e-05 | KP22: 10 | KQ22: 3 | KR22: 0.0003041615808 | KS22: 0.0003090527228 | KU22: 10.71428571 | KV22: 3 | KW22: 2.71035072e-05 | KX22: 3.0276169e-05 | KZ22: 12 | LA22: 3 | LB22: 0 | LC22: 3.2835e-09 | LE22: 9.375 | LF22: 3 | LG22: 1.866042255e-05 | LH22: 0.0001663040841 | LJ22: 9.375 | LK22: 3 | LL22: 1.02893439e-05 | LM22: 2.396035125e-05 | LO22: 9.677419355 | LP22: 3 | LQ22: 0.0002951272401 | LR22: 0.0003045946943 | LT22: 10 | LU22: 3 | LV22: 9.3482004e-06 | LW22: 1.398470535e-05 | LY22: 10 | LZ22: 3 | MA22: 0 | MB22: 1.4165415e-06 | MD22: 9.375 | ME22: 3 | MF22: 2.77309527e-05 | MG22: 3.24850944e-05 | MI22: 9.375 | MJ22: 3 | MK22: 9.66966e-07 | ML22: 9.670155e-07 | MN22: 10 | MO22: 3 | MP22: 8.16585e-08 | MQ22: 9.459945e-07 | MS22: 15 | MT22: 3 | MU22: 0 | MV22: 4.95e-11 | MX22: 18.75 | MY22: 3 | MZ22: 0 | NA22: 0
G23: 12.5 | H23: 4 | I23: 0.06452865491 | J23: 0.08754197049 | L23: 12.5 | M23: 4 | N23: 0.01672384618 | O23: 0.04662012932 | Q23: 12.5 | R23: 4 | S23: 0.01973036229 | T23: 0.0497024653 | V23: 12.5 | W23: 4 | X23: 0.06118864338 | Y23: 0.07847234026 | AA23: 12.5 | AB23: 4 | AC23: 0.01938615441 | AD23: 0.04938134579 | AF23: 12.5 | AG23: 4 | AH23: 0.04052963552 | AI23: 0.05443333283 | AK23: 12.5 | AL23: 4 | AM23: 0.06064112701 | AN23: 0.07791137492 | AP23: 12.5 | AQ23: 4 | AR23: 0.04917336367 | AS23: 0.05120215494 | AU23: 12.90322581 | AV23: 4 | AW23: 0.01938603839 | AX23: 0.04935893347 | AZ23: 12.90322581 | BA23: 4 | BB23: 0.04103604995 | BC23: 0.05495020103 | BE23: 12.90322581 | BF23: 4 | BG23: 0.04127108883 | BH23: 0.05481437539 | BJ23: 12.90322581 | BK23: 4 | BL23: 0.01036587573 | BM23: 0.03590618163 | BO23: 13.33333333 | BP23: 4 | BQ23: 0.06061716671 | BR23: 0.07788955682 | BT23: 13.33333333 | BU23: 4 | BV23: 0.01126663164 | BW23: 0.03685743372 | BY23: 13.33333333 | BZ23: 4 | CA23: 0.04916706279 | CB23: 0.05118567294 | CD23: 13.33333333 | CE23: 4 | CF23: 0.0002464506083 | CG23: 0.0002473557735 | CI23: 12.5 | CJ23: 4 | CK23: 0.04100869837 | CL23: 0.05492051261 | CN23: 12.5 | CO23: 4 | CP23: 0.04184694867 | CQ23: 0.05542229124 | CS23: 12.5 | CT23: 4 | CU23: 0.01035926843 | CV23: 0.03589351211 | CX23: 12.5 | CY23: 4 | CZ23: 0.04124597564 | DA23: 0.05483236843 | DC23: 12.5 | DD23: 4 | DE23: 0.0102287724 | DF23: 0.02755254882 | DH23: 12.5 | DI23: 4 | DJ23: 0.01032635 | DK23: 0.0358374242 | DM23: 12.5 | DN23: 4 | DO23: 0.008182434198 | DP23: 0.008342519138 | DR23: 13.33333333 | DS23: 4 | DT23: 0.0114006382 | DU23: 0.03691385492 | DW23: 13.33333333 | DX23: 4 | DY23: 0.01033066893 | DZ23: 0.03584158749 | EB23: 13.33333333 | EC23: 4 | ED23: 0.07917256255 | EE23: 0.07933417098 | EG23: 14.28571429 | EH23: 4 | EI23: 0.04916551782 | EJ23: 0.0511842091 | EL23: 14.28571429 | EM23: 4 | EN23: 0.008201262254 | EO23: 0.008353504205 | EQ23: 15.38461538 | ER23: 4 | ES23: 0.000245939232 | ET23: 0.000246021699 | EV23: 16 | EW23: 4 | EX23: 0 | EY23: 3.2835e-09 | FA23: 12.5 | FB23: 4 | FC23: 0.04102321382 | FD23: 0.05493889026 | FF23: 12.5 | FG23: 4 | FH23: 0.04184686981 | FI23: 0.05542367892 | FK23: 12.5 | FL23: 4 | FM23: 0.01035613786 | FN23: 0.03589264057 | FP23: 12.5 | FQ23: 4 | FR23: 0.01039938569 | FS23: 0.02770308565 | FU23: 12.5 | FV23: 4 | FW23: 0.0103260435 | FX23: 0.03583565278 | FZ23: 12.5 | GA23: 4 | GB23: 0.008186324004 | GC23: 0.008346681862 | GE23: 12.90322581 | GF23: 4 | GG23: 0.01041724456 | GH23: 0.02767625389 | GJ23: 12.90322581 | GK23: 4 | GL23: 0.009699512407 | GM23: 0.02693164937 | GO23: 12.90322581 | GP23: 4 | GQ23: 0.04892272285 | GR23: 0.05318227511 | GT23: 13.33333333 | GU23: 4 | GV23: 0.04901417879 | GW23: 0.05327805173 | GY23: 13.33333333 | GZ23: 4 | HA23: 0.008175666114 | HB23: 0.008327866158 | HD23: 12.5 | HE23: 4 | HF23: 0.01140788846 | HG23: 0.0369220137 | HI23: 12.5 | HJ23: 4 | HK23: 0.07916862868 | HL23: 0.07933014111 | HN23: 12.5 | HO23: 4 | HP23: 0.04893665387 | HQ23: 0.05333770638 | HS23: 12.5 | HT23: 4 | HU23: 0.07909472922 | HV23: 0.07925620066 | HX23: 13.33333333 | HY23: 4 | HZ23: 0.00817640953 | IA23: 0.008328622645 | IC23: 15.38461538 | ID23: 4 | IE23: 1.525356525e-05 | IF23: 1.533198975e-05 | IH23: 17.39130435 | II23: 4 | IJ23: 0 | IK23: 1.1763675e-06 | IM23: 12.5 | IN23: 4 | IO23: 0.04035724951 | IP23: 0.05453868642 | IR23: 12.5 | IS23: 4 | IT23: 0.01126928818 | IU23: 0.03691537329 | IW23: 12.5 | IX23: 4 | IY23: 0.01078049302 | IZ23: 0.02824806876 | JB23: 12.5 | JC23: 4 | JD23: 0.008181478066 | JE23: 0.00834449619 | JG23: 12.90322581 | JH23: 4 | JI23: 0.01086408345 | JJ23: 0.02822442606 | JL23: 12.90322581 | JM23: 4 | JN23: 0.04921540773 | JO23: 0.05340722236 | JQ23: 13.33333333 | JR23: 4 | JS23: 0.04922861082 | JT23: 0.05349470845 | JV23: 13.33333333 | JW23: 4 | JX23: 3.01950495e-05 | JY23: 3.15315495e-05 | KA23: 12.5 | KB23: 4 | KC23: 0.04927738686 | KD23: 0.05346791044 | KF23: 12.5 | KG23: 4 | KH23: 0.03066872132 | KI23: 0.03609712224 | KK23: 12.5 | KL23: 4 | KM23: 0.0009015382409 | KN23: 0.0009203979587 | KP23: 13.33333333 | KQ23: 4 | KR23: 0.006443047796 | KS23: 0.006752100519 | KU23: 14.28571429 | KV23: 4 | KW23: 0.0008823723216 | KX23: 0.0009126484906 | KZ23: 16 | LA23: 4 | LB23: 0 | LC23: 3.2835e-09 | LE23: 12.5 | LF23: 4 | LG23: 0.07913049872 | LH23: 0.0792968028 | LJ23: 12.5 | LK23: 4 | LL23: 0.000309400872 | LM23: 0.0003333612233 | LO23: 12.90322581 | LP23: 4 | LQ23: 0.006673902843 | LR23: 0.006978497538 | LT23: 13.33333333 | LU23: 4 | LV23: 0.0003048723018 | LW23: 0.0003188570072 | LY23: 13.33333333 | LZ23: 4 | MA23: 8.00415e-07 | MB23: 2.2169565e-06 | MD23: 12.5 | ME23: 4 | MF23: 0.0003090414443 | MG23: 0.0003415265387 | MI23: 12.5 | MJ23: 4 | MK23: 0.0001107667638 | ML23: 0.0001117337793 | MN23: 13.33333333 | MO23: 4 | MP23: 1.59201735e-05 | MQ23: 1.6866168e-05 | MS23: 20 | MT23: 4 | MU23: 0 | MV23: 4.95e-11 | MX23: 25 | MY23: 4 | MZ23: 0 | NA23: 0
G24: 15.625 | H24: 5 | I24: 0.02716767614 | J24: 0.1147096466 | L24: 15.625 | M24: 5 | N24: 0.1022330576 | O24: 0.1488531869 | Q24: 15.625 | R24: 5 | S24: 0.09640314667 | T24: 0.146105612 | V24: 15.625 | W24: 5 | X24: 0.02123977378 | Y24: 0.09971211404 | AA24: 15.625 | AB24: 5 | AC24: 0.09713068493 | AD24: 0.1465120307 | AF24: 15.625 | AG24: 5 | AH24: 0.0447493222 | AI24: 0.09918265503 | AK24: 15.625 | AL24: 5 | AM24: 0.02205795319 | AN24: 0.09996932811 | AP24: 15.625 | AQ24: 5 | AR24: 0.02446394246 | AS24: 0.07566609739 | AU24: 16.12903226 | AV24: 5 | AW24: 0.09701837733 | AX24: 0.1463773108 | AZ24: 16.12903226 | BA24: 5 | BB24: 0.04220768206 | BC24: 0.09715788309 | BE24: 16.12903226 | BF24: 5 | BG24: 0.05037391342 | BH24: 0.1051882888 | BJ24: 16.12903226 | BK24: 5 | BL24: 0.101642751 | BM24: 0.1375489326 | BO24: 16.66666667 | BP24: 5 | BQ24: 0.02205364343 | BR24: 0.09994320025 | BT24: 16.66666667 | BU24: 5 | BV24: 0.09886075866 | BW24: 0.1357181924 | BY24: 16.66666667 | BZ24: 5 | CA24: 0.02455211229 | CB24: 0.07573778523 | CD24: 16.66666667 | CE24: 5 | CF24: 6.081981675e-05 | CG24: 0.0003081755902 | CI24: 15.625 | CJ24: 5 | CK24: 0.04227924753 | CL24: 0.09719976015 | CN24: 15.625 | CO24: 5 | CP24: 0.04782680373 | CQ24: 0.103249095 | CS24: 15.625 | CT24: 5 | CU24: 0.1017211672 | CV24: 0.1376146793 | CX24: 15.625 | CY24: 5 | CZ24: 0.04968547771 | DA24: 0.1045178461 | DC24: 15.625 | DD24: 5 | DE24: 0.07160212317 | DF24: 0.09915467199 | DH24: 15.625 | DI24: 5 | DJ24: 0.1006374487 | DK24: 0.1364748729 | DM24: 15.625 | DN24: 5 | DO24: 0.09851171152 | DP24: 0.1068542307 | DR24: 16.66666667 | DS24: 5 | DT24: 0.09879773835 | DU24: 0.1357115933 | DW24: 16.66666667 | DX24: 5 | DY24: 0.1004391721 | DZ24: 0.1362807596 | EB24: 16.66666667 | EC24: 5 | ED24: 0.01907527427 | EE24: 0.09840944525 | EG24: 17.85714286 | EH24: 5 | EI24: 0.02428439919 | EJ24: 0.07546860828 | EL24: 17.85714286 | EM24: 5 | EN24: 0.09891732896 | EO24: 0.1072708332 | EQ24: 19.23076923 | ER24: 5 | ES24: 4.693868025e-05 | ET24: 0.0002929603792 | EV24: 20 | EW24: 5 | EX24: 2.3056803e-05 | EY24: 2.30600865e-05 | FA24: 15.625 | FB24: 5 | FC24: 0.04298855699 | FD24: 0.09792744725 | FF24: 15.625 | FG24: 5 | FH24: 0.04856726573 | FI24: 0.1039909446 | FK24: 15.625 | FL24: 5 | FM24: 0.1017400494 | FN24: 0.1376326899 | FP24: 15.625 | FQ24: 5 | FR24: 0.07260400946 | FS24: 0.1003070951 | FU24: 15.625 | FV24: 5 | FW24: 0.1007136727 | FX24: 0.1365493255 | FZ24: 15.625 | GA24: 5 | GB24: 0.09849974912 | GC24: 0.106846431 | GE24: 16.12903226 | GF24: 5 | GG24: 0.0724610402 | GH24: 0.1001372941 | GJ24: 16.12903226 | GK24: 5 | GL24: 0.0737502883 | GM24: 0.1006819377 | GO24: 16.12903226 | GP24: 5 | GQ24: 0.01722047717 | GR24: 0.07040275227 | GT24: 16.66666667 | GU24: 5 | GV24: 0.01913268845 | GW24: 0.07241074018 | GY24: 16.66666667 | GZ24: 5 | HA24: 0.09849158629 | HB24: 0.1068194524 | HD24: 15.625 | HE24: 5 | HF24: 0.09885893461 | HG24: 0.1357809483 | HI24: 15.625 | HJ24: 5 | HK24: 0.01907973593 | HL24: 0.09840987704 | HN24: 15.625 | HO24: 5 | HP24: 0.01884447895 | HQ24: 0.07218218533 | HS24: 15.625 | HT24: 5 | HU24: 0.01906640983 | HV24: 0.09832261049 | HX24: 16.66666667 | HY24: 5 | HZ24: 0.09864605511 | IA24: 0.1069746778 | IC24: 19.23076923 | ID24: 5 | IE24: 0.0004921614885 | IF24: 0.0005074934782 | IH24: 21.73913043 | II24: 5 | IJ24: 2.3056803e-05 | IK24: 2.42331705e-05 | IM24: 15.625 | IN24: 5 | IO24: 0.03721252938 | IP24: 0.09175121579 | IR24: 15.625 | IS24: 5 | IT24: 0.09992912128 | IU24: 0.1368444946 | IW24: 15.625 | IX24: 5 | IY24: 0.07047805943 | IZ24: 0.09872612819 | JB24: 15.625 | JC24: 5 | JD24: 0.09897089182 | JE24: 0.107315388 | JG24: 16.12903226 | JH24: 5 | JI24: 0.07153650968 | JJ24: 0.09976093574 | JL24: 16.12903226 | JM24: 5 | JN24: 0.0192527344 | JO24: 0.07265995676 | JQ24: 16.66666667 | JR24: 5 | JS24: 0.020723083 | JT24: 0.07421779145 | JV24: 16.66666667 | JW24: 5 | JX24: 0.000493839126 | JY24: 0.0005253706755 | KA24: 15.625 | KB24: 5 | KC24: 0.01894615462 | KD24: 0.07241406506 | KF24: 15.625 | KG24: 5 | KH24: 0.01753252313 | KI24: 0.05362964537 | KK24: 15.625 | KL24: 5 | KM24: 0.02462361862 | KN24: 0.02554401658 | KP24: 16.66666667 | KQ24: 5 | KR24: 0.158931463 | KS24: 0.1656835635 | KU24: 17.85714286 | KV24: 5 | KW24: 0.02463203737 | KX24: 0.02554468586 | KZ24: 20 | LA24: 5 | LB24: 2.37699e-06 | LC24: 2.3802735e-06 | LE24: 15.625 | LF24: 5 | LG24: 0.01975066869 | LH24: 0.09904747149 | LJ24: 15.625 | LK24: 5 | LL24: 0.01301074786 | LM24: 0.01334410908 | LO24: 16.12903226 | LP24: 5 | LQ24: 0.1579832382 | LR24: 0.1649617358 | LT24: 16.66666667 | LU24: 5 | LV24: 0.01300147776 | LW24: 0.01332033477 | LY24: 16.66666667 | LZ24: 5 | MA24: 0 | MB24: 2.2169565e-06 | MD24: 15.625 | ME24: 5 | MF24: 0.01299227994 | MG24: 0.01333380648 | MI24: 15.625 | MJ24: 5 | MK24: 0 | ML24: 0.0001117337793 | MN24: 16.66666667 | MO24: 5 | MP24: 0.000492401294 | MQ24: 0.000509267462 | MS24: 25 | MT24: 5 | MU24: 0 | MV24: 4.95e-11 | MX24: 31.25 | MY24: 5 | MZ24: 0 | NA24: 0
